{"text_format":"1","workbook":"xlsx","n_sheets":8,"sheets":["Prisark","Producenter","Bestillingark","HW","Navnestyring","Navnestyring tilbehør","Tilbehør","Lager"],"not_rendered":{"charts":0,"images":17,"macros":1,"external_links":0,"defined_names":51,"comments":0,"pivot_tables":0},"unopened":[],"bounds":{"document_bytes":16777216,"sheet_cells":100000,"rows_first":2000,"rows_last":500,"rows_between":2000,"halvings":0,"cell_chars":16384,"cell_head_chars":4096},"cells_cut":0,"cells_raw":0,"read":"whole","date_system":"1900"}

{"sheet":"Prisark","index":0,"n_rows":82,"n_cols":9,"rows_kept":82,"cut":false,"hidden":false,"merged":[[1,4,6,5]]}
[]
[null,null,null,null,"Hent altid et nyt bestillingsark på: https://www.3.dk/business/bestilling/.                                          Ønskes der tilbehør, som ikke er vist på prisarket, kan man gå ind på www.3.dk/tilbehør og finde det. Herefter sendes linket på det der ønskes til 3Erhvervsaktivering@3.dk. "]
[]
[]
[]
[]
[]
[]
[null,null,null,null,null,null,"Opdateret d. 26-02-2021"]
["Brand","Mobil","Pris eksklusiv moms",null,"Brand","Tilbehør","Pris eksklusiv moms","A-nummer","lager"]
[null,"Apple iPhone 12 mini 64GB (OBS. UDEN OPLADER)",{"$f":"IFERROR(VLOOKUP(B11,HW!A:E,5,FALSE),\"\")","v":4959.2},null,null,"Apple 20W USB C Power Adapter",{"$f":"IFERROR(VLOOKUP(F11,Tilbehør!A:C,3,FALSE),\"\")","v":144},{"$f":"IFERROR(VLOOKUP(F11,Tilbehør!A:B,2,FALSE),\"\")","v":"A24287"},{"$f":"IFERROR(VLOOKUP(H11,Lager!A:C,3,FALSE),\"\")","v":4}]
[null,"Apple iPhone 12 mini 128GB (OBS. UDEN OPLADER)",{"$f":"IFERROR(VLOOKUP(B12,HW!A:E,5,FALSE),\"\")","v":5359.2},null,null,"Apple MagSafe Charger",{"$f":"IFERROR(VLOOKUP(F12,Tilbehør!A:C,3,FALSE),\"\")","v":288},{"$f":"IFERROR(VLOOKUP(F12,Tilbehør!A:B,2,FALSE),\"\")","v":"A24289"},{"$f":"IFERROR(VLOOKUP(H12,Lager!A:C,3,FALSE),\"\")","v":506}]
[null,"Apple iPhone 12 mini 256GB (OBS. UDEN OPLADER)",{"$f":"IFERROR(VLOOKUP(B13,HW!A:E,5,FALSE),\"\")","v":6079.2},null,null,"Apple Lightning to Headphone Jack Adapter",{"$f":"IFERROR(VLOOKUP(F13,Tilbehør!A:C,3,FALSE),\"\")","v":96},{"$f":"IFERROR(VLOOKUP(F13,Tilbehør!A:B,2,FALSE),\"\")","v":"A22056"},{"$f":"IFERROR(VLOOKUP(H13,Lager!A:C,3,FALSE),\"\")","v":41}]
[null,"Apple iPhone 12 64GB (OBS. UDEN OPLADER)",{"$f":"IFERROR(VLOOKUP(B14,HW!A:E,5,FALSE),\"\")","v":5599.2},null,null,"Apple AirPods Pro with wireless case",{"$f":"IFERROR(VLOOKUP(F14,Tilbehør!A:C,3,FALSE),\"\")","v":1752},{"$f":"IFERROR(VLOOKUP(F14,Tilbehør!A:B,2,FALSE),\"\")","v":"A23444"},{"$f":"IFERROR(VLOOKUP(H14,Lager!A:C,3,FALSE),\"\")","v":362}]
[null,"Apple iPhone 12 128GB (OBS. UDEN OPLADER)",{"$f":"IFERROR(VLOOKUP(B15,HW!A:E,5,FALSE),\"\")","v":5999.2},null,null,"Apple AirPods with Wireless Charging Case",{"$f":"IFERROR(VLOOKUP(F15,Tilbehør!A:C,3,FALSE),\"\")","v":1416},{"$f":"IFERROR(VLOOKUP(F15,Tilbehør!A:B,2,FALSE),\"\")","v":"A23333"},{"$f":"IFERROR(VLOOKUP(H15,Lager!A:C,3,FALSE),\"\")","v":140}]
[null,"Apple iPhone 12 256GB (OBS. UDEN OPLADER)",{"$f":"IFERROR(VLOOKUP(B16,HW!A:E,5,FALSE),\"\")","v":6719.2},null,null,"Apple AirPods with Charging Case",{"$f":"IFERROR(VLOOKUP(F16,Tilbehør!A:C,3,FALSE),\"\")","v":1104},{"$f":"IFERROR(VLOOKUP(F16,Tilbehør!A:B,2,FALSE),\"\")","v":"A23335"},{"$f":"IFERROR(VLOOKUP(H16,Lager!A:C,3,FALSE),\"\")","v":18}]
[null,"Apple iPhone 12 Pro 128GB (OBS. UDEN OPLADER)",{"$f":"IFERROR(VLOOKUP(B17,HW!A:E,5,FALSE),\"\")","v":7119.2},null,null,"Smart Keyboard for iPad 7th generation and iPad Air 3rd generation Danish",{"$f":"IFERROR(VLOOKUP(F17,Tilbehør!A:C,3,FALSE),\"\")","v":1560},{"$f":"IFERROR(VLOOKUP(F17,Tilbehør!A:B,2,FALSE),\"\")","v":"A23329"},{"$f":"IFERROR(VLOOKUP(H17,Lager!A:C,3,FALSE),\"\")","v":18}]
[null,"Apple iPhone 12 Pro 256GB (OBS. UDEN OPLADER)",{"$f":"IFERROR(VLOOKUP(B18,HW!A:E,5,FALSE),\"\")","v":7839.2},null,null,"Apple AirPods Max Space Gray",{"$f":"IFERROR(VLOOKUP(F18,Tilbehør!A:C,3,FALSE),\"\")","v":3840},{"$f":"IFERROR(VLOOKUP(F18,Tilbehør!A:B,2,FALSE),\"\")","v":"A24460"},{"$f":"IFERROR(VLOOKUP(H18,Lager!A:C,3,FALSE),\"\")","v":""}]
[null,"Apple iPhone 12 Pro 512GB (OBS. UDEN OPLADER)",{"$f":"IFERROR(VLOOKUP(B19,HW!A:E,5,FALSE),\"\")","v":9279.2000000000007},null,null,"Apple AirPods Max Silver",{"$f":"IFERROR(VLOOKUP(F19,Tilbehør!A:C,3,FALSE),\"\")","v":3840},{"$f":"IFERROR(VLOOKUP(F19,Tilbehør!A:B,2,FALSE),\"\")","v":"A24461"},{"$f":"IFERROR(VLOOKUP(H19,Lager!A:C,3,FALSE),\"\")","v":""}]
[null,"Apple iPhone 12 Pro Max 128GB (OBS. UDEN OPLADER)",{"$f":"IFERROR(VLOOKUP(B20,HW!A:E,5,FALSE),\"\")","v":7759.2},null,null,"Apple AirPods Max Sky Blue",{"$f":"IFERROR(VLOOKUP(F20,Tilbehør!A:C,3,FALSE),\"\")","v":3840},{"$f":"IFERROR(VLOOKUP(F20,Tilbehør!A:B,2,FALSE),\"\")","v":"A24462"},{"$f":"IFERROR(VLOOKUP(H20,Lager!A:C,3,FALSE),\"\")","v":""}]
[null,"Apple iPhone 12 Pro Max 256GB (OBS. UDEN OPLADER)",{"$f":"IFERROR(VLOOKUP(B21,HW!A:E,5,FALSE),\"\")","v":8479.2000000000007},null,null,"Apple AirPods Max Pink",{"$f":"IFERROR(VLOOKUP(F21,Tilbehør!A:C,3,FALSE),\"\")","v":3840},{"$f":"IFERROR(VLOOKUP(F21,Tilbehør!A:B,2,FALSE),\"\")","v":"A24463"},{"$f":"IFERROR(VLOOKUP(H21,Lager!A:C,3,FALSE),\"\")","v":""}]
[null,"Apple iPhone 12 Pro Max 512GB (OBS. UDEN OPLADER)",{"$f":"IFERROR(VLOOKUP(B22,HW!A:E,5,FALSE),\"\")","v":9919.2000000000007},null,null,"Apple AirPods Max Green",{"$f":"IFERROR(VLOOKUP(F22,Tilbehør!A:C,3,FALSE),\"\")","v":3840},{"$f":"IFERROR(VLOOKUP(F22,Tilbehør!A:B,2,FALSE),\"\")","v":"A24464"},{"$f":"IFERROR(VLOOKUP(H22,Lager!A:C,3,FALSE),\"\")","v":1}]
[null,"Apple iPhone 11 64GB NEW (OBS. UDEN OPLADER)",{"$f":"IFERROR(VLOOKUP(B23,HW!A:E,5,FALSE),\"\")","v":4239.2},null,null,null,null,{"$f":"IFERROR(VLOOKUP(F23,Tilbehør!A:B,2,FALSE),\"\")","v":""},{"$f":"IFERROR(VLOOKUP(H23,Lager!A:C,3,FALSE),\"\")","v":""}]
[null,"Apple iPhone 11 128GB NEW (OBS. UDEN OPLADER)",{"$f":"IFERROR(VLOOKUP(B24,HW!A:E,5,FALSE),\"\")","v":4639.2},null,null,"Samsung Common Wireless Charger Stand 15W White",{"$f":"IFERROR(VLOOKUP(F24,Tilbehør!A:C,3,FALSE),\"\")","v":408},{"$f":"IFERROR(VLOOKUP(F24,Tilbehør!A:B,2,FALSE),\"\")","v":"A23454"},{"$f":"IFERROR(VLOOKUP(H24,Lager!A:C,3,FALSE),\"\")","v":25}]
[null,"Apple iPhone 11 Pro 64GB",{"$f":"IFERROR(VLOOKUP(B25,HW!A:E,5,FALSE),\"\")","v":7119.2},null,null,"Samsung Wired headset White",{"$f":"IFERROR(VLOOKUP(F25,Tilbehør!A:C,3,FALSE),\"\")","v":72},{"$f":"IFERROR(VLOOKUP(F25,Tilbehør!A:B,2,FALSE),\"\")","v":"A22339"},{"$f":"IFERROR(VLOOKUP(H25,Lager!A:C,3,FALSE),\"\")","v":10}]
[null,"Apple iPhone 11 Pro 256GB",{"$f":"IFERROR(VLOOKUP(B26,HW!A:E,5,FALSE),\"\")","v":8239.2000000000007},null,null,null,{"$f":"IFERROR(VLOOKUP(F26,Tilbehør!A:C,3,FALSE),\"\")","v":""},{"$f":"IFERROR(VLOOKUP(F26,Tilbehør!A:B,2,FALSE),\"\")","v":""},{"$f":"IFERROR(VLOOKUP(H26,Lager!A:C,3,FALSE),\"\")","v":""}]
[null,"Apple iPhone SE 2nd gen 128GB NEW (OBS. UDEN OPLADER)",{"$f":"IFERROR(VLOOKUP(B27,HW!A:E,5,FALSE),\"\")","v":3359.2},null,null,"Beoplay E8 3rd grey mist TW",{"$f":"IFERROR(VLOOKUP(F27,Tilbehør!A:C,3,FALSE),\"\")","v":2208},{"$f":"IFERROR(VLOOKUP(F27,Tilbehør!A:B,2,FALSE),\"\")","v":"A23519"},{"$f":"IFERROR(VLOOKUP(H27,Lager!A:C,3,FALSE),\"\")","v":10}]
[null,"Apple iPhone SE 2nd gen 256GB NEW (OBS. UDEN OPLADER)",{"$f":"IFERROR(VLOOKUP(B28,HW!A:E,5,FALSE),\"\")","v":4079.2},null,null,"Beoplay E8 Sport Black",{"$f":"IFERROR(VLOOKUP(F28,Tilbehør!A:C,3,FALSE),\"\")","v":2208},{"$f":"IFERROR(VLOOKUP(F28,Tilbehør!A:B,2,FALSE),\"\")","v":"A23854"},{"$f":"IFERROR(VLOOKUP(H28,Lager!A:C,3,FALSE),\"\")","v":83}]
[null,"Apple iPhone SE 2nd gen 64GB NEW (OBS. UDEN OPLADER)",{"$f":"IFERROR(VLOOKUP(B29,HW!A:E,5,FALSE),\"\")","v":2959.2},null,null,"Beoplay E8 Sport Oxygen Blue",{"$f":"IFERROR(VLOOKUP(F29,Tilbehør!A:C,3,FALSE),\"\")","v":2208},{"$f":"IFERROR(VLOOKUP(F29,Tilbehør!A:B,2,FALSE),\"\")","v":"A23855"},{"$f":"IFERROR(VLOOKUP(H29,Lager!A:C,3,FALSE),\"\")","v":12}]
[null,null,{"$f":"IFERROR(VLOOKUP(B30,HW!A:E,5,FALSE),\"\")","v":""},null,null,"Beoplay E8 2 Black Truly Wireless Earphones",{"$f":"IFERROR(VLOOKUP(F30,Tilbehør!A:C,3,FALSE),\"\")","v":1504},{"$f":"IFERROR(VLOOKUP(F30,Tilbehør!A:B,2,FALSE),\"\")","v":"A23069"},{"$f":"IFERROR(VLOOKUP(H30,Lager!A:C,3,FALSE),\"\")","v":6}]
[null,"Huawei P40 Lite 4G",{"$f":"IFERROR(VLOOKUP(B31,HW!A:E,5,FALSE),\"\")","v":1919.2},null,null,"Beoplay H9 3G Matte Black",{"$f":"IFERROR(VLOOKUP(F31,Tilbehør!A:C,3,FALSE),\"\")","v":3232},{"$f":"IFERROR(VLOOKUP(F31,Tilbehør!A:B,2,FALSE),\"\")","v":"A23177"},{"$f":"IFERROR(VLOOKUP(H31,Lager!A:C,3,FALSE),\"\")","v":24}]
[null,"Huawei P40 Pro",{"$f":"IFERROR(VLOOKUP(B32,HW!A:E,5,FALSE),\"\")","v":7039.2},null,null,"Beoplay H4 2 Gen Black",{"$f":"IFERROR(VLOOKUP(F32,Tilbehør!A:C,3,FALSE),\"\")","v":1848},{"$f":"IFERROR(VLOOKUP(F32,Tilbehør!A:B,2,FALSE),\"\")","v":"A23520"},{"$f":"IFERROR(VLOOKUP(H32,Lager!A:C,3,FALSE),\"\")","v":15}]
[null,null,{"$f":"IFERROR(VLOOKUP(B33,HW!A:E,5,FALSE),\"\")","v":""},null,null,"Beoplay H4 2 Gen Limestone",{"$f":"IFERROR(VLOOKUP(F33,Tilbehør!A:C,3,FALSE),\"\")","v":1848},{"$f":"IFERROR(VLOOKUP(F33,Tilbehør!A:B,2,FALSE),\"\")","v":"A23521"},{"$f":"IFERROR(VLOOKUP(H33,Lager!A:C,3,FALSE),\"\")","v":18}]
[null,"OnePlus 8T 128GB",{"$f":"IFERROR(VLOOKUP(B34,HW!A:E,5,FALSE),\"\")","v":3999.2},null,null,null,{"$f":"IFERROR(VLOOKUP(F34,Tilbehør!A:C,3,FALSE),\"\")","v":""},{"$f":"IFERROR(VLOOKUP(F34,Tilbehør!A:B,2,FALSE),\"\")","v":""},{"$f":"IFERROR(VLOOKUP(H34,Lager!A:C,3,FALSE),\"\")","v":""}]
[null,"OnePlus 7T 128GB",{"$f":"IFERROR(VLOOKUP(B35,HW!A:E,5,FALSE),\"\")","v":3919.2},null,null,"BOSE QC35 II wireless Headphones black",{"$f":"IFERROR(VLOOKUP(F35,Tilbehør!A:C,3,FALSE),\"\")","v":1440},{"$f":"IFERROR(VLOOKUP(F35,Tilbehør!A:B,2,FALSE),\"\")","v":"A23849"},{"$f":"IFERROR(VLOOKUP(H35,Lager!A:C,3,FALSE),\"\")","v":52}]
[null,"OnePlus 7T Pro 256GB",{"$f":"IFERROR(VLOOKUP(B36,HW!A:E,5,FALSE),\"\")","v":4799.2},null,null,null,{"$f":"IFERROR(VLOOKUP(F36,Tilbehør!A:C,3,FALSE),\"\")","v":""},{"$f":"IFERROR(VLOOKUP(F36,Tilbehør!A:B,2,FALSE),\"\")","v":""},{"$f":"IFERROR(VLOOKUP(H36,Lager!A:C,3,FALSE),\"\")","v":""}]
[null,"OnePlus 8 128GB 5G",{"$f":"IFERROR(VLOOKUP(B37,HW!A:E,5,FALSE),\"\")","v":4519.2},null,null,"Google Chromecast 3",{"$f":"IFERROR(VLOOKUP(F37,Tilbehør!A:C,3,FALSE),\"\")","v":288},{"$f":"IFERROR(VLOOKUP(F37,Tilbehør!A:B,2,FALSE),\"\")","v":"A24700"},{"$f":"IFERROR(VLOOKUP(H37,Lager!A:C,3,FALSE),\"\")","v":60}]
[null,"OnePlus 8 Pro 128GB 5G",{"$f":"IFERROR(VLOOKUP(B38,HW!A:E,5,FALSE),\"\")","v":4639.2},null,null,null,null,{"$f":"IFERROR(VLOOKUP(F38,Tilbehør!A:B,2,FALSE),\"\")","v":""},{"$f":"IFERROR(VLOOKUP(H38,Lager!A:C,3,FALSE),\"\")","v":""}]
[null,"OnePlus Nord 128GB 5G",{"$f":"IFERROR(VLOOKUP(B39,HW!A:E,5,FALSE),\"\")","v":2759.2},null,null,"JBL TUNE220 TWS Lifetstyle Black",{"$f":"IFERROR(VLOOKUP(F39,Tilbehør!A:C,3,FALSE),\"\")","v":408},{"$f":"IFERROR(VLOOKUP(F39,Tilbehør!A:B,2,FALSE),\"\")","v":"A23701"},{"$f":"IFERROR(VLOOKUP(H39,Lager!A:C,3,FALSE),\"\")","v":42}]
[null,"OnePlus Nord 256GB 5G",{"$f":"IFERROR(VLOOKUP(B40,HW!A:E,5,FALSE),\"\")","v":3279.2},null,null,"JBL TUNE750 BT NC Active Noise Cancelling Black",{"$f":"IFERROR(VLOOKUP(F40,Tilbehør!A:C,3,FALSE),\"\")","v":544},{"$f":"IFERROR(VLOOKUP(F40,Tilbehør!A:B,2,FALSE),\"\")","v":"A23703"},{"$f":"IFERROR(VLOOKUP(H40,Lager!A:C,3,FALSE),\"\")","v":34}]
[null,null,{"$f":"IFERROR(VLOOKUP(B41,HW!A:E,5,FALSE),\"\")","v":""},null,null,"JBL FLIP5 Green",{"$f":"IFERROR(VLOOKUP(F41,Tilbehør!A:C,3,FALSE),\"\")","v":816},{"$f":"IFERROR(VLOOKUP(F41,Tilbehør!A:B,2,FALSE),\"\")","v":"A23359"},{"$f":"IFERROR(VLOOKUP(H41,Lager!A:C,3,FALSE),\"\")","v":18}]
[null,"Samsung Galaxy S21 5G 128GB",{"$f":"IFERROR(VLOOKUP(B42,HW!A:E,5,FALSE),\"\")","v":5359.2},null,null,null,null,{"$f":"IFERROR(VLOOKUP(F42,Tilbehør!A:B,2,FALSE),\"\")","v":""},{"$f":"IFERROR(VLOOKUP(H42,Lager!A:C,3,FALSE),\"\")","v":""}]
[null,"Samsung Galaxy S21 5G 256GB",{"$f":"IFERROR(VLOOKUP(B43,HW!A:E,5,FALSE),\"\")","v":5839.2},null,null,"Belkin 10W Wireless Charging Pad with PS",{"$f":"IFERROR(VLOOKUP(F43,Tilbehør!A:C,3,FALSE),\"\")","v":240},{"$f":"IFERROR(VLOOKUP(F43,Tilbehør!A:B,2,FALSE),\"\")","v":"A23860"},{"$f":"IFERROR(VLOOKUP(H43,Lager!A:C,3,FALSE),\"\")","v":458}]
[null,"Samsung Galaxy S21 5G Ultra 128GB",{"$f":"IFERROR(VLOOKUP(B44,HW!A:E,5,FALSE),\"\")","v":7919.2},null,null,"Belkin 10W Wireless Charging Stand with",{"$f":"IFERROR(VLOOKUP(F44,Tilbehør!A:C,3,FALSE),\"\")","v":240},{"$f":"IFERROR(VLOOKUP(F44,Tilbehør!A:B,2,FALSE),\"\")","v":"A23861"},{"$f":"IFERROR(VLOOKUP(H44,Lager!A:C,3,FALSE),\"\")","v":192}]
[null,"Samsung Galaxy S21 5G Ultra 256GB",{"$f":"IFERROR(VLOOKUP(B45,HW!A:E,5,FALSE),\"\")","v":8199.2000000000007},null,null,"Belkin 2x 10W Dual Wireless Charging Pad",{"$f":"IFERROR(VLOOKUP(F45,Tilbehør!A:C,3,FALSE),\"\")","v":360},{"$f":"IFERROR(VLOOKUP(F45,Tilbehør!A:B,2,FALSE),\"\")","v":"A23862"},{"$f":"IFERROR(VLOOKUP(H45,Lager!A:C,3,FALSE),\"\")","v":34}]
[null,"Samsung Galaxy S21 5G Ultra 512GB",{"$f":"IFERROR(VLOOKUP(B46,HW!A:E,5,FALSE),\"\")","v":9039.2000000000007},null,null,"Belkin Single USB A Wall Charger 18W QC",{"$f":"IFERROR(VLOOKUP(F46,Tilbehør!A:C,3,FALSE),\"\")","v":120},{"$f":"IFERROR(VLOOKUP(F46,Tilbehør!A:B,2,FALSE),\"\")","v":"A23863"},{"$f":"IFERROR(VLOOKUP(H46,Lager!A:C,3,FALSE),\"\")","v":144}]
[null,"Samsung Galaxy S21+ 5G 128GB",{"$f":"IFERROR(VLOOKUP(B47,HW!A:E,5,FALSE),\"\")","v":6639.2},null,null,"Belkin 18W USB C Home Charger EU Plug",{"$f":"IFERROR(VLOOKUP(F47,Tilbehør!A:C,3,FALSE),\"\")","v":200},{"$f":"IFERROR(VLOOKUP(F47,Tilbehør!A:B,2,FALSE),\"\")","v":"A23864"},{"$f":"IFERROR(VLOOKUP(H47,Lager!A:C,3,FALSE),\"\")","v":16}]
[null,"Samsung Galaxy S21+ 5G 256GB",{"$f":"IFERROR(VLOOKUP(B48,HW!A:E,5,FALSE),\"\")","v":7039.2},null,null,"Belkin 10 000 MAH POWER BANK",{"$f":"IFERROR(VLOOKUP(F48,Tilbehør!A:C,3,FALSE),\"\")","v":240},{"$f":"IFERROR(VLOOKUP(F48,Tilbehør!A:B,2,FALSE),\"\")","v":"A23865"},{"$f":"IFERROR(VLOOKUP(H48,Lager!A:C,3,FALSE),\"\")","v":48}]
[null,"Samsung Galaxy S20FE 4G 128GB",{"$f":"IFERROR(VLOOKUP(B49,HW!A:E,5,FALSE),\"\")","v":4159.2},null,null,"Belkin 3 in 1 Wireless Pad Stand Apple Watch",{"$f":"IFERROR(VLOOKUP(F49,Tilbehør!A:C,3,FALSE),\"\")","v":720},{"$f":"IFERROR(VLOOKUP(F49,Tilbehør!A:B,2,FALSE),\"\")","v":"A23871"},{"$f":"IFERROR(VLOOKUP(H49,Lager!A:C,3,FALSE),\"\")","v":33}]
[null,"Samsung Galaxy S20FE 5G 128GB",{"$f":"IFERROR(VLOOKUP(B50,HW!A:E,5,FALSE),\"\")","v":4799.2},null,null,null,{"$f":"IFERROR(VLOOKUP(F50,Tilbehør!A:C,3,FALSE),\"\")","v":""},{"$f":"IFERROR(VLOOKUP(F50,Tilbehør!A:B,2,FALSE),\"\")","v":""},{"$f":"IFERROR(VLOOKUP(H50,Lager!A:C,3,FALSE),\"\")","v":""}]
[null,"Samsung Galaxy XCover Pro",{"$f":"IFERROR(VLOOKUP(B51,HW!A:E,5,FALSE),\"\")","v":3039.2},null,"Brand","UR","Pris eksklusiv moms",{"$f":"IFERROR(VLOOKUP(F51,Tilbehør!A:B,2,FALSE),\"\")","v":""},{"$f":"IFERROR(VLOOKUP(H51,Lager!A:C,3,FALSE),\"\")","v":""}]
[null,"Samsung Galaxy A51 128GB Black",{"$f":"IFERROR(VLOOKUP(B52,HW!A:E,5,FALSE),\"\")","v":2239.1999999999998},null,null,"Apple Watch 6C 40mm Gold w Pink",{"$f":"IFERROR(VLOOKUP(F52,Tilbehør!A:C,3,FALSE),\"\")","v":3264},{"$f":"IFERROR(VLOOKUP(F52,Tilbehør!A:B,2,FALSE),\"\")","v":"A24230"},{"$f":"IFERROR(VLOOKUP(H52,Lager!A:C,3,FALSE),\"\")","v":20}]
[null,"Samsung Galaxy A41 64GB",{"$f":"IFERROR(VLOOKUP(B53,HW!A:E,5,FALSE),\"\")","v":1839.2},null,null,"Apple Watch 6C 40mm Space Gray w Black",{"$f":"IFERROR(VLOOKUP(F53,Tilbehør!A:C,3,FALSE),\"\")","v":3264},{"$f":"IFERROR(VLOOKUP(F53,Tilbehør!A:B,2,FALSE),\"\")","v":"A24231"},{"$f":"IFERROR(VLOOKUP(H53,Lager!A:C,3,FALSE),\"\")","v":18}]
[null,"Samsung Galaxy A21s 32GB Black",{"$f":"IFERROR(VLOOKUP(B54,HW!A:E,5,FALSE),\"\")","v":1279.2},null,null,"Apple Watch 6C 44mm Space Gray w Black",{"$f":"IFERROR(VLOOKUP(F54,Tilbehør!A:C,3,FALSE),\"\")","v":3552},{"$f":"IFERROR(VLOOKUP(F54,Tilbehør!A:B,2,FALSE),\"\")","v":"A24235"},{"$f":"IFERROR(VLOOKUP(H54,Lager!A:C,3,FALSE),\"\")","v":21}]
[null,"Samsung Galaxy Note 20 256GB 5G",{"$f":"IFERROR(VLOOKUP(B55,HW!A:E,5,FALSE),\"\")","v":6719.2},null,null,"Apple Watch 6C 44mm Blue w Deep Navy",{"$f":"IFERROR(VLOOKUP(F55,Tilbehør!A:C,3,FALSE),\"\")","v":3552},{"$f":"IFERROR(VLOOKUP(F55,Tilbehør!A:B,2,FALSE),\"\")","v":"A24237"},{"$f":"IFERROR(VLOOKUP(H55,Lager!A:C,3,FALSE),\"\")","v":14}]
[null,"Samsung Galaxy Note 20 Ultra 256GB 5G",{"$f":"IFERROR(VLOOKUP(B56,HW!A:E,5,FALSE),\"\")","v":8239.2000000000007},null,null,"Apple Watch 6C 44mm Graphite SS w Graphite Milanese",{"$f":"IFERROR(VLOOKUP(F56,Tilbehør!A:C,3,FALSE),\"\")","v":5040},{"$f":"IFERROR(VLOOKUP(F56,Tilbehør!A:B,2,FALSE),\"\")","v":"A24239"},{"$f":"IFERROR(VLOOKUP(H56,Lager!A:C,3,FALSE),\"\")","v":63}]
[null,null,{"$f":"IFERROR(VLOOKUP(B57,HW!A:E,5,FALSE),\"\")","v":""},null,null,null,null,{"$f":"IFERROR(VLOOKUP(F57,Tilbehør!A:B,2,FALSE),\"\")","v":""},{"$f":"IFERROR(VLOOKUP(H57,Lager!A:C,3,FALSE),\"\")","v":""}]
[null,"Fairphone 3 Plus 64GB Black",{"$f":"IFERROR(VLOOKUP(B58,HW!A:E,5,FALSE),\"\")","v":2759.2},null,null,"Samsung Galaxy Watch Active2 40mm LTE Gold",{"$f":"IFERROR(VLOOKUP(F58,Tilbehør!A:C,3,FALSE),\"\")","v":2880},{"$f":"IFERROR(VLOOKUP(F58,Tilbehør!A:B,2,FALSE),\"\")","v":"A23228"},{"$f":"IFERROR(VLOOKUP(H58,Lager!A:C,3,FALSE),\"\")","v":31}]
[null,null,{"$f":"IFERROR(VLOOKUP(B59,HW!A:E,5,FALSE),\"\")","v":""},null,null,"Samsung Galaxy Watch 42mm Rose Gold",{"$f":"IFERROR(VLOOKUP(F59,Tilbehør!A:C,3,FALSE),\"\")","v":2232},{"$f":"IFERROR(VLOOKUP(F59,Tilbehør!A:B,2,FALSE),\"\")","v":"A22900"},{"$f":"IFERROR(VLOOKUP(H59,Lager!A:C,3,FALSE),\"\")","v":10}]
[null,"Nokia 3310 3G DS",{"$f":"IFERROR(VLOOKUP(B60,HW!A:E,5,FALSE),\"\")","v":399.2},null,null,"Samsung Galaxy Watch 42mm Black",{"$f":"IFERROR(VLOOKUP(F60,Tilbehør!A:C,3,FALSE),\"\")","v":2232},{"$f":"IFERROR(VLOOKUP(F60,Tilbehør!A:B,2,FALSE),\"\")","v":"A22899"},{"$f":"IFERROR(VLOOKUP(H60,Lager!A:C,3,FALSE),\"\")","v":17}]
[null,null,null,null,null,"Samsung Galaxy Watch Active2C Aluminium 40mm Gold",{"$f":"IFERROR(VLOOKUP(F61,Tilbehør!A:C,3,FALSE),\"\")","v":2016},{"$f":"IFERROR(VLOOKUP(F61,Tilbehør!A:B,2,FALSE),\"\")","v":"A23260"},{"$f":"IFERROR(VLOOKUP(H61,Lager!A:C,3,FALSE),\"\")","v":3}]
[null,"Jablocom Essence GSM",{"$f":"IFERROR(VLOOKUP(B62,HW!A:E,5,FALSE),\"\")","v":1159.2},null,null,"Samsung Galaxy Watch Active2C Aluminium 44mm Black",{"$f":"IFERROR(VLOOKUP(F62,Tilbehør!A:C,3,FALSE),\"\")","v":2112},{"$f":"IFERROR(VLOOKUP(F62,Tilbehør!A:B,2,FALSE),\"\")","v":"A23261"},{"$f":"IFERROR(VLOOKUP(H62,Lager!A:C,3,FALSE),\"\")","v":4}]
[null,null,null,null,null,null,null,{"$f":"IFERROR(VLOOKUP(F63,Tilbehør!A:B,2,FALSE),\"\")","v":""},{"$f":"IFERROR(VLOOKUP(H63,Lager!A:C,3,FALSE),\"\")","v":""}]
["Brand","Router","Pris eksklusiv moms",null,null,"Garmin vivoactive 4S Powder Gray Silver",{"$f":"IFERROR(VLOOKUP(F64,Tilbehør!A:C,3,FALSE),\"\")","v":1920},{"$f":"IFERROR(VLOOKUP(F64,Tilbehør!A:B,2,FALSE),\"\")","v":"A23935"},{"$f":"IFERROR(VLOOKUP(H64,Lager!A:C,3,FALSE),\"\")","v":18}]
[null,"Huawei B535",{"$f":"IFERROR(VLOOKUP(B65,HW!M:Q,5,FALSE),\"\")","v":1359.2},null,null,"Garmin vivoactive 4 Shadow Gray Silver",{"$f":"IFERROR(VLOOKUP(F65,Tilbehør!A:C,3,FALSE),\"\")","v":2160},{"$f":"IFERROR(VLOOKUP(F65,Tilbehør!A:B,2,FALSE),\"\")","v":"A23936"},{"$f":"IFERROR(VLOOKUP(H65,Lager!A:C,3,FALSE),\"\")","v":12}]
[null,"Huawei E3372",{"$f":"IFERROR(VLOOKUP(B66,HW!M:Q,5,FALSE),\"\")","v":479.20000000000005},null,null,"Garmin VENU Blue Granite Silver",{"$f":"IFERROR(VLOOKUP(F66,Tilbehør!A:C,3,FALSE),\"\")","v":2400},{"$f":"IFERROR(VLOOKUP(F66,Tilbehør!A:B,2,FALSE),\"\")","v":"A23937"},{"$f":"IFERROR(VLOOKUP(H66,Lager!A:C,3,FALSE),\"\")","v":2}]
[null,"Huawei E5577",{"$f":"IFERROR(VLOOKUP(B67,HW!M:Q,5,FALSE),\"\")","v":479.20000000000005},null,null,"Garmin vivoactive 4S White Rose Gold",{"$f":"IFERROR(VLOOKUP(F67,Tilbehør!A:C,3,FALSE),\"\")","v":1920},{"$f":"IFERROR(VLOOKUP(F67,Tilbehør!A:B,2,FALSE),\"\")","v":"A23938"},{"$f":"IFERROR(VLOOKUP(H67,Lager!A:C,3,FALSE),\"\")","v":5}]
[null,"Huawei B2368 WTTx White",{"$f":"IFERROR(VLOOKUP(B68,HW!M:Q,5,FALSE),\"\")","v":2239.2000000000003},null,null,"Garmin vivoactive 4 Black Slate",{"$f":"IFERROR(VLOOKUP(F68,Tilbehør!A:C,3,FALSE),\"\")","v":2160},{"$f":"IFERROR(VLOOKUP(F68,Tilbehør!A:B,2,FALSE),\"\")","v":"A23940"},{"$f":"IFERROR(VLOOKUP(H68,Lager!A:C,3,FALSE),\"\")","v":2}]
[null,null,{"$f":"IFERROR(VLOOKUP(B69,HW!M:Q,5,FALSE),\"\")","v":""},null,null,"Garmin fenix 6S PRO Rose Gold w White Band Glass",{"$f":"IFERROR(VLOOKUP(F69,Tilbehør!A:C,3,FALSE),\"\")","v":4704},{"$f":"IFERROR(VLOOKUP(F69,Tilbehør!A:B,2,FALSE),\"\")","v":"A23941"},{"$f":"IFERROR(VLOOKUP(H69,Lager!A:C,3,FALSE),\"\")","v":9}]
["Brand","Tablet","Pris eksklusiv moms",null,null,"Garmin fenix 6 PRO Slate Gray w Black Band Glass",{"$f":"IFERROR(VLOOKUP(F70,Tilbehør!A:C,3,FALSE),\"\")","v":4704},{"$f":"IFERROR(VLOOKUP(F70,Tilbehør!A:B,2,FALSE),\"\")","v":"A23942"},{"$f":"IFERROR(VLOOKUP(H70,Lager!A:C,3,FALSE),\"\")","v":28}]
[null,"Apple iPad Air 10 9 256GB",{"$f":"IFERROR(VLOOKUP(B71,HW!G:K,5,FALSE),\"\")","v":5919.2},null,null,null,null,{"$f":"IFERROR(VLOOKUP(F71,Tilbehør!A:B,2,FALSE),\"\")","v":""},{"$f":"IFERROR(VLOOKUP(H71,Lager!A:C,3,FALSE),\"\")","v":""}]
[null,"Apple iPad Air 10 9 64GB",{"$f":"IFERROR(VLOOKUP(B72,HW!G:K,5,FALSE),\"\")","v":4799.2},null,null,null,null,null,{"$f":"IFERROR(VLOOKUP(H72,Lager!A:C,3,FALSE),\"\")","v":""}]
[null,"iPad 8th gen 10.2 128GB",{"$f":"IFERROR(VLOOKUP(B73,HW!G:K,5,FALSE),\"\")","v":3679.2}]
[null,"iPad 8th gen 10.2 32GB",{"$f":"IFERROR(VLOOKUP(B74,HW!G:K,5,FALSE),\"\")","v":3039.2}]
[null,"iPad Pro 11.0 2nd gen 128GB",{"$f":"IFERROR(VLOOKUP(B75,HW!G:K,5,FALSE),\"\")","v":6519.2}]
[null,"iPad Pro 11.0 2nd gen 256GB",{"$f":"IFERROR(VLOOKUP(B76,HW!G:K,5,FALSE),\"\")","v":7143.2}]
[null,"iPad Pro 12.9 4th gen 128GB",{"$f":"IFERROR(VLOOKUP(B77,HW!G:K,5,FALSE),\"\")","v":7839.2}]
[null,"iPad Pro 12.9 4th gen 256GB",{"$f":"IFERROR(VLOOKUP(B78,HW!G:K,5,FALSE),\"\")","v":8479.2000000000007}]
[null,null,{"$f":"IFERROR(VLOOKUP(B79,HW!G:K,5,FALSE),\"\")","v":""}]
[null,"Samsung Galaxy Tab S7 LTE",{"$f":"IFERROR(VLOOKUP(B80,HW!G:K,5,FALSE),\"\")","v":5359.2}]
[null,"Galaxy Tab Active 2 4G ",{"$f":"IFERROR(VLOOKUP(B81,HW!G:K,5,FALSE),\"\")","v":2879.2}]
[null,null,{"$f":"IFERROR(VLOOKUP(B82,HW!G:K,5,FALSE),\"\")","v":""}]

{"sheet":"Producenter","index":1,"n_rows":11,"n_cols":6,"rows_kept":11,"cut":false,"hidden":true,"merged":[]}
[null,"Mobilproducenter","Tabletproducenter","Routerproducenter","UrProducenter","Tilbehørproducenter"]
[null,"Apple","Huawei","Huawei","Apple","Apple"]
[null,"Jablocom","Apple",null,"Garmin","Belkin"]
[null,"Huawei","Samsung",null,"Samsung","JBL"]
[null,"Motorola",null,null,null,"Bose"]
[null,"Nokia",null,null,null,"Samsung"]
[null,"OnePlus",null,null,null,"Google"]
[null,"Razer",null,null,null,"Beoplay"]
[null,"Samsung",null,null,null,"Jabra"]
[null,"Xiaomi"]
[null,"Fairphone"]

{"sheet":"Bestillingark","index":2,"n_rows":32,"n_cols":24,"rows_kept":32,"cut":false,"hidden":false,"merged":[[13,1,14,1],[7,5,7,8],[8,5,8,8],[13,2,14,8],[0,0,2,10],[4,1,4,2],[5,5,5,8],[6,5,6,8],[4,4,4,8],[10,4,10,8],[11,4,11,8],[10,1,11,1],[10,2,11,2],[18,9,18,10],[18,0,18,5],[18,6,18,8],[31,0,31,3],[31,4,31,6],[31,7,31,10]]}
["HARDWARE BESTILLINGSFORMULAR TIL 3BUSINESS"]
[]
[]
[]
[null,"LEVERINGSOPLYSNINGER",null,null,"FAKTURERINGSOPLYSNINGER"]
[null,"Firmanavn",null,null,"Firmanavn"]
[null,"Att. person",null,null,"Adresse"]
[null,"Adresse",null,null,"Postnr. og by"]
[null,"Postnr. og by",null,null,"CVR-nr."]
[]
[null,"Bestillingsdato",null,null,"Udfyldt bestillingsformular bedes mailet som vedhæftet fil til:"]
[null,null,null,null,"3erhvervsaktivering@3.dk & CC Account Manager"]
[]
[null,"Bemærkninger"]
[]
[]
[]
[]
["Bestillinger",null,null,null,null,null,"Cover & panserglas",null,null,"Forsikring 89 kr/md",null,null,null,null,null,null,"Ja"]
[null,null,null,null,null,null,null,null,null,null,null,null,null,null,null,null,"Nej"]
["Hardware","Brand","Model","Farve","Antal","Pris","Cover","Panserglas","Pris","Forsikring?","Angiv Numre:",null,null,null,"Farve",null,"Cover","Panserglass",null,null,"Cover A","Panser A","Pris cover","Pris panser"]
[null,null,null,null,null,{"$f":"IFERROR(ROUNDUP(IFERROR(VLOOKUP(C22,Prisark!B:C,2,FALSE)*E22,IF(OR(A22=\"Tilbehør\",A22=\"UR\"),IFERROR(VLOOKUP(C22,Prisark!F:G,2,FALSE)*Bestillingark!E22,\"\"),\"\")),0),\"\")","v":""},null,null,{"$f":"IFERROR(ROUNDUP(IFERROR(VLOOKUP(G22,Tilbehør!A:C,3,FALSE)*E22,\"0\")+IFERROR(VLOOKUP(H22,Tilbehør!A:C,3,FALSE)*E22,\"0\"),0),\"\")","v":0},null,null,null,{"$f":"A22&\"Producenter\"","v":"Producenter"},{"$f":"B22&A22","v":""},{"$f":"IFERROR(VLOOKUP(C22,Navnestyring!A:B,2,FALSE),IF(N22=\"\",\"\",\"nej\"))","v":""},"Valg",{"$f":"IFERROR(VLOOKUP(C22,'Navnestyring tilbehør'!A:C,2,FALSE),IF(N22=\"\",\"\",\"nej\"))","v":""},{"$f":"IFERROR(VLOOKUP(C22,'Navnestyring tilbehør'!A:C,3,FALSE),IF(N22=\"\",\"\",\"nej\"))","v":""},null,"IKKE MULIGT",{"$f":"IFERROR(VLOOKUP(G22,Tilbehør!A:B,2,FALSE),\" \")","v":" "},{"$f":"IFERROR(VLOOKUP(H22,Tilbehør!A:C,2,FALSE),\" \")","v":" "},{"$f":"IFERROR(VLOOKUP(U22,Tilbehør!B:C,2,FALSE),\"0\")","v":"0"},{"$f":"IFERROR(VLOOKUP(V22,Tilbehør!B:C,2,FALSE),\"0\")","v":"0"}]
[null,null,null,null,null,{"$f":"IFERROR(ROUNDUP(IFERROR(VLOOKUP(C23,Prisark!B:C,2,FALSE)*E23,IF(OR(A23=\"Tilbehør\",A23=\"UR\"),IFERROR(VLOOKUP(C23,Prisark!F:G,2,FALSE)*Bestillingark!E23,\"\"),\"\")),0),\"\")","v":""},null,null,{"$f":"IFERROR(ROUNDUP(IFERROR(VLOOKUP(G23,Tilbehør!A:C,3,FALSE)*E23,\"0\")+IFERROR(VLOOKUP(H23,Tilbehør!A:C,3,FALSE)*E23,\"0\"),0),\"\")","v":0},null,null,null,{"$f":"A23&\"Producenter\"","v":"Producenter"},{"$f":"B23&A23","v":""},{"$f":"IFERROR(VLOOKUP(C23,Navnestyring!A:B,2,FALSE),IF(N23=\"\",\"\",\"nej\"))","v":""},"Valg",{"$f":"IFERROR(VLOOKUP(C23,'Navnestyring tilbehør'!A:C,2,FALSE),IF(N23=\"\",\"\",\"nej\"))","v":""},{"$f":"IFERROR(VLOOKUP(C23,'Navnestyring tilbehør'!A:C,3,FALSE),IF(N23=\"\",\"\",\"nej\"))","v":""},null,"IKKE MULIGT",{"$f":"IFERROR(VLOOKUP(G23,Tilbehør!A:B,2,FALSE),\" \")","v":" "},{"$f":"IFERROR(VLOOKUP(H23,Tilbehør!A:C,2,FALSE),\" \")","v":" "},{"$f":"IFERROR(VLOOKUP(U23,Tilbehør!B:C,2,FALSE),\"0\")","v":"0"},{"$f":"IFERROR(VLOOKUP(V23,Tilbehør!B:C,2,FALSE),\"0\")","v":"0"}]
[null,null,null,null,null,{"$f":"IFERROR(ROUNDUP(IFERROR(VLOOKUP(C24,Prisark!B:C,2,FALSE)*E24,IF(OR(A24=\"Tilbehør\",A24=\"UR\"),IFERROR(VLOOKUP(C24,Prisark!F:G,2,FALSE)*Bestillingark!E24,\"\"),\"\")),0),\"\")","v":""},null,null,{"$f":"IFERROR(ROUNDUP(IFERROR(VLOOKUP(G24,Tilbehør!A:C,3,FALSE)*E24,\"0\")+IFERROR(VLOOKUP(H24,Tilbehør!A:C,3,FALSE)*E24,\"0\"),0),\"\")","v":0},null,null,null,"Producenter","",{"$f":"IFERROR(VLOOKUP(C24,Navnestyring!A:B,2,FALSE),IF(N24=\"\",\"\",\"nej\"))","v":""},"Valg",{"$f":"IFERROR(VLOOKUP(C24,'Navnestyring tilbehør'!A:C,2,FALSE),IF(N24=\"\",\"\",\"nej\"))","v":""},{"$f":"IFERROR(VLOOKUP(C24,'Navnestyring tilbehør'!A:C,3,FALSE),IF(N24=\"\",\"\",\"nej\"))","v":""},null,"IKKE MULIGT",{"$f":"IFERROR(VLOOKUP(G24,Tilbehør!A:B,2,FALSE),\" \")","v":" "},{"$f":"IFERROR(VLOOKUP(H24,Tilbehør!A:C,2,FALSE),\" \")","v":" "},{"$f":"IFERROR(VLOOKUP(U24,Tilbehør!B:C,2,FALSE),\"0\")","v":"0"},{"$f":"IFERROR(VLOOKUP(V24,Tilbehør!B:C,2,FALSE),\"0\")","v":"0"}]
[null,null,null,null,null,{"$f":"IFERROR(ROUNDUP(IFERROR(VLOOKUP(C25,Prisark!B:C,2,FALSE)*E25,IF(OR(A25=\"Tilbehør\",A25=\"UR\"),IFERROR(VLOOKUP(C25,Prisark!F:G,2,FALSE)*Bestillingark!E25,\"\"),\"\")),0),\"\")","v":""},null,null,{"$f":"IFERROR(ROUNDUP(IFERROR(VLOOKUP(G25,Tilbehør!A:C,3,FALSE)*E25,\"0\")+IFERROR(VLOOKUP(H25,Tilbehør!A:C,3,FALSE)*E25,\"0\"),0),\"\")","v":0},null,null,null,"Producenter","",{"$f":"IFERROR(VLOOKUP(C25,Navnestyring!A:B,2,FALSE),IF(N25=\"\",\"\",\"nej\"))","v":""},"Valg",{"$f":"IFERROR(VLOOKUP(C25,'Navnestyring tilbehør'!A:C,2,FALSE),IF(N25=\"\",\"\",\"nej\"))","v":""},{"$f":"IFERROR(VLOOKUP(C25,'Navnestyring tilbehør'!A:C,3,FALSE),IF(N25=\"\",\"\",\"nej\"))","v":""},null,"IKKE MULIGT",{"$f":"IFERROR(VLOOKUP(G25,Tilbehør!A:B,2,FALSE),\" \")","v":" "},{"$f":"IFERROR(VLOOKUP(H25,Tilbehør!A:C,2,FALSE),\" \")","v":" "},{"$f":"IFERROR(VLOOKUP(U25,Tilbehør!B:C,2,FALSE),\"0\")","v":"0"},{"$f":"IFERROR(VLOOKUP(V25,Tilbehør!B:C,2,FALSE),\"0\")","v":"0"}]
[null,null,null,null,null,{"$f":"IFERROR(ROUNDUP(IFERROR(VLOOKUP(C26,Prisark!B:C,2,FALSE)*E26,IF(OR(A26=\"Tilbehør\",A26=\"UR\"),IFERROR(VLOOKUP(C26,Prisark!F:G,2,FALSE)*Bestillingark!E26,\"\"),\"\")),0),\"\")","v":""},null,null,{"$f":"IFERROR(ROUNDUP(IFERROR(VLOOKUP(G26,Tilbehør!A:C,3,FALSE)*E26,\"0\")+IFERROR(VLOOKUP(H26,Tilbehør!A:C,3,FALSE)*E26,\"0\"),0),\"\")","v":0},null,null,null,"Producenter","",{"$f":"IFERROR(VLOOKUP(C26,Navnestyring!A:B,2,FALSE),IF(N26=\"\",\"\",\"nej\"))","v":""},"Valg",{"$f":"IFERROR(VLOOKUP(C26,'Navnestyring tilbehør'!A:C,2,FALSE),IF(N26=\"\",\"\",\"nej\"))","v":""},{"$f":"IFERROR(VLOOKUP(C26,'Navnestyring tilbehør'!A:C,3,FALSE),IF(N26=\"\",\"\",\"nej\"))","v":""},null,"IKKE MULIGT",{"$f":"IFERROR(VLOOKUP(G26,Tilbehør!A:B,2,FALSE),\" \")","v":" "},{"$f":"IFERROR(VLOOKUP(H26,Tilbehør!A:C,2,FALSE),\" \")","v":" "},{"$f":"IFERROR(VLOOKUP(U26,Tilbehør!B:C,2,FALSE),\"0\")","v":"0"},{"$f":"IFERROR(VLOOKUP(V26,Tilbehør!B:C,2,FALSE),\"0\")","v":"0"}]
[null,null,null,null,null,{"$f":"IFERROR(ROUNDUP(IFERROR(VLOOKUP(C27,Prisark!B:C,2,FALSE)*E27,IF(OR(A27=\"Tilbehør\",A27=\"UR\"),IFERROR(VLOOKUP(C27,Prisark!F:G,2,FALSE)*Bestillingark!E27,\"\"),\"\")),0),\"\")","v":""},null,null,{"$f":"IFERROR(ROUNDUP(IFERROR(VLOOKUP(G27,Tilbehør!A:C,3,FALSE)*E27,\"0\")+IFERROR(VLOOKUP(H27,Tilbehør!A:C,3,FALSE)*E27,\"0\"),0),\"\")","v":0},null,null,null,"Producenter","",{"$f":"IFERROR(VLOOKUP(C27,Navnestyring!A:B,2,FALSE),IF(N27=\"\",\"\",\"nej\"))","v":""},"Valg",{"$f":"IFERROR(VLOOKUP(C27,'Navnestyring tilbehør'!A:C,2,FALSE),IF(N27=\"\",\"\",\"nej\"))","v":""},{"$f":"IFERROR(VLOOKUP(C27,'Navnestyring tilbehør'!A:C,3,FALSE),IF(N27=\"\",\"\",\"nej\"))","v":""},null,"IKKE MULIGT",{"$f":"IFERROR(VLOOKUP(G27,Tilbehør!A:B,2,FALSE),\" \")","v":" "},{"$f":"IFERROR(VLOOKUP(H27,Tilbehør!A:C,2,FALSE),\" \")","v":" "},{"$f":"IFERROR(VLOOKUP(U27,Tilbehør!B:C,2,FALSE),\"0\")","v":"0"},{"$f":"IFERROR(VLOOKUP(V27,Tilbehør!B:C,2,FALSE),\"0\")","v":"0"}]
[null,null,null,null,null,{"$f":"IFERROR(ROUNDUP(IFERROR(VLOOKUP(C28,Prisark!B:C,2,FALSE)*E28,IF(OR(A28=\"Tilbehør\",A28=\"UR\"),IFERROR(VLOOKUP(C28,Prisark!F:G,2,FALSE)*Bestillingark!E28,\"\"),\"\")),0),\"\")","v":""},null,null,{"$f":"IFERROR(ROUNDUP(IFERROR(VLOOKUP(G28,Tilbehør!A:C,3,FALSE)*E28,\"0\")+IFERROR(VLOOKUP(H28,Tilbehør!A:C,3,FALSE)*E28,\"0\"),0),\"\")","v":0},null,null,null,"Producenter","",{"$f":"IFERROR(VLOOKUP(C28,Navnestyring!A:B,2,FALSE),IF(N28=\"\",\"\",\"nej\"))","v":""},"Valg",{"$f":"IFERROR(VLOOKUP(C28,'Navnestyring tilbehør'!A:C,2,FALSE),IF(N28=\"\",\"\",\"nej\"))","v":""},{"$f":"IFERROR(VLOOKUP(C28,'Navnestyring tilbehør'!A:C,3,FALSE),IF(N28=\"\",\"\",\"nej\"))","v":""},null,"IKKE MULIGT",{"$f":"IFERROR(VLOOKUP(G28,Tilbehør!A:B,2,FALSE),\" \")","v":" "},{"$f":"IFERROR(VLOOKUP(H28,Tilbehør!A:C,2,FALSE),\" \")","v":" "},{"$f":"IFERROR(VLOOKUP(U28,Tilbehør!B:C,2,FALSE),\"0\")","v":"0"},{"$f":"IFERROR(VLOOKUP(V28,Tilbehør!B:C,2,FALSE),\"0\")","v":"0"}]
[null,null,null,null,null,{"$f":"IFERROR(ROUNDUP(IFERROR(VLOOKUP(C29,Prisark!B:C,2,FALSE)*E29,IF(OR(A29=\"Tilbehør\",A29=\"UR\"),IFERROR(VLOOKUP(C29,Prisark!F:G,2,FALSE)*Bestillingark!E29,\"\"),\"\")),0),\"\")","v":""},null,null,{"$f":"IFERROR(ROUNDUP(IFERROR(VLOOKUP(G29,Tilbehør!A:C,3,FALSE)*E29,\"0\")+IFERROR(VLOOKUP(H29,Tilbehør!A:C,3,FALSE)*E29,\"0\"),0),\"\")","v":0},null,null,null,"Producenter","",{"$f":"IFERROR(VLOOKUP(C29,Navnestyring!A:B,2,FALSE),IF(N29=\"\",\"\",\"nej\"))","v":""},"Valg",{"$f":"IFERROR(VLOOKUP(C29,'Navnestyring tilbehør'!A:C,2,FALSE),IF(N29=\"\",\"\",\"nej\"))","v":""},{"$f":"IFERROR(VLOOKUP(C29,'Navnestyring tilbehør'!A:C,3,FALSE),IF(N29=\"\",\"\",\"nej\"))","v":""},null,"IKKE MULIGT",{"$f":"IFERROR(VLOOKUP(G29,Tilbehør!A:B,2,FALSE),\" \")","v":" "},{"$f":"IFERROR(VLOOKUP(H29,Tilbehør!A:C,2,FALSE),\" \")","v":" "},{"$f":"IFERROR(VLOOKUP(U29,Tilbehør!B:C,2,FALSE),\"0\")","v":"0"},{"$f":"IFERROR(VLOOKUP(V29,Tilbehør!B:C,2,FALSE),\"0\")","v":"0"}]
["Total",null,null,null,{"$f":"SUM(E22:E29)","v":0},{"$f":"SUM(F22:F29)","v":0},null,null,{"$f":"SUM(I22:I29)","v":0},{"$f":"SUMIF(J22:J29,\"ja\",E22:E29)*89","v":0}]
[]
["Total engangsomkostning",null,null,null,{"$f":"F30+I30","v":0},null,null,null,null,null,null,null,null,null,null,{"$f":"OR($O22=\"nej\",$M22=\"Routerproducenter\")","v":false}]

{"sheet":"HW","index":3,"n_rows":137,"n_cols":17,"rows_kept":137,"cut":false,"hidden":true,"merged":[]}
["Pris gældende fra",null,null,null,null,null,"Pris gældende fra",null,null,null,null,null,"Pris gældende fra"]
["2020-12-15T08:47:34",null,null,"Pris uden abonnement inkl. moms","Pris uden abonnement ex. moms",null,"2020-09-16T11:44:09",null,null,"Pris uden abonnement inkl. moms","Pris uden abonnement ex. moms",null,"2020-01-14",null,null,"Pris inkl moms","Pris ex moms"]
["Apple iPhone 11 128GB",null,null,6799,5439.2,{"$f":"IFERROR(VLOOKUP(A3,Prisark!B:B,1,FALSE),\"IKKE PÅ ARKET\")","v":"IKKE PÅ ARKET"},"Apple iPad 6th gen 128GB",null,null,4599,3679.2,{"$f":"IFERROR(VLOOKUP(G3,Prisark!B:B,1,FALSE),\"IKKE PÅ ARKET\")","v":"IKKE PÅ ARKET"},"Huawei E3531 3G","","",199,159.20000000000002]
["Apple iPhone 11 128GB NEW (OBS. UDEN OPLADER)",null,null,5799,4639.2,{"$f":"IFERROR(VLOOKUP(A4,Prisark!B:B,1,FALSE),\"IKKE PÅ ARKET\")","v":"Apple iPhone 11 128GB NEW (OBS. UDEN OPLADER)"},"Apple iPad 6th gen 32GB",null,null,3899,3119.2,{"$f":"IFERROR(VLOOKUP(G4,Prisark!B:B,1,FALSE),\"IKKE PÅ ARKET\")","v":"IKKE PÅ ARKET"},"Huawei E3372","","",599,479.20000000000005]
["Apple iPhone 11 256GB",null,null,7699,6159.2,{"$f":"IFERROR(VLOOKUP(A5,Prisark!B:B,1,FALSE),\"IKKE PÅ ARKET\")","v":"IKKE PÅ ARKET"},"Apple iPad 7th generation 128GB",null,null,4799,3839.2,{"$f":"IFERROR(VLOOKUP(G5,Prisark!B:B,1,FALSE),\"IKKE PÅ ARKET\")","v":"IKKE PÅ ARKET"},"Huawei B315","","",1199,959.2]
["Apple iPhone 11 64GB",null,null,6299,5039.2,{"$f":"IFERROR(VLOOKUP(A6,Prisark!B:B,1,FALSE),\"IKKE PÅ ARKET\")","v":"IKKE PÅ ARKET"},"Apple iPad 7th generation 32GB",null,null,4099,3279.2,{"$f":"IFERROR(VLOOKUP(G6,Prisark!B:B,1,FALSE),\"IKKE PÅ ARKET\")","v":"IKKE PÅ ARKET"},"Huawei B525","","",1699,1359.2]
["Apple iPhone 11 64GB NEW (OBS. UDEN OPLADER)",null,null,5299,4239.2,{"$f":"IFERROR(VLOOKUP(A7,Prisark!B:B,1,FALSE),\"IKKE PÅ ARKET\")","v":"Apple iPhone 11 64GB NEW (OBS. UDEN OPLADER)"},"Apple iPad Air 10 9 256GB",null,null,7399,5919.2,{"$f":"IFERROR(VLOOKUP(G7,Prisark!B:B,1,FALSE),\"IKKE PÅ ARKET\")","v":"Apple iPad Air 10 9 256GB"},"Huawei B535","","",1699,1359.2]
["Apple iPhone 11 Pro 256GB",null,null,10299,8239.2000000000007,{"$f":"IFERROR(VLOOKUP(A8,Prisark!B:B,1,FALSE),\"IKKE PÅ ARKET\")","v":"Apple iPhone 11 Pro 256GB"},"Apple iPad Air 10 9 64GB",null,null,5999,4799.2,{"$f":"IFERROR(VLOOKUP(G8,Prisark!B:B,1,FALSE),\"IKKE PÅ ARKET\")","v":"Apple iPad Air 10 9 64GB"},"Huawei E5180","","",1399,1119.2]
["Apple iPhone 11 Pro 512GB",null,null,12099,9679.2000000000007,{"$f":"IFERROR(VLOOKUP(A9,Prisark!B:B,1,FALSE),\"IKKE PÅ ARKET\")","v":"IKKE PÅ ARKET"},"Apple iPad Air 10.5 256GB",null,null,6799,5439.2,{"$f":"IFERROR(VLOOKUP(G9,Prisark!B:B,1,FALSE),\"IKKE PÅ ARKET\")","v":"IKKE PÅ ARKET"},"Huawei E5186","","",1699,1359.2]
["Apple iPhone 11 Pro 64GB",null,null,8899,7119.2,{"$f":"IFERROR(VLOOKUP(A10,Prisark!B:B,1,FALSE),\"IKKE PÅ ARKET\")","v":"Apple iPhone 11 Pro 64GB"},"Apple iPad Air 10.5 64GB",null,null,5399,4319.2,{"$f":"IFERROR(VLOOKUP(G10,Prisark!B:B,1,FALSE),\"IKKE PÅ ARKET\")","v":"IKKE PÅ ARKET"},"Huawei E5373 Mobile WIFI","","",799,639.20000000000005]
["Apple iPhone 11 Pro Max 256GB",null,null,11199,8959.2000000000007,{"$f":"IFERROR(VLOOKUP(A11,Prisark!B:B,1,FALSE),\"IKKE PÅ ARKET\")","v":"IKKE PÅ ARKET"},"Apple iPad Mini 2 32GB",null,null,3699,2959.2,{"$f":"IFERROR(VLOOKUP(G11,Prisark!B:B,1,FALSE),\"IKKE PÅ ARKET\")","v":"IKKE PÅ ARKET"},"Huawei E5577",null,null,599,479.20000000000005]
["Apple iPhone 11 Pro Max 512GB",null,null,13099,10479.200000000001,{"$f":"IFERROR(VLOOKUP(A12,Prisark!B:B,1,FALSE),\"IKKE PÅ ARKET\")","v":"IKKE PÅ ARKET"},"Apple iPad Mini 3 128GB",null,null,5099,4079.2,{"$f":"IFERROR(VLOOKUP(G12,Prisark!B:B,1,FALSE),\"IKKE PÅ ARKET\")","v":"IKKE PÅ ARKET"},"Huawei B2368 WTTx White",null,null,2799,2239.2000000000003]
["Apple iPhone 11 Pro Max 64GB",null,null,9799,7839.2,{"$f":"IFERROR(VLOOKUP(A13,Prisark!B:B,1,FALSE),\"IKKE PÅ ARKET\")","v":"IKKE PÅ ARKET"},"Apple iPad Mini 3 16GB",null,null,3499,2799.2,{"$f":"IFERROR(VLOOKUP(G13,Prisark!B:B,1,FALSE),\"IKKE PÅ ARKET\")","v":"IKKE PÅ ARKET"}]
["Apple iPhone 12 128GB (OBS. UDEN OPLADER)",null,null,7499,5999.2,{"$f":"IFERROR(VLOOKUP(A14,Prisark!B:B,1,FALSE),\"IKKE PÅ ARKET\")","v":"Apple iPhone 12 128GB (OBS. UDEN OPLADER)"},"Apple iPad Mini 5th gen 256GB",null,null,6099,4879.2,{"$f":"IFERROR(VLOOKUP(G14,Prisark!B:B,1,FALSE),\"IKKE PÅ ARKET\")","v":"IKKE PÅ ARKET"}]
["Apple iPhone 12 256GB (OBS. UDEN OPLADER)",null,null,8399,6719.2,{"$f":"IFERROR(VLOOKUP(A15,Prisark!B:B,1,FALSE),\"IKKE PÅ ARKET\")","v":"Apple iPhone 12 256GB (OBS. UDEN OPLADER)"},"Apple iPad Mini 5th gen 64GB",null,null,4699,3759.2,{"$f":"IFERROR(VLOOKUP(G15,Prisark!B:B,1,FALSE),\"IKKE PÅ ARKET\")","v":"IKKE PÅ ARKET"}]
["Apple iPhone 12 64GB (OBS. UDEN OPLADER)",null,null,6999,5599.2,{"$f":"IFERROR(VLOOKUP(A16,Prisark!B:B,1,FALSE),\"IKKE PÅ ARKET\")","v":"Apple iPhone 12 64GB (OBS. UDEN OPLADER)"},"Apple iPad Pro 10.5 256GB",null,null,7799,6239.2,{"$f":"IFERROR(VLOOKUP(G16,Prisark!B:B,1,FALSE),\"IKKE PÅ ARKET\")","v":"IKKE PÅ ARKET"}]
["Apple iPhone 12 Mini 128GB (OBS. UDEN OPLADER)",null,null,6699,5359.2,{"$f":"IFERROR(VLOOKUP(A17,Prisark!B:B,1,FALSE),\"IKKE PÅ ARKET\")","v":"Apple iPhone 12 mini 128GB (OBS. UDEN OPLADER)"},"Apple iPad Pro 10.5 64GB",null,null,6799,5439.2,{"$f":"IFERROR(VLOOKUP(G17,Prisark!B:B,1,FALSE),\"IKKE PÅ ARKET\")","v":"IKKE PÅ ARKET"}]
["Apple iPhone 12 Mini 256GB (OBS. UDEN OPLADER)",null,null,7599,6079.2,{"$f":"IFERROR(VLOOKUP(A18,Prisark!B:B,1,FALSE),\"IKKE PÅ ARKET\")","v":"Apple iPhone 12 mini 256GB (OBS. UDEN OPLADER)"},"Apple iPad Pro 11.0 256GB",null,null,9499,7599.2,{"$f":"IFERROR(VLOOKUP(G18,Prisark!B:B,1,FALSE),\"IKKE PÅ ARKET\")","v":"IKKE PÅ ARKET"}]
["Apple iPhone 12 Mini 64GB (OBS. UDEN OPLADER)",null,null,6199,4959.2,{"$f":"IFERROR(VLOOKUP(A19,Prisark!B:B,1,FALSE),\"IKKE PÅ ARKET\")","v":"Apple iPhone 12 mini 64GB (OBS. UDEN OPLADER)"},"Apple iPad Pro 11.0 64GB",null,null,8099,6479.2,{"$f":"IFERROR(VLOOKUP(G19,Prisark!B:B,1,FALSE),\"IKKE PÅ ARKET\")","v":"IKKE PÅ ARKET"}]
["Apple iPhone 12 Pro 128GB (OBS. UDEN OPLADER)",null,null,8899,7119.2,{"$f":"IFERROR(VLOOKUP(A20,Prisark!B:B,1,FALSE),\"IKKE PÅ ARKET\")","v":"Apple iPhone 12 Pro 128GB (OBS. UDEN OPLADER)"},"Apple iPad Pro 12.9 2nd gen 256GB",null,null,9199,7359.2,{"$f":"IFERROR(VLOOKUP(G20,Prisark!B:B,1,FALSE),\"IKKE PÅ ARKET\")","v":"IKKE PÅ ARKET"}]
["Apple iPhone 12 Pro 256GB (OBS. UDEN OPLADER)",null,null,9799,7839.2,{"$f":"IFERROR(VLOOKUP(A21,Prisark!B:B,1,FALSE),\"IKKE PÅ ARKET\")","v":"Apple iPhone 12 Pro 256GB (OBS. UDEN OPLADER)"},"Apple iPad Pro 12.9 2nd gen 64GB",null,null,8199,6559.2,{"$f":"IFERROR(VLOOKUP(G21,Prisark!B:B,1,FALSE),\"IKKE PÅ ARKET\")","v":"IKKE PÅ ARKET"}]
["Apple iPhone 12 Pro 512GB (OBS. UDEN OPLADER)",null,null,11599,9279.2000000000007,{"$f":"IFERROR(VLOOKUP(A22,Prisark!B:B,1,FALSE),\"IKKE PÅ ARKET\")","v":"Apple iPhone 12 Pro 512GB (OBS. UDEN OPLADER)"},"Apple iPad Pro 12.9 3rd gen 256GB",null,null,11499,9199.2000000000007,{"$f":"IFERROR(VLOOKUP(G22,Prisark!B:B,1,FALSE),\"IKKE PÅ ARKET\")","v":"IKKE PÅ ARKET"}]
["Apple iPhone 12 Pro Max 128GB (OBS. UDEN OPLADER)",null,null,9699,7759.2,{"$f":"IFERROR(VLOOKUP(A23,Prisark!B:B,1,FALSE),\"IKKE PÅ ARKET\")","v":"Apple iPhone 12 Pro Max 128GB (OBS. UDEN OPLADER)"},"Apple iPad Pro 12.9 3rd gen 64GB",null,null,10099,8079.2,{"$f":"IFERROR(VLOOKUP(G23,Prisark!B:B,1,FALSE),\"IKKE PÅ ARKET\")","v":"IKKE PÅ ARKET"}]
["Apple iPhone 12 Pro Max 256GB (OBS. UDEN OPLADER)",null,null,10599,8479.2000000000007,{"$f":"IFERROR(VLOOKUP(A24,Prisark!B:B,1,FALSE),\"IKKE PÅ ARKET\")","v":"Apple iPhone 12 Pro Max 256GB (OBS. UDEN OPLADER)"},"Apple iPad Pro 128GB",null,null,9299,7439.2,{"$f":"IFERROR(VLOOKUP(G24,Prisark!B:B,1,FALSE),\"IKKE PÅ ARKET\")","v":"IKKE PÅ ARKET"}]
["Apple iPhone 12 Pro Max 512GB (OBS. UDEN OPLADER)",null,null,12399,9919.2000000000007,{"$f":"IFERROR(VLOOKUP(A25,Prisark!B:B,1,FALSE),\"IKKE PÅ ARKET\")","v":"Apple iPhone 12 Pro Max 512GB (OBS. UDEN OPLADER)"},"Apple iPad Pro 9.7 128GB",null,null,7799,6239.2,{"$f":"IFERROR(VLOOKUP(G25,Prisark!B:B,1,FALSE),\"IKKE PÅ ARKET\")","v":"IKKE PÅ ARKET"}]
["Apple iPhone 6 128GB",null,null,6299,5039.2,{"$f":"IFERROR(VLOOKUP(A26,Prisark!B:B,1,FALSE),\"IKKE PÅ ARKET\")","v":"IKKE PÅ ARKET"},"Apple iPad Pro 9.7 32GB",null,null,6399,5119.2,{"$f":"IFERROR(VLOOKUP(G26,Prisark!B:B,1,FALSE),\"IKKE PÅ ARKET\")","v":"IKKE PÅ ARKET"}]
["Apple iPhone 6 16GB",null,null,4799,3839.2,{"$f":"IFERROR(VLOOKUP(A27,Prisark!B:B,1,FALSE),\"IKKE PÅ ARKET\")","v":"IKKE PÅ ARKET"},"Galaxy Tab Active 2 4G ",null,null,3599,2879.2,{"$f":"IFERROR(VLOOKUP(G27,Prisark!B:B,1,FALSE),\"IKKE PÅ ARKET\")","v":"Galaxy Tab Active 2 4G "}]
["Apple iPhone 6S 128GB",null,null,5599,4479.2,{"$f":"IFERROR(VLOOKUP(A28,Prisark!B:B,1,FALSE),\"IKKE PÅ ARKET\")","v":"IKKE PÅ ARKET"},"Galaxy Tab S2 9.7 32GB New Version",null,null,4299,3439.2,{"$f":"IFERROR(VLOOKUP(G28,Prisark!B:B,1,FALSE),\"IKKE PÅ ARKET\")","v":"IKKE PÅ ARKET"}]
["Apple iPhone 6S Plus 16GB",null,null,5699,4559.2,{"$f":"IFERROR(VLOOKUP(A29,Prisark!B:B,1,FALSE),\"IKKE PÅ ARKET\")","v":"IKKE PÅ ARKET"},"Huawei MediaTab T3 10 16GB",null,null,2199,1759.2,{"$f":"IFERROR(VLOOKUP(G29,Prisark!B:B,1,FALSE),\"IKKE PÅ ARKET\")","v":"IKKE PÅ ARKET"}]
["Apple iPhone 7 128GB",null,null,3349,2679.2,{"$f":"IFERROR(VLOOKUP(A30,Prisark!B:B,1,FALSE),\"IKKE PÅ ARKET\")","v":"IKKE PÅ ARKET"},"Huawei Mediatab T3 32GB",null,null,2199,1759.2,{"$f":"IFERROR(VLOOKUP(G30,Prisark!B:B,1,FALSE),\"IKKE PÅ ARKET\")","v":"IKKE PÅ ARKET"}]
["Apple iPhone 7 256GB",null,null,6699,5359.2,{"$f":"IFERROR(VLOOKUP(A31,Prisark!B:B,1,FALSE),\"IKKE PÅ ARKET\")","v":"IKKE PÅ ARKET"},"Samsung Galaxy Tab A 10.1 2019 32GB",null,null,2199,1759.2,{"$f":"IFERROR(VLOOKUP(G31,Prisark!B:B,1,FALSE),\"IKKE PÅ ARKET\")","v":"IKKE PÅ ARKET"}]
["Apple iPhone 7 32GB",null,null,2849,2279.1999999999998,{"$f":"IFERROR(VLOOKUP(A32,Prisark!B:B,1,FALSE),\"IKKE PÅ ARKET\")","v":"IKKE PÅ ARKET"},"Samsung Galaxy Tab A 10.1 32GB",null,null,2399,1919.2,{"$f":"IFERROR(VLOOKUP(G32,Prisark!B:B,1,FALSE),\"IKKE PÅ ARKET\")","v":"IKKE PÅ ARKET"}]
["Apple iPhone 7 Plus 128GB",null,null,5999,4799.2,{"$f":"IFERROR(VLOOKUP(A33,Prisark!B:B,1,FALSE),\"IKKE PÅ ARKET\")","v":"IKKE PÅ ARKET"},"Samsung Galaxy Tab A7 LTE",null,null,2399,1919.2,{"$f":"IFERROR(VLOOKUP(G33,Prisark!B:B,1,FALSE),\"IKKE PÅ ARKET\")","v":"IKKE PÅ ARKET"}]
["Apple iPhone 7 Plus 256GB",null,null,7799,6239.2,{"$f":"IFERROR(VLOOKUP(A34,Prisark!B:B,1,FALSE),\"IKKE PÅ ARKET\")","v":"IKKE PÅ ARKET"},"Samsung Galaxy Tab S 3 9.7",null,null,5999,4799.2,{"$f":"IFERROR(VLOOKUP(G34,Prisark!B:B,1,FALSE),\"IKKE PÅ ARKET\")","v":"IKKE PÅ ARKET"}]
["Apple iPhone 7 Plus 32GB",null,null,5099,4079.2,{"$f":"IFERROR(VLOOKUP(A35,Prisark!B:B,1,FALSE),\"IKKE PÅ ARKET\")","v":"IKKE PÅ ARKET"},"Samsung Galaxy Tab S4",null,null,5999,4799.2,{"$f":"IFERROR(VLOOKUP(G35,Prisark!B:B,1,FALSE),\"IKKE PÅ ARKET\")","v":"IKKE PÅ ARKET"}]
["Apple iPhone 8 128GB",null,null,4649,3719.2,{"$f":"IFERROR(VLOOKUP(A36,Prisark!B:B,1,FALSE),\"IKKE PÅ ARKET\")","v":"IKKE PÅ ARKET"},"Samsung Galaxy Tab S6 128GB",null,null,6499,5199.2,{"$f":"IFERROR(VLOOKUP(G36,Prisark!B:B,1,FALSE),\"IKKE PÅ ARKET\")","v":"IKKE PÅ ARKET"}]
["Apple iPhone 8 256GB",null,null,6699,5359.2,{"$f":"IFERROR(VLOOKUP(A37,Prisark!B:B,1,FALSE),\"IKKE PÅ ARKET\")","v":"IKKE PÅ ARKET"},"Samsung Galaxy Tab S7 LTE",null,null,6699,5359.2,{"$f":"IFERROR(VLOOKUP(G37,Prisark!B:B,1,FALSE),\"IKKE PÅ ARKET\")","v":"Samsung Galaxy Tab S7 LTE"}]
["Apple iPhone 8 64GB ",null,null,4199,3359.2,{"$f":"IFERROR(VLOOKUP(A38,Prisark!B:B,1,FALSE),\"IKKE PÅ ARKET\")","v":"IKKE PÅ ARKET"},"iPad 8th gen 10.2 128GB",null,null,4599,3679.2,{"$f":"IFERROR(VLOOKUP(G38,Prisark!B:B,1,FALSE),\"IKKE PÅ ARKET\")","v":"iPad 8th gen 10.2 128GB"}]
["Apple iPhone 8 Plus 256GB ",null,null,7599,6079.2,{"$f":"IFERROR(VLOOKUP(A39,Prisark!B:B,1,FALSE),\"IKKE PÅ ARKET\")","v":"IKKE PÅ ARKET"},"iPad 8th gen 10.2 32GB",null,null,3799,3039.2,{"$f":"IFERROR(VLOOKUP(G39,Prisark!B:B,1,FALSE),\"IKKE PÅ ARKET\")","v":"iPad 8th gen 10.2 32GB"}]
["Apple iPhone 8 Plus 64GB ",null,null,4999,3999.2,{"$f":"IFERROR(VLOOKUP(A40,Prisark!B:B,1,FALSE),\"IKKE PÅ ARKET\")","v":"IKKE PÅ ARKET"},"iPad Pro 11.0 2nd gen 128GB",null,null,8149,6519.2,{"$f":"IFERROR(VLOOKUP(G40,Prisark!B:B,1,FALSE),\"IKKE PÅ ARKET\")","v":"iPad Pro 11.0 2nd gen 128GB"}]
["Apple iPhone SE 2nd gen 128GB",null,null,4199,3359.2,{"$f":"IFERROR(VLOOKUP(A41,Prisark!B:B,1,FALSE),\"IKKE PÅ ARKET\")","v":"IKKE PÅ ARKET"},"iPad Pro 11.0 2nd gen 256GB",null,null,8929,7143.2,{"$f":"IFERROR(VLOOKUP(G41,Prisark!B:B,1,FALSE),\"IKKE PÅ ARKET\")","v":"iPad Pro 11.0 2nd gen 256GB"}]
["Apple iPhone SE 2nd gen 128GB NEW (OBS. UDEN OPLADER)",null,null,4199,3359.2,{"$f":"IFERROR(VLOOKUP(A42,Prisark!B:B,1,FALSE),\"IKKE PÅ ARKET\")","v":"Apple iPhone SE 2nd gen 128GB NEW (OBS. UDEN OPLADER)"},"iPad Pro 12.9 4th gen 128GB",null,null,9799,7839.2,{"$f":"IFERROR(VLOOKUP(G42,Prisark!B:B,1,FALSE),\"IKKE PÅ ARKET\")","v":"iPad Pro 12.9 4th gen 128GB"}]
["Apple iPhone SE 2nd gen 256GB",null,null,5099,4079.2,{"$f":"IFERROR(VLOOKUP(A43,Prisark!B:B,1,FALSE),\"IKKE PÅ ARKET\")","v":"IKKE PÅ ARKET"},"iPad Pro 12.9 4th gen 256GB",null,null,10599,8479.2000000000007,{"$f":"IFERROR(VLOOKUP(G43,Prisark!B:B,1,FALSE),\"IKKE PÅ ARKET\")","v":"iPad Pro 12.9 4th gen 256GB"}]
["Apple iPhone SE 2nd gen 256GB NEW (OBS. UDEN OPLADER)",null,null,5099,4079.2,{"$f":"IFERROR(VLOOKUP(A44,Prisark!B:B,1,FALSE),\"IKKE PÅ ARKET\")","v":"Apple iPhone SE 2nd gen 256GB NEW (OBS. UDEN OPLADER)"},null,null,null,null,null,{"$f":"IFERROR(VLOOKUP(G44,Prisark!B:B,1,FALSE),\"IKKE PÅ ARKET\")","v":"IKKE PÅ ARKET"}]
["Apple iPhone SE 2nd gen 64GB",null,null,3699,2959.2,{"$f":"IFERROR(VLOOKUP(A45,Prisark!B:B,1,FALSE),\"IKKE PÅ ARKET\")","v":"IKKE PÅ ARKET"},null,null,null,null,null,{"$f":"IFERROR(VLOOKUP(G45,Prisark!B:B,1,FALSE),\"IKKE PÅ ARKET\")","v":"IKKE PÅ ARKET"}]
["Apple iPhone SE 2nd gen 64GB NEW (OBS. UDEN OPLADER)",null,null,3699,2959.2,{"$f":"IFERROR(VLOOKUP(A46,Prisark!B:B,1,FALSE),\"IKKE PÅ ARKET\")","v":"Apple iPhone SE 2nd gen 64GB NEW (OBS. UDEN OPLADER)"},null,null,null,null,null,{"$f":"IFERROR(VLOOKUP(G46,Prisark!B:B,1,FALSE),\"IKKE PÅ ARKET\")","v":"IKKE PÅ ARKET"}]
["Apple iPhone X 256GB",null,null,10249,8199.2000000000007,{"$f":"IFERROR(VLOOKUP(A47,Prisark!B:B,1,FALSE),\"IKKE PÅ ARKET\")","v":"IKKE PÅ ARKET"},null,null,null,null,null,{"$f":"IFERROR(VLOOKUP(G47,Prisark!B:B,1,FALSE),\"IKKE PÅ ARKET\")","v":"IKKE PÅ ARKET"}]
["Apple iPhone X 64GB",null,null,8899,7119.2,{"$f":"IFERROR(VLOOKUP(A48,Prisark!B:B,1,FALSE),\"IKKE PÅ ARKET\")","v":"IKKE PÅ ARKET"},null,null,null,null,null,{"$f":"IFERROR(VLOOKUP(G48,Prisark!B:B,1,FALSE),\"IKKE PÅ ARKET\")","v":"IKKE PÅ ARKET"}]
["Apple iPhone XS 256GB",null,null,9399,7519.2,{"$f":"IFERROR(VLOOKUP(A49,Prisark!B:B,1,FALSE),\"IKKE PÅ ARKET\")","v":"IKKE PÅ ARKET"},null,null,null,null,null,{"$f":"IFERROR(VLOOKUP(G49,Prisark!B:B,1,FALSE),\"IKKE PÅ ARKET\")","v":"IKKE PÅ ARKET"}]
["Apple iPhone XS 512GB",null,null,12099,9679.2000000000007,{"$f":"IFERROR(VLOOKUP(A50,Prisark!B:B,1,FALSE),\"IKKE PÅ ARKET\")","v":"IKKE PÅ ARKET"},null,null,null,null,null,{"$f":"IFERROR(VLOOKUP(G50,Prisark!B:B,1,FALSE),\"IKKE PÅ ARKET\")","v":"IKKE PÅ ARKET"}]
["Apple iPhone XS 64GB",null,null,7999,6399.2,{"$f":"IFERROR(VLOOKUP(A51,Prisark!B:B,1,FALSE),\"IKKE PÅ ARKET\")","v":"IKKE PÅ ARKET"},null,null,null,null,null,{"$f":"IFERROR(VLOOKUP(G51,Prisark!B:B,1,FALSE),\"IKKE PÅ ARKET\")","v":"IKKE PÅ ARKET"}]
["Apple iPhone XS Max 256GB",null,null,11149,8919.2000000000007,{"$f":"IFERROR(VLOOKUP(A52,Prisark!B:B,1,FALSE),\"IKKE PÅ ARKET\")","v":"IKKE PÅ ARKET"},null,null,null,null,null,{"$f":"IFERROR(VLOOKUP(G52,Prisark!B:B,1,FALSE),\"IKKE PÅ ARKET\")","v":"IKKE PÅ ARKET"}]
["Apple iPhone XS Max 512GB",null,null,12999,10399.200000000001,{"$f":"IFERROR(VLOOKUP(A53,Prisark!B:B,1,FALSE),\"IKKE PÅ ARKET\")","v":"IKKE PÅ ARKET"},null,null,null,null,null,{"$f":"IFERROR(VLOOKUP(G53,Prisark!B:B,1,FALSE),\"IKKE PÅ ARKET\")","v":"IKKE PÅ ARKET"}]
["Apple iPhone XS Max 64GB",null,null,9799,7839.2,{"$f":"IFERROR(VLOOKUP(A54,Prisark!B:B,1,FALSE),\"IKKE PÅ ARKET\")","v":"IKKE PÅ ARKET"},null,null,null,null,null,{"$f":"IFERROR(VLOOKUP(G54,Prisark!B:B,1,FALSE),\"IKKE PÅ ARKET\")","v":"IKKE PÅ ARKET"}]
["Apple iPhone Xr 128GB",null,null,5949,4759.2,{"$f":"IFERROR(VLOOKUP(A55,Prisark!B:B,1,FALSE),\"IKKE PÅ ARKET\")","v":"IKKE PÅ ARKET"},null,null,null,null,null,{"$f":"IFERROR(VLOOKUP(G55,Prisark!B:B,1,FALSE),\"IKKE PÅ ARKET\")","v":"IKKE PÅ ARKET"}]
["Apple iPhone Xr 256GB",null,null,8049,6439.2,{"$f":"IFERROR(VLOOKUP(A56,Prisark!B:B,1,FALSE),\"IKKE PÅ ARKET\")","v":"IKKE PÅ ARKET"},null,null,null,null,null,{"$f":"IFERROR(VLOOKUP(G56,Prisark!B:B,1,FALSE),\"IKKE PÅ ARKET\")","v":"IKKE PÅ ARKET"}]
["Apple iPhone Xr 64GB",null,null,5499,4399.2,{"$f":"IFERROR(VLOOKUP(A57,Prisark!B:B,1,FALSE),\"IKKE PÅ ARKET\")","v":"IKKE PÅ ARKET"},null,null,null,null,null,{"$f":"IFERROR(VLOOKUP(G57,Prisark!B:B,1,FALSE),\"IKKE PÅ ARKET\")","v":"IKKE PÅ ARKET"}]
["Fairphone 3 Plus 64GB Black",null,null,3449,2759.2,{"$f":"IFERROR(VLOOKUP(A58,Prisark!B:B,1,FALSE),\"IKKE PÅ ARKET\")","v":"Fairphone 3 Plus 64GB Black"},null,null,null,null,null,{"$f":"IFERROR(VLOOKUP(G58,Prisark!B:B,1,FALSE),\"IKKE PÅ ARKET\")","v":"IKKE PÅ ARKET"}]
["Huawei F617",null,null,899,719.2,{"$f":"IFERROR(VLOOKUP(A59,Prisark!B:B,1,FALSE),\"IKKE PÅ ARKET\")","v":"IKKE PÅ ARKET"},null,null,null,null,null,{"$f":"IFERROR(VLOOKUP(G59,Prisark!B:B,1,FALSE),\"IKKE PÅ ARKET\")","v":"IKKE PÅ ARKET"}]
["Huawei Nova 5T 128GB",null,null,4099,3279.2,{"$f":"IFERROR(VLOOKUP(A60,Prisark!B:B,1,FALSE),\"IKKE PÅ ARKET\")","v":"IKKE PÅ ARKET"},null,null,null,null,null,{"$f":"IFERROR(VLOOKUP(G60,Prisark!B:B,1,FALSE),\"IKKE PÅ ARKET\")","v":"IKKE PÅ ARKET"}]
["Huawei P30",null,null,5099,4079.2,{"$f":"IFERROR(VLOOKUP(A61,Prisark!B:B,1,FALSE),\"IKKE PÅ ARKET\")","v":"IKKE PÅ ARKET"},null,null,null,null,null,{"$f":"IFERROR(VLOOKUP(G61,Prisark!B:B,1,FALSE),\"IKKE PÅ ARKET\")","v":"IKKE PÅ ARKET"}]
["Huawei P30 Lite",null,null,2999,2399.1999999999998,{"$f":"IFERROR(VLOOKUP(A62,Prisark!B:B,1,FALSE),\"IKKE PÅ ARKET\")","v":"IKKE PÅ ARKET"},null,null,null,null,null,{"$f":"IFERROR(VLOOKUP(G62,Prisark!B:B,1,FALSE),\"IKKE PÅ ARKET\")","v":"IKKE PÅ ARKET"}]
["Huawei P30 Pro 128GB",null,null,6299,5039.2,{"$f":"IFERROR(VLOOKUP(A63,Prisark!B:B,1,FALSE),\"IKKE PÅ ARKET\")","v":"IKKE PÅ ARKET"},null,null,null,null,null,{"$f":"IFERROR(VLOOKUP(G63,Prisark!B:B,1,FALSE),\"IKKE PÅ ARKET\")","v":"IKKE PÅ ARKET"}]
["Huawei P30 Pro 256GB",null,null,6899,5519.2,{"$f":"IFERROR(VLOOKUP(A64,Prisark!B:B,1,FALSE),\"IKKE PÅ ARKET\")","v":"IKKE PÅ ARKET"},null,null,null,null,null,{"$f":"IFERROR(VLOOKUP(G64,Prisark!B:B,1,FALSE),\"IKKE PÅ ARKET\")","v":"IKKE PÅ ARKET"}]
["Huawei P40 Lite 4G",null,null,2399,1919.2,{"$f":"IFERROR(VLOOKUP(A65,Prisark!B:B,1,FALSE),\"IKKE PÅ ARKET\")","v":"Huawei P40 Lite 4G"},null,null,null,null,null,{"$f":"IFERROR(VLOOKUP(G65,Prisark!B:B,1,FALSE),\"IKKE PÅ ARKET\")","v":"IKKE PÅ ARKET"}]
["Huawei P40 Pro",null,null,8799,7039.2,{"$f":"IFERROR(VLOOKUP(A66,Prisark!B:B,1,FALSE),\"IKKE PÅ ARKET\")","v":"Huawei P40 Pro"},null,null,null,null,null,{"$f":"IFERROR(VLOOKUP(G66,Prisark!B:B,1,FALSE),\"IKKE PÅ ARKET\")","v":"IKKE PÅ ARKET"}]
["Jablocom Essence GSM",null,null,1449,1159.2,{"$f":"IFERROR(VLOOKUP(A67,Prisark!B:B,1,FALSE),\"IKKE PÅ ARKET\")","v":"Jablocom Essence GSM"},null,null,null,null,null,{"$f":"IFERROR(VLOOKUP(G67,Prisark!B:B,1,FALSE),\"IKKE PÅ ARKET\")","v":"IKKE PÅ ARKET"}]
["Microsoft Lumia 435 3G",null,null,349,279.2,{"$f":"IFERROR(VLOOKUP(A68,Prisark!B:B,1,FALSE),\"IKKE PÅ ARKET\")","v":"IKKE PÅ ARKET"},null,null,null,null,null,{"$f":"IFERROR(VLOOKUP(G68,Prisark!B:B,1,FALSE),\"IKKE PÅ ARKET\")","v":"IKKE PÅ ARKET"}]
["Microsoft Lumia 950",null,null,2999,2399.1999999999998,{"$f":"IFERROR(VLOOKUP(A69,Prisark!B:B,1,FALSE),\"IKKE PÅ ARKET\")","v":"IKKE PÅ ARKET"},null,null,null,null,null,{"$f":"IFERROR(VLOOKUP(G69,Prisark!B:B,1,FALSE),\"IKKE PÅ ARKET\")","v":"IKKE PÅ ARKET"}]
["Motorola Edge 128GB 5G",null,null,3799,3039.2,{"$f":"IFERROR(VLOOKUP(A70,Prisark!B:B,1,FALSE),\"IKKE PÅ ARKET\")","v":"IKKE PÅ ARKET"},null,null,null,null,null,{"$f":"IFERROR(VLOOKUP(G70,Prisark!B:B,1,FALSE),\"IKKE PÅ ARKET\")","v":"IKKE PÅ ARKET"}]
["Motorola One Hyper 128GB Blue",null,null,2899,2319.1999999999998,{"$f":"IFERROR(VLOOKUP(A71,Prisark!B:B,1,FALSE),\"IKKE PÅ ARKET\")","v":"IKKE PÅ ARKET"},null,null,null,null,null,{"$f":"IFERROR(VLOOKUP(G71,Prisark!B:B,1,FALSE),\"IKKE PÅ ARKET\")","v":"IKKE PÅ ARKET"}]
["Motorola One Zoom 128GB HDS",null,null,2999,2399.1999999999998,{"$f":"IFERROR(VLOOKUP(A72,Prisark!B:B,1,FALSE),\"IKKE PÅ ARKET\")","v":"IKKE PÅ ARKET"},null,null,null,null,null,{"$f":"IFERROR(VLOOKUP(G72,Prisark!B:B,1,FALSE),\"IKKE PÅ ARKET\")","v":"IKKE PÅ ARKET"}]
["Nokia 3310 3G DS",null,null,499,399.2,{"$f":"IFERROR(VLOOKUP(A73,Prisark!B:B,1,FALSE),\"IKKE PÅ ARKET\")","v":"Nokia 3310 3G DS"},null,null,null,null,null,{"$f":"IFERROR(VLOOKUP(G73,Prisark!B:B,1,FALSE),\"IKKE PÅ ARKET\")","v":"IKKE PÅ ARKET"}]
["OnePlus 5T 128 GB SW",null,null,4499,3599.2,{"$f":"IFERROR(VLOOKUP(A74,Prisark!B:B,1,FALSE),\"IKKE PÅ ARKET\")","v":"IKKE PÅ ARKET"},null,null,null,null,null,{"$f":"IFERROR(VLOOKUP(G74,Prisark!B:B,1,FALSE),\"IKKE PÅ ARKET\")","v":"IKKE PÅ ARKET"}]
["OnePlus 6 128GB",null,null,4399,3519.2,{"$f":"IFERROR(VLOOKUP(A75,Prisark!B:B,1,FALSE),\"IKKE PÅ ARKET\")","v":"IKKE PÅ ARKET"},null,null,null,null,null,{"$f":"IFERROR(VLOOKUP(G75,Prisark!B:B,1,FALSE),\"IKKE PÅ ARKET\")","v":"IKKE PÅ ARKET"}]
["OnePlus 6 256GB",null,null,4699,3759.2,{"$f":"IFERROR(VLOOKUP(A76,Prisark!B:B,1,FALSE),\"IKKE PÅ ARKET\")","v":"IKKE PÅ ARKET"},null,null,null,null,null,{"$f":"IFERROR(VLOOKUP(G76,Prisark!B:B,1,FALSE),\"IKKE PÅ ARKET\")","v":"IKKE PÅ ARKET"}]
["OnePlus 6t 128GB Mirror Black",null,null,4199,3359.2,{"$f":"IFERROR(VLOOKUP(A77,Prisark!B:B,1,FALSE),\"IKKE PÅ ARKET\")","v":"IKKE PÅ ARKET"},null,null,null,null,null,{"$f":"IFERROR(VLOOKUP(G77,Prisark!B:B,1,FALSE),\"IKKE PÅ ARKET\")","v":"IKKE PÅ ARKET"}]
["OnePlus 6t 256GB Midnight Black",null,null,4799,3839.2,{"$f":"IFERROR(VLOOKUP(A78,Prisark!B:B,1,FALSE),\"IKKE PÅ ARKET\")","v":"IKKE PÅ ARKET"},null,null,null,null,null,{"$f":"IFERROR(VLOOKUP(G78,Prisark!B:B,1,FALSE),\"IKKE PÅ ARKET\")","v":"IKKE PÅ ARKET"}]
["OnePlus 7 128GB",null,null,3999,3199.2,{"$f":"IFERROR(VLOOKUP(A79,Prisark!B:B,1,FALSE),\"IKKE PÅ ARKET\")","v":"IKKE PÅ ARKET"},null,null,null,null,null,{"$f":"IFERROR(VLOOKUP(G79,Prisark!B:B,1,FALSE),\"IKKE PÅ ARKET\")","v":"IKKE PÅ ARKET"}]
["OnePlus 7 Pro 256GB ",null,null,4799,3839.2,{"$f":"IFERROR(VLOOKUP(A80,Prisark!B:B,1,FALSE),\"IKKE PÅ ARKET\")","v":"IKKE PÅ ARKET"},null,null,null,null,null,{"$f":"IFERROR(VLOOKUP(G80,Prisark!B:B,1,FALSE),\"IKKE PÅ ARKET\")","v":"IKKE PÅ ARKET"}]
["OnePlus 7T 128GB",null,null,4899,3919.2,{"$f":"IFERROR(VLOOKUP(A81,Prisark!B:B,1,FALSE),\"IKKE PÅ ARKET\")","v":"OnePlus 7T 128GB"},null,null,null,null,null,{"$f":"IFERROR(VLOOKUP(G81,Prisark!B:B,1,FALSE),\"IKKE PÅ ARKET\")","v":"IKKE PÅ ARKET"}]
["OnePlus 7T Pro 256GB",null,null,5999,4799.2,{"$f":"IFERROR(VLOOKUP(A82,Prisark!B:B,1,FALSE),\"IKKE PÅ ARKET\")","v":"OnePlus 7T Pro 256GB"},null,null,null,null,null,{"$f":"IFERROR(VLOOKUP(G82,Prisark!B:B,1,FALSE),\"IKKE PÅ ARKET\")","v":"IKKE PÅ ARKET"}]
["OnePlus 8 128GB 5G",null,null,5649,4519.2,{"$f":"IFERROR(VLOOKUP(A83,Prisark!B:B,1,FALSE),\"IKKE PÅ ARKET\")","v":"OnePlus 8 128GB 5G"},null,null,null,null,null,{"$f":"IFERROR(VLOOKUP(G83,Prisark!B:B,1,FALSE),\"IKKE PÅ ARKET\")","v":"IKKE PÅ ARKET"}]
["OnePlus 8 Pro 128GB 5G",null,null,5799,4639.2,{"$f":"IFERROR(VLOOKUP(A84,Prisark!B:B,1,FALSE),\"IKKE PÅ ARKET\")","v":"OnePlus 8 Pro 128GB 5G"},null,null,null,null,null,{"$f":"IFERROR(VLOOKUP(G84,Prisark!B:B,1,FALSE),\"IKKE PÅ ARKET\")","v":"IKKE PÅ ARKET"}]
["OnePlus 8T 128GB",null,null,4999,3999.2,{"$f":"IFERROR(VLOOKUP(A85,Prisark!B:B,1,FALSE),\"IKKE PÅ ARKET\")","v":"OnePlus 8T 128GB"},null,null,null,null,null,{"$f":"IFERROR(VLOOKUP(G85,Prisark!B:B,1,FALSE),\"IKKE PÅ ARKET\")","v":"IKKE PÅ ARKET"}]
["OnePlus Nord 128GB 5G",null,null,3449,2759.2,{"$f":"IFERROR(VLOOKUP(A86,Prisark!B:B,1,FALSE),\"IKKE PÅ ARKET\")","v":"OnePlus Nord 128GB 5G"},null,null,null,null,null,{"$f":"IFERROR(VLOOKUP(G86,Prisark!B:B,1,FALSE),\"IKKE PÅ ARKET\")","v":"IKKE PÅ ARKET"}]
["OnePlus Nord 256GB 5G",null,null,4099,3279.2,{"$f":"IFERROR(VLOOKUP(A87,Prisark!B:B,1,FALSE),\"IKKE PÅ ARKET\")","v":"OnePlus Nord 256GB 5G"},null,null,null,null,null,{"$f":"IFERROR(VLOOKUP(G87,Prisark!B:B,1,FALSE),\"IKKE PÅ ARKET\")","v":"IKKE PÅ ARKET"}]
["OnePlus Nord N10 5G 128GB",null,null,2499,1999.2,{"$f":"IFERROR(VLOOKUP(A88,Prisark!B:B,1,FALSE),\"IKKE PÅ ARKET\")","v":"IKKE PÅ ARKET"},null,null,null,null,null,{"$f":"IFERROR(VLOOKUP(G88,Prisark!B:B,1,FALSE),\"IKKE PÅ ARKET\")","v":"IKKE PÅ ARKET"}]
["OnePlus Nord N100 64GB",null,null,1499,1199.2,{"$f":"IFERROR(VLOOKUP(A89,Prisark!B:B,1,FALSE),\"IKKE PÅ ARKET\")","v":"IKKE PÅ ARKET"},null,null,null,null,null,{"$f":"IFERROR(VLOOKUP(G89,Prisark!B:B,1,FALSE),\"IKKE PÅ ARKET\")","v":"IKKE PÅ ARKET"}]
["Razer Phone 2 64GB",null,null,7499,5999.2,{"$f":"IFERROR(VLOOKUP(A90,Prisark!B:B,1,FALSE),\"IKKE PÅ ARKET\")","v":"IKKE PÅ ARKET"},null,null,null,null,null,{"$f":"IFERROR(VLOOKUP(G90,Prisark!B:B,1,FALSE),\"IKKE PÅ ARKET\")","v":"IKKE PÅ ARKET"}]
["Samsung Galaxy A21s 32GB Black",null,null,1599,1279.2,{"$f":"IFERROR(VLOOKUP(A91,Prisark!B:B,1,FALSE),\"IKKE PÅ ARKET\")","v":"Samsung Galaxy A21s 32GB Black"},null,null,null,null,null,{"$f":"IFERROR(VLOOKUP(G91,Prisark!B:B,1,FALSE),\"IKKE PÅ ARKET\")","v":"IKKE PÅ ARKET"}]
["Samsung Galaxy A40",null,null,1999,1599.2,{"$f":"IFERROR(VLOOKUP(A92,Prisark!B:B,1,FALSE),\"IKKE PÅ ARKET\")","v":"IKKE PÅ ARKET"},null,null,null,null,null,{"$f":"IFERROR(VLOOKUP(G92,Prisark!B:B,1,FALSE),\"IKKE PÅ ARKET\")","v":"IKKE PÅ ARKET"}]
["Samsung Galaxy A40 Enterprise",null,null,1999,1599.2,{"$f":"IFERROR(VLOOKUP(A93,Prisark!B:B,1,FALSE),\"IKKE PÅ ARKET\")","v":"IKKE PÅ ARKET"},null,null,null,null,null,{"$f":"IFERROR(VLOOKUP(G93,Prisark!B:B,1,FALSE),\"IKKE PÅ ARKET\")","v":"IKKE PÅ ARKET"}]
["Samsung Galaxy A41 64GB",null,null,2299,1839.2,{"$f":"IFERROR(VLOOKUP(A94,Prisark!B:B,1,FALSE),\"IKKE PÅ ARKET\")","v":"Samsung Galaxy A41 64GB"},null,null,null,null,null,{"$f":"IFERROR(VLOOKUP(G94,Prisark!B:B,1,FALSE),\"IKKE PÅ ARKET\")","v":"IKKE PÅ ARKET"}]
["Samsung Galaxy A51 128GB Black",null,null,2799,2239.1999999999998,{"$f":"IFERROR(VLOOKUP(A95,Prisark!B:B,1,FALSE),\"IKKE PÅ ARKET\")","v":"Samsung Galaxy A51 128GB Black"},null,null,null,null,null,{"$f":"IFERROR(VLOOKUP(G95,Prisark!B:B,1,FALSE),\"IKKE PÅ ARKET\")","v":"IKKE PÅ ARKET"}]
["Samsung Galaxy A6",null,null,2499,1999.2,{"$f":"IFERROR(VLOOKUP(A96,Prisark!B:B,1,FALSE),\"IKKE PÅ ARKET\")","v":"IKKE PÅ ARKET"},null,null,null,null,null,{"$f":"IFERROR(VLOOKUP(G96,Prisark!B:B,1,FALSE),\"IKKE PÅ ARKET\")","v":"IKKE PÅ ARKET"}]
["Samsung Galaxy A7",null,null,2699,2159.1999999999998,{"$f":"IFERROR(VLOOKUP(A97,Prisark!B:B,1,FALSE),\"IKKE PÅ ARKET\")","v":"IKKE PÅ ARKET"},null,null,null,null,null,{"$f":"IFERROR(VLOOKUP(G97,Prisark!B:B,1,FALSE),\"IKKE PÅ ARKET\")","v":"IKKE PÅ ARKET"}]
["Samsung Galaxy A70",null,null,3299,2639.2,{"$f":"IFERROR(VLOOKUP(A98,Prisark!B:B,1,FALSE),\"IKKE PÅ ARKET\")","v":"IKKE PÅ ARKET"},null,null,null,null,null,{"$f":"IFERROR(VLOOKUP(G98,Prisark!B:B,1,FALSE),\"IKKE PÅ ARKET\")","v":"IKKE PÅ ARKET"}]
["Samsung Galaxy A71 128GB",null,null,3499,2799.2,{"$f":"IFERROR(VLOOKUP(A99,Prisark!B:B,1,FALSE),\"IKKE PÅ ARKET\")","v":"IKKE PÅ ARKET"},null,null,null,null,null,{"$f":"IFERROR(VLOOKUP(G99,Prisark!B:B,1,FALSE),\"IKKE PÅ ARKET\")","v":"IKKE PÅ ARKET"}]
["Samsung Galaxy Note 10 256 GB",null,null,7499,5999.2,{"$f":"IFERROR(VLOOKUP(A100,Prisark!B:B,1,FALSE),\"IKKE PÅ ARKET\")","v":"IKKE PÅ ARKET"},null,null,null,null,null,{"$f":"IFERROR(VLOOKUP(G100,Prisark!B:B,1,FALSE),\"IKKE PÅ ARKET\")","v":"IKKE PÅ ARKET"}]
["Samsung Galaxy Note 10 Lite 128GB",null,null,4799,3839.2,{"$f":"IFERROR(VLOOKUP(A101,Prisark!B:B,1,FALSE),\"IKKE PÅ ARKET\")","v":"IKKE PÅ ARKET"},null,null,null,null,null,{"$f":"IFERROR(VLOOKUP(G101,Prisark!B:B,1,FALSE),\"IKKE PÅ ARKET\")","v":"IKKE PÅ ARKET"}]
["Samsung Galaxy Note 10 Plus 256 GB",null,null,8699,6959.2,{"$f":"IFERROR(VLOOKUP(A102,Prisark!B:B,1,FALSE),\"IKKE PÅ ARKET\")","v":"IKKE PÅ ARKET"},null,null,null,null,null,{"$f":"IFERROR(VLOOKUP(G102,Prisark!B:B,1,FALSE),\"IKKE PÅ ARKET\")","v":"IKKE PÅ ARKET"}]
["Samsung Galaxy Note 10 Plus 512 GB",null,null,9499,7599.2,{"$f":"IFERROR(VLOOKUP(A103,Prisark!B:B,1,FALSE),\"IKKE PÅ ARKET\")","v":"IKKE PÅ ARKET"},null,null,null,null,null,{"$f":"IFERROR(VLOOKUP(G103,Prisark!B:B,1,FALSE),\"IKKE PÅ ARKET\")","v":"IKKE PÅ ARKET"}]
["Samsung Galaxy Note 20 256GB 5G",null,null,8399,6719.2,{"$f":"IFERROR(VLOOKUP(A104,Prisark!B:B,1,FALSE),\"IKKE PÅ ARKET\")","v":"Samsung Galaxy Note 20 256GB 5G"},null,null,null,null,null,{"$f":"IFERROR(VLOOKUP(G104,Prisark!B:B,1,FALSE),\"IKKE PÅ ARKET\")","v":"IKKE PÅ ARKET"}]
["Samsung Galaxy Note 20 Ultra 256GB 5G",null,null,10299,8239.2000000000007,{"$f":"IFERROR(VLOOKUP(A105,Prisark!B:B,1,FALSE),\"IKKE PÅ ARKET\")","v":"Samsung Galaxy Note 20 Ultra 256GB 5G"},null,null,null,null,null,{"$f":"IFERROR(VLOOKUP(G105,Prisark!B:B,1,FALSE),\"IKKE PÅ ARKET\")","v":"IKKE PÅ ARKET"}]
["Samsung Galaxy Note 20 Ultra 512GB 5G",null,null,10999,8799.2000000000007,{"$f":"IFERROR(VLOOKUP(A106,Prisark!B:B,1,FALSE),\"IKKE PÅ ARKET\")","v":"IKKE PÅ ARKET"}]
["Samsung Galaxy Note 8",null,null,7749,6199.2,{"$f":"IFERROR(VLOOKUP(A107,Prisark!B:B,1,FALSE),\"IKKE PÅ ARKET\")","v":"IKKE PÅ ARKET"}]
["Samsung Galaxy S10 128GB",null,null,7199,5759.2,{"$f":"IFERROR(VLOOKUP(A108,Prisark!B:B,1,FALSE),\"IKKE PÅ ARKET\")","v":"IKKE PÅ ARKET"}]
["Samsung Galaxy S10 Lite Black",null,null,5199,4159.2,{"$f":"IFERROR(VLOOKUP(A109,Prisark!B:B,1,FALSE),\"IKKE PÅ ARKET\")","v":"IKKE PÅ ARKET"}]
["Samsung Galaxy S10 Plus 128GB",null,null,7999,6399.2,{"$f":"IFERROR(VLOOKUP(A110,Prisark!B:B,1,FALSE),\"IKKE PÅ ARKET\")","v":"IKKE PÅ ARKET"}]
["Samsung Galaxy S10 Plus 512GB",null,null,9699,7759.2,{"$f":"IFERROR(VLOOKUP(A111,Prisark!B:B,1,FALSE),\"IKKE PÅ ARKET\")","v":"IKKE PÅ ARKET"}]
["Samsung Galaxy S10e 128GB",null,null,5999,4799.2,{"$f":"IFERROR(VLOOKUP(A112,Prisark!B:B,1,FALSE),\"IKKE PÅ ARKET\")","v":"IKKE PÅ ARKET"}]
["Samsung Galaxy S20 5G",null,null,7899,6319.2,{"$f":"IFERROR(VLOOKUP(A113,Prisark!B:B,1,FALSE),\"IKKE PÅ ARKET\")","v":"IKKE PÅ ARKET"}]
["Samsung Galaxy S20 Ultra 5G",null,null,10699,8559.2000000000007,{"$f":"IFERROR(VLOOKUP(A114,Prisark!B:B,1,FALSE),\"IKKE PÅ ARKET\")","v":"IKKE PÅ ARKET"}]
["Samsung Galaxy S20+ 128GB 5G",null,null,8699,6959.2,{"$f":"IFERROR(VLOOKUP(A115,Prisark!B:B,1,FALSE),\"IKKE PÅ ARKET\")","v":"IKKE PÅ ARKET"}]
["Samsung Galaxy S20+ 512GB 5G",null,null,9899,7919.2,{"$f":"IFERROR(VLOOKUP(A116,Prisark!B:B,1,FALSE),\"IKKE PÅ ARKET\")","v":"IKKE PÅ ARKET"}]
["Samsung Galaxy S20FE 4G 128GB",null,null,5199,4159.2,{"$f":"IFERROR(VLOOKUP(A117,Prisark!B:B,1,FALSE),\"IKKE PÅ ARKET\")","v":"Samsung Galaxy S20FE 4G 128GB"}]
["Samsung Galaxy S20FE 5G 128GB",null,null,5999,4799.2,{"$f":"IFERROR(VLOOKUP(A118,Prisark!B:B,1,FALSE),\"IKKE PÅ ARKET\")","v":"Samsung Galaxy S20FE 5G 128GB"}]
["Samsung Galaxy S21 5G 128GB",null,null,6699,5359.2,{"$f":"IFERROR(VLOOKUP(A119,Prisark!B:B,1,FALSE),\"IKKE PÅ ARKET\")","v":"Samsung Galaxy S21 5G 128GB"}]
["Samsung Galaxy S21 5G 256GB",null,null,7299,5839.2,{"$f":"IFERROR(VLOOKUP(A120,Prisark!B:B,1,FALSE),\"IKKE PÅ ARKET\")","v":"Samsung Galaxy S21 5G 256GB"}]
["Samsung Galaxy S21 5G Ultra 128GB",null,null,9899,7919.2,{"$f":"IFERROR(VLOOKUP(A121,Prisark!B:B,1,FALSE),\"IKKE PÅ ARKET\")","v":"Samsung Galaxy S21 5G Ultra 128GB"}]
["Samsung Galaxy S21 5G Ultra 256GB",null,null,10249,8199.2000000000007,{"$f":"IFERROR(VLOOKUP(A122,Prisark!B:B,1,FALSE),\"IKKE PÅ ARKET\")","v":"Samsung Galaxy S21 5G Ultra 256GB"}]
["Samsung Galaxy S21 5G Ultra 512GB",null,null,11299,9039.2000000000007,{"$f":"IFERROR(VLOOKUP(A123,Prisark!B:B,1,FALSE),\"IKKE PÅ ARKET\")","v":"Samsung Galaxy S21 5G Ultra 512GB"}]
["Samsung Galaxy S21+ 5G 128GB",null,null,8299,6639.2,{"$f":"IFERROR(VLOOKUP(A124,Prisark!B:B,1,FALSE),\"IKKE PÅ ARKET\")","v":"Samsung Galaxy S21+ 5G 128GB"}]
["Samsung Galaxy S21+ 5G 256GB",null,null,8799,7039.2,{"$f":"IFERROR(VLOOKUP(A125,Prisark!B:B,1,FALSE),\"IKKE PÅ ARKET\")","v":"Samsung Galaxy S21+ 5G 256GB"}]
["Samsung Galaxy XCover Pro",null,null,3799,3039.2,{"$f":"IFERROR(VLOOKUP(A126,Prisark!B:B,1,FALSE),\"IKKE PÅ ARKET\")","v":"Samsung Galaxy XCover Pro"}]
["Samsung Galaxy Xcover 4s",null,null,1899,1519.2,{"$f":"IFERROR(VLOOKUP(A127,Prisark!B:B,1,FALSE),\"IKKE PÅ ARKET\")","v":"IKKE PÅ ARKET"}]
["Samsung Galaxy Z Flip 5G",null,null,11849,9479.2000000000007,{"$f":"IFERROR(VLOOKUP(A128,Prisark!B:B,1,FALSE),\"IKKE PÅ ARKET\")","v":"IKKE PÅ ARKET"}]
["Sony Xperia 5 II",null,null,6699,5359.2,{"$f":"IFERROR(VLOOKUP(A129,Prisark!B:B,1,FALSE),\"IKKE PÅ ARKET\")","v":"IKKE PÅ ARKET"}]
["Xiaomi Mi 10T Pro",null,null,4749,3799.2,{"$f":"IFERROR(VLOOKUP(A130,Prisark!B:B,1,FALSE),\"IKKE PÅ ARKET\")","v":"IKKE PÅ ARKET"}]
["Xiaomi Mi 8 128GB",null,null,4399,3519.2,{"$f":"IFERROR(VLOOKUP(A131,Prisark!B:B,1,FALSE),\"IKKE PÅ ARKET\")","v":"IKKE PÅ ARKET"}]
["Xiaomi Mi 8 64GB",null,null,3999,3199.2,{"$f":"IFERROR(VLOOKUP(A132,Prisark!B:B,1,FALSE),\"IKKE PÅ ARKET\")","v":"IKKE PÅ ARKET"}]
["Xiaomi Mix 2S 128GB",null,null,4899,3919.2,{"$f":"IFERROR(VLOOKUP(A133,Prisark!B:B,1,FALSE),\"IKKE PÅ ARKET\")","v":"IKKE PÅ ARKET"}]
["Xiaomi Mix 2S 64GB",null,null,4499,3599.2,{"$f":"IFERROR(VLOOKUP(A134,Prisark!B:B,1,FALSE),\"IKKE PÅ ARKET\")","v":"IKKE PÅ ARKET"}]
["Xiaomi Redmi 6 32GB",null,null,1299,1039.2,{"$f":"IFERROR(VLOOKUP(A135,Prisark!B:B,1,FALSE),\"IKKE PÅ ARKET\")","v":"IKKE PÅ ARKET"}]
["Xiaomi Redmi 7 32GB",null,null,1299,1039.2,{"$f":"IFERROR(VLOOKUP(A136,Prisark!B:B,1,FALSE),\"IKKE PÅ ARKET\")","v":"IKKE PÅ ARKET"}]
["iPhone 5c 8GB 4G Pink",null,null,499,399.2,{"$f":"IFERROR(VLOOKUP(A137,Prisark!B:B,1,FALSE),\"IKKE PÅ ARKET\")","v":"IKKE PÅ ARKET"}]

{"sheet":"Navnestyring","index":4,"n_rows":110,"n_cols":32,"rows_kept":110,"cut":false,"hidden":true,"merged":[]}
[]
["Apple iPhone 12 mini 64GB (OBS. UDEN OPLADER)","AppleiPhone12mini64GB"]
["Apple iPhone 12 mini 128GB (OBS. UDEN OPLADER)","AppleiPhone12mini128GB",null,"iPhoneXR64","iPhoneXR","iPhoneXS256","iPhoneXSMax","iPhone1164GB","iPhone11128GB","iPhone11256GB","iPhone11Pro64GB","iPhone11Pro256GB","iPhone11Pro512GB","iPhone11ProMax64GB","iPhone11ProMax256GB","iPhone11ProMax512GB","iPhone732","AppleiPhoneSE2ndgen128GB","AppleiPhoneSE2ndgen256GB","AppleiPhoneSE2ndgen64GB","AppleiPhone12128GB","AppleiPhone12256GB","AppleiPhone1264GB","AppleiPhone12Pro128GB","AppleiPhone12Pro256GB","AppleiPhone12Pro512GB","AppleiPhone12mini64GB","AppleiPhone12mini128GB","AppleiPhone12mini256GB","AppleiPhone12ProMax128GB","AppleiPhone12ProMax256GB","AppleiPhone12ProMax512GB"]
["Apple iPhone 12 mini 256GB (OBS. UDEN OPLADER)","AppleiPhone12mini256GB",null,"White","Black","SpaceGrey","SpaceGrey","Black","Black","Black","Silver","Gold","Midnight Green","Gold","Space grey","Midnight Green","Silver","Black","Black","Black","Sort","Sort","Sort","Gold","Gold","Graphite","Black","Black","Black","Graphite","Graphite","Graphite"]
["Apple iPhone 12 64GB (OBS. UDEN OPLADER)","AppleiPhone1264GB",null,null,null,null,"Gold","White",null,null,"Midnight Green","Space Grey","Space grey",null,"Gold","Space grey",null,"White",null,"White","Hvid","Blå","Hvid","Silver","Silver","Pacific Blue","White","White","Blue","Pacific Blue","Pacific Blue","Pacific Blue"]
["Apple iPhone 12 128GB (OBS. UDEN OPLADER)","AppleiPhone12128GB",null,null,null,null,null,null,null,null,null,"Midnight Green",null,null,null,null,null,"red",null,"red","Rød",null,"Rød","Graphite","Graphite",null,"Red","Red",null,"Silver","Silver"]
["Apple iPhone 12 256GB (OBS. UDEN OPLADER)","AppleiPhone12256GB",null,null,null,null,null,null,null,null,null,null,null,null,null,null,null,null,null,null,"Blå",null,"Blå","Pacific Blue","Pacific Blue",null,"Blue","Blue",null,"Gold","Gold"]
["Apple iPhone 12 Pro 128GB (OBS. UDEN OPLADER)","AppleiPhone12Pro128GB",null,null,null,null,null,null,null,null,null,null,null,null,null,null,null,null,null,null,"Grøn",null,"Grøn",null,null,null,"Green","Green"]
["Apple iPhone 12 Pro 256GB (OBS. UDEN OPLADER)","AppleiPhone12Pro256GB"]
["Apple iPhone 12 Pro 512GB (OBS. UDEN OPLADER)","AppleiPhone12Pro512GB"]
["Apple iPhone 12 Pro Max 128GB (OBS. UDEN OPLADER)","AppleiPhone12ProMax128GB"]
["Apple iPhone 12 Pro Max 256GB (OBS. UDEN OPLADER)","AppleiPhone12ProMax256GB",null,"HuaweiP30Lite","HuaweiP30","HuaweiP30Pro128","HuaweiP40Lite4G","HuaweiP40Pro"]
["Apple iPhone 12 Pro Max 512GB (OBS. UDEN OPLADER)","AppleiPhone12ProMax512GB",null,"Black","Black","Black","Black","Black"]
["Apple iPhone 11 64GB NEW (OBS. UDEN OPLADER)","iPhone1164GB",null,null,null,"Aurora"]
["Apple iPhone 11 128GB NEW (OBS. UDEN OPLADER)","iPhone11128GB"]
["Apple iPhone 11 256GB","iPhone11256GB",null,"JablocomEssencegsm"]
["Apple iPhone 11 Pro 64GB","iPhone11Pro64GB",null,"Sort"]
["Apple iPhone 11 Pro 256GB","iPhone11Pro256GB"]
["Apple iPhone 11 Pro 512GB","iPhone11Pro512GB",null,"Nokia33103gds"]
["Apple iPhone 11 Pro Max 64GB","iPhone11ProMax64GB",null,"Grey"]
["Apple iPhone 11 Pro Max 256GB","iPhone11ProMax256GB"]
["Apple iPhone 11 Pro Max 512GB","iPhone11ProMax512GB"]
["Apple iPhone XS 256GB","iPhoneXS256"]
["Apple iPhone XS Max 64GB","iPhoneXSMax"]
["Apple iPhone XS Max 256GB","iPhoneXSMax",null,"MotorolaEdge128GB5G","MotorolaOneHyper128GB"]
["Apple iPhone Xr 64GB","iPhoneXR64",null,"Black","Blue"]
["Apple iPhone Xr 128GB","iPhoneXR"]
["Apple iPhone 7 32GB","iPhone732",null,"OnePlus7T128","OnePlus7Tpro256","OnePlus8128GB5G","OnePlus8Pro128GB5G","OnePlusNord128","OnePlusNord256","OnePlus8T128GB"]
["Apple iPhone SE 2nd gen 128GB NEW (OBS. UDEN OPLADER)","AppleiPhoneSE2ndgen128GB",null,"Glacier Blue","Haze Blue","Glacial green","Onyx black","Gray Onyx","Gray Onyx","Lunar Silver"]
["Apple iPhone SE 2nd gen 256GB NEW (OBS. UDEN OPLADER)","AppleiPhoneSE2ndgen256GB",null,null,null,null,null,"Blue Marble",null,"Aquamarine Green"]
["Apple iPhone SE 2nd gen 64GB NEW (OBS. UDEN OPLADER)","AppleiPhoneSE2ndgen64GB"]
[null,null,null,"Note10Plus256","S10lite128","S_10128","S10plus128","Note9","Xcover4S","GalaxyA41","S_20","S20Ultra","S20Plus128","S20Plus512","Zflip","GalaxyA71","SamsungGalaxyA21s32GBBlack","SamsungGalaxyNote20256GB5G","SamsungGalaxyNote20Ultra256GB5G","SamsungGalaxyNote20Ultra512GB5G","SamsungGalaxyS20FE4G128GB","SamsungGalaxyS20FE5G128GB","SamsungGalaxyS215G128GB","SamsungGalaxyS215G256GB","SamsungGalaxyS215GUltra128GB","SamsungGalaxyS215GUltra256GB","SamsungGalaxyS215GUltra512GB","SamsungGalaxyS21Plus5G128GB","SamsungGalaxyS21Plus5G256GB"]
["Motorola One Hyper 128GB Blue","MotorolaOneHyper128GB",null,"Aura black","Black","Prism Black","Prism Black","Sort","Sort","Black","Cosmic Gray","Cosmic Gray","Cosmic Black","Cosmic Gray","Mirror Black","Black","Black","Mystic Gray","Mystic Bronze","Mystic Bronze","Cloud Navy","Cloud Navy","Phantom Gray","Phantom Gray","Phantom Black","Phantom Black","Phantom Black","Phantom Black​","Phantom Black​"]
["Motorola Edge 128GB 5G","MotorolaEdge128GB5G",null,null,null,"Prism White",null,null,null,null,"Cloud Blue",null,"Cosmic Gray",null,null,null,null,null,"Mystic Black",null,null,null,"Phantom Violet",null,"Phantom Silver",null,null,"Phantom Silver​"]
[null,null,null,null,null,null,null,null,null,null,null,null,null,null,null,null,null,null,null,null,null,null,"Phantom White",null,null,null,null,"Phantom Violet"]
["Huawei P30 Lite","HuaweiP30Lite"]
["Huawei P30","HuaweiP30",null,"Router"]
["Huawei P30 Pro 128GB","HuaweiP30Pro128",null,"HuaweiB535","HuaweiE3372","HuaweiB315","HuaweiE5577","HuaweiB2368"]
["Huawei P40 Lite 4G","HuaweiP40Lite4G",null,"White","Black","White","Black","White"]
["Huawei P40 Pro","HuaweiP40Pro"]
[null,null,null,"Tablet"]
["OnePlus 8T 128GB","OnePlus8T128GB",null,"iPad7thgeneration32GB","iPad7thgeneration128GB","iPadAir10.564GB","iPadAir10.5256GB","iPadMini5thgen64GB","iPadMini5thgen256GB","iPadPro11.064GB","iPadPro11.0256GB","iPadPro12.93rdgen64GB","iPadPro12.93rdgen256GB","iPad6thgen32GB","iPad6thgen128GB","iPadPro11.02ndgen128GB","iPadPro11.02ndgen256GB","iPadPro12.94thgen128GB","iPadPro12.94thgen256GB","AppleiPadAir109256GB","AppleiPadAir10964GB","iPad8thgen102128GB","iPad8thgen10232GB"]
["OnePlus 7T 128GB","OnePlus7T128",null,"Gold","Gold","Space Grey","Space Grey","Gold","Space Grey","Space Grey","Space Grey","Space Grey","Space Grey","Gold","Space Grey","Space Grey","Space Grey","Space Grey","Space Grey","Space Grey","Green","Gold","Gold"]
["OnePlus 7T Pro 256GB","OnePlus7Tpro256",null,"Space Grey","Space Grey",null,null,"Space Grey",null,"Silver","Silver","Silver","Silver","Space Grey","Silver","Silver",null,"Silver",null,null,"Sky Blue","Silver","Silver"]
["OnePlus 8 128GB 5G","OnePlus8128GB5G",null,"Silver","Silver",null,null,"Silver",null,null,null,null,null,null,null,null,null,null,null,null,"Rose Gold","Space Grey","Space Grey"]
["OnePlus 8 Pro 128GB 5G","OnePlus8Pro128GB5G",null,null,null,null,null,null,null,null,null,null,null,null,null,null,null,null,null,null,"Space Grey"]
["OnePlus Nord 128GB 5G","OnePlusNord128"]
["OnePlus Nord 256GB 5G","OnePlusNord256",null,"GalaxyTabS6","TabActive24G","SamsungGalaxyTabS7LTE"]
[null,null,null,"Grey","Black","Dark Grey"]
["Samsung Galaxy S10 Lite Black","S10lite128"]
["Samsung Galaxy S10 128GB","S_10128"]
["Samsung Galaxy S10 Plus 128GB","S10plus128",null,"HuaweiMediatabT332GB"]
["Samsung Galaxy A71 128GB","GalaxyA71",null,"Space Gray"]
["Samsung Galaxy Note 10 Lite 128GB","Note10Lite"]
["Samsung Galaxy Xcover 4s","Xcover4S",null,"Fairphone3Plus64GB"]
["Samsung Galaxy A51 128GB Black","GalaxyA51",null,"Black"]
["Samsung Galaxy A41 64GB","GalaxyA41"]
["Samsung Galaxy S20 5G","S_20"]
["Samsung Galaxy S20 Ultra 5G","S20Ultra"]
["Samsung Galaxy S20+ 128GB 5G","S20Plus128"]
["Samsung Galaxy S20+ 512GB 5G","S20Plus512"]
["Samsung Galaxy Z Flip 5G","Zflip"]
["Samsung Galaxy A21s 32GB Black","SamsungGalaxyA21s32GBBlack"]
["Samsung Galaxy Note 20 256GB 5G","SamsungGalaxyNote20256GB5G"]
["Samsung Galaxy Note 20 Ultra 256GB 5G","SamsungGalaxyNote20Ultra256GB5G"]
["Samsung Galaxy Note 20 Ultra 512GB 5G","SamsungGalaxyNote20Ultra512GB5G"]
["Samsung Galaxy S20FE 4G 128GB","SamsungGalaxyS20FE4G128GB"]
["Samsung Galaxy S20FE 5G 128GB","SamsungGalaxyS20FE5G128GB"]
["Samsung Galaxy S21 5G 128GB","SamsungGalaxyS215G128GB"]
["Samsung Galaxy S21 5G 256GB","SamsungGalaxyS215G256GB"]
["Samsung Galaxy S21 5G Ultra 128GB","SamsungGalaxyS215GUltra128GB"]
["Samsung Galaxy S21 5G Ultra 256GB","SamsungGalaxyS215GUltra256GB"]
["Samsung Galaxy S21 5G Ultra 512GB","SamsungGalaxyS215GUltra512GB"]
["Samsung Galaxy S21+ 5G 128GB","SamsungGalaxyS21Plus5G128GB"]
["Samsung Galaxy S21+ 5G 256GB","SamsungGalaxyS21Plus5G256GB"]
[]
["Fairphone 3 Plus 64GB Black","Fairphone3Plus64GBBlack"]
[]
["Nokia 3310 3G DS","Nokia33103gds"]
[]
["Jablocom Essence GSM","JablocomEssencegsm"]
[]
["Router"]
["Huawei B535","HuaweiB535"]
["Huawei E3372","HuaweiE3372"]
["Huawei E5577","HuaweiE5577"]
["Huawei B2368 WTTx White","HuaweiB2368"]
[]
["Tablet"]
["Apple iPad Air 10 9 256GB","AppleiPadAir109256GB"]
["Apple iPad Air 10 9 64GB","AppleiPadAir10964GB"]
["Apple iPad 7th generation 32GB","iPad7thgeneration32GB"]
["iPad 8th gen 10.2 128GB","iPad8thgen102128GB"]
["iPad 8th gen 10.2 32GB","iPad8thgen10232GB"]
["Apple iPad Air 10.5 64GB","iPadAir10.564GB"]
["Apple iPad Air 10.5 256GB","iPadAir10.5256GB"]
["Apple iPad Pro 11.0 64GB","iPadPro11.064GB"]
["Apple iPad Pro 11.0 256GB","iPadPro11.0256GB"]
["Apple iPad 6th gen 32GB","iPad6thgen32GB"]
["Apple iPad 6th gen 128GB","iPad6thgen128GB"]
["iPad Pro 11.0 2nd gen 128GB","iPadPro11.02ndgen128GB"]
["iPad Pro 11.0 2nd gen 256GB","iPadPro11.02ndgen256GB"]
["iPad Pro 12.9 4th gen 128GB","iPadPro12.94thgen128GB"]
["iPad Pro 12.9 4th gen 256GB","iPadPro12.94thgen256GB"]
[]
["Samsung Galaxy Tab S6 128GB","GalaxyTabS6"]
["Samsung Galaxy Tab S7 LTE","SamsungGalaxyTabS7LTE"]
["Galaxy Tab Active 2 4G ","TabActive24G"]
[]
["Huawei Mediatab T3 32GB","HuaweiMediatabT332GB"]

{"sheet":"Navnestyring tilbehør","index":5,"n_rows":117,"n_cols":85,"rows_kept":117,"cut":false,"hidden":true,"merged":[]}
["Mobiler"]
["Apple iPhone 12 mini 64GB (OBS. UDEN OPLADER)","AppleiPhone12mini64GBCover","AppleiPhone12mini64GBpanserglas",null,"iPhone11Cover","Anummer","Lager","iPhone11procover","Anummer","Lager","iPhone11promaxcover","Anummer","Lager","iPhonexscover","Anummer","Lager","iPhonexsmaxcover","Anummer","Lager","iPhonexrcover","Anummer","Lager","iPhone8cover","Anummer","Lager","iPhone8pluscover","Anummer","Lager","iPhone7cover","Anummer","Lager","AppleiPhoneSE2ndgen128GBCover","Anummer","Lager","AppleiPhoneSE2ndgen256GBCover","Anummer","Lager","AppleiPhoneSE2ndgen64GBCover","Anummer","Lager","AppleiPhone12128GBCover","Anummer","Lager","AppleiPhone12256GBCover","Anummer","Lager","AppleiPhone1264GBCover","Anummer","Lager","AppleiPhone12Pro128GBCover","Anummer","Lager","AppleiPhone12Pro256GBCover","Anummer","Lager","AppleiPhone12Pro512GBCover","Anummer","Lager","AppleiPhone12mini64GBCover","Anummer","Lager","AppleiPhone12mini128GBCover","Anummer","Lager","AppleiPhone12mini256GBCover","Anummer","Lager","AppleiPhone12ProMax128GBCover","Anummer","Lager","AppleiPhone12ProMax256GBCover","Anummer","Lager","AppleiPhone12ProMax512GBCover","Anummer","Lager"]
["Apple iPhone 12 mini 128GB (OBS. UDEN OPLADER)","AppleiPhone12mini128GBCover","AppleiPhone12mini128GBpanserglas",null,{"$f":"IF(G3=0,\"Pt udsolgt\",IFERROR(_xlfn.XLOOKUP(F3,Tilbehør!$B:$B,Tilbehør!$A:$A),\"Findes ikke\"))","v":"Apple iPhone 11 Clear Case"},"A23250",{"$f":"IFERROR(VLOOKUP(F3,Lager!$A:$C,3,FALSE),0)","v":33},{"$f":"IF(J3=0,\"Pt udsolgt\",IFERROR(_xlfn.XLOOKUP(I3,Tilbehør!$B:$B,Tilbehør!$A:$A),\"Findes ikke\"))","v":"ON iPhone 11 MAX Pro TPU ULTRA THIN CLEAR"},"A23198",{"$f":"IFERROR(VLOOKUP(I3,Lager!$A:$C,3,FALSE),0)","v":26},{"$f":"IF(M3=0,\"Pt udsolgt\",IFERROR(_xlfn.XLOOKUP(L3,Tilbehør!$B:$B,Tilbehør!$A:$A),\"Findes ikke\"))","v":"ON iPhone 11 MAX Pro TPU ULTRA THIN CLEAR"},"A23198",{"$f":"IFERROR(VLOOKUP(L3,Lager!$A:$C,3,FALSE),0)","v":26},{"$f":"IF(P3=0,\"Pt udsolgt\",IFERROR(_xlfn.XLOOKUP(O3,Tilbehør!$B:$B,Tilbehør!$A:$A),\"Findes ikke\"))","v":"Pt udsolgt"},"A22982",{"$f":"IFERROR(VLOOKUP(O3,Lager!$A:$C,3,FALSE),0)","v":0},{"$f":"IF(S3=0,\"Pt udsolgt\",IFERROR(_xlfn.XLOOKUP(R3,Tilbehør!$B:$B,Tilbehør!$A:$A),\"Findes ikke\"))","v":"Apple iPhone XS Max Silicone Case Black"},"A22986",{"$f":"IFERROR(VLOOKUP(R3,Lager!$A:$C,3,FALSE),0)","v":351},{"$f":"IF(V3=0,\"Pt udsolgt\",IFERROR(_xlfn.XLOOKUP(U3,Tilbehør!$B:$B,Tilbehør!$A:$A),\"Findes ikke\"))","v":"ON IPHONE Xr TPU ULTRA THIN CLEAR"},"A22965",{"$f":"IFERROR(VLOOKUP(U3,Lager!$A:$C,3,FALSE),0)","v":11},{"$f":"IF(Y3=0,\"Pt udsolgt\",IFERROR(_xlfn.XLOOKUP(X3,Tilbehør!$B:$B,Tilbehør!$A:$A),\"Findes ikke\"))","v":"Apple iPhone 8 Plus 7 Plus Silicone Case White"},"A22509",{"$f":"IFERROR(VLOOKUP(X3,Lager!$A:$C,3,FALSE),0)","v":49},{"$f":"IF(AB3=0,\"Pt udsolgt\",IFERROR(_xlfn.XLOOKUP(AA3,Tilbehør!$B:$B,Tilbehør!$A:$A),\"Findes ikke\"))","v":"Apple iPhone 8 Plus  7 Plus Leather Case Midnight Blue"},"A22516",{"$f":"IFERROR(VLOOKUP(AA3,Lager!$A:$C,3,FALSE),0)","v":35},{"$f":"IF(AE3=0,\"Pt udsolgt\",IFERROR(_xlfn.XLOOKUP(AD3,Tilbehør!$B:$B,Tilbehør!$A:$A),\"Findes ikke\"))","v":"Apple iPhone 8 Plus 7 Plus Silicone Case White"},"A22509",{"$f":"IFERROR(VLOOKUP(AD3,Lager!$A:$C,3,FALSE),0)","v":49},{"$f":"IF(AH3=0,\"Pt udsolgt\",IFERROR(_xlfn.XLOOKUP(AG3,Tilbehør!$B:$B,Tilbehør!$A:$A),\"Findes ikke\"))","v":"Apple iPhone SE Silicone Case Black"},"A23747",{"$f":"IFERROR(VLOOKUP(AG3,Lager!$A:$C,3,FALSE),0)","v":61},{"$f":"IF(AK3=0,\"Pt udsolgt\",IFERROR(_xlfn.XLOOKUP(AJ3,Tilbehør!$B:$B,Tilbehør!$A:$A),\"Findes ikke\"))","v":"Apple iPhone SE Silicone Case Black"},"A23747",{"$f":"IFERROR(VLOOKUP(AJ3,Lager!$A:$C,3,FALSE),0)","v":61},{"$f":"IF(AN3=0,\"Pt udsolgt\",IFERROR(_xlfn.XLOOKUP(AM3,Tilbehør!$B:$B,Tilbehør!$A:$A),\"Findes ikke\"))","v":"Apple iPhone SE Silicone Case Black"},"A23747",{"$f":"IFERROR(VLOOKUP(AM3,Lager!$A:$C,3,FALSE),0)","v":61},{"$f":"IF(AQ3=0,\"Pt udsolgt\",IFERROR(_xlfn.XLOOKUP(AP3,Tilbehør!$B:$B,Tilbehør!$A:$A),\"Findes ikke\"))","v":"Apple iPhone 12 og 12 Pro Silicone MagSafe Cypress Green"},"A24279",{"$f":"IFERROR(VLOOKUP(AP3,Lager!$A:$C,3,FALSE),0)","v":121},{"$f":"IF(AT3=0,\"Pt udsolgt\",IFERROR(_xlfn.XLOOKUP(AS3,Tilbehør!$B:$B,Tilbehør!$A:$A),\"Findes ikke\"))","v":"Apple iPhone 12 og 12 Pro Silicone MagSafe Cypress Green"},"A24279",{"$f":"IFERROR(VLOOKUP(AS3,Lager!$A:$C,3,FALSE),0)","v":121},{"$f":"IF(AW3=0,\"Pt udsolgt\",IFERROR(_xlfn.XLOOKUP(AV3,Tilbehør!$B:$B,Tilbehør!$A:$A),\"Findes ikke\"))","v":"Apple iPhone 12 og 12 Pro Silicone MagSafe Cypress Green"},"A24279",{"$f":"IFERROR(VLOOKUP(AV3,Lager!$A:$C,3,FALSE),0)","v":121},{"$f":"IF(AZ3=0,\"Pt udsolgt\",IFERROR(_xlfn.XLOOKUP(AY3,Tilbehør!$B:$B,Tilbehør!$A:$A),\"Findes ikke\"))","v":"Apple iPhone 12 og 12 Pro Silicone MagSafe Cypress Green"},"A24279",{"$f":"IFERROR(VLOOKUP(AY3,Lager!$A:$C,3,FALSE),0)","v":121},{"$f":"IF(BC3=0,\"Pt udsolgt\",IFERROR(_xlfn.XLOOKUP(BB3,Tilbehør!$B:$B,Tilbehør!$A:$A),\"Findes ikke\"))","v":"Apple iPhone 12 og 12 Pro Silicone MagSafe Cypress Green"},"A24279",{"$f":"IFERROR(VLOOKUP(BB3,Lager!$A:$C,3,FALSE),0)","v":121},{"$f":"IF(BF3=0,\"Pt udsolgt\",IFERROR(_xlfn.XLOOKUP(BE3,Tilbehør!$B:$B,Tilbehør!$A:$A),\"Findes ikke\"))","v":"Apple iPhone 12 og 12 Pro Silicone MagSafe Cypress Green"},"A24279",{"$f":"IFERROR(VLOOKUP(BE3,Lager!$A:$C,3,FALSE),0)","v":121},{"$f":"IF(BI3=0,\"Pt udsolgt\",IFERROR(_xlfn.XLOOKUP(BH3,Tilbehør!$B:$B,Tilbehør!$A:$A),\"Findes ikke\"))","v":"Apple iPhone 12 mini Leather MagSafe Baltic Blue"},"A24265",{"$f":"IFERROR(VLOOKUP(BH3,Lager!$A:$C,3,FALSE),0)","v":10},{"$f":"IF(BL3=0,\"Pt udsolgt\",IFERROR(_xlfn.XLOOKUP(BK3,Tilbehør!$B:$B,Tilbehør!$A:$A),\"Findes ikke\"))","v":"Apple iPhone 12 mini Leather MagSafe Baltic Blue"},"A24265",{"$f":"IFERROR(VLOOKUP(BK3,Lager!$A:$C,3,FALSE),0)","v":10},{"$f":"IF(BO3=0,\"Pt udsolgt\",IFERROR(_xlfn.XLOOKUP(BN3,Tilbehør!$B:$B,Tilbehør!$A:$A),\"Findes ikke\"))","v":"Apple iPhone 12 mini Leather MagSafe Baltic Blue"},"A24265",{"$f":"IFERROR(VLOOKUP(BN3,Lager!$A:$C,3,FALSE),0)","v":10},{"$f":"IF(BR3=0,\"Pt udsolgt\",IFERROR(_xlfn.XLOOKUP(BQ3,Tilbehør!$B:$B,Tilbehør!$A:$A),\"Findes ikke\"))","v":"Apple iPhone 12 Pro Max Leather MagSafe Baltic Blue"},"A24271",{"$f":"IFERROR(VLOOKUP(BQ3,Lager!$A:$C,3,FALSE),0)","v":11},{"$f":"IF(BU3=0,\"Pt udsolgt\",IFERROR(_xlfn.XLOOKUP(BT3,Tilbehør!$B:$B,Tilbehør!$A:$A),\"Findes ikke\"))","v":"Apple iPhone 12 Pro Max Leather MagSafe Baltic Blue"},"A24271",{"$f":"IFERROR(VLOOKUP(BT3,Lager!$A:$C,3,FALSE),0)","v":11},{"$f":"IF(BX3=0,\"Pt udsolgt\",IFERROR(_xlfn.XLOOKUP(BW3,Tilbehør!$B:$B,Tilbehør!$A:$A),\"Findes ikke\"))","v":"Apple iPhone 12 Pro Max Leather MagSafe Baltic Blue"},"A24271",{"$f":"IFERROR(VLOOKUP(BW3,Lager!$A:$C,3,FALSE),0)","v":11}]
["Apple iPhone 12 mini 256GB (OBS. UDEN OPLADER)","AppleiPhone12mini256GBCover","AppleiPhone12mini256GBpanserglas",null,{"$f":"IF(G4=0,\"Pt udsolgt\",IFERROR(_xlfn.XLOOKUP(F4,Tilbehør!B:B,Tilbehør!A:A),\"Findes ikke\"))","v":"ON IPHONE iPhone 11 Premium Silicone BLACK"},"A23199",{"$f":"IFERROR(VLOOKUP(F4,Lager!$A:$C,3,FALSE),0)","v":44},{"$f":"IF(J4=0,\"Pt udsolgt\",IFERROR(_xlfn.XLOOKUP(I4,Tilbehør!$B:$B,Tilbehør!$A:$A),\"Findes ikke\"))","v":"Apple iPhone 11 Pro Clear Case"},"A23253",{"$f":"IFERROR(VLOOKUP(I4,Lager!$A:$C,3,FALSE),0)","v":36},{"$f":"IF(M4=0,\"Pt udsolgt\",IFERROR(_xlfn.XLOOKUP(L4,Tilbehør!$B:$B,Tilbehør!$A:$A),\"Findes ikke\"))","v":"Apple iPhone 11 Pro Max Clear Case"},"A23259",{"$f":"IFERROR(VLOOKUP(L4,Lager!$A:$C,3,FALSE),0)","v":121},null,null,null,{"$f":"IF(S4=0,\"Pt udsolgt\",IFERROR(_xlfn.XLOOKUP(R4,Tilbehør!$B:$B,Tilbehør!$A:$A),\"Findes ikke\"))","v":"Apple iPhone XS Max Silicone Case Pink Sand"},"A22987",{"$f":"IFERROR(VLOOKUP(R4,Lager!$A:$C,3,FALSE),0)","v":145},{"$f":"IF(V4=0,\"Pt udsolgt\",IFERROR(_xlfn.XLOOKUP(U4,Tilbehør!$B:$B,Tilbehør!$A:$A),\"Findes ikke\"))","v":"Dbramante 1928 Tune iPhone Xr Black"},"A22943",{"$f":"IFERROR(VLOOKUP(U4,Lager!$A:$C,3,FALSE),0)","v":69},{"$f":"IF(Y4=0,\"Pt udsolgt\",IFERROR(_xlfn.XLOOKUP(X3,Tilbehør!$B:$B,Tilbehør!$A:$A),\"Findes ikke\"))","v":"Pt udsolgt"},"A22774",{"$f":"IFERROR(VLOOKUP(X4,Lager!$A:$C,3,FALSE),0)","v":0},{"$f":"IF(AB4=0,\"Pt udsolgt\",IFERROR(_xlfn.XLOOKUP(AA4,Tilbehør!$B:$B,Tilbehør!$A:$A),\"Findes ikke\"))","v":"Apple iPhone 8 Plus 7 Plus Silicone Case Midnight Blue"},"A22510",{"$f":"IFERROR(VLOOKUP(AA4,Lager!$A:$C,3,FALSE),0)","v":57},{"$f":"IF(AE4=0,\"Pt udsolgt\",IFERROR(_xlfn.XLOOKUP(AD4,Tilbehør!$B:$B,Tilbehør!$A:$A),\"Findes ikke\"))","v":"Pt udsolgt"},"A22774",{"$f":"IFERROR(VLOOKUP(AD4,Lager!A:C,3,FALSE),0)","v":0},{"$f":"IF(AH4=0,\"Pt udsolgt\",IFERROR(_xlfn.XLOOKUP(AG4,Tilbehør!$B:$B,Tilbehør!$A:$A),\"Findes ikke\"))","v":"Apple iPhone SE Leather Black"},"A23749",{"$f":"IFERROR(VLOOKUP(AG4,Lager!$A:$C,3,FALSE),0)","v":5},{"$f":"IF(AK4=0,\"Pt udsolgt\",IFERROR(_xlfn.XLOOKUP(AJ4,Tilbehør!$B:$B,Tilbehør!$A:$A),\"Findes ikke\"))","v":"Apple iPhone SE Leather Black"},"A23749",{"$f":"IFERROR(VLOOKUP(AJ4,Lager!$A:$C,3,FALSE),0)","v":5},{"$f":"IF(AN4=0,\"Pt udsolgt\",IFERROR(_xlfn.XLOOKUP(AM4,Tilbehør!$B:$B,Tilbehør!$A:$A),\"Findes ikke\"))","v":"Apple iPhone SE Leather Black"},"A23749",{"$f":"IFERROR(VLOOKUP(AM4,Lager!$A:$C,3,FALSE),0)","v":5},{"$f":"IF(AQ4=0,\"Pt udsolgt\",IFERROR(_xlfn.XLOOKUP(AP4,Tilbehør!$B:$B,Tilbehør!$A:$A),\"Findes ikke\"))","v":"Apple iPhone 12 og 12 Pro Silicone MagSafe Plum"},"A24278",{"$f":"IFERROR(VLOOKUP(AP4,Lager!$A:$C,3,FALSE),0)","v":20},{"$f":"IF(AT4=0,\"Pt udsolgt\",IFERROR(_xlfn.XLOOKUP(AS4,Tilbehør!$B:$B,Tilbehør!$A:$A),\"Findes ikke\"))","v":"Apple iPhone 12 og 12 Pro Silicone MagSafe Plum"},"A24278",{"$f":"IFERROR(VLOOKUP(AS4,Lager!$A:$C,3,FALSE),0)","v":20},{"$f":"IF(AW4=0,\"Pt udsolgt\",IFERROR(_xlfn.XLOOKUP(AV4,Tilbehør!$B:$B,Tilbehør!$A:$A),\"Findes ikke\"))","v":"Apple iPhone 12 og 12 Pro Silicone MagSafe Plum"},"A24278",{"$f":"IFERROR(VLOOKUP(AV4,Lager!$A:$C,3,FALSE),0)","v":20},{"$f":"IF(AZ4=0,\"Pt udsolgt\",IFERROR(_xlfn.XLOOKUP(AY4,Tilbehør!$B:$B,Tilbehør!$A:$A),\"Findes ikke\"))","v":"Apple iPhone 12 og 12 Pro Silicone MagSafe Plum"},"A24278",{"$f":"IFERROR(VLOOKUP(AY4,Lager!$A:$C,3,FALSE),0)","v":20},{"$f":"IF(BC4=0,\"Pt udsolgt\",IFERROR(_xlfn.XLOOKUP(BB4,Tilbehør!$B:$B,Tilbehør!$A:$A),\"Findes ikke\"))","v":"Apple iPhone 12 og 12 Pro Silicone MagSafe Plum"},"A24278",{"$f":"IFERROR(VLOOKUP(BB4,Lager!$A:$C,3,FALSE),0)","v":20},{"$f":"IF(BF4=0,\"Pt udsolgt\",IFERROR(_xlfn.XLOOKUP(BE4,Tilbehør!$B:$B,Tilbehør!$A:$A),\"Findes ikke\"))","v":"Apple iPhone 12 og 12 Pro Silicone MagSafe Plum"},"A24278",{"$f":"IFERROR(VLOOKUP(BE4,Lager!$A:$C,3,FALSE),0)","v":20},{"$f":"IF(BI4=0,\"Pt udsolgt\",IFERROR(_xlfn.XLOOKUP(BH4,Tilbehør!$B:$B,Tilbehør!$A:$A),\"Findes ikke\"))","v":"Apple iPhone 12 mini Leather MagSafe Saddle Brown"},"A24266",{"$f":"IFERROR(VLOOKUP(BH4,Lager!$A:$C,3,FALSE),0)","v":40},{"$f":"IF(BL4=0,\"Pt udsolgt\",IFERROR(_xlfn.XLOOKUP(BK4,Tilbehør!$B:$B,Tilbehør!$A:$A),\"Findes ikke\"))","v":"Apple iPhone 12 mini Leather MagSafe Saddle Brown"},"A24266",{"$f":"IFERROR(VLOOKUP(BK4,Lager!$A:$C,3,FALSE),0)","v":40},{"$f":"IF(BO4=0,\"Pt udsolgt\",IFERROR(_xlfn.XLOOKUP(BN4,Tilbehør!$B:$B,Tilbehør!$A:$A),\"Findes ikke\"))","v":"Apple iPhone 12 mini Leather MagSafe Saddle Brown"},"A24266",{"$f":"IFERROR(VLOOKUP(BN4,Lager!$A:$C,3,FALSE),0)","v":40},{"$f":"IF(BR4=0,\"Pt udsolgt\",IFERROR(_xlfn.XLOOKUP(BQ4,Tilbehør!$B:$B,Tilbehør!$A:$A),\"Findes ikke\"))","v":"Apple iPhone 12 Pro Max Leather MagSafe Saddle Brown"},"A24272",{"$f":"IFERROR(VLOOKUP(BQ4,Lager!$A:$C,3,FALSE),0)","v":40},{"$f":"IF(BU4=0,\"Pt udsolgt\",IFERROR(_xlfn.XLOOKUP(BT4,Tilbehør!$B:$B,Tilbehør!$A:$A),\"Findes ikke\"))","v":"Apple iPhone 12 Pro Max Leather MagSafe Saddle Brown"},"A24272",{"$f":"IFERROR(VLOOKUP(BT4,Lager!$A:$C,3,FALSE),0)","v":40},{"$f":"IF(BX4=0,\"Pt udsolgt\",IFERROR(_xlfn.XLOOKUP(BW4,Tilbehør!$B:$B,Tilbehør!$A:$A),\"Findes ikke\"))","v":"Apple iPhone 12 Pro Max Leather MagSafe Saddle Brown"},"A24272",{"$f":"IFERROR(VLOOKUP(BW4,Lager!$A:$C,3,FALSE),0)","v":40}]
["Apple iPhone 12 64GB (OBS. UDEN OPLADER)","AppleiPhone12128GBCover","AppleiPhone12128GBPanserglas",null,{"$f":"IF(G5=0,\"Pt udsolgt\",IFERROR(_xlfn.XLOOKUP(F5,Tilbehør!B:B,Tilbehør!A:A),\"Findes ikke\"))","v":"ON iPhone 11 TPU ULTRA THIN CLEAR"},"A23196",{"$f":"IFERROR(VLOOKUP(F5,Lager!$A:$C,3,FALSE),0)","v":174},{"$f":"IF(J5=0,\"Pt udsolgt\",IFERROR(_xlfn.XLOOKUP(I5,Tilbehør!$B:$B,Tilbehør!$A:$A),\"Findes ikke\"))","v":"Apple iPhone 11 Pro Leather Case  Black"},"A23252",{"$f":"IFERROR(VLOOKUP(I5,Lager!$A:$C,3,FALSE),0)","v":44},{"$f":"IF(M5=0,\"Pt udsolgt\",IFERROR(_xlfn.XLOOKUP(L5,Tilbehør!$B:$B,Tilbehør!$A:$A),\"Findes ikke\"))","v":"Apple iPhone 11 Pro Max Silicone Case  Black"},"A23257",{"$f":"IFERROR(VLOOKUP(L5,Lager!$A:$C,3,FALSE),0)","v":8},null,null,null,{"$f":"IF(S5=0,\"Pt udsolgt\",IFERROR(_xlfn.XLOOKUP(R5,Tilbehør!$B:$B,Tilbehør!$A:$A),\"Findes ikke\"))","v":"Apple iPhone XS Max Leather Folio Black"},"A22985",{"$f":"IFERROR(VLOOKUP(R5,Lager!$A:$C,3,FALSE),0)","v":80},null,null,null,null,null,null,{"$f":"IF(AB5=0,\"Pt udsolgt\",IFERROR(_xlfn.XLOOKUP(AA5,Tilbehør!$B:$B,Tilbehør!$A:$A),\"Findes ikke\"))","v":"Pt udsolgt"},"A21614",{"$f":"IFERROR(VLOOKUP(AA5,Lager!$A:$C,3,FALSE),0)","v":0},null,null,null,{"$f":"IF(AH5=0,\"Pt udsolgt\",IFERROR(_xlfn.XLOOKUP(AG5,Tilbehør!$B:$B,Tilbehør!$A:$A),\"Findes ikke\"))","v":"Apple iPhone SE Silicone Case Pink Sand"},"A23748",{"$f":"IFERROR(VLOOKUP(AG5,Lager!$A:$C,3,FALSE),0)","v":2},{"$f":"IF(AK5=0,\"Pt udsolgt\",IFERROR(_xlfn.XLOOKUP(#REF!,Tilbehør!$B:$B,Tilbehør!$A:$A),\"Findes ikke\"))","v":"Pt udsolgt"},"A23748",{"$f":"IFERROR(VLOOKUP(#REF!,Lager!$A:$C,3,FALSE),0)","v":0},{"$f":"IF(AN5=0,\"Pt udsolgt\",IFERROR(_xlfn.XLOOKUP(#REF!,Tilbehør!$B:$B,Tilbehør!$A:$A),\"Findes ikke\"))","v":"Pt udsolgt"},"A23748",{"$f":"IFERROR(VLOOKUP(#REF!,Lager!$A:$C,3,FALSE),0)","v":0},{"$f":"IF(AQ5=0,\"Pt udsolgt\",IFERROR(_xlfn.XLOOKUP(AP5,Tilbehør!$B:$B,Tilbehør!$A:$A),\"Findes ikke\"))","v":"Dbramante Barcelona iPhone 12 og 12 pro Night Black"},"A23965",{"$f":"IFERROR(VLOOKUP(AP5,Lager!$A:$C,3,FALSE),0)","v":57},{"$f":"IF(AT5=0,\"Pt udsolgt\",IFERROR(_xlfn.XLOOKUP(AS5,Tilbehør!$B:$B,Tilbehør!$A:$A),\"Findes ikke\"))","v":"Dbramante Barcelona iPhone 12 og 12 pro Night Black"},"A23965",{"$f":"IFERROR(VLOOKUP(AS5,Lager!$A:$C,3,FALSE),0)","v":57},{"$f":"IF(AW5=0,\"Pt udsolgt\",IFERROR(_xlfn.XLOOKUP(AV5,Tilbehør!$B:$B,Tilbehør!$A:$A),\"Findes ikke\"))","v":"Dbramante Barcelona iPhone 12 og 12 pro Night Black"},"A23965",{"$f":"IFERROR(VLOOKUP(AV5,Lager!$A:$C,3,FALSE),0)","v":57},{"$f":"IF(AZ5=0,\"Pt udsolgt\",IFERROR(_xlfn.XLOOKUP(AY5,Tilbehør!$B:$B,Tilbehør!$A:$A),\"Findes ikke\"))","v":"Dbramante Barcelona iPhone 12 og 12 pro Night Black"},"A23965",{"$f":"IFERROR(VLOOKUP(AY5,Lager!$A:$C,3,FALSE),0)","v":57},{"$f":"IF(BC5=0,\"Pt udsolgt\",IFERROR(_xlfn.XLOOKUP(BB5,Tilbehør!$B:$B,Tilbehør!$A:$A),\"Findes ikke\"))","v":"Dbramante Barcelona iPhone 12 og 12 pro Night Black"},"A23965",{"$f":"IFERROR(VLOOKUP(BB5,Lager!$A:$C,3,FALSE),0)","v":57},{"$f":"IF(BF5=0,\"Pt udsolgt\",IFERROR(_xlfn.XLOOKUP(BE5,Tilbehør!$B:$B,Tilbehør!$A:$A),\"Findes ikke\"))","v":"Dbramante Barcelona iPhone 12 og 12 pro Night Black"},"A23965",{"$f":"IFERROR(VLOOKUP(BE5,Lager!$A:$C,3,FALSE),0)","v":57},{"$f":"IF(BI5=0,\"Pt udsolgt\",IFERROR(_xlfn.XLOOKUP(BH5,Tilbehør!$B:$B,Tilbehør!$A:$A),\"Findes ikke\"))","v":"Apple iPhone 12 mini Leather MagSafe Black"},"A24267",{"$f":"IFERROR(VLOOKUP(BH5,Lager!$A:$C,3,FALSE),0)","v":67},{"$f":"IF(BL5=0,\"Pt udsolgt\",IFERROR(_xlfn.XLOOKUP(BK5,Tilbehør!$B:$B,Tilbehør!$A:$A),\"Findes ikke\"))","v":"Apple iPhone 12 mini Leather MagSafe Black"},"A24267",{"$f":"IFERROR(VLOOKUP(BK5,Lager!$A:$C,3,FALSE),0)","v":67},{"$f":"IF(BO5=0,\"Pt udsolgt\",IFERROR(_xlfn.XLOOKUP(BN5,Tilbehør!$B:$B,Tilbehør!$A:$A),\"Findes ikke\"))","v":"Apple iPhone 12 mini Leather MagSafe Black"},"A24267",{"$f":"IFERROR(VLOOKUP(BN5,Lager!$A:$C,3,FALSE),0)","v":67},{"$f":"IF(BR5=0,\"Pt udsolgt\",IFERROR(_xlfn.XLOOKUP(BQ5,Tilbehør!$B:$B,Tilbehør!$A:$A),\"Findes ikke\"))","v":"Apple iPhone 12 Pro Max Leather MagSafe Black"},"A24273",{"$f":"IFERROR(VLOOKUP(BQ5,Lager!$A:$C,3,FALSE),0)","v":73},{"$f":"IF(BU5=0,\"Pt udsolgt\",IFERROR(_xlfn.XLOOKUP(BT5,Tilbehør!$B:$B,Tilbehør!$A:$A),\"Findes ikke\"))","v":"Apple iPhone 12 Pro Max Leather MagSafe Black"},"A24273",{"$f":"IFERROR(VLOOKUP(BT5,Lager!$A:$C,3,FALSE),0)","v":73},{"$f":"IF(BX5=0,\"Pt udsolgt\",IFERROR(_xlfn.XLOOKUP(BW5,Tilbehør!$B:$B,Tilbehør!$A:$A),\"Findes ikke\"))","v":"Apple iPhone 12 Pro Max Leather MagSafe Black"},"A24273",{"$f":"IFERROR(VLOOKUP(BW5,Lager!$A:$C,3,FALSE),0)","v":73}]
["Apple iPhone 12 128GB (OBS. UDEN OPLADER)","AppleiPhone12256GBCover","AppleiPhone12256GBPanserglas",null,{"$f":"IF(G6=0,\"Pt udsolgt\",IFERROR(_xlfn.XLOOKUP(F6,Tilbehør!B:B,Tilbehør!A:A),\"Findes ikke\"))","v":"DBRAMANTE 1928 LYNGE iPhone 11 BLACK"},"A23207",{"$f":"IFERROR(VLOOKUP(F6,Lager!$A:$C,3,FALSE),0)","v":5},{"$f":"IF(J6=0,\"Pt udsolgt\",IFERROR(_xlfn.XLOOKUP(I6,Tilbehør!$B:$B,Tilbehør!$A:$A),\"Findes ikke\"))","v":"Apple iPhone 11 Pro Silicone Case  Black"},"A23256",{"$f":"IFERROR(VLOOKUP(I6,Lager!$A:$C,3,FALSE),0)","v":20},{"$f":"IF(M6=0,\"Pt udsolgt\",IFERROR(_xlfn.XLOOKUP(L6,Tilbehør!$B:$B,Tilbehør!$A:$A),\"Findes ikke\"))","v":"Apple iPhone 11 Pro Max Leather Case  Black"},"A23258",{"$f":"IFERROR(VLOOKUP(L6,Lager!$A:$C,3,FALSE),0)","v":2},null,null,null,{"$f":"IF(S6=0,\"Pt udsolgt\",IFERROR(_xlfn.XLOOKUP(R6,Tilbehør!$B:$B,Tilbehør!$A:$A),\"Findes ikke\"))","v":"Apple iPhone XS Max Leather Case Black"},"A22984",{"$f":"IFERROR(VLOOKUP(R6,Lager!$A:$C,3,FALSE),0)","v":221},null,null,null,null,null,null,{"$f":"IF(AB6=0,\"Pt udsolgt\",IFERROR(_xlfn.XLOOKUP(AA6,Tilbehør!$B:$B,Tilbehør!$A:$A),\"Findes ikke\"))","v":"Pt udsolgt"},"A21622",{"$f":"IFERROR(VLOOKUP(AA6,Lager!$A:$C,3,FALSE),0)","v":0},null,null,null,null,null,null,null,null,null,null,null,null,{"$f":"IF(AQ6=0,\"Pt udsolgt\",IFERROR(_xlfn.XLOOKUP(AP6,Tilbehør!$B:$B,Tilbehør!$A:$A),\"Findes ikke\"))","v":"Apple iPhone 12 og 12 Pro Silicone MagSafe Black"},"A24281",{"$f":"IFERROR(VLOOKUP(AP6,Lager!$A:$C,3,FALSE),0)","v":32},{"$f":"IF(AT6=0,\"Pt udsolgt\",IFERROR(_xlfn.XLOOKUP(AS6,Tilbehør!$B:$B,Tilbehør!$A:$A),\"Findes ikke\"))","v":"Apple iPhone 12 og 12 Pro Silicone MagSafe Black"},"A24281",{"$f":"IFERROR(VLOOKUP(AS6,Lager!$A:$C,3,FALSE),0)","v":32},{"$f":"IF(AW6=0,\"Pt udsolgt\",IFERROR(_xlfn.XLOOKUP(AV6,Tilbehør!$B:$B,Tilbehør!$A:$A),\"Findes ikke\"))","v":"Apple iPhone 12 og 12 Pro Silicone MagSafe Black"},"A24281",{"$f":"IFERROR(VLOOKUP(AV6,Lager!$A:$C,3,FALSE),0)","v":32},{"$f":"IF(AZ6=0,\"Pt udsolgt\",IFERROR(_xlfn.XLOOKUP(AY6,Tilbehør!$B:$B,Tilbehør!$A:$A),\"Findes ikke\"))","v":"Apple iPhone 12 og 12 Pro Silicone MagSafe Black"},"A24281",{"$f":"IFERROR(VLOOKUP(AY6,Lager!$A:$C,3,FALSE),0)","v":32},{"$f":"IF(BC6=0,\"Pt udsolgt\",IFERROR(_xlfn.XLOOKUP(BB6,Tilbehør!$B:$B,Tilbehør!$A:$A),\"Findes ikke\"))","v":"Apple iPhone 12 og 12 Pro Silicone MagSafe Black"},"A24281",{"$f":"IFERROR(VLOOKUP(BB6,Lager!$A:$C,3,FALSE),0)","v":32},{"$f":"IF(BF6=0,\"Pt udsolgt\",IFERROR(_xlfn.XLOOKUP(BE6,Tilbehør!$B:$B,Tilbehør!$A:$A),\"Findes ikke\"))","v":"Apple iPhone 12 og 12 Pro Silicone MagSafe Black"},"A24281",{"$f":"IFERROR(VLOOKUP(BE6,Lager!$A:$C,3,FALSE),0)","v":32},{"$f":"IF(BI6=0,\"Pt udsolgt\",IFERROR(_xlfn.XLOOKUP(BH6,Tilbehør!$B:$B,Tilbehør!$A:$A),\"Findes ikke\"))","v":"Apple iPhone 12 mini Silicone MagSafe Plum"},"A24274",{"$f":"IFERROR(VLOOKUP(BH6,Lager!$A:$C,3,FALSE),0)","v":39},{"$f":"IF(BL6=0,\"Pt udsolgt\",IFERROR(_xlfn.XLOOKUP(BK6,Tilbehør!$B:$B,Tilbehør!$A:$A),\"Findes ikke\"))","v":"Apple iPhone 12 mini Silicone MagSafe Plum"},"A24274",{"$f":"IFERROR(VLOOKUP(BK6,Lager!$A:$C,3,FALSE),0)","v":39},{"$f":"IF(BO6=0,\"Pt udsolgt\",IFERROR(_xlfn.XLOOKUP(BN6,Tilbehør!$B:$B,Tilbehør!$A:$A),\"Findes ikke\"))","v":"Apple iPhone 12 mini Silicone MagSafe Plum"},"A24274",{"$f":"IFERROR(VLOOKUP(BN6,Lager!$A:$C,3,FALSE),0)","v":39},{"$f":"IF(BR6=0,\"Pt udsolgt\",IFERROR(_xlfn.XLOOKUP(BQ6,Tilbehør!$B:$B,Tilbehør!$A:$A),\"Findes ikke\"))","v":"Apple iPhone 12 Pro Max Silicone MagSafe Plum"},"A24282",{"$f":"IFERROR(VLOOKUP(BQ6,Lager!$A:$C,3,FALSE),0)","v":30},{"$f":"IF(BU6=0,\"Pt udsolgt\",IFERROR(_xlfn.XLOOKUP(BT6,Tilbehør!$B:$B,Tilbehør!$A:$A),\"Findes ikke\"))","v":"Apple iPhone 12 Pro Max Silicone MagSafe Plum"},"A24282",{"$f":"IFERROR(VLOOKUP(BT6,Lager!$A:$C,3,FALSE),0)","v":30},{"$f":"IF(BX6=0,\"Pt udsolgt\",IFERROR(_xlfn.XLOOKUP(BW6,Tilbehør!$B:$B,Tilbehør!$A:$A),\"Findes ikke\"))","v":"Apple iPhone 12 Pro Max Silicone MagSafe Plum"},"A24282",{"$f":"IFERROR(VLOOKUP(BW6,Lager!$A:$C,3,FALSE),0)","v":30}]
["Apple iPhone 12 256GB (OBS. UDEN OPLADER)","AppleiPhone1264GBCover","AppleiPhone1264GBPanserglas",null,{"$f":"IF(G7=0,\"Pt udsolgt\",IFERROR(_xlfn.XLOOKUP(F7,Tilbehør!B:B,Tilbehør!A:A),\"Findes ikke\"))","v":"DBRAMANTE 1928 Herning iPhone 11 Pro Black"},"A23208",{"$f":"IFERROR(VLOOKUP(F7,Lager!$A:$C,3,FALSE),0)","v":73},{"$f":"IF(J7=0,\"Pt udsolgt\",IFERROR(_xlfn.XLOOKUP(I7,Tilbehør!$B:$B,Tilbehør!$A:$A),\"Findes ikke\"))","v":"Apple iPhone 11 Pro Silicone Case  White"},"A23254",{"$f":"IFERROR(VLOOKUP(I7,Lager!$A:$C,3,FALSE),0)","v":53},{"$f":"IF(M7=0,\"Pt udsolgt\",IFERROR(_xlfn.XLOOKUP(L7,Tilbehør!$B:$B,Tilbehør!$A:$A),\"Findes ikke\"))","v":"ON IPHONE 11 MAX Pro Premium Silicone BLACK"},"A23201",{"$f":"IFERROR(VLOOKUP(L7,Lager!$A:$C,3,FALSE),0)","v":12},null,null,null,{"$f":"IF(S7=0,\"Pt udsolgt\",IFERROR(_xlfn.XLOOKUP(R7,Tilbehør!$B:$B,Tilbehør!$A:$A),\"Findes ikke\"))","v":"Pt udsolgt"},"A22942",{"$f":"IFERROR(VLOOKUP(R7,Lager!$A:$C,3,FALSE),0)","v":0},null,null,null,null,null,null,{"$f":"IF(AB7=0,\"Pt udsolgt\",IFERROR(_xlfn.XLOOKUP(AA7,Tilbehør!$B:$B,Tilbehør!$A:$A),\"Findes ikke\"))","v":"Pt udsolgt"},"A21620",{"$f":"IFERROR(VLOOKUP(AA7,Lager!$A:$C,3,FALSE),0)","v":0},null,null,null,null,null,null,null,null,null,null,null,null,{"$f":"IF(AQ7=0,\"Pt udsolgt\",IFERROR(_xlfn.XLOOKUP(AP7,Tilbehør!$B:$B,Tilbehør!$A:$A),\"Findes ikke\"))","v":"Dbramante Lynge iPhone 12 og 12 pro Black"},"A23949",{"$f":"IFERROR(VLOOKUP(AP7,Lager!$A:$C,3,FALSE),0)","v":4},{"$f":"IF(AT7=0,\"Pt udsolgt\",IFERROR(_xlfn.XLOOKUP(AS7,Tilbehør!$B:$B,Tilbehør!$A:$A),\"Findes ikke\"))","v":"Dbramante Lynge iPhone 12 og 12 pro Black"},"A23949",{"$f":"IFERROR(VLOOKUP(AS7,Lager!$A:$C,3,FALSE),0)","v":4},{"$f":"IF(AW7=0,\"Pt udsolgt\",IFERROR(_xlfn.XLOOKUP(AV7,Tilbehør!$B:$B,Tilbehør!$A:$A),\"Findes ikke\"))","v":"Dbramante Lynge iPhone 12 og 12 pro Black"},"A23949",{"$f":"IFERROR(VLOOKUP(AV7,Lager!$A:$C,3,FALSE),0)","v":4},{"$f":"IF(AZ7=0,\"Pt udsolgt\",IFERROR(_xlfn.XLOOKUP(AY7,Tilbehør!$B:$B,Tilbehør!$A:$A),\"Findes ikke\"))","v":"Dbramante Lynge iPhone 12 og 12 pro Black"},"A23949",{"$f":"IFERROR(VLOOKUP(AY7,Lager!$A:$C,3,FALSE),0)","v":4},{"$f":"IF(BC7=0,\"Pt udsolgt\",IFERROR(_xlfn.XLOOKUP(BB7,Tilbehør!$B:$B,Tilbehør!$A:$A),\"Findes ikke\"))","v":"Dbramante Lynge iPhone 12 og 12 pro Black"},"A23949",{"$f":"IFERROR(VLOOKUP(BB7,Lager!$A:$C,3,FALSE),0)","v":4},{"$f":"IF(BF7=0,\"Pt udsolgt\",IFERROR(_xlfn.XLOOKUP(BE7,Tilbehør!$B:$B,Tilbehør!$A:$A),\"Findes ikke\"))","v":"Dbramante Lynge iPhone 12 og 12 pro Black"},"A23949",{"$f":"IFERROR(VLOOKUP(BE7,Lager!$A:$C,3,FALSE),0)","v":4},{"$f":"IF(BI7=0,\"Pt udsolgt\",IFERROR(_xlfn.XLOOKUP(BH7,Tilbehør!$B:$B,Tilbehør!$A:$A),\"Findes ikke\"))","v":"Apple iPhone 12 mini Silicone MagSafe Cypress Green"},"A24275",{"$f":"IFERROR(VLOOKUP(BH7,Lager!$A:$C,3,FALSE),0)","v":179},{"$f":"IF(BL7=0,\"Pt udsolgt\",IFERROR(_xlfn.XLOOKUP(BK7,Tilbehør!$B:$B,Tilbehør!$A:$A),\"Findes ikke\"))","v":"Apple iPhone 12 mini Silicone MagSafe Cypress Green"},"A24275",{"$f":"IFERROR(VLOOKUP(BK7,Lager!$A:$C,3,FALSE),0)","v":179},{"$f":"IF(BO7=0,\"Pt udsolgt\",IFERROR(_xlfn.XLOOKUP(BN7,Tilbehør!$B:$B,Tilbehør!$A:$A),\"Findes ikke\"))","v":"Apple iPhone 12 mini Silicone MagSafe Cypress Green"},"A24275",{"$f":"IFERROR(VLOOKUP(BN7,Lager!$A:$C,3,FALSE),0)","v":179},{"$f":"IF(BR7=0,\"Pt udsolgt\",IFERROR(_xlfn.XLOOKUP(BQ7,Tilbehør!$B:$B,Tilbehør!$A:$A),\"Findes ikke\"))","v":"Apple iPhone 12 Pro Max Silicone MagSafe Cypress Green"},"A24283",{"$f":"IFERROR(VLOOKUP(BQ7,Lager!$A:$C,3,FALSE),0)","v":189},{"$f":"IF(BU7=0,\"Pt udsolgt\",IFERROR(_xlfn.XLOOKUP(BT7,Tilbehør!$B:$B,Tilbehør!$A:$A),\"Findes ikke\"))","v":"Apple iPhone 12 Pro Max Silicone MagSafe Cypress Green"},"A24283",{"$f":"IFERROR(VLOOKUP(BT7,Lager!$A:$C,3,FALSE),0)","v":189},{"$f":"IF(BX7=0,\"Pt udsolgt\",IFERROR(_xlfn.XLOOKUP(BW7,Tilbehør!$B:$B,Tilbehør!$A:$A),\"Findes ikke\"))","v":"Apple iPhone 12 Pro Max Silicone MagSafe Cypress Green"},"A24283",{"$f":"IFERROR(VLOOKUP(BW7,Lager!$A:$C,3,FALSE),0)","v":189}]
["Apple iPhone 12 Pro 128GB (OBS. UDEN OPLADER)","AppleiPhone12Pro128GBCover","AppleiPhone12Pro128GBPanserglas",null,{"$f":"IF(G8=0,\"Pt udsolgt\",IFERROR(_xlfn.XLOOKUP(F8,Tilbehør!B:B,Tilbehør!A:A),\"Findes ikke\"))","v":"IDEAL FASHION WALLET IPHONE 11 BLACK"},"A23342",{"$f":"IFERROR(VLOOKUP(F8,Lager!$A:$C,3,FALSE),0)","v":17},{"$f":"IF(J8=0,\"Pt udsolgt\",IFERROR(_xlfn.XLOOKUP(I8,Tilbehør!$B:$B,Tilbehør!$A:$A),\"Findes ikke\"))","v":"ON IPHONE iPhone 11 Pro TPU ULTRA THIN CLEAR"},"A23197",{"$f":"IFERROR(VLOOKUP(I8,Lager!$A:$C,3,FALSE),0)","v":30},null,null,null,null,null,null,{"$f":"IF(S8=0,\"Pt udsolgt\",IFERROR(_xlfn.XLOOKUP(R8,Tilbehør!$B:$B,Tilbehør!$A:$A),\"Findes ikke\"))","v":"Pt udsolgt"},null,{"$f":"IFERROR(VLOOKUP(R8,Lager!$A:$C,3,FALSE),0)","v":0},null,null,null,null,null,null,{"$f":"IF(AB8=0,\"Pt udsolgt\",IFERROR(_xlfn.XLOOKUP(AA8,Tilbehør!$B:$B,Tilbehør!$A:$A),\"Findes ikke\"))","v":"Pt udsolgt"},"A21617",{"$f":"IFERROR(VLOOKUP(AA8,Lager!$A:$C,3,FALSE),0)","v":0},null,null,null,null,null,null,null,null,null,null,null,null,{"$f":"IF(AQ8=0,\"Pt udsolgt\",IFERROR(_xlfn.XLOOKUP(AP8,Tilbehør!$B:$B,Tilbehør!$A:$A),\"Findes ikke\"))","v":"Dbramante Lynge iPhone 12 og 12 pro Tan"},"A23950",{"$f":"IFERROR(VLOOKUP(AP8,Lager!$A:$C,3,FALSE),0)","v":3},{"$f":"IF(AT8=0,\"Pt udsolgt\",IFERROR(_xlfn.XLOOKUP(AS8,Tilbehør!$B:$B,Tilbehør!$A:$A),\"Findes ikke\"))","v":"Dbramante Lynge iPhone 12 og 12 pro Tan"},"A23950",{"$f":"IFERROR(VLOOKUP(AS8,Lager!$A:$C,3,FALSE),0)","v":3},{"$f":"IF(AW8=0,\"Pt udsolgt\",IFERROR(_xlfn.XLOOKUP(AV8,Tilbehør!$B:$B,Tilbehør!$A:$A),\"Findes ikke\"))","v":"Dbramante Lynge iPhone 12 og 12 pro Tan"},"A23950",{"$f":"IFERROR(VLOOKUP(AV8,Lager!$A:$C,3,FALSE),0)","v":3},{"$f":"IF(AZ8=0,\"Pt udsolgt\",IFERROR(_xlfn.XLOOKUP(AY8,Tilbehør!$B:$B,Tilbehør!$A:$A),\"Findes ikke\"))","v":"Dbramante Lynge iPhone 12 og 12 pro Tan"},"A23950",{"$f":"IFERROR(VLOOKUP(AY8,Lager!$A:$C,3,FALSE),0)","v":3},{"$f":"IF(BC8=0,\"Pt udsolgt\",IFERROR(_xlfn.XLOOKUP(BB8,Tilbehør!$B:$B,Tilbehør!$A:$A),\"Findes ikke\"))","v":"Dbramante Lynge iPhone 12 og 12 pro Tan"},"A23950",{"$f":"IFERROR(VLOOKUP(BB8,Lager!$A:$C,3,FALSE),0)","v":3},{"$f":"IF(BF8=0,\"Pt udsolgt\",IFERROR(_xlfn.XLOOKUP(BE8,Tilbehør!$B:$B,Tilbehør!$A:$A),\"Findes ikke\"))","v":"Dbramante Lynge iPhone 12 og 12 pro Tan"},"A23950",{"$f":"IFERROR(VLOOKUP(BE8,Lager!$A:$C,3,FALSE),0)","v":3},{"$f":"IF(BI8=0,\"Pt udsolgt\",IFERROR(_xlfn.XLOOKUP(BH8,Tilbehør!$B:$B,Tilbehør!$A:$A),\"Findes ikke\"))","v":"Apple iPhone 12 mini Silicone MagSafe Black"},"A24277",{"$f":"IFERROR(VLOOKUP(BH8,Lager!$A:$C,3,FALSE),0)","v":168},{"$f":"IF(BL8=0,\"Pt udsolgt\",IFERROR(_xlfn.XLOOKUP(BK8,Tilbehør!$B:$B,Tilbehør!$A:$A),\"Findes ikke\"))","v":"Apple iPhone 12 mini Silicone MagSafe Black"},"A24277",{"$f":"IFERROR(VLOOKUP(BK8,Lager!$A:$C,3,FALSE),0)","v":168},{"$f":"IF(BO8=0,\"Pt udsolgt\",IFERROR(_xlfn.XLOOKUP(BN8,Tilbehør!$B:$B,Tilbehør!$A:$A),\"Findes ikke\"))","v":"Apple iPhone 12 mini Silicone MagSafe Black"},"A24277",{"$f":"IFERROR(VLOOKUP(BN8,Lager!$A:$C,3,FALSE),0)","v":168},{"$f":"IF(BR8=0,\"Pt udsolgt\",IFERROR(_xlfn.XLOOKUP(BQ8,Tilbehør!$B:$B,Tilbehør!$A:$A),\"Findes ikke\"))","v":"Apple iPhone 12 Pro Max Silicone MagSafe Deep Navy"},"A24284",{"$f":"IFERROR(VLOOKUP(BQ8,Lager!$A:$C,3,FALSE),0)","v":149},{"$f":"IF(BU8=0,\"Pt udsolgt\",IFERROR(_xlfn.XLOOKUP(BT8,Tilbehør!$B:$B,Tilbehør!$A:$A),\"Findes ikke\"))","v":"Apple iPhone 12 Pro Max Silicone MagSafe Deep Navy"},"A24284",{"$f":"IFERROR(VLOOKUP(BT8,Lager!$A:$C,3,FALSE),0)","v":149},{"$f":"IF(BX8=0,\"Pt udsolgt\",IFERROR(_xlfn.XLOOKUP(BW8,Tilbehør!$B:$B,Tilbehør!$A:$A),\"Findes ikke\"))","v":"Apple iPhone 12 Pro Max Silicone MagSafe Deep Navy"},"A24284",{"$f":"IFERROR(VLOOKUP(BW8,Lager!$A:$C,3,FALSE),0)","v":149}]
["Apple iPhone 12 Pro 256GB (OBS. UDEN OPLADER)","AppleiPhone12Pro256GBCover","AppleiPhone12Pro256GBPanserglas",null,{"$f":"IF(G9=0,\"Pt udsolgt\",IFERROR(_xlfn.XLOOKUP(F9,Tilbehør!B:B,Tilbehør!A:A),\"Findes ikke\"))","v":"Apple iPhone 11 Silicone Case  Black"},"A23251",{"$f":"IFERROR(VLOOKUP(F9,Lager!$A:$C,3,FALSE),0)","v":40},{"$f":"IF(J9=0,\"Pt udsolgt\",IFERROR(_xlfn.XLOOKUP(I9,Tilbehør!$B:$B,Tilbehør!$A:$A),\"Findes ikke\"))","v":"IDEAL FASHION CASE iPhone 11 Pro in FLORAL ROMANCE"},"A23212",{"$f":"IFERROR(VLOOKUP(I9,Lager!$A:$C,3,FALSE),0)","v":34},null,null,null,null,null,null,{"$f":"IF(S9=0,\"Pt udsolgt\",IFERROR(_xlfn.XLOOKUP(R9,Tilbehør!$B:$B,Tilbehør!$A:$A),\"Findes ikke\"))","v":"Pt udsolgt"},null,{"$f":"IFERROR(VLOOKUP(R9,Lager!$A:$C,3,FALSE),0)","v":0},null,null,null,null,null,null,{"$f":"IF(AB9=0,\"Pt udsolgt\",IFERROR(_xlfn.XLOOKUP(AA9,Tilbehør!$B:$B,Tilbehør!$A:$A),\"Findes ikke\"))","v":"Pt udsolgt"},"A21616",{"$f":"IFERROR(VLOOKUP(AA9,Lager!$A:$C,3,FALSE),0)","v":0},null,null,null,null,null,null,null,null,null,null,null,null,{"$f":"IF(AQ9=0,\"Pt udsolgt\",IFERROR(_xlfn.XLOOKUP(AP9,Tilbehør!$B:$B,Tilbehør!$A:$A),\"Findes ikke\"))","v":"Dbramante Grenen iPhone 12 og 12 pro Black"},"A23957",{"$f":"IFERROR(VLOOKUP(AP9,Lager!$A:$C,3,FALSE),0)","v":64},{"$f":"IF(AT9=0,\"Pt udsolgt\",IFERROR(_xlfn.XLOOKUP(AS9,Tilbehør!$B:$B,Tilbehør!$A:$A),\"Findes ikke\"))","v":"Dbramante Grenen iPhone 12 og 12 pro Black"},"A23957",{"$f":"IFERROR(VLOOKUP(AS9,Lager!$A:$C,3,FALSE),0)","v":64},{"$f":"IF(AW9=0,\"Pt udsolgt\",IFERROR(_xlfn.XLOOKUP(AV9,Tilbehør!$B:$B,Tilbehør!$A:$A),\"Findes ikke\"))","v":"Dbramante Grenen iPhone 12 og 12 pro Black"},"A23957",{"$f":"IFERROR(VLOOKUP(AV9,Lager!$A:$C,3,FALSE),0)","v":64},{"$f":"IF(AZ9=0,\"Pt udsolgt\",IFERROR(_xlfn.XLOOKUP(AY9,Tilbehør!$B:$B,Tilbehør!$A:$A),\"Findes ikke\"))","v":"Dbramante Grenen iPhone 12 og 12 pro Black"},"A23957",{"$f":"IFERROR(VLOOKUP(AY9,Lager!$A:$C,3,FALSE),0)","v":64},{"$f":"IF(BC9=0,\"Pt udsolgt\",IFERROR(_xlfn.XLOOKUP(BB9,Tilbehør!$B:$B,Tilbehør!$A:$A),\"Findes ikke\"))","v":"Dbramante Grenen iPhone 12 og 12 pro Black"},"A23957",{"$f":"IFERROR(VLOOKUP(BB9,Lager!$A:$C,3,FALSE),0)","v":64},{"$f":"IF(BF9=0,\"Pt udsolgt\",IFERROR(_xlfn.XLOOKUP(BE9,Tilbehør!$B:$B,Tilbehør!$A:$A),\"Findes ikke\"))","v":"Dbramante Grenen iPhone 12 og 12 pro Black"},"A23957",{"$f":"IFERROR(VLOOKUP(BE9,Lager!$A:$C,3,FALSE),0)","v":64},{"$f":"IF(BI9=0,\"Pt udsolgt\",IFERROR(_xlfn.XLOOKUP(BH9,Tilbehør!$B:$B,Tilbehør!$A:$A),\"Findes ikke\"))","v":"Apple iPhone 12 mini Silicone MagSafe Deep Navy"},"A24276",{"$f":"IFERROR(VLOOKUP(BH9,Lager!$A:$C,3,FALSE),0)","v":187},{"$f":"IF(BL9=0,\"Pt udsolgt\",IFERROR(_xlfn.XLOOKUP(BK9,Tilbehør!$B:$B,Tilbehør!$A:$A),\"Findes ikke\"))","v":"Apple iPhone 12 mini Silicone MagSafe Deep Navy"},"A24276",{"$f":"IFERROR(VLOOKUP(BK9,Lager!$A:$C,3,FALSE),0)","v":187},{"$f":"IF(BO9=0,\"Pt udsolgt\",IFERROR(_xlfn.XLOOKUP(BN9,Tilbehør!$B:$B,Tilbehør!$A:$A),\"Findes ikke\"))","v":"Apple iPhone 12 mini Silicone MagSafe Deep Navy"},"A24276",{"$f":"IFERROR(VLOOKUP(BN9,Lager!$A:$C,3,FALSE),0)","v":187},{"$f":"IF(BR9=0,\"Pt udsolgt\",IFERROR(_xlfn.XLOOKUP(BQ9,Tilbehør!$B:$B,Tilbehør!$A:$A),\"Findes ikke\"))","v":"Apple iPhone 12 og 12 Pro Clear MagSafe"},"A24285",{"$f":"IFERROR(VLOOKUP(BQ9,Lager!$A:$C,3,FALSE),0)","v":61},{"$f":"IF(BU9=0,\"Pt udsolgt\",IFERROR(_xlfn.XLOOKUP(BT9,Tilbehør!$B:$B,Tilbehør!$A:$A),\"Findes ikke\"))","v":"Apple iPhone 12 og 12 Pro Clear MagSafe"},"A24285",{"$f":"IFERROR(VLOOKUP(BT9,Lager!$A:$C,3,FALSE),0)","v":61},{"$f":"IF(BX9=0,\"Pt udsolgt\",IFERROR(_xlfn.XLOOKUP(BW9,Tilbehør!$B:$B,Tilbehør!$A:$A),\"Findes ikke\"))","v":"Apple iPhone 12 og 12 Pro Clear MagSafe"},"A24285",{"$f":"IFERROR(VLOOKUP(BW9,Lager!$A:$C,3,FALSE),0)","v":61}]
["Apple iPhone 12 Pro 512GB (OBS. UDEN OPLADER)","AppleiPhone12Pro512GBCover","AppleiPhone12Pro512GBPanserglas",null,{"$f":"IF(G10=0,\"Pt udsolgt\",IFERROR(_xlfn.XLOOKUP(F10,Tilbehør!B:B,Tilbehør!A:A),\"Findes ikke\"))","v":"IDEAL FASHION CASE iPhone 11 in CARRARA GOLD"},"A23213",{"$f":"IFERROR(VLOOKUP(F10,Lager!$A:$C,3,FALSE),0)","v":13},null,null,null,null,null,null,null,null,null,{"$f":"IF(S10=0,\"Pt udsolgt\",IFERROR(_xlfn.XLOOKUP(R10,Tilbehør!$B:$B,Tilbehør!$A:$A),\"Findes ikke\"))","v":"Pt udsolgt"},null,{"$f":"IFERROR(VLOOKUP(R10,Lager!$A:$C,3,FALSE),0)","v":0},null,null,null,null,null,null,{"$f":"IF(AB10=0,\"Pt udsolgt\",IFERROR(_xlfn.XLOOKUP(AA10,Tilbehør!$B:$B,Tilbehør!$A:$A),\"Findes ikke\"))","v":"Pt udsolgt"},"A21619",{"$f":"IFERROR(VLOOKUP(AA10,Lager!$A:$C,3,FALSE),0)","v":0},null,null,null,null,null,null,null,null,null,null,null,null,{"$f":"IF(AQ10=0,\"Pt udsolgt\",IFERROR(_xlfn.XLOOKUP(AP10,Tilbehør!$B:$B,Tilbehør!$A:$A),\"Findes ikke\"))","v":"Dbramante Grenen iPhone 12 og 12 pro Dark Olive Green"},"A23958",{"$f":"IFERROR(VLOOKUP(AP10,Lager!$A:$C,3,FALSE),0)","v":52},{"$f":"IF(AT10=0,\"Pt udsolgt\",IFERROR(_xlfn.XLOOKUP(AS10,Tilbehør!$B:$B,Tilbehør!$A:$A),\"Findes ikke\"))","v":"Dbramante Grenen iPhone 12 og 12 pro Dark Olive Green"},"A23958",{"$f":"IFERROR(VLOOKUP(AS10,Lager!$A:$C,3,FALSE),0)","v":52},{"$f":"IF(AW10=0,\"Pt udsolgt\",IFERROR(_xlfn.XLOOKUP(AV10,Tilbehør!$B:$B,Tilbehør!$A:$A),\"Findes ikke\"))","v":"Dbramante Grenen iPhone 12 og 12 pro Dark Olive Green"},"A23958",{"$f":"IFERROR(VLOOKUP(AV10,Lager!$A:$C,3,FALSE),0)","v":52},{"$f":"IF(AZ10=0,\"Pt udsolgt\",IFERROR(_xlfn.XLOOKUP(AY10,Tilbehør!$B:$B,Tilbehør!$A:$A),\"Findes ikke\"))","v":"Dbramante Grenen iPhone 12 og 12 pro Dark Olive Green"},"A23958",{"$f":"IFERROR(VLOOKUP(AY10,Lager!$A:$C,3,FALSE),0)","v":52},{"$f":"IF(BC10=0,\"Pt udsolgt\",IFERROR(_xlfn.XLOOKUP(BB10,Tilbehør!$B:$B,Tilbehør!$A:$A),\"Findes ikke\"))","v":"Dbramante Grenen iPhone 12 og 12 pro Dark Olive Green"},"A23958",{"$f":"IFERROR(VLOOKUP(BB10,Lager!$A:$C,3,FALSE),0)","v":52},{"$f":"IF(BF10=0,\"Pt udsolgt\",IFERROR(_xlfn.XLOOKUP(BE10,Tilbehør!$B:$B,Tilbehør!$A:$A),\"Findes ikke\"))","v":"Dbramante Grenen iPhone 12 og 12 pro Dark Olive Green"},"A23958",{"$f":"IFERROR(VLOOKUP(BE10,Lager!$A:$C,3,FALSE),0)","v":52},{"$f":"IF(BI10=0,\"Pt udsolgt\",IFERROR(_xlfn.XLOOKUP(BH10,Tilbehør!$B:$B,Tilbehør!$A:$A),\"Findes ikke\"))","v":"Dbramante Lynge iPhone 12 Mini Black"},"A23947",{"$f":"IFERROR(VLOOKUP(BH10,Lager!$A:$C,3,FALSE),0)","v":9},{"$f":"IF(BL10=0,\"Pt udsolgt\",IFERROR(_xlfn.XLOOKUP(BK10,Tilbehør!$B:$B,Tilbehør!$A:$A),\"Findes ikke\"))","v":"Dbramante Lynge iPhone 12 Mini Black"},"A23947",{"$f":"IFERROR(VLOOKUP(BK10,Lager!$A:$C,3,FALSE),0)","v":9},{"$f":"IF(BO10=0,\"Pt udsolgt\",IFERROR(_xlfn.XLOOKUP(BN10,Tilbehør!$B:$B,Tilbehør!$A:$A),\"Findes ikke\"))","v":"Dbramante Lynge iPhone 12 Mini Black"},"A23947",{"$f":"IFERROR(VLOOKUP(BN10,Lager!$A:$C,3,FALSE),0)","v":9},{"$f":"IF(BR10=0,\"Pt udsolgt\",IFERROR(_xlfn.XLOOKUP(BQ10,Tilbehør!$B:$B,Tilbehør!$A:$A),\"Findes ikke\"))","v":"Apple iPhone 12 Pro Max Clear MagSafe"},"A24286",{"$f":"IFERROR(VLOOKUP(BQ10,Lager!$A:$C,3,FALSE),0)","v":109},{"$f":"IF(BU10=0,\"Pt udsolgt\",IFERROR(_xlfn.XLOOKUP(BT10,Tilbehør!$B:$B,Tilbehør!$A:$A),\"Findes ikke\"))","v":"Apple iPhone 12 Pro Max Clear MagSafe"},"A24286",{"$f":"IFERROR(VLOOKUP(BT10,Lager!$A:$C,3,FALSE),0)","v":109},{"$f":"IF(BX10=0,\"Pt udsolgt\",IFERROR(_xlfn.XLOOKUP(BW10,Tilbehør!$B:$B,Tilbehør!$A:$A),\"Findes ikke\"))","v":"Apple iPhone 12 Pro Max Clear MagSafe"},"A24286",{"$f":"IFERROR(VLOOKUP(BW10,Lager!$A:$C,3,FALSE),0)","v":109}]
["Apple iPhone 12 Pro Max 128GB (OBS. UDEN OPLADER)","AppleiPhone12ProMax128GBCover","AppleiPhone12ProMax128GBpanserglas",null,{"$f":"IF(G11=0,\"Pt udsolgt\",IFERROR(_xlfn.XLOOKUP(F11,Tilbehør!B:B,Tilbehør!A:A),\"Findes ikke\"))","v":"IDEAL FASHION CASE iPhone 11 in FLORAL ROMANCE"},"A23214",{"$f":"IFERROR(VLOOKUP(F11,Lager!$A:$C,3,FALSE),0)","v":7},null,null,null,null,null,null,null,null,null,null,null,null,null,null,null,null,null,null,{"$f":"IF(AB11=0,\"Pt udsolgt\",IFERROR(_xlfn.XLOOKUP(AA11,Tilbehør!$B:$B,Tilbehør!$A:$A),\"Findes ikke\"))","v":"Pt udsolgt"},"A21615",{"$f":"IFERROR(VLOOKUP(AA11,Lager!$A:$C,3,FALSE),0)","v":0},null,null,null,null,null,null,null,null,null,null,null,null,{"$f":"IF(AQ11=0,\"Pt udsolgt\",IFERROR(_xlfn.XLOOKUP(#REF!,Tilbehør!$B:$B,Tilbehør!$A:$A),\"Findes ikke\"))","v":"Pt udsolgt"},"A24280",{"$f":"IFERROR(VLOOKUP(#REF!,Lager!$A:$C,3,FALSE),0)","v":0},{"$f":"IF(AT11=0,\"Pt udsolgt\",IFERROR(_xlfn.XLOOKUP(#REF!,Tilbehør!$B:$B,Tilbehør!$A:$A),\"Findes ikke\"))","v":"Pt udsolgt"},"A24280",{"$f":"IFERROR(VLOOKUP(#REF!,Lager!$A:$C,3,FALSE),0)","v":0},{"$f":"IF(AW11=0,\"Pt udsolgt\",IFERROR(_xlfn.XLOOKUP(#REF!,Tilbehør!$B:$B,Tilbehør!$A:$A),\"Findes ikke\"))","v":"Pt udsolgt"},"A24280",{"$f":"IFERROR(VLOOKUP(#REF!,Lager!$A:$C,3,FALSE),0)","v":0},{"$f":"IF(AZ11=0,\"Pt udsolgt\",IFERROR(_xlfn.XLOOKUP(#REF!,Tilbehør!$B:$B,Tilbehør!$A:$A),\"Findes ikke\"))","v":"Pt udsolgt"},"A24280",{"$f":"IFERROR(VLOOKUP(#REF!,Lager!$A:$C,3,FALSE),0)","v":0},{"$f":"IF(BC11=0,\"Pt udsolgt\",IFERROR(_xlfn.XLOOKUP(#REF!,Tilbehør!$B:$B,Tilbehør!$A:$A),\"Findes ikke\"))","v":"Pt udsolgt"},"A24280",{"$f":"IFERROR(VLOOKUP(#REF!,Lager!$A:$C,3,FALSE),0)","v":0},{"$f":"IF(BF11=0,\"Pt udsolgt\",IFERROR(_xlfn.XLOOKUP(#REF!,Tilbehør!$B:$B,Tilbehør!$A:$A),\"Findes ikke\"))","v":"Pt udsolgt"},"A24280",{"$f":"IFERROR(VLOOKUP(#REF!,Lager!$A:$C,3,FALSE),0)","v":0},{"$f":"IF(BI11=0,\"Pt udsolgt\",IFERROR(_xlfn.XLOOKUP(BH11,Tilbehør!$B:$B,Tilbehør!$A:$A),\"Findes ikke\"))","v":"Dbramante Lynge iPhone 12 Mini Tan"},"A23948",{"$f":"IFERROR(VLOOKUP(BH11,Lager!$A:$C,3,FALSE),0)","v":21},{"$f":"IF(BL11=0,\"Pt udsolgt\",IFERROR(_xlfn.XLOOKUP(BK11,Tilbehør!$B:$B,Tilbehør!$A:$A),\"Findes ikke\"))","v":"Dbramante Lynge iPhone 12 Mini Tan"},"A23948",{"$f":"IFERROR(VLOOKUP(BK11,Lager!$A:$C,3,FALSE),0)","v":21},{"$f":"IF(BO11=0,\"Pt udsolgt\",IFERROR(_xlfn.XLOOKUP(BN11,Tilbehør!$B:$B,Tilbehør!$A:$A),\"Findes ikke\"))","v":"Dbramante Lynge iPhone 12 Mini Tan"},"A23948",{"$f":"IFERROR(VLOOKUP(BN11,Lager!$A:$C,3,FALSE),0)","v":21},{"$f":"IF(BR11=0,\"Pt udsolgt\",IFERROR(_xlfn.XLOOKUP(BQ11,Tilbehør!$B:$B,Tilbehør!$A:$A),\"Findes ikke\"))","v":"Dbramante Lynge iPhone 12 Pro Max Black"},"A23951",{"$f":"IFERROR(VLOOKUP(BQ11,Lager!$A:$C,3,FALSE),0)","v":5},{"$f":"IF(BU11=0,\"Pt udsolgt\",IFERROR(_xlfn.XLOOKUP(BT11,Tilbehør!$B:$B,Tilbehør!$A:$A),\"Findes ikke\"))","v":"Dbramante Lynge iPhone 12 Pro Max Black"},"A23951",{"$f":"IFERROR(VLOOKUP(BT11,Lager!$A:$C,3,FALSE),0)","v":5},{"$f":"IF(BX11=0,\"Pt udsolgt\",IFERROR(_xlfn.XLOOKUP(BW11,Tilbehør!$B:$B,Tilbehør!$A:$A),\"Findes ikke\"))","v":"Dbramante Lynge iPhone 12 Pro Max Black"},"A23951",{"$f":"IFERROR(VLOOKUP(BW11,Lager!$A:$C,3,FALSE),0)","v":5}]
["Apple iPhone 12 Pro Max 256GB (OBS. UDEN OPLADER)","AppleiPhone12ProMax256GBCover","AppleiPhone12ProMax256GBpanserglas",null,{"$f":"IF(G12=0,\"Pt udsolgt\",IFERROR(_xlfn.XLOOKUP(F12,Tilbehør!B:B,Tilbehør!A:A),\"Findes ikke\"))","v":"DBRAMANTE 1928 COPENHAGEN SLIM iPhone 11 BLACK"},"A23204",{"$f":"IFERROR(VLOOKUP(F12,Lager!$A:$C,3,FALSE),0)","v":58},null,null,null,null,null,null,null,null,null,null,null,null,null,null,null,null,null,null,{"$f":"IF(AB12=0,\"Pt udsolgt\",IFERROR(_xlfn.XLOOKUP(AA12,Tilbehør!$B:$B,Tilbehør!$A:$A),\"Findes ikke\"))","v":"Pt udsolgt"},"A21618",{"$f":"IFERROR(VLOOKUP(AA12,Lager!$A:$C,3,FALSE),0)","v":0},null,null,null,null,null,null,null,null,null,null,null,null,null,null,null,null,null,null,null,null,null,null,null,null,null,null,null,null,null,null,{"$f":"IF(BI12=0,\"Pt udsolgt\",IFERROR(_xlfn.XLOOKUP(BH12,Tilbehør!$B:$B,Tilbehør!$A:$A),\"Findes ikke\"))","v":"Dbramante Grenen iPhone 12 Mini Black"},"A23955",{"$f":"IFERROR(VLOOKUP(BH12,Lager!$A:$C,3,FALSE),0)","v":71},{"$f":"IF(BL12=0,\"Pt udsolgt\",IFERROR(_xlfn.XLOOKUP(BK12,Tilbehør!$B:$B,Tilbehør!$A:$A),\"Findes ikke\"))","v":"Dbramante Grenen iPhone 12 Mini Black"},"A23955",{"$f":"IFERROR(VLOOKUP(BK12,Lager!$A:$C,3,FALSE),0)","v":71},{"$f":"IF(BO12=0,\"Pt udsolgt\",IFERROR(_xlfn.XLOOKUP(BN12,Tilbehør!$B:$B,Tilbehør!$A:$A),\"Findes ikke\"))","v":"Dbramante Grenen iPhone 12 Mini Black"},"A23955",{"$f":"IFERROR(VLOOKUP(BN12,Lager!$A:$C,3,FALSE),0)","v":71},{"$f":"IF(BR12=0,\"Pt udsolgt\",IFERROR(_xlfn.XLOOKUP(BQ12,Tilbehør!$B:$B,Tilbehør!$A:$A),\"Findes ikke\"))","v":"Dbramante Lynge iPhone 12 Pro Max Tan"},"A23952",{"$f":"IFERROR(VLOOKUP(BQ12,Lager!$A:$C,3,FALSE),0)","v":19},{"$f":"IF(BU12=0,\"Pt udsolgt\",IFERROR(_xlfn.XLOOKUP(BT12,Tilbehør!$B:$B,Tilbehør!$A:$A),\"Findes ikke\"))","v":"Dbramante Lynge iPhone 12 Pro Max Tan"},"A23952",{"$f":"IFERROR(VLOOKUP(BT12,Lager!$A:$C,3,FALSE),0)","v":19},{"$f":"IF(BX12=0,\"Pt udsolgt\",IFERROR(_xlfn.XLOOKUP(BW12,Tilbehør!$B:$B,Tilbehør!$A:$A),\"Findes ikke\"))","v":"Dbramante Lynge iPhone 12 Pro Max Tan"},"A23952",{"$f":"IFERROR(VLOOKUP(BW12,Lager!$A:$C,3,FALSE),0)","v":19}]
["Apple iPhone 12 Pro Max 512GB (OBS. UDEN OPLADER)","AppleiPhone12ProMax512GBCover","AppleiPhone12ProMax512GBpanserglas",null,null,null,null,null,null,null,null,null,null,null,null,null,null,null,null,null,null,null,null,null,null,{"$f":"IF(AB13=0,\"Pt udsolgt\",IFERROR(_xlfn.XLOOKUP(AA13,Tilbehør!$B:$B,Tilbehør!$A:$A),\"Findes ikke\"))","v":"Pt udsolgt"},"A21621",{"$f":"IFERROR(VLOOKUP(AA13,Lager!$A:$C,3,FALSE),0)","v":0},null,null,null,null,null,null,null,null,null,null,null,null,null,null,null,null,null,null,null,null,null,null,null,null,null,null,null,null,null,null,{"$f":"IF(BI13=0,\"Pt udsolgt\",IFERROR(_xlfn.XLOOKUP(BH13,Tilbehør!$B:$B,Tilbehør!$A:$A),\"Findes ikke\"))","v":"Dbramante Grenen iPhone 12 Mini Dark Olive Green"},"A23956",{"$f":"IFERROR(VLOOKUP(BH13,Lager!$A:$C,3,FALSE),0)","v":54},{"$f":"IF(BL13=0,\"Pt udsolgt\",IFERROR(_xlfn.XLOOKUP(BK13,Tilbehør!$B:$B,Tilbehør!$A:$A),\"Findes ikke\"))","v":"Dbramante Grenen iPhone 12 Mini Dark Olive Green"},"A23956",{"$f":"IFERROR(VLOOKUP(BK13,Lager!$A:$C,3,FALSE),0)","v":54},{"$f":"IF(BO13=0,\"Pt udsolgt\",IFERROR(_xlfn.XLOOKUP(BN13,Tilbehør!$B:$B,Tilbehør!$A:$A),\"Findes ikke\"))","v":"Dbramante Grenen iPhone 12 Mini Dark Olive Green"},"A23956",{"$f":"IFERROR(VLOOKUP(BN13,Lager!$A:$C,3,FALSE),0)","v":54},{"$f":"IF(BR13=0,\"Pt udsolgt\",IFERROR(_xlfn.XLOOKUP(BQ13,Tilbehør!$B:$B,Tilbehør!$A:$A),\"Findes ikke\"))","v":"Dbramante Grenen iPhone 12 Pro Max Black"},"A23959",{"$f":"IFERROR(VLOOKUP(BQ13,Lager!$A:$C,3,FALSE),0)","v":74},{"$f":"IF(BU13=0,\"Pt udsolgt\",IFERROR(_xlfn.XLOOKUP(BT13,Tilbehør!$B:$B,Tilbehør!$A:$A),\"Findes ikke\"))","v":"Dbramante Grenen iPhone 12 Pro Max Black"},"A23959",{"$f":"IFERROR(VLOOKUP(BT13,Lager!$A:$C,3,FALSE),0)","v":74},{"$f":"IF(BX13=0,\"Pt udsolgt\",IFERROR(_xlfn.XLOOKUP(BW13,Tilbehør!$B:$B,Tilbehør!$A:$A),\"Findes ikke\"))","v":"Dbramante Grenen iPhone 12 Pro Max Black"},"A23959",{"$f":"IFERROR(VLOOKUP(BW13,Lager!$A:$C,3,FALSE),0)","v":74}]
["Apple iPhone 11 64GB NEW (OBS. UDEN OPLADER)","iPhone11Cover","iPhone11panserglas",null,null,null,null,null,null,null,null,null,null,null,null,null,null,null,null,null,null,null,null,null,null,null,null,null,null,null,null,null,null,null,null,null,null,null,null,null,null,null,null,null,null,null,null,null,null,null,null,null,null,null,null,null,null,null,{"$f":"IF(BI14=0,\"Pt udsolgt\",IFERROR(_xlfn.XLOOKUP(BH14,Tilbehør!$B:$B,Tilbehør!$A:$A),\"Findes ikke\"))","v":"Dbramante Barcelona iPhone 12 Mini Night Black"},"A23963",{"$f":"IFERROR(VLOOKUP(BH14,Lager!$A:$C,3,FALSE),0)","v":75},{"$f":"IF(BL14=0,\"Pt udsolgt\",IFERROR(_xlfn.XLOOKUP(BK14,Tilbehør!$B:$B,Tilbehør!$A:$A),\"Findes ikke\"))","v":"Dbramante Barcelona iPhone 12 Mini Night Black"},"A23963",{"$f":"IFERROR(VLOOKUP(BK14,Lager!$A:$C,3,FALSE),0)","v":75},{"$f":"IF(BO14=0,\"Pt udsolgt\",IFERROR(_xlfn.XLOOKUP(BN14,Tilbehør!$B:$B,Tilbehør!$A:$A),\"Findes ikke\"))","v":"Dbramante Barcelona iPhone 12 Mini Night Black"},"A23963",{"$f":"IFERROR(VLOOKUP(BN14,Lager!$A:$C,3,FALSE),0)","v":75},{"$f":"IF(BR14=0,\"Pt udsolgt\",IFERROR(_xlfn.XLOOKUP(BQ14,Tilbehør!$B:$B,Tilbehør!$A:$A),\"Findes ikke\"))","v":"Dbramante Grenen iPhone 12 Pro Max Dark Olive Green"},"A23960",{"$f":"IFERROR(VLOOKUP(BQ14,Lager!$A:$C,3,FALSE),0)","v":36},{"$f":"IF(BU14=0,\"Pt udsolgt\",IFERROR(_xlfn.XLOOKUP(BT14,Tilbehør!$B:$B,Tilbehør!$A:$A),\"Findes ikke\"))","v":"Dbramante Grenen iPhone 12 Pro Max Dark Olive Green"},"A23960",{"$f":"IFERROR(VLOOKUP(BT14,Lager!$A:$C,3,FALSE),0)","v":36},{"$f":"IF(BX14=0,\"Pt udsolgt\",IFERROR(_xlfn.XLOOKUP(BW14,Tilbehør!$B:$B,Tilbehør!$A:$A),\"Findes ikke\"))","v":"Dbramante Grenen iPhone 12 Pro Max Dark Olive Green"},"A23960",{"$f":"IFERROR(VLOOKUP(BW14,Lager!$A:$C,3,FALSE),0)","v":36}]
["Apple iPhone 11 128GB NEW (OBS. UDEN OPLADER)","iPhone11Cover","iPhone11panserglas",null,null,null,null,null,null,null,null,null,null,null,null,null,null,null,null,null,null,null,null,null,null,null,null,null,null,null,null,null,null,null,null,null,null,null,null,null,null,null,null,null,null,null,null,null,null,null,null,null,null,null,null,null,null,null,{"$f":"IF(BI15=0,\"Pt udsolgt\",IFERROR(_xlfn.XLOOKUP(BH15,Tilbehør!$B:$B,Tilbehør!$A:$A),\"Findes ikke\"))","v":"Dbramante Barcelona iPhone 12 Mini Sahara Sand"},"A23964",{"$f":"IFERROR(VLOOKUP(BH15,Lager!$A:$C,3,FALSE),0)","v":54},{"$f":"IF(BL15=0,\"Pt udsolgt\",IFERROR(_xlfn.XLOOKUP(BK15,Tilbehør!$B:$B,Tilbehør!$A:$A),\"Findes ikke\"))","v":"Dbramante Barcelona iPhone 12 Mini Sahara Sand"},"A23964",{"$f":"IFERROR(VLOOKUP(BK15,Lager!$A:$C,3,FALSE),0)","v":54},{"$f":"IF(BO15=0,\"Pt udsolgt\",IFERROR(_xlfn.XLOOKUP(BN15,Tilbehør!$B:$B,Tilbehør!$A:$A),\"Findes ikke\"))","v":"Dbramante Barcelona iPhone 12 Mini Sahara Sand"},"A23964",{"$f":"IFERROR(VLOOKUP(BN15,Lager!$A:$C,3,FALSE),0)","v":54},{"$f":"IF(BR15=0,\"Pt udsolgt\",IFERROR(_xlfn.XLOOKUP(BQ15,Tilbehør!$B:$B,Tilbehør!$A:$A),\"Findes ikke\"))","v":"Dbramante Barcelona iPhone 12 Pro Max Night Black"},"A23967",{"$f":"IFERROR(VLOOKUP(BQ15,Lager!$A:$C,3,FALSE),0)","v":27},{"$f":"IF(BU15=0,\"Pt udsolgt\",IFERROR(_xlfn.XLOOKUP(BT15,Tilbehør!$B:$B,Tilbehør!$A:$A),\"Findes ikke\"))","v":"Dbramante Barcelona iPhone 12 Pro Max Night Black"},"A23967",{"$f":"IFERROR(VLOOKUP(BT15,Lager!$A:$C,3,FALSE),0)","v":27},{"$f":"IF(BX15=0,\"Pt udsolgt\",IFERROR(_xlfn.XLOOKUP(BW15,Tilbehør!$B:$B,Tilbehør!$A:$A),\"Findes ikke\"))","v":"Dbramante Barcelona iPhone 12 Pro Max Night Black"},"A23967",{"$f":"IFERROR(VLOOKUP(BW15,Lager!$A:$C,3,FALSE),0)","v":27}]
["Apple iPhone 11 256GB","iPhone11Cover","iPhone11panserglas"]
["Apple iPhone 11 Pro 64GB","iPhone11procover","iPhone11propanserglas",null,"iPhone11panserglas","Anummer","Lager","iPhone11propanserglas","Anummer","Lager","iPhone11promaxpanserglas","Anummer","Lager","iPhonexspanserglas","Anummer","Lager","iPhonexsmaxpanserglas","Anummer","Lager","iPhonexrpanserglas","Anummer","Lager","iPhone8panserglas","Anummer","Lager","iPhone8pluspanserglas","Anummer","Lager","iPhone7panserglas","Anummer","Lager","AppleiPhoneSE2ndgen128GBpanserglas","Anummer","Lager","AppleiPhoneSE2ndgen256GBpanserglas","Anummer","Lager","AppleiPhoneSE2ndgen64GBpanserglas","Anummer","Lager","AppleiPhone12128GBPanserglas","Anummer","Lager","AppleiPhone12256GBPanserglas","Anummer","Lager","AppleiPhone1264GBPanserglas","Anummer","Lager","AppleiPhone12Pro128GBPanserglas","Anummer","Lager","AppleiPhone12Pro256GBPanserglas","Anummer","Lager","AppleiPhone12Pro512GBPanserglas","Anummer","Lager","AppleiPhone12mini64GBpanserglas","Anummer","Lager","AppleiPhone12mini128GBpanserglas","Anummer","Lager","AppleiPhone12mini256GBpanserglas","Anummer","Lager","AppleiPhone12ProMax128GBpanserglas","Anummer","Lager","AppleiPhone12ProMax256GBpanserglas","Anummer","Lager","AppleiPhone12ProMax512GBpanserglas","Anummer","Lager"]
["Apple iPhone 11 Pro 256GB","iPhone11procover","iPhone11propanserglas",null,{"$f":"IF(G18=0,\"Pt udsolgt\",IFERROR(_xlfn.XLOOKUP(F18,Tilbehør!B:B,Tilbehør!A:A),\"Findes ikke\"))","v":"Invisibleshield Glass Elite VisionguardPlus Iphone Xr 11 Screen"},"A23611",{"$f":"IFERROR(VLOOKUP(F18,Lager!$A:$C,3,FALSE),0)","v":17},{"$f":"IF(J18=0,\"Pt udsolgt\",IFERROR(_xlfn.XLOOKUP(I18,Tilbehør!$B:$B,Tilbehør!$A:$A),\"Findes ikke\"))","v":"PanzerGlass Apple iPhone 11 Pro"},"A23217",{"$f":"IFERROR(VLOOKUP(I18,Lager!$A:$C,3,FALSE),0)","v":9},{"$f":"IF(M18=0,\"Pt udsolgt\",IFERROR(_xlfn.XLOOKUP(L18,Tilbehør!$B:$B,Tilbehør!$A:$A),\"Findes ikke\"))","v":"Invisibleshield Glass Elite Iphone Xs Max 11 Pro Max Screen"},"A23601",{"$f":"IFERROR(VLOOKUP(L18,Lager!$A:$C,3,FALSE),0)","v":19},{"$f":"IF(P18=0,\"Pt udsolgt\",IFERROR(_xlfn.XLOOKUP(O18,Tilbehør!$B:$B,Tilbehør!$A:$A),\"Findes ikke\"))","v":"Invisibleshield Glass Elite Edge Iphone X Xs 11 Pro Screen"},"A23604",{"$f":"IFERROR(VLOOKUP(O18,Lager!$A:$C,3,FALSE),0)","v":98},{"$f":"IF(S18=0,\"Pt udsolgt\",IFERROR(_xlfn.XLOOKUP(R18,Tilbehør!$B:$B,Tilbehør!$A:$A),\"Findes ikke\"))","v":"Invisibleshield Glass Elite Iphone Xs Max 11 Pro Max Screen"},"A23601",{"$f":"IFERROR(VLOOKUP(R18,Lager!$A:$C,3,FALSE),0)","v":19},{"$f":"IF(V18=0,\"Pt udsolgt\",IFERROR(_xlfn.XLOOKUP(U18,Tilbehør!$B:$B,Tilbehør!$A:$A),\"Findes ikke\"))","v":"Invisibleshield Glass Elite Edge Iphone Xr 11 Screen"},"A23605",{"$f":"IFERROR(VLOOKUP(U18,Lager!$A:$C,3,FALSE),0)","v":293},{"$f":"IF(Y18=0,\"Pt udsolgt\",IFERROR(_xlfn.XLOOKUP(X18,Tilbehør!$B:$B,Tilbehør!$A:$A),\"Findes ikke\"))","v":"PanzerGlass PREMIUM iPhone 6s 7 8 White"},"A22398",{"$f":"IFERROR(VLOOKUP(X18,Lager!$A:$C,3,FALSE),0)","v":1},{"$f":"IF(AB18=0,\"Pt udsolgt\",IFERROR(_xlfn.XLOOKUP(AA18,Tilbehør!$B:$B,Tilbehør!$A:$A),\"Findes ikke\"))","v":"Pt udsolgt"},"A22042",{"$f":"IFERROR(VLOOKUP(AA18,Lager!$A:$C,3,FALSE),0)","v":0},{"$f":"IF(AE18=0,\"Pt udsolgt\",IFERROR(_xlfn.XLOOKUP(AD18,Tilbehør!$B:$B,Tilbehør!$A:$A),\"Findes ikke\"))","v":"Invisibleshield GlassPlus Privacy Apple Iphone 8 7 6S 6 Case Friendly Screen"},"A23613",{"$f":"IFERROR(VLOOKUP(AD18,Lager!$A:$C,3,FALSE),0)","v":39},{"$f":"IF(AH18=0,\"Pt udsolgt\",IFERROR(_xlfn.XLOOKUP(AG18,Tilbehør!$B:$B,Tilbehør!$A:$A),\"Findes ikke\"))","v":"Invisibleshield GlasselitePlus Apple Baby Yoda 8 7 6S 6 Screen"},"A23597",{"$f":"IFERROR(VLOOKUP(AG18,Lager!$A:$C,3,FALSE),0)","v":34},{"$f":"IF(AK18=0,\"Pt udsolgt\",IFERROR(_xlfn.XLOOKUP(AJ18,Tilbehør!$B:$B,Tilbehør!$A:$A),\"Findes ikke\"))","v":"Invisibleshield GlasselitePlus Apple Baby Yoda 8 7 6S 6 Screen"},"A23597",{"$f":"IFERROR(VLOOKUP(AJ18,Lager!$A:$C,3,FALSE),0)","v":34},{"$f":"IF(AN18=0,\"Pt udsolgt\",IFERROR(_xlfn.XLOOKUP(AM18,Tilbehør!$B:$B,Tilbehør!$A:$A),\"Findes ikke\"))","v":"Invisibleshield GlasselitePlus Apple Baby Yoda 8 7 6S 6 Screen"},"A23597",{"$f":"IFERROR(VLOOKUP(AM18,Lager!$A:$C,3,FALSE),0)","v":34},{"$f":"IF(AQ18=0,\"Pt udsolgt\",IFERROR(_xlfn.XLOOKUP(AP18,Tilbehør!$B:$B,Tilbehør!$A:$A),\"Findes ikke\"))","v":"InvisibleShield Glass Eliteplus Apple iPhone 11 XR 12 12 Pro Screen"},"A24043",{"$f":"IFERROR(VLOOKUP(AP18,Lager!$A:$C,3,FALSE),0)","v":506},{"$f":"IF(AT18=0,\"Pt udsolgt\",IFERROR(_xlfn.XLOOKUP(AS18,Tilbehør!$B:$B,Tilbehør!$A:$A),\"Findes ikke\"))","v":"InvisibleShield Glass Eliteplus Apple iPhone 11 XR 12 12 Pro Screen"},"A24043",{"$f":"IFERROR(VLOOKUP(AS18,Lager!$A:$C,3,FALSE),0)","v":506},{"$f":"IF(AW18=0,\"Pt udsolgt\",IFERROR(_xlfn.XLOOKUP(AV18,Tilbehør!$B:$B,Tilbehør!$A:$A),\"Findes ikke\"))","v":"InvisibleShield Glass Eliteplus Apple iPhone 11 XR 12 12 Pro Screen"},"A24043",{"$f":"IFERROR(VLOOKUP(AV18,Lager!$A:$C,3,FALSE),0)","v":506},{"$f":"IF(AZ18=0,\"Pt udsolgt\",IFERROR(_xlfn.XLOOKUP(AY18,Tilbehør!$B:$B,Tilbehør!$A:$A),\"Findes ikke\"))","v":"InvisibleShield Glass Eliteplus Apple iPhone 11 XR 12 12 Pro Screen"},"A24043",{"$f":"IFERROR(VLOOKUP(AY18,Lager!$A:$C,3,FALSE),0)","v":506},{"$f":"IF(BC18=0,\"Pt udsolgt\",IFERROR(_xlfn.XLOOKUP(BB18,Tilbehør!$B:$B,Tilbehør!$A:$A),\"Findes ikke\"))","v":"InvisibleShield Glass Eliteplus Apple iPhone 11 XR 12 12 Pro Screen"},"A24043",{"$f":"IFERROR(VLOOKUP(BB18,Lager!$A:$C,3,FALSE),0)","v":506},{"$f":"IF(BF18=0,\"Pt udsolgt\",IFERROR(_xlfn.XLOOKUP(BE18,Tilbehør!$B:$B,Tilbehør!$A:$A),\"Findes ikke\"))","v":"InvisibleShield Glass Eliteplus Apple iPhone 11 XR 12 12 Pro Screen"},"A24043",{"$f":"IFERROR(VLOOKUP(BE18,Lager!$A:$C,3,FALSE),0)","v":506},{"$f":"IF(BI18=0,\"Pt udsolgt\",IFERROR(_xlfn.XLOOKUP(BH18,Tilbehør!$B:$B,Tilbehør!$A:$A),\"Findes ikke\"))","v":"INVISIBLESHIELD GLASS ELITE plus IPHONE iPhone 12 Mini"},"A24042",{"$f":"IFERROR(VLOOKUP(BH18,Lager!$A:$C,3,FALSE),0)","v":362},{"$f":"IF(BL18=0,\"Pt udsolgt\",IFERROR(_xlfn.XLOOKUP(BK18,Tilbehør!$B:$B,Tilbehør!$A:$A),\"Findes ikke\"))","v":"INVISIBLESHIELD GLASS ELITE plus IPHONE iPhone 12 Mini"},"A24042",{"$f":"IFERROR(VLOOKUP(BK18,Lager!$A:$C,3,FALSE),0)","v":362},{"$f":"IF(BO18=0,\"Pt udsolgt\",IFERROR(_xlfn.XLOOKUP(BN18,Tilbehør!$B:$B,Tilbehør!$A:$A),\"Findes ikke\"))","v":"INVISIBLESHIELD GLASS ELITE plus IPHONE iPhone 12 Mini"},"A24042",{"$f":"IFERROR(VLOOKUP(BN18,Lager!$A:$C,3,FALSE),0)","v":362},{"$f":"IF(BR18=0,\"Pt udsolgt\",IFERROR(_xlfn.XLOOKUP(BQ18,Tilbehør!$B:$B,Tilbehør!$A:$A),\"Findes ikke\"))","v":"INVISIBLESHIELD GLASS ELITE plus IPHONE iPhone 12 pro Max"},"A24044",{"$f":"IFERROR(VLOOKUP(BQ18,Lager!$A:$C,3,FALSE),0)","v":40},{"$f":"IF(BU18=0,\"Pt udsolgt\",IFERROR(_xlfn.XLOOKUP(BT18,Tilbehør!$B:$B,Tilbehør!$A:$A),\"Findes ikke\"))","v":"INVISIBLESHIELD GLASS ELITE plus IPHONE iPhone 12 pro Max"},"A24044",{"$f":"IFERROR(VLOOKUP(BT18,Lager!$A:$C,3,FALSE),0)","v":40},{"$f":"IF(BX18=0,\"Pt udsolgt\",IFERROR(_xlfn.XLOOKUP(BW18,Tilbehør!$B:$B,Tilbehør!$A:$A),\"Findes ikke\"))","v":"INVISIBLESHIELD GLASS ELITE plus IPHONE iPhone 12 pro Max"},"A24044",{"$f":"IFERROR(VLOOKUP(BW18,Lager!$A:$C,3,FALSE),0)","v":40}]
["Apple iPhone 11 Pro 512GB","iPhone11procover","iPhone11propanserglas",null,{"$f":"IF(G19=0,\"Pt udsolgt\",IFERROR(_xlfn.XLOOKUP(F19,Tilbehør!B:B,Tilbehør!A:A),\"Findes ikke\"))","v":"Invisibleshield Glass Elite Privacy Iphone Xr 11Screen"},"A23616",{"$f":"IFERROR(VLOOKUP(F19,Lager!$A:$C,3,FALSE),0)","v":5},{"$f":"IF(J19=0,\"Pt udsolgt\",IFERROR(_xlfn.XLOOKUP(I19,Tilbehør!$B:$B,Tilbehør!$A:$A),\"Findes ikke\"))","v":"Invisibleshield Glass Elite Iphone X Xs 11 Pro Screen"},"A23599",{"$f":"IFERROR(VLOOKUP(I19,Lager!$A:$C,3,FALSE),0)","v":44},{"$f":"IF(M19=0,\"Pt udsolgt\",IFERROR(_xlfn.XLOOKUP(L19,Tilbehør!$B:$B,Tilbehør!$A:$A),\"Findes ikke\"))","v":"Invisibleshield Glass Elite Edge Iphone Xs Max 11 Pro Max Screen"},"A23606",{"$f":"IFERROR(VLOOKUP(L19,Lager!$A:$C,3,FALSE),0)","v":81},{"$f":"IF(P19=0,\"Pt udsolgt\",IFERROR(_xlfn.XLOOKUP(O19,Tilbehør!$B:$B,Tilbehør!$A:$A),\"Findes ikke\"))","v":"Invisibleshield Glass Elite VisionguardPlus Iphone X Xs 11 Pro Screen"},"A23610",{"$f":"IFERROR(VLOOKUP(O19,Lager!$A:$C,3,FALSE),0)","v":35},{"$f":"IF(S19=0,\"Pt udsolgt\",IFERROR(_xlfn.XLOOKUP(R19,Tilbehør!$B:$B,Tilbehør!$A:$A),\"Findes ikke\"))","v":"Invisibleshield Glass Elite Edge Iphone Xs Max 11 Pro Max Screen"},"A23606",{"$f":"IFERROR(VLOOKUP(R19,Lager!$A:$C,3,FALSE),0)","v":81},{"$f":"IF(V19=0,\"Pt udsolgt\",IFERROR(_xlfn.XLOOKUP(U19,Tilbehør!$B:$B,Tilbehør!$A:$A),\"Findes ikke\"))","v":"Pt udsolgt"},"A23600",{"$f":"IFERROR(VLOOKUP(U19,Lager!$A:$C,3,FALSE),0)","v":0},{"$f":"IF(Y19=0,\"Pt udsolgt\",IFERROR(_xlfn.XLOOKUP(#REF!,Tilbehør!$B:$B,Tilbehør!$A:$A),\"Findes ikke\"))","v":"Pt udsolgt"},"A23598",{"$f":"IFERROR(VLOOKUP(X19,Lager!$A:$C,3,FALSE),0)","v":0},null,null,null,{"$f":"IF(AE19=0,\"Pt udsolgt\",IFERROR(_xlfn.XLOOKUP(AD19,Tilbehør!$B:$B,Tilbehør!$A:$A),\"Findes ikke\"))","v":"Invisibleshield Glass Curve Apple Iphone 8 7 Screen Black"},"A23602",{"$f":"IFERROR(VLOOKUP(AD19,Lager!$A:$C,3,FALSE),0)","v":6},{"$f":"IF(AH19=0,\"Pt udsolgt\",IFERROR(_xlfn.XLOOKUP(AG19,Tilbehør!$B:$B,Tilbehør!$A:$A),\"Findes ikke\"))","v":"Invisibleshield Glasselite VisionguardPlus Apple Baby Yoda 8 7 6S 6 Screen"},"A23609",{"$f":"IFERROR(VLOOKUP(AG19,Lager!$A:$C,3,FALSE),0)","v":2},{"$f":"IF(AK19=0,\"Pt udsolgt\",IFERROR(_xlfn.XLOOKUP(AJ19,Tilbehør!$B:$B,Tilbehør!$A:$A),\"Findes ikke\"))","v":"Invisibleshield Glasselite VisionguardPlus Apple Baby Yoda 8 7 6S 6 Screen"},"A23609",{"$f":"IFERROR(VLOOKUP(AJ19,Lager!$A:$C,3,FALSE),0)","v":2},{"$f":"IF(AN19=0,\"Pt udsolgt\",IFERROR(_xlfn.XLOOKUP(AM19,Tilbehør!$B:$B,Tilbehør!$A:$A),\"Findes ikke\"))","v":"Invisibleshield Glasselite VisionguardPlus Apple Baby Yoda 8 7 6S 6 Screen"},"A23609",{"$f":"IFERROR(VLOOKUP(AM19,Lager!$A:$C,3,FALSE),0)","v":2},{"$f":"IF(AQ19=0,\"Pt udsolgt\",IFERROR(_xlfn.XLOOKUP(AP19,Tilbehør!$B:$B,Tilbehør!$A:$A),\"Findes ikke\"))","v":"InvisibleShield Glass Elite VisionGuardplus Apple iPhone 11 XR 12 12 Pro Screen"},"A24046",{"$f":"IFERROR(VLOOKUP(AP19,Lager!$A:$C,3,FALSE),0)","v":912},{"$f":"IF(AT19=0,\"Pt udsolgt\",IFERROR(_xlfn.XLOOKUP(AS19,Tilbehør!$B:$B,Tilbehør!$A:$A),\"Findes ikke\"))","v":"InvisibleShield Glass Elite VisionGuardplus Apple iPhone 11 XR 12 12 Pro Screen"},"A24046",{"$f":"IFERROR(VLOOKUP(AS19,Lager!$A:$C,3,FALSE),0)","v":912},{"$f":"IF(AW19=0,\"Pt udsolgt\",IFERROR(_xlfn.XLOOKUP(AV19,Tilbehør!$B:$B,Tilbehør!$A:$A),\"Findes ikke\"))","v":"InvisibleShield Glass Elite VisionGuardplus Apple iPhone 11 XR 12 12 Pro Screen"},"A24046",{"$f":"IFERROR(VLOOKUP(AV19,Lager!$A:$C,3,FALSE),0)","v":912},{"$f":"IF(AZ19=0,\"Pt udsolgt\",IFERROR(_xlfn.XLOOKUP(AY19,Tilbehør!$B:$B,Tilbehør!$A:$A),\"Findes ikke\"))","v":"InvisibleShield Glass Elite VisionGuardplus Apple iPhone 11 XR 12 12 Pro Screen"},"A24046",{"$f":"IFERROR(VLOOKUP(AY19,Lager!$A:$C,3,FALSE),0)","v":912},{"$f":"IF(BC19=0,\"Pt udsolgt\",IFERROR(_xlfn.XLOOKUP(BB19,Tilbehør!$B:$B,Tilbehør!$A:$A),\"Findes ikke\"))","v":"InvisibleShield Glass Elite VisionGuardplus Apple iPhone 11 XR 12 12 Pro Screen"},"A24046",{"$f":"IFERROR(VLOOKUP(BB19,Lager!$A:$C,3,FALSE),0)","v":912},{"$f":"IF(BF19=0,\"Pt udsolgt\",IFERROR(_xlfn.XLOOKUP(BE19,Tilbehør!$B:$B,Tilbehør!$A:$A),\"Findes ikke\"))","v":"InvisibleShield Glass Elite VisionGuardplus Apple iPhone 11 XR 12 12 Pro Screen"},"A24046",{"$f":"IFERROR(VLOOKUP(BE19,Lager!$A:$C,3,FALSE),0)","v":912},{"$f":"IF(BI19=0,\"Pt udsolgt\",IFERROR(_xlfn.XLOOKUP(BH19,Tilbehør!$B:$B,Tilbehør!$A:$A),\"Findes ikke\"))","v":"INVISIBLESHIELS GLASS ELITE VISIONGUARD SCREEN IPHONE iPhone 12 Mini"},"A24045",{"$f":"IFERROR(VLOOKUP(BH19,Lager!$A:$C,3,FALSE),0)","v":938},{"$f":"IF(BL19=0,\"Pt udsolgt\",IFERROR(_xlfn.XLOOKUP(BK19,Tilbehør!$B:$B,Tilbehør!$A:$A),\"Findes ikke\"))","v":"INVISIBLESHIELS GLASS ELITE VISIONGUARD SCREEN IPHONE iPhone 12 Mini"},"A24045",{"$f":"IFERROR(VLOOKUP(BK19,Lager!$A:$C,3,FALSE),0)","v":938},{"$f":"IF(BO19=0,\"Pt udsolgt\",IFERROR(_xlfn.XLOOKUP(BN19,Tilbehør!$B:$B,Tilbehør!$A:$A),\"Findes ikke\"))","v":"INVISIBLESHIELS GLASS ELITE VISIONGUARD SCREEN IPHONE iPhone 12 Mini"},"A24045",{"$f":"IFERROR(VLOOKUP(BN19,Lager!$A:$C,3,FALSE),0)","v":938},{"$f":"IF(BR19=0,\"Pt udsolgt\",IFERROR(_xlfn.XLOOKUP(BQ19,Tilbehør!$B:$B,Tilbehør!$A:$A),\"Findes ikke\"))","v":"INVISIBLESHIELS GLASS ELITE VISIONGUARD SCREEN IPHONE iPhone 12 pro Max"},"A24047",{"$f":"IFERROR(VLOOKUP(BQ19,Lager!$A:$C,3,FALSE),0)","v":278},{"$f":"IF(BU19=0,\"Pt udsolgt\",IFERROR(_xlfn.XLOOKUP(BT19,Tilbehør!$B:$B,Tilbehør!$A:$A),\"Findes ikke\"))","v":"INVISIBLESHIELS GLASS ELITE VISIONGUARD SCREEN IPHONE iPhone 12 pro Max"},"A24047",{"$f":"IFERROR(VLOOKUP(BT19,Lager!$A:$C,3,FALSE),0)","v":278},{"$f":"IF(BX19=0,\"Pt udsolgt\",IFERROR(_xlfn.XLOOKUP(BW19,Tilbehør!$B:$B,Tilbehør!$A:$A),\"Findes ikke\"))","v":"INVISIBLESHIELS GLASS ELITE VISIONGUARD SCREEN IPHONE iPhone 12 pro Max"},"A24047",{"$f":"IFERROR(VLOOKUP(BW19,Lager!$A:$C,3,FALSE),0)","v":278}]
["Apple iPhone 11 Pro Max 64GB","iPhone11promaxcover","iPhone11promaxpanserglas",null,{"$f":"IF(G20=0,\"Pt udsolgt\",IFERROR(_xlfn.XLOOKUP(F20,Tilbehør!B:B,Tilbehør!A:A),\"Findes ikke\"))","v":"Pt udsolgt"},"A23600",{"$f":"IFERROR(VLOOKUP(F20,Lager!$A:$C,3,FALSE),0)","v":0},{"$f":"IF(J20=0,\"Pt udsolgt\",IFERROR(_xlfn.XLOOKUP(I20,Tilbehør!$B:$B,Tilbehør!$A:$A),\"Findes ikke\"))","v":"Invisibleshield Glass Elite Edge Iphone X Xs 11 Pro Screen"},"A23604",{"$f":"IFERROR(VLOOKUP(I20,Lager!$A:$C,3,FALSE),0)","v":98},{"$f":"IF(M20=0,\"Pt udsolgt\",IFERROR(_xlfn.XLOOKUP(L20,Tilbehør!$B:$B,Tilbehør!$A:$A),\"Findes ikke\"))","v":"Invisibleshield Glass Elite Vision GuardPlus Iphone Xs Max 11 Pro Max Screen"},"A23612",{"$f":"IFERROR(VLOOKUP(L20,Lager!$A:$C,3,FALSE),0)","v":8},{"$f":"IF(P20=0,\"Pt udsolgt\",IFERROR(_xlfn.XLOOKUP(O20,Tilbehør!$B:$B,Tilbehør!$A:$A),\"Findes ikke\"))","v":"Invisibleshield Glass Elite Privacy Iphone X Xs 11 Pro Screen"},"A23615",{"$f":"IFERROR(VLOOKUP(O20,Lager!$A:$C,3,FALSE),0)","v":38},{"$f":"IF(S20=0,\"Pt udsolgt\",IFERROR(_xlfn.XLOOKUP(R20,Tilbehør!$B:$B,Tilbehør!$A:$A),\"Findes ikke\"))","v":"Invisibleshield Glass Elite Vision GuardPlus Iphone Xs Max 11 Pro Max Screen"},"A23612",{"$f":"IFERROR(VLOOKUP(R20,Lager!$A:$C,3,FALSE),0)","v":8},{"$f":"IF(V20=0,\"Pt udsolgt\",IFERROR(_xlfn.XLOOKUP(U20,Tilbehør!$B:$B,Tilbehør!$A:$A),\"Findes ikke\"))","v":"Invisibleshield Glass Elite VisionguardPlus Iphone Xr 11 Screen"},"A23611",{"$f":"IFERROR(VLOOKUP(U20,Lager!$A:$C,3,FALSE),0)","v":17},{"$f":"IF(Y20=0,\"Pt udsolgt\",IFERROR(_xlfn.XLOOKUP(X20,Tilbehør!$B:$B,Tilbehør!$A:$A),\"Findes ikke\"))","v":"Pt udsolgt"},"A23614",{"$f":"IFERROR(VLOOKUP(X20,Lager!$A:$C,3,FALSE),0)","v":0},null,null,null,{"$f":"IF(AE20=0,\"Pt udsolgt\",IFERROR(_xlfn.XLOOKUP(AD20,Tilbehør!$B:$B,Tilbehør!$A:$A),\"Findes ikke\"))","v":"Invisibleshield GlasselitePlus Apple Baby Yoda 8 7 6S 6 Screen"},"A23597",{"$f":"IFERROR(VLOOKUP(AD20,Lager!$A:$C,3,FALSE),0)","v":34},null,null,null,null,null,null,null,null,null,{"$f":"IF(AQ20=0,\"Pt udsolgt\",IFERROR(_xlfn.XLOOKUP(AP20,Tilbehør!$B:$B,Tilbehør!$A:$A),\"Findes ikke\"))","v":"InvisibleShield Glass Elite Privacyplus Apple iPhone 11 XR 12 12 Pro Screen"},"A24049",{"$f":"IFERROR(VLOOKUP(AP20,Lager!$A:$C,3,FALSE),0)","v":75},{"$f":"IF(AT20=0,\"Pt udsolgt\",IFERROR(_xlfn.XLOOKUP(AS20,Tilbehør!$B:$B,Tilbehør!$A:$A),\"Findes ikke\"))","v":"InvisibleShield Glass Elite Privacyplus Apple iPhone 11 XR 12 12 Pro Screen"},"A24049",{"$f":"IFERROR(VLOOKUP(AS20,Lager!$A:$C,3,FALSE),0)","v":75},{"$f":"IF(AW20=0,\"Pt udsolgt\",IFERROR(_xlfn.XLOOKUP(AV20,Tilbehør!$B:$B,Tilbehør!$A:$A),\"Findes ikke\"))","v":"InvisibleShield Glass Elite Privacyplus Apple iPhone 11 XR 12 12 Pro Screen"},"A24049",{"$f":"IFERROR(VLOOKUP(AV20,Lager!$A:$C,3,FALSE),0)","v":75},{"$f":"IF(AZ20=0,\"Pt udsolgt\",IFERROR(_xlfn.XLOOKUP(AY20,Tilbehør!$B:$B,Tilbehør!$A:$A),\"Findes ikke\"))","v":"InvisibleShield Glass Elite Privacyplus Apple iPhone 11 XR 12 12 Pro Screen"},"A24049",{"$f":"IFERROR(VLOOKUP(AY20,Lager!$A:$C,3,FALSE),0)","v":75},{"$f":"IF(BC20=0,\"Pt udsolgt\",IFERROR(_xlfn.XLOOKUP(BB20,Tilbehør!$B:$B,Tilbehør!$A:$A),\"Findes ikke\"))","v":"InvisibleShield Glass Elite Privacyplus Apple iPhone 11 XR 12 12 Pro Screen"},"A24049",{"$f":"IFERROR(VLOOKUP(BB20,Lager!$A:$C,3,FALSE),0)","v":75},{"$f":"IF(BF20=0,\"Pt udsolgt\",IFERROR(_xlfn.XLOOKUP(BE20,Tilbehør!$B:$B,Tilbehør!$A:$A),\"Findes ikke\"))","v":"InvisibleShield Glass Elite Privacyplus Apple iPhone 11 XR 12 12 Pro Screen"},"A24049",{"$f":"IFERROR(VLOOKUP(BE20,Lager!$A:$C,3,FALSE),0)","v":75},{"$f":"IF(BI20=0,\"Pt udsolgt\",IFERROR(_xlfn.XLOOKUP(BH20,Tilbehør!$B:$B,Tilbehør!$A:$A),\"Findes ikke\"))","v":"INVISIBLESHIELD GLASS ELITE PRIVACY plus IPHONE iPhone 12 Mini"},"A24048",{"$f":"IFERROR(VLOOKUP(BH20,Lager!$A:$C,3,FALSE),0)","v":145},{"$f":"IF(BL20=0,\"Pt udsolgt\",IFERROR(_xlfn.XLOOKUP(BK20,Tilbehør!$B:$B,Tilbehør!$A:$A),\"Findes ikke\"))","v":"INVISIBLESHIELD GLASS ELITE PRIVACY plus IPHONE iPhone 12 Mini"},"A24048",{"$f":"IFERROR(VLOOKUP(BK20,Lager!$A:$C,3,FALSE),0)","v":145},{"$f":"IF(BO20=0,\"Pt udsolgt\",IFERROR(_xlfn.XLOOKUP(BN20,Tilbehør!$B:$B,Tilbehør!$A:$A),\"Findes ikke\"))","v":"INVISIBLESHIELD GLASS ELITE PRIVACY plus IPHONE iPhone 12 Mini"},"A24048",{"$f":"IFERROR(VLOOKUP(BN20,Lager!$A:$C,3,FALSE),0)","v":145},{"$f":"IF(BR20=0,\"Pt udsolgt\",IFERROR(_xlfn.XLOOKUP(BQ20,Tilbehør!$B:$B,Tilbehør!$A:$A),\"Findes ikke\"))","v":"INVISIBLESHIELD GLASS ELITE PRIVACY plus IPHONE iPhone 12 pro Max"},"A24050",{"$f":"IFERROR(VLOOKUP(BQ20,Lager!$A:$C,3,FALSE),0)","v":83},{"$f":"IF(BU20=0,\"Pt udsolgt\",IFERROR(_xlfn.XLOOKUP(BT20,Tilbehør!$B:$B,Tilbehør!$A:$A),\"Findes ikke\"))","v":"INVISIBLESHIELD GLASS ELITE PRIVACY plus IPHONE iPhone 12 pro Max"},"A24050",{"$f":"IFERROR(VLOOKUP(BT20,Lager!$A:$C,3,FALSE),0)","v":83},{"$f":"IF(BX20=0,\"Pt udsolgt\",IFERROR(_xlfn.XLOOKUP(BW20,Tilbehør!$B:$B,Tilbehør!$A:$A),\"Findes ikke\"))","v":"INVISIBLESHIELD GLASS ELITE PRIVACY plus IPHONE iPhone 12 pro Max"},"A24050",{"$f":"IFERROR(VLOOKUP(BW20,Lager!$A:$C,3,FALSE),0)","v":83}]
["Apple iPhone 11 Pro Max 256GB","iPhone11promaxcover","iPhone11promaxpanserglas",null,null,null,null,{"$f":"IF(J21=0,\"Pt udsolgt\",IFERROR(_xlfn.XLOOKUP(I21,Tilbehør!$B:$B,Tilbehør!$A:$A),\"Findes ikke\"))","v":"Invisibleshield Glass Elite VisionguardPlus Iphone X Xs 11 Pro Screen"},"A23610",{"$f":"IFERROR(VLOOKUP(I21,Lager!$A:$C,3,FALSE),0)","v":35},{"$f":"IF(M21=0,\"Pt udsolgt\",IFERROR(_xlfn.XLOOKUP(L21,Tilbehør!$B:$B,Tilbehør!$A:$A),\"Findes ikke\"))","v":"Pt udsolgt"},null,{"$f":"IFERROR(VLOOKUP(L21,Lager!$A:$C,3,FALSE),0)","v":0},{"$f":"IF(P21=0,\"Pt udsolgt\",IFERROR(_xlfn.XLOOKUP(O21,Tilbehør!$B:$B,Tilbehør!$A:$A),\"Findes ikke\"))","v":"Invisibleshield Glass Elite Iphone X Xs 11 Pro Screen"},"A23599",{"$f":"IFERROR(VLOOKUP(O21,Lager!$A:$C,3,FALSE),0)","v":44},{"$f":"IF(S21=0,\"Pt udsolgt\",IFERROR(_xlfn.XLOOKUP(R21,Tilbehør!$B:$B,Tilbehør!$A:$A),\"Findes ikke\"))","v":"Pt udsolgt"},null,{"$f":"IFERROR(VLOOKUP(R21,Lager!$A:$C,3,FALSE),0)","v":0},{"$f":"IF(V21=0,\"Pt udsolgt\",IFERROR(_xlfn.XLOOKUP(U21,Tilbehør!$B:$B,Tilbehør!$A:$A),\"Findes ikke\"))","v":"Invisibleshield Glass Elite Privacy Iphone Xr 11Screen"},"A23616",{"$f":"IFERROR(VLOOKUP(U21,Lager!$A:$C,3,FALSE),0)","v":5},null,null,null,null,null,null,null,null,null,null,null,null,null,null,null,null,null,null,{"$f":"IF(AQ21=0,\"Pt udsolgt\",IFERROR(_xlfn.XLOOKUP(AP21,Tilbehør!$B:$B,Tilbehør!$A:$A),\"Findes ikke\"))","v":"PanzerGlass ClearCase for Apple iPhone 12 og 12 Pro"},"A24083",{"$f":"IFERROR(VLOOKUP(AP21,Lager!$A:$C,3,FALSE),0)","v":15},{"$f":"IF(AT21=0,\"Pt udsolgt\",IFERROR(_xlfn.XLOOKUP(AS21,Tilbehør!$B:$B,Tilbehør!$A:$A),\"Findes ikke\"))","v":"PanzerGlass ClearCase for Apple iPhone 12 og 12 Pro"},"A24083",{"$f":"IFERROR(VLOOKUP(AS21,Lager!$A:$C,3,FALSE),0)","v":15},{"$f":"IF(AW21=0,\"Pt udsolgt\",IFERROR(_xlfn.XLOOKUP(AV21,Tilbehør!$B:$B,Tilbehør!$A:$A),\"Findes ikke\"))","v":"PanzerGlass ClearCase for Apple iPhone 12 og 12 Pro"},"A24083",{"$f":"IFERROR(VLOOKUP(AV21,Lager!$A:$C,3,FALSE),0)","v":15},{"$f":"IF(AZ21=0,\"Pt udsolgt\",IFERROR(_xlfn.XLOOKUP(AY21,Tilbehør!$B:$B,Tilbehør!$A:$A),\"Findes ikke\"))","v":"PanzerGlass ClearCase for Apple iPhone 12 og 12 Pro"},"A24083",{"$f":"IFERROR(VLOOKUP(AY21,Lager!$A:$C,3,FALSE),0)","v":15},{"$f":"IF(BC21=0,\"Pt udsolgt\",IFERROR(_xlfn.XLOOKUP(BB21,Tilbehør!$B:$B,Tilbehør!$A:$A),\"Findes ikke\"))","v":"PanzerGlass ClearCase for Apple iPhone 12 og 12 Pro"},"A24083",{"$f":"IFERROR(VLOOKUP(BB21,Lager!$A:$C,3,FALSE),0)","v":15},{"$f":"IF(BF21=0,\"Pt udsolgt\",IFERROR(_xlfn.XLOOKUP(BE21,Tilbehør!$B:$B,Tilbehør!$A:$A),\"Findes ikke\"))","v":"PanzerGlass ClearCase for Apple iPhone 12 og 12 Pro"},"A24083",{"$f":"IFERROR(VLOOKUP(BE21,Lager!$A:$C,3,FALSE),0)","v":15}]
["Apple iPhone 11 Pro Max 512GB","iPhone11promaxcover","iPhone11promaxpanserglas",null,null,null,null,{"$f":"IF(J22=0,\"Pt udsolgt\",IFERROR(_xlfn.XLOOKUP(I22,Tilbehør!$B:$B,Tilbehør!$A:$A),\"Findes ikke\"))","v":"Invisibleshield Glass Elite Privacy Iphone X Xs 11 Pro Screen"},"A23615",{"$f":"IFERROR(VLOOKUP(I22,Lager!$A:$C,3,FALSE),0)","v":38},{"$f":"IF(M22=0,\"Pt udsolgt\",IFERROR(_xlfn.XLOOKUP(L22,Tilbehør!$B:$B,Tilbehør!$A:$A),\"Findes ikke\"))","v":"Pt udsolgt"},null,{"$f":"IFERROR(VLOOKUP(L22,Lager!$A:$C,3,FALSE),0)","v":0},{"$f":"IF(P22=0,\"Pt udsolgt\",IFERROR(_xlfn.XLOOKUP(#REF!,Tilbehør!$B:$B,Tilbehør!$A:$A),\"Findes ikke\"))","v":"Pt udsolgt"},"A22485",{"$f":"IFERROR(VLOOKUP(#REF!,Lager!$A:$C,3,FALSE),0)","v":0},{"$f":"IF(S22=0,\"Pt udsolgt\",IFERROR(_xlfn.XLOOKUP(R22,Tilbehør!$B:$B,Tilbehør!$A:$A),\"Findes ikke\"))","v":"Pt udsolgt"},null,{"$f":"IFERROR(VLOOKUP(R22,Lager!$A:$C,3,FALSE),0)","v":0},{"$f":"IF(V22=0,\"Pt udsolgt\",IFERROR(_xlfn.XLOOKUP(#REF!,Tilbehør!$B:$B,Tilbehør!$A:$A),\"Findes ikke\"))","v":"Pt udsolgt"},"A22949",{"$f":"IFERROR(VLOOKUP(#REF!,Lager!$A:$C,3,FALSE),0)","v":0},null,null,null,null,null,null,null,null,null,null,null,null,null,null,null,null,null,null,{"$f":"IF(AQ22=0,\"Pt udsolgt\",IFERROR(_xlfn.XLOOKUP(AP22,Tilbehør!$B:$B,Tilbehør!$A:$A),\"Findes ikke\"))","v":"PanzerGlass ClearCase with BlackFrame for Apple iPhone 12 og 12 Pro"},"A24086",{"$f":"IFERROR(VLOOKUP(AP22,Lager!$A:$C,3,FALSE),0)","v":23},{"$f":"IF(AT22=0,\"Pt udsolgt\",IFERROR(_xlfn.XLOOKUP(AS22,Tilbehør!$B:$B,Tilbehør!$A:$A),\"Findes ikke\"))","v":"PanzerGlass ClearCase with BlackFrame for Apple iPhone 12 og 12 Pro"},"A24086",{"$f":"IFERROR(VLOOKUP(AS22,Lager!$A:$C,3,FALSE),0)","v":23},{"$f":"IF(AW22=0,\"Pt udsolgt\",IFERROR(_xlfn.XLOOKUP(AV22,Tilbehør!$B:$B,Tilbehør!$A:$A),\"Findes ikke\"))","v":"PanzerGlass ClearCase with BlackFrame for Apple iPhone 12 og 12 Pro"},"A24086",{"$f":"IFERROR(VLOOKUP(AV22,Lager!$A:$C,3,FALSE),0)","v":23},{"$f":"IF(AZ22=0,\"Pt udsolgt\",IFERROR(_xlfn.XLOOKUP(AY22,Tilbehør!$B:$B,Tilbehør!$A:$A),\"Findes ikke\"))","v":"PanzerGlass ClearCase with BlackFrame for Apple iPhone 12 og 12 Pro"},"A24086",{"$f":"IFERROR(VLOOKUP(AY22,Lager!$A:$C,3,FALSE),0)","v":23},{"$f":"IF(BC22=0,\"Pt udsolgt\",IFERROR(_xlfn.XLOOKUP(BB22,Tilbehør!$B:$B,Tilbehør!$A:$A),\"Findes ikke\"))","v":"PanzerGlass ClearCase with BlackFrame for Apple iPhone 12 og 12 Pro"},"A24086",{"$f":"IFERROR(VLOOKUP(BB22,Lager!$A:$C,3,FALSE),0)","v":23},{"$f":"IF(BF22=0,\"Pt udsolgt\",IFERROR(_xlfn.XLOOKUP(BE22,Tilbehør!$B:$B,Tilbehør!$A:$A),\"Findes ikke\"))","v":"PanzerGlass ClearCase with BlackFrame for Apple iPhone 12 og 12 Pro"},"A24086",{"$f":"IFERROR(VLOOKUP(BE22,Lager!$A:$C,3,FALSE),0)","v":23}]
["Apple iPhone XS 64GB","iPhonexscover","iPhonexspanserglas",null,null,null,null,{"$f":"IF(J23=0,\"Pt udsolgt\",IFERROR(_xlfn.XLOOKUP(I23,Tilbehør!$B:$B,Tilbehør!$A:$A),\"Findes ikke\"))","v":"Pt udsolgt"},"A23223",{"$f":"IFERROR(VLOOKUP(I23,Lager!$A:$C,3,FALSE),0)","v":0},{"$f":"IF(M23=0,\"Pt udsolgt\",IFERROR(_xlfn.XLOOKUP(L23,Tilbehør!$B:$B,Tilbehør!$A:$A),\"Findes ikke\"))","v":"Pt udsolgt"},null,{"$f":"IFERROR(VLOOKUP(L23,Lager!$A:$C,3,FALSE),0)","v":0},null,null,null,{"$f":"IF(S23=0,\"Pt udsolgt\",IFERROR(_xlfn.XLOOKUP(R23,Tilbehør!$B:$B,Tilbehør!$A:$A),\"Findes ikke\"))","v":"Pt udsolgt"},null,{"$f":"IFERROR(VLOOKUP(R23,Lager!$A:$C,3,FALSE),0)","v":0}]
["Apple iPhone XS 256GB","iPhonexscover","iPhonexspanserglas",null,null,null,null,{"$f":"IF(J24=0,\"Pt udsolgt\",IFERROR(_xlfn.XLOOKUP(I24,Tilbehør!$B:$B,Tilbehør!$A:$A),\"Findes ikke\"))","v":"Pt udsolgt"},"A23220",{"$f":"IFERROR(VLOOKUP(I24,Lager!$A:$C,3,FALSE),0)","v":0}]
["Apple iPhone XS Max 64GB","iPhonexsmaxcover","iPhonexsmaxpanserglas"]
["Apple iPhone XS Max 256GB","iPhonexsmaxcover","iPhonexsmaxpanserglas",null,"Motoroloaonezoomcover","Anummer","Lager","Morololaonehypercover","Anummer","Lager"]
["Apple iPhone Xr 64GB","iPhonexrcover","iPhonexrpanserglas",null,{"$f":"IF(G27=0,\"Pt udsolgt\",IFERROR(_xlfn.XLOOKUP(F27,Tilbehør!B:B,Tilbehør!A:A),\"Findes ikke\"))","v":"Pt udsolgt"},null,{"$f":"IFERROR(VLOOKUP(F27,Lager!$A:$C,3,FALSE),0)","v":0},{"$f":"IF(J27=0,\"Pt udsolgt\",IFERROR(_xlfn.XLOOKUP(I27,Tilbehør!$B:$B,Tilbehør!$A:$A),\"Findes ikke\"))","v":"Pt udsolgt"},null,{"$f":"IFERROR(VLOOKUP(I27,Lager!$A:$C,3,FALSE),0)","v":0}]
["Apple iPhone Xr 128GB","iPhonexrcover","iPhonexrpanserglas",null,{"$f":"IFERROR(VLOOKUP(F28,#REF!,5,FALSE),\"\")","v":""}]
["Apple iPhone 8 64GB ","iPhone8cover","iPhone8panserglas",null,"Motorolaonezoompanserglas","Anummer","Lager","Morololaonehyperpanserglas","Anummer","Lager"]
["Apple iPhone 8 128GB","iPhone8cover","iPhone8panserglas",null,{"$f":"IF(G30=0,\"Pt udsolgt\",IFERROR(_xlfn.XLOOKUP(F30,Tilbehør!B:B,Tilbehør!A:A),\"Findes ikke\"))","v":"Pt udsolgt"},"A23343",{"$f":"IFERROR(VLOOKUP(F30,Lager!$A:$C,3,FALSE),0)","v":0},{"$f":"IF(J30=0,\"Pt udsolgt\",IFERROR(_xlfn.XLOOKUP(I30,Tilbehør!$B:$B,Tilbehør!$A:$A),\"Findes ikke\"))","v":"Pt udsolgt"},"A23463",{"$f":"IFERROR(VLOOKUP(I30,Lager!$A:$C,3,FALSE),0)","v":0}]
["Apple iPhone 7 32GB","iPhone7cover","iPhone7panserglas"]
["Apple iPhone 8 Plus 64GB ","iPhone8pluscover","iPhone8pluspanserglas",null,"p30litecover","Anummer","Lager","p30cover","Anummer","Lager","p30procover","Anummer","Lager","p40litecover","Anummer","Lager","p40procover","Anummer","Lager"]
["Apple iPhone SE 2nd gen 128GB NEW (OBS. UDEN OPLADER)","AppleiPhoneSE2ndgen128GBCover","AppleiPhoneSE2ndgen128GBpanserglas",null,{"$f":"IF(G33=0,\"Pt udsolgt\",IFERROR(_xlfn.XLOOKUP(F33,Tilbehør!B:B,Tilbehør!A:A),\"Findes ikke\"))","v":"Pt udsolgt"},"A23122",{"$f":"IFERROR(VLOOKUP(F33,Lager!$A:$C,3,FALSE),0)","v":0},{"$f":"IF(J33=0,\"Pt udsolgt\",IFERROR(_xlfn.XLOOKUP(I33,Tilbehør!$B:$B,Tilbehør!$A:$A),\"Findes ikke\"))","v":"Pt udsolgt"},"A23124",{"$f":"IFERROR(VLOOKUP(I33,Lager!$A:$C,3,FALSE),0)","v":0},{"$f":"IF(M33=0,\"Pt udsolgt\",IFERROR(_xlfn.XLOOKUP(L33,Tilbehør!$B:$B,Tilbehør!$A:$A),\"Findes ikke\"))","v":"Pt udsolgt"},"A23123",{"$f":"IFERROR(VLOOKUP(L33,Lager!$A:$C,3,FALSE),0)","v":0},{"$f":"IF(P33=0,\"Pt udsolgt\",IFERROR(_xlfn.XLOOKUP(O33,Tilbehør!$B:$B,Tilbehør!$A:$A),\"Findes ikke\"))","v":"Huawei P40 Lite Protective Cover Transparent"},"A23724",{"$f":"IFERROR(VLOOKUP(O33,Lager!$A:$C,3,FALSE),0)","v":12},{"$f":"IF(S33=0,\"Pt udsolgt\",IFERROR(_xlfn.XLOOKUP(R33,Tilbehør!$B:$B,Tilbehør!$A:$A),\"Findes ikke\"))","v":"Huawei P40 Pro Protective Cover Transparent"},"A23725",{"$f":"IFERROR(VLOOKUP(R33,Lager!$A:$C,3,FALSE),0)","v":11}]
["Apple iPhone SE 2nd gen 256GB NEW (OBS. UDEN OPLADER)","AppleiPhoneSE2ndgen256GBCover","AppleiPhoneSE2ndgen256GBpanserglas",null,{"$f":"IF(G34=0,\"Pt udsolgt\",IFERROR(_xlfn.XLOOKUP(F34,Tilbehør!B:B,Tilbehør!A:A),\"Findes ikke\"))","v":"Pt udsolgt"},null,null,{"$f":"IF(J34=0,\"Pt udsolgt\",IFERROR(_xlfn.XLOOKUP(I34,Tilbehør!$B:$B,Tilbehør!$A:$A),\"Findes ikke\"))","v":"Pt udsolgt"},"A23109",{"$f":"IFERROR(VLOOKUP(I34,Lager!$A:$C,3,FALSE),0)","v":0},{"$f":"IF(M34=0,\"Pt udsolgt\",IFERROR(_xlfn.XLOOKUP(L34,Tilbehør!$B:$B,Tilbehør!$A:$A),\"Findes ikke\"))","v":"Pt udsolgt"},"A23112",{"$f":"IFERROR(VLOOKUP(L34,Lager!$A:$C,3,FALSE),0)","v":0}]
["Apple iPhone SE 2nd gen 64GB NEW (OBS. UDEN OPLADER)","AppleiPhoneSE2ndgen64GBCover","AppleiPhoneSE2ndgen64GBpanserglas",null,null,null,null,{"$f":"IF(J35=0,\"Pt udsolgt\",IFERROR(_xlfn.XLOOKUP(I35,Tilbehør!$B:$B,Tilbehør!$A:$A),\"Findes ikke\"))","v":"Pt udsolgt"},"A23110",{"$f":"IFERROR(VLOOKUP(I35,Lager!$A:$C,3,FALSE),0)","v":0},{"$f":"IF(M35=0,\"Pt udsolgt\",IFERROR(_xlfn.XLOOKUP(L35,Tilbehør!$B:$B,Tilbehør!$A:$A),\"Findes ikke\"))","v":"Pt udsolgt"},"A23111",{"$f":"IFERROR(VLOOKUP(L35,Lager!$A:$C,3,FALSE),0)","v":0}]
[]
["Motorola One Hyper 128GB Blue","Morololaonehypercover","Morololaonehyperpanserglas",null,"p30litepanserglas","Anummer","Lager","p30panserglas","Anummer","Lager","p30propanserglas","Anummer","Lager","p40litepanserglas","Anummer","Lager","p40propanserglas","Anummer","Lager"]
["Motorola One Zoom 128GB HDS","Motoroloaonezoomcover","Motorolaonezoompanserglas",null,{"$f":"IF(G38=0,\"Pt udsolgt\",IFERROR(_xlfn.XLOOKUP(F38,Tilbehør!B:B,Tilbehør!A:A),\"Findes ikke\"))","v":"Invisibleshield GlassPlus Huawei P30 Lite Screen"},"A23639",{"$f":"IFERROR(VLOOKUP(F38,Lager!$A:$C,3,FALSE),0)","v":4},{"$f":"IF(J38=0,\"Pt udsolgt\",IFERROR(_xlfn.XLOOKUP(I38,Tilbehør!$B:$B,Tilbehør!$A:$A),\"Findes ikke\"))","v":"Invisibleshield GlassPlus Huawei P30 Lite Screen"},"A23639",{"$f":"IFERROR(VLOOKUP(I38,Lager!$A:$C,3,FALSE),0)","v":4},{"$f":"IF(M38=0,\"Pt udsolgt\",IFERROR(_xlfn.XLOOKUP(L38,Tilbehør!$B:$B,Tilbehør!$A:$A),\"Findes ikke\"))","v":"Pt udsolgt"},"A23107",{"$f":"IFERROR(VLOOKUP(L38,Lager!$A:$C,3,FALSE),0)","v":0},{"$f":"IF(P38=0,\"Pt udsolgt\",IFERROR(_xlfn.XLOOKUP(O38,Tilbehør!$B:$B,Tilbehør!$A:$A),\"Findes ikke\"))","v":"INVISIBLESHIELD ULTRA CLEAR SCREEN HUAWEI P40 LITE"},"A23735",{"$f":"IFERROR(VLOOKUP(O38,Lager!$A:$C,3,FALSE),0)","v":7},{"$f":"IF(S38=0,\"Pt udsolgt\",IFERROR(_xlfn.XLOOKUP(R38,Tilbehør!$B:$B,Tilbehør!$A:$A),\"Findes ikke\"))","v":"InvisibleShield Ultra Clear Huawei P40 Pro"},"A23732",{"$f":"IFERROR(VLOOKUP(R38,Lager!$A:$C,3,FALSE),0)","v":11}]
[]
["Huawei P30 Lite","p30litecover","p30litepanserglas"]
["Huawei P30","p30cover","p30panserglas",null,"Oneplus7cover","Anummer","Lager","Oneplus7procover","Anummer","Lager","Oneplus7tcover","Anummer","Lager","Oneplus7tprocover","Anummer","Lager","OnePlusNord128Cover","Anummer","Lager","OnePlusNord256Cover","Anummer","Lager"]
["Huawei P30 Pro 128GB","p30procover","p30propanserglas",null,{"$f":"IF(G42=0,\"Pt udsolgt\",IFERROR(_xlfn.XLOOKUP(F42,Tilbehør!B:B,Tilbehør!A:A),\"Findes ikke\"))","v":"Pt udsolgt"},"A23175",{"$f":"IFERROR(VLOOKUP(F42,Lager!$A:$C,3,FALSE),0)","v":0},{"$f":"IF(J42=0,\"Pt udsolgt\",IFERROR(_xlfn.XLOOKUP(I42,Tilbehør!$B:$B,Tilbehør!$A:$A),\"Findes ikke\"))","v":"Pt udsolgt"},"A23174",{"$f":"IFERROR(VLOOKUP(I42,Lager!$A:$C,3,FALSE),0)","v":0},{"$f":"IF(M42=0,\"Pt udsolgt\",IFERROR(_xlfn.XLOOKUP(L42,Tilbehør!$B:$B,Tilbehør!$A:$A),\"Findes ikke\"))","v":"Pt udsolgt"},null,{"$f":"IFERROR(VLOOKUP(L42,Lager!$A:$C,3,FALSE),0)","v":0},{"$f":"IF(P42=0,\"Pt udsolgt\",IFERROR(_xlfn.XLOOKUP(O42,Tilbehør!$B:$B,Tilbehør!$A:$A),\"Findes ikke\"))","v":"Pt udsolgt"},null,{"$f":"IFERROR(VLOOKUP(O42,Lager!$A:$C,3,FALSE),0)","v":0},{"$f":"IF(S42=0,\"Pt udsolgt\",IFERROR(_xlfn.XLOOKUP(R42,Tilbehør!$B:$B,Tilbehør!$A:$A),\"Findes ikke\"))","v":"OnePlus Nord Sandstone Bumper Case Sandstone Black"},"A24033",{"$f":"IFERROR(VLOOKUP(R42,Lager!$A:$C,3,FALSE),0)","v":14},{"$f":"IF(V42=0,\"Pt udsolgt\",IFERROR(_xlfn.XLOOKUP(U42,Tilbehør!$B:$B,Tilbehør!$A:$A),\"Findes ikke\"))","v":"OnePlus Nord Sandstone Bumper Case Sandstone Black"},"A24033",{"$f":"IFERROR(VLOOKUP(U42,Lager!$A:$C,3,FALSE),0)","v":14}]
["Huawei P30 Pro 256GB","p30procover","p30propanserglas",null,{"$f":"IF(G43=0,\"Pt udsolgt\",IFERROR(_xlfn.XLOOKUP(F43,Tilbehør!B:B,Tilbehør!A:A),\"Findes ikke\"))","v":"Pt udsolgt"},"A23173",{"$f":"IFERROR(VLOOKUP(F43,Lager!$A:$C,3,FALSE),0)","v":0},{"$f":"IF(J43=0,\"Pt udsolgt\",IFERROR(_xlfn.XLOOKUP(I43,Tilbehør!$B:$B,Tilbehør!$A:$A),\"Findes ikke\"))","v":"Pt udsolgt"},"A23172",{"$f":"IFERROR(VLOOKUP(I43,Lager!$A:$C,3,FALSE),0)","v":0}]
["Huawei P40 Lite 4G","p40litecover","p40litepanserglas"]
["Huawei P40 Pro","p40procover","p40propanserglas",null,"Oneplus7panserglas","Anummer","Lager","Oneplus7propanserglas","Anummer","Lager","Oneplus7tpanserglas","Anummer","Lager","Oneplus7tpropanserglas","Anummer","Lager","OnePlusNord128Panserglas","Anummer","Lager","OnePlusNord256Panserglas","Anummer","Lager"]
[null,null,null,null,{"$f":"IF(G46=0,\"Pt udsolgt\",IFERROR(_xlfn.XLOOKUP(F46,Tilbehør!B:B,Tilbehør!A:A),\"Findes ikke\"))","v":"PanzerGlass OnePlus 7 Black"},"A22995",{"$f":"IFERROR(VLOOKUP(F46,Lager!$A:$C,3,FALSE),0)","v":1},{"$f":"IF(J46=0,\"Pt udsolgt\",IFERROR(_xlfn.XLOOKUP(I46,Tilbehør!$B:$B,Tilbehør!$A:$A),\"Findes ikke\"))","v":"Pt udsolgt"},"A62536",{"$f":"IFERROR(VLOOKUP(I46,Lager!$A:$C,3,FALSE),0)","v":0},{"$f":"IF(M46=0,\"Pt udsolgt\",IFERROR(_xlfn.XLOOKUP(L46,Tilbehør!$B:$B,Tilbehør!$A:$A),\"Findes ikke\"))","v":"Pt udsolgt"},null,{"$f":"IFERROR(VLOOKUP(L46,Lager!$A:$C,3,FALSE),0)","v":0},{"$f":"IF(P46=0,\"Pt udsolgt\",IFERROR(_xlfn.XLOOKUP(O46,Tilbehør!$B:$B,Tilbehør!$A:$A),\"Findes ikke\"))","v":"Pt udsolgt"},null,{"$f":"IFERROR(VLOOKUP(O46,Lager!$A:$C,3,FALSE),0)","v":0},{"$f":"IF(S46=0,\"Pt udsolgt\",IFERROR(_xlfn.XLOOKUP(R46,Tilbehør!$B:$B,Tilbehør!$A:$A),\"Findes ikke\"))","v":"Invisibleshield Ultra Clear Screen OnePlus Nord"},"A23859",{"$f":"IFERROR(VLOOKUP(R46,Lager!$A:$C,3,FALSE),0)","v":18},{"$f":"IF(V46=0,\"Pt udsolgt\",IFERROR(_xlfn.XLOOKUP(U46,Tilbehør!$B:$B,Tilbehør!$A:$A),\"Findes ikke\"))","v":"Invisibleshield Ultra Clear Screen OnePlus Nord"},"A23859",{"$f":"IFERROR(VLOOKUP(U46,Lager!$A:$C,3,FALSE),0)","v":18}]
[null,null,null,null,null,null,null,null,null,null,null,null,null,null,null,null,{"$f":"IF(S47=0,\"Pt udsolgt\",IFERROR(_xlfn.XLOOKUP(R47,Tilbehør!$B:$B,Tilbehør!$A:$A),\"Findes ikke\"))","v":"Pt udsolgt"},null,{"$f":"IFERROR(VLOOKUP(R47,Lager!$A:$C,3,FALSE),0)","v":0}]
["OnePlus 7 128GB","Oneplus7cover","Oneplus7panserglas"]
["OnePlus 7 Pro 256GB ","Oneplus7procover","Oneplus7propanserglas"]
["OnePlus 7T 128GB","Oneplus7tcover","Oneplus7tpanserglas",null,"Note10cover","Anummer","Lager","Note10pluscover","Anummer","Lager","S10litecover","Anummer","Lager","S10cover","Anummer","Lager","S10pluscover","Anummer","Lager","Note9cover","Anummer","Lager","Xcover4scover","Anummer","Lager","A40cover","Anummer","Lager","S20cover","Anummer","Lager","S20ultracover","Anummer","Lager","S20pluscover","Anummer","Lager","Zflipcover","Anummer","Lager","GalaxyA71cover","Anummer","Lager","Note10LiteCover","Anummer","Lager","GalaxyA21scover","Anummer","Lager","SamsungGalaxyNote20256GB5GCover","Anummer","Lager","SamsungGalaxyNote20Ultra256GB5GCover","Anummer","Lager","SamsungGalaxyNote20Ultra512GB5GCover","Anummer","Lager","SamsungGalaxyS20FE4G128GBCover","Anummer","Lager","SamsungGalaxyS20FE5G128GBCover","Anummer","Lager","SamsungGalaxyS215G128GBCover","Anummer","Lager","SamsungGalaxyS215G256GBCover","Anummer","Lager","SamsungGalaxyS215GUltra128GBCover","Anummer","Lager","SamsungGalaxyS215GUltra256GBCover","Anummer","Lager","SamsungGalaxyS215GUltra512GBCover","Anummer","Lager","SamsungGalaxyS21Plus5G128GBCover","Anummer","Lager","SamsungGalaxyS21Plus5G256GBCover","Anummer","Lager"]
["OnePlus 7T Pro 256GB","Oneplus7tprocover","Oneplus7tpropanserglas",null,{"$f":"IF(G51=0,\"Pt udsolgt\",IFERROR(_xlfn.XLOOKUP(F51,Tilbehør!B:B,Tilbehør!A:A),\"Findes ikke\"))","v":"Pt udsolgt"},"A23188",{"$f":"IFERROR(VLOOKUP(F51,Lager!$A:$C,3,FALSE),0)","v":0},{"$f":"IF(J51=0,\"Pt udsolgt\",IFERROR(_xlfn.XLOOKUP(I51,Tilbehør!$B:$B,Tilbehør!$A:$A),\"Findes ikke\"))","v":"Pt udsolgt"},"A23192",{"$f":"IFERROR(VLOOKUP(I51,Lager!$A:$C,3,FALSE),0)","v":0},{"$f":"IF(M51=0,\"Pt udsolgt\",IFERROR(_xlfn.XLOOKUP(L51,Tilbehør!$B:$B,Tilbehør!$A:$A),\"Findes ikke\"))","v":"Pt udsolgt"},"A23471",{"$f":"IFERROR(VLOOKUP(L51,Lager!$A:$C,3,FALSE),0)","v":0},{"$f":"IF(P51=0,\"Pt udsolgt\",IFERROR(_xlfn.XLOOKUP(O51,Tilbehør!$B:$B,Tilbehør!$A:$A),\"Findes ikke\"))","v":"Pt udsolgt"},"A23072",{"$f":"IFERROR(VLOOKUP(O51,Lager!$A:$C,3,FALSE),0)","v":0},{"$f":"IF(S51=0,\"Pt udsolgt\",IFERROR(_xlfn.XLOOKUP(R51,Tilbehør!$B:$B,Tilbehør!$A:$A),\"Findes ikke\"))","v":"Pt udsolgt"},"A23077",{"$f":"IFERROR(VLOOKUP(R51,Lager!$A:$C,3,FALSE),0)","v":0},{"$f":"IF(V51=0,\"Pt udsolgt\",IFERROR(_xlfn.XLOOKUP(U51,Tilbehør!$B:$B,Tilbehør!$A:$A),\"Findes ikke\"))","v":"Pt udsolgt"},"A22889",{"$f":"IFERROR(VLOOKUP(U51,Lager!$A:$C,3,FALSE),0)","v":0},{"$f":"IF(Y51=0,\"Pt udsolgt\",IFERROR(_xlfn.XLOOKUP(X51,Tilbehør!$B:$B,Tilbehør!$A:$A),\"Findes ikke\"))","v":"Pt udsolgt"},null,{"$f":"IFERROR(VLOOKUP(X51,Lager!$A:$C,3,FALSE),0)","v":0},{"$f":"IF(AB51=0,\"Pt udsolgt\",IFERROR(_xlfn.XLOOKUP(AA51,Tilbehør!$B:$B,Tilbehør!$A:$A),\"Findes ikke\"))","v":"Pt udsolgt"},"A23162",{"$f":"IFERROR(VLOOKUP(AA51,Lager!$A:$C,3,FALSE),0)","v":0},{"$f":"IF(AE51=0,\"Pt udsolgt\",IFERROR(_xlfn.XLOOKUP(AD51,Tilbehør!$B:$B,Tilbehør!$A:$A),\"Findes ikke\"))","v":"Pt udsolgt"},"A23678",{"$f":"IFERROR(VLOOKUP(AD51,Lager!$A:$C,3,FALSE),0)","v":0},{"$f":"IF(AH51=0,\"Pt udsolgt\",IFERROR(_xlfn.XLOOKUP(AG51,Tilbehør!$B:$B,Tilbehør!$A:$A),\"Findes ikke\"))","v":"Samsung Galaxy S20 Ultra Clear View Cover Black"},"A23499",{"$f":"IFERROR(VLOOKUP(AG51,Lager!$A:$C,3,FALSE),0)","v":33},{"$f":"IF(AK51=0,\"Pt udsolgt\",IFERROR(_xlfn.XLOOKUP(AJ51,Tilbehør!$B:$B,Tilbehør!$A:$A),\"Findes ikke\"))","v":"Samsung Clear View Cover S20Plus"},"A23469",{"$f":"IFERROR(VLOOKUP(AJ51,Lager!$A:$C,3,FALSE),0)","v":32},{"$f":"IF(AN51=0,\"Pt udsolgt\",IFERROR(_xlfn.XLOOKUP(AM51,Tilbehør!$B:$B,Tilbehør!$A:$A),\"Findes ikke\"))","v":"Pt udsolgt"},"A23495",{"$f":"IFERROR(VLOOKUP(AM51,Lager!$A:$C,3,FALSE),0)","v":0},{"$f":"IF(AQ51=0,\"Pt udsolgt\",IFERROR(_xlfn.XLOOKUP(AP51,Tilbehør!$B:$B,Tilbehør!$A:$A),\"Findes ikke\"))","v":"Pt udsolgt"},null,{"$f":"IFERROR(VLOOKUP(AP51,Lager!$A:$C,3,FALSE),0)","v":0},{"$f":"IF(AT51=0,\"Pt udsolgt\",IFERROR(_xlfn.XLOOKUP(AS51,Tilbehør!$B:$B,Tilbehør!$A:$A),\"Findes ikke\"))","v":"Pt udsolgt"},null,{"$f":"IFERROR(VLOOKUP(AS51,Lager!$A:$C,3,FALSE),0)","v":0},{"$f":"IF(AW51=0,\"Pt udsolgt\",IFERROR(_xlfn.XLOOKUP(AV51,Tilbehør!$B:$B,Tilbehør!$A:$A),\"Findes ikke\"))","v":"Pt udsolgt"},null,{"$f":"IFERROR(VLOOKUP(AV51,Lager!$A:$C,3,FALSE),0)","v":0},{"$f":"IF(AZ51=0,\"Pt udsolgt\",IFERROR(_xlfn.XLOOKUP(AY51,Tilbehør!$B:$B,Tilbehør!$A:$A),\"Findes ikke\"))","v":"Pt udsolgt"},null,{"$f":"IFERROR(VLOOKUP(AY51,Lager!$A:$C,3,FALSE),0)","v":0},{"$f":"IF(BC51=0,\"Pt udsolgt\",IFERROR(_xlfn.XLOOKUP(BB51,Tilbehør!$B:$B,Tilbehør!$A:$A),\"Findes ikke\"))","v":"Samsung Galaxy Note 20 Plus Clear View Cover Mystic Black"},"A24030",{"$f":"IFERROR(VLOOKUP(BB51,Lager!$A:$C,3,FALSE),0)","v":10},{"$f":"IF(BF51=0,\"Pt udsolgt\",IFERROR(_xlfn.XLOOKUP(BE51,Tilbehør!$B:$B,Tilbehør!$A:$A),\"Findes ikke\"))","v":"Samsung Galaxy Note 20 Plus Clear View Cover Mystic Black"},"A24030",{"$f":"IFERROR(VLOOKUP(BE51,Lager!$A:$C,3,FALSE),0)","v":10},{"$f":"IF(BI51=0,\"Pt udsolgt\",IFERROR(_xlfn.XLOOKUP(BH51,Tilbehør!$B:$B,Tilbehør!$A:$A),\"Findes ikke\"))","v":"Samsung S20 FE Silicone Cover Navy"},"A24094",{"$f":"IFERROR(VLOOKUP(BH51,Lager!$A:$C,3,FALSE),0)","v":1},{"$f":"IF(BL51=0,\"Pt udsolgt\",IFERROR(_xlfn.XLOOKUP(BK51,Tilbehør!$B:$B,Tilbehør!$A:$A),\"Findes ikke\"))","v":"Samsung S20 FE Silicone Cover Navy"},"A24094",{"$f":"IFERROR(VLOOKUP(BK51,Lager!$A:$C,3,FALSE),0)","v":1},{"$f":"IF(BO51=0,\"Pt udsolgt\",IFERROR(_xlfn.XLOOKUP(BN51,Tilbehør!$B:$B,Tilbehør!$A:$A),\"Findes ikke\"))","v":"Pt udsolgt"},null,{"$f":"IFERROR(VLOOKUP(BN51,Lager!$A:$C,3,FALSE),0)","v":0},{"$f":"IF(BR51=0,\"Pt udsolgt\",IFERROR(_xlfn.XLOOKUP(BQ51,Tilbehør!$B:$B,Tilbehør!$A:$A),\"Findes ikke\"))","v":"Pt udsolgt"},null,{"$f":"IFERROR(VLOOKUP(BQ51,Lager!$A:$C,3,FALSE),0)","v":0},{"$f":"IF(BU51=0,\"Pt udsolgt\",IFERROR(_xlfn.XLOOKUP(BT51,Tilbehør!$B:$B,Tilbehør!$A:$A),\"Findes ikke\"))","v":"Pt udsolgt"},null,{"$f":"IFERROR(VLOOKUP(BT51,Lager!$A:$C,3,FALSE),0)","v":0},{"$f":"IF(BX51=0,\"Pt udsolgt\",IFERROR(_xlfn.XLOOKUP(BW51,Tilbehør!$B:$B,Tilbehør!$A:$A),\"Findes ikke\"))","v":"Pt udsolgt"},null,{"$f":"IFERROR(VLOOKUP(BW51,Lager!$A:$C,3,FALSE),0)","v":0},{"$f":"IF(CA51=0,\"Pt udsolgt\",IFERROR(_xlfn.XLOOKUP(BZ51,Tilbehør!$B:$B,Tilbehør!$A:$A),\"Findes ikke\"))","v":"Pt udsolgt"},null,{"$f":"IFERROR(VLOOKUP(BZ51,Lager!$A:$C,3,FALSE),0)","v":0},{"$f":"IF(CD51=0,\"Pt udsolgt\",IFERROR(_xlfn.XLOOKUP(CC51,Tilbehør!$B:$B,Tilbehør!$A:$A),\"Findes ikke\"))","v":"Pt udsolgt"},null,{"$f":"IFERROR(VLOOKUP(CC51,Lager!$A:$C,3,FALSE),0)","v":0},{"$f":"IF(CG51=0,\"Pt udsolgt\",IFERROR(_xlfn.XLOOKUP(CF51,Tilbehør!$B:$B,Tilbehør!$A:$A),\"Findes ikke\"))","v":"Pt udsolgt"},null,{"$f":"IFERROR(VLOOKUP(CF51,Lager!$A:$C,3,FALSE),0)","v":0}]
["OnePlus Nord 128GB 5G","OnePlusNord128Cover","OnePlusNord128Panserglas",null,{"$f":"IF(G52=0,\"Pt udsolgt\",IFERROR(_xlfn.XLOOKUP(F52,Tilbehør!B:B,Tilbehør!A:A),\"Findes ikke\"))","v":"Pt udsolgt"},"A23189",{"$f":"IFERROR(VLOOKUP(F52,Lager!$A:$C,3,FALSE),0)","v":0},{"$f":"IF(J52=0,\"Pt udsolgt\",IFERROR(_xlfn.XLOOKUP(I52,Tilbehør!$B:$B,Tilbehør!$A:$A),\"Findes ikke\"))","v":"Pt udsolgt"},"A23190",{"$f":"IFERROR(VLOOKUP(I52,Lager!$A:$C,3,FALSE),0)","v":0},{"$f":"IF(M52=0,\"Pt udsolgt\",IFERROR(_xlfn.XLOOKUP(L52,Tilbehør!$B:$B,Tilbehør!$A:$A),\"Findes ikke\"))","v":"Pt udsolgt"},"A23070",{"$f":"IFERROR(VLOOKUP(L52,Lager!$A:$C,3,FALSE),0)","v":0},{"$f":"IF(P52=0,\"Pt udsolgt\",IFERROR(_xlfn.XLOOKUP(O52,Tilbehør!$B:$B,Tilbehør!$A:$A),\"Findes ikke\"))","v":"Pt udsolgt"},"A23073",{"$f":"IFERROR(VLOOKUP(O52,Lager!$A:$C,3,FALSE),0)","v":0},{"$f":"IF(S52=0,\"Pt udsolgt\",IFERROR(_xlfn.XLOOKUP(R52,Tilbehør!$B:$B,Tilbehør!$A:$A),\"Findes ikke\"))","v":"Pt udsolgt"},"A23076",{"$f":"IFERROR(VLOOKUP(R52,Lager!$A:$C,3,FALSE),0)","v":0},null,null,null,null,null,null,null,null,null,{"$f":"IF(AE52=0,\"Pt udsolgt\",IFERROR(_xlfn.XLOOKUP(AD52,Tilbehør!$B:$B,Tilbehør!$A:$A),\"Findes ikke\"))","v":"Samsung Clear view Cover S20"},"A23468",{"$f":"IFERROR(VLOOKUP(AD52,Lager!$A:$C,3,FALSE),0)","v":21},{"$f":"IF(AH52=0,\"Pt udsolgt\",IFERROR(_xlfn.XLOOKUP(AG52,Tilbehør!$B:$B,Tilbehør!$A:$A),\"Findes ikke\"))","v":"Samsung Galaxy S20 Ultra Silicone Cover Black"},"A23500",{"$f":"IFERROR(VLOOKUP(AG52,Lager!$A:$C,3,FALSE),0)","v":12},{"$f":"IF(AK52=0,\"Pt udsolgt\",IFERROR(_xlfn.XLOOKUP(AJ52,Tilbehør!$B:$B,Tilbehør!$A:$A),\"Findes ikke\"))","v":"Samsung Silicone Cover black S20Plus"},"A23470",{"$f":"IFERROR(VLOOKUP(AJ52,Lager!$A:$C,3,FALSE),0)","v":16},null,null,null,null,null,null,null,null,null,null,null,null,null,null,null,{"$f":"IF(BC52=0,\"Pt udsolgt\",IFERROR(_xlfn.XLOOKUP(BB52,Tilbehør!$B:$B,Tilbehør!$A:$A),\"Findes ikke\"))","v":"Samsung Galaxy Note 20 Plus Silicone Cover Mystic Black"},"A24031",{"$f":"IFERROR(VLOOKUP(BB52,Lager!$A:$C,3,FALSE),0)","v":5},{"$f":"IF(BF52=0,\"Pt udsolgt\",IFERROR(_xlfn.XLOOKUP(BE52,Tilbehør!$B:$B,Tilbehør!$A:$A),\"Findes ikke\"))","v":"Samsung Galaxy Note 20 Plus Silicone Cover Mystic Black"},"A24031",{"$f":"IFERROR(VLOOKUP(BE52,Lager!$A:$C,3,FALSE),0)","v":5},{"$f":"IF(BI52=0,\"Pt udsolgt\",IFERROR(_xlfn.XLOOKUP(BH52,Tilbehør!$B:$B,Tilbehør!$A:$A),\"Findes ikke\"))","v":"Samsung S20 FE Clear Standing Cover Transparent"},"A24095",{"$f":"IFERROR(VLOOKUP(BH52,Lager!$A:$C,3,FALSE),0)","v":39},{"$f":"IF(BL52=0,\"Pt udsolgt\",IFERROR(_xlfn.XLOOKUP(BK52,Tilbehør!$B:$B,Tilbehør!$A:$A),\"Findes ikke\"))","v":"Samsung S20 FE Clear Standing Cover Transparent"},"A24095",{"$f":"IFERROR(VLOOKUP(BK52,Lager!$A:$C,3,FALSE),0)","v":39}]
["OnePlus Nord 256GB 5G","OnePlusNord256Cover","OnePlusNord256Panserglas",null,null,null,null,null,null,null,null,null,null,{"$f":"IF(P53=0,\"Pt udsolgt\",IFERROR(_xlfn.XLOOKUP(O53,Tilbehør!$B:$B,Tilbehør!$A:$A),\"Findes ikke\"))","v":"Pt udsolgt"},null,null,null,null,null,null,null,null,null,null,null,null,null,null,{"$f":"IF(AE53=0,\"Pt udsolgt\",IFERROR(_xlfn.XLOOKUP(AD53,Tilbehør!$B:$B,Tilbehør!$A:$A),\"Findes ikke\"))","v":"Samsung Silicone Cover black S20"},"A23473",{"$f":"IFERROR(VLOOKUP(AD53,Lager!$A:$C,3,FALSE),0)","v":16},{"$f":"IF(AH53=0,\"Pt udsolgt\",IFERROR(_xlfn.XLOOKUP(AG53,Tilbehør!$B:$B,Tilbehør!$A:$A),\"Findes ikke\"))","v":"Samsung Galaxy S20 Ultra Clear Cover Transparent"},"A23501",{"$f":"IFERROR(VLOOKUP(AG53,Lager!$A:$C,3,FALSE),0)","v":15},{"$f":"IF(AK53=0,\"Pt udsolgt\",IFERROR(_xlfn.XLOOKUP(AJ53,Tilbehør!$B:$B,Tilbehør!$A:$A),\"Findes ikke\"))","v":"ON TPU Samsung S20 Plus"},"A23486",{"$f":"IFERROR(VLOOKUP(AJ53,Lager!$A:$C,3,FALSE),0)","v":41},null,null,null,null,null,null,null,null,null,null,null,null,null,null,null,{"$f":"IF(BC53=0,\"Pt udsolgt\",IFERROR(_xlfn.XLOOKUP(BB53,Tilbehør!$B:$B,Tilbehør!$A:$A),\"Findes ikke\"))","v":"Samsung Galaxy Note 20 Plus Clear Cover Transparent"},"A24032",{"$f":"IFERROR(VLOOKUP(BB53,Lager!$A:$C,3,FALSE),0)","v":8},{"$f":"IF(BF53=0,\"Pt udsolgt\",IFERROR(_xlfn.XLOOKUP(BE53,Tilbehør!$B:$B,Tilbehør!$A:$A),\"Findes ikke\"))","v":"Samsung Galaxy Note 20 Plus Clear Cover Transparent"},"A24032",{"$f":"IFERROR(VLOOKUP(BE53,Lager!$A:$C,3,FALSE),0)","v":8}]
[null,null,null,null,null,null,null,null,null,null,null,null,null,null,null,null,null,null,null,null,null,null,null,null,null,null,null,null,{"$f":"IF(AE54=0,\"Pt udsolgt\",IFERROR(_xlfn.XLOOKUP(AD54,Tilbehør!$B:$B,Tilbehør!$A:$A),\"Findes ikke\"))","v":"Pt udsolgt"},"A23486​",{"$f":"IFERROR(VLOOKUP(AD54,Lager!$A:$C,3,FALSE),0)","v":0},{"$f":"IF(AH54=0,\"Pt udsolgt\",IFERROR(_xlfn.XLOOKUP(AG54,Tilbehør!$B:$B,Tilbehør!$A:$A),\"Findes ikke\"))","v":"Pt udsolgt"},"A23504",{"$f":"IFERROR(VLOOKUP(AG54,Lager!$A:$C,3,FALSE),0)","v":0},{"$f":"IF(AK54=0,\"Pt udsolgt\",IFERROR(_xlfn.XLOOKUP(AJ54,Tilbehør!$B:$B,Tilbehør!$A:$A),\"Findes ikke\"))","v":"Pt udsolgt"},"A23487",{"$f":"IFERROR(VLOOKUP(AJ54,Lager!$A:$C,3,FALSE),0)","v":0}]
["Samsung Galaxy Note 10 256 GB","Note10cover","Note10panserglas",null,null,null,null,null,null,null,null,null,null,null,null,null,null,null,null,null,null,null,null,null,null,null,null,null,null,null,null,null,null,null,{"$f":"IF(AK55=0,\"Pt udsolgt\",IFERROR(_xlfn.XLOOKUP(AJ55,Tilbehør!$B:$B,Tilbehør!$A:$A),\"Findes ikke\"))","v":"Pt udsolgt"},"A23487​",{"$f":"IFERROR(VLOOKUP(AJ55,Lager!$A:$C,3,FALSE),0)","v":0}]
["Samsung Galaxy Note 10 Plus 256 GB","Note10pluscover","Note10pluspanserglas",null,null,null,null,null,null,null,null,null,null,null,null,null,null,null,null,null,null,null,null,null,null,null,null,null,null,null,null,null,null,null,{"$f":"IF(AK56=0,\"Pt udsolgt\",IFERROR(_xlfn.XLOOKUP(AJ56,Tilbehør!$B:$B,Tilbehør!$A:$A),\"Findes ikke\"))","v":"Pt udsolgt"},"A23469​",{"$f":"IFERROR(VLOOKUP(AJ56,Lager!$A:$C,3,FALSE),0)","v":0}]
["Samsung Galaxy S10 Lite Black","S10litecover","S10litepanserglas",null,null,null,null,null,null,null,null,null,null,null,null,null,null,null,null,null,null,null,null,null,null,null,null,null,null,null,null,null,null,null,{"$f":"IF(AK57=0,\"Pt udsolgt\",IFERROR(_xlfn.XLOOKUP(AJ57,Tilbehør!$B:$B,Tilbehør!$A:$A),\"Findes ikke\"))","v":"Pt udsolgt"},"A23470​",{"$f":"IFERROR(VLOOKUP(AJ57,Lager!$A:$C,3,FALSE),0)","v":0}]
["Samsung Galaxy S10 128GB","S10cover","S10panserglas"]
["Samsung Galaxy S10 Plus 128GB","S10pluscover","S10pluspanserglas",null,"Note10panserglas","Anummer","Lager","Note10pluspanserglas","Anummer","Lager","S10litepanserglas","Anummer","Lager","S10panserglas","Anummer","Lager","S10pluspanserglas","Anummer","Lager","Note9panserglas","Anummer","Lager","Xcover4spanserglas","Anummer","Lager","A40panserglas","Anummer","Lager","S20panserglas","Anummer","Lager","S20ultrapanserglas","Anummer","Lager","S20pluspanserglas","Anummer","Lager","Zflippanserglas","Anummer","Lager","GalaxyA71panserglas","Anummer","Lager","Note10Litepanserglas","Anummer","Lager","GalaxyA21spanserglas","Anummer","Lager","SamsungGalaxyNote20256GB5GPanserglas","Anummer","Lager","SamsungGalaxyNote20Ultra256GB5GPanserglas","Anummer","Lager","SamsungGalaxyNote20Ultra512GB5GPanserglas","Anummer","Lager","SamsungGalaxyS20FE4G128GBpanserglas","Anummer","Lager","SamsungGalaxyS20FE5G128GBpanserglas","Anummer","Lager","SamsungGalaxyS215G128GBPanserglas","Anummer","Lager","SamsungGalaxyS215G256GBPanserglas","Anummer","Lager","SamsungGalaxyS215GUltra128GBPanserglas","Anummer","Lager","SamsungGalaxyS215GUltra256GBPanserglas","Anummer","Lager","SamsungGalaxyS215GUltra512GBPanserglas","Anummer","Lager","SamsungGalaxyS21Plus5G128GBPanserglas","Anummer","Lager","SamsungGalaxyS21Plus5G256GBPanserglas","Anummer","Lager"]
["Samsung Galaxy Note 9","Note9cover","Note9panserglas",null,{"$f":"IF(G60=0,\"Pt udsolgt\",IFERROR(_xlfn.XLOOKUP(F60,Tilbehør!B:B,Tilbehør!A:A),\"Findes ikke\"))","v":"Pt udsolgt"},"A23184",{"$f":"IFERROR(VLOOKUP(F60,Lager!A:C,3,FALSE),0)","v":0},{"$f":"IF(J60=0,\"Pt udsolgt\",IFERROR(_xlfn.XLOOKUP(I60,Tilbehør!$B:$B,Tilbehør!$A:$A),\"Findes ikke\"))","v":"INVISIBLESHIELD ULTRA CLEAR SCREEN SAMSUNG GALAXY NOTE 10 PLUS"},"A23691",{"$f":"IFERROR(VLOOKUP(I60,Lager!$A:$C,3,FALSE),0)","v":11},{"$f":"IF(M60=0,\"Pt udsolgt\",IFERROR(_xlfn.XLOOKUP(L60,Tilbehør!$B:$B,Tilbehør!$A:$A),\"Findes ikke\"))","v":"Invisibleshield GlassPlus S10E Screen"},"A23635",{"$f":"IFERROR(VLOOKUP(L60,Lager!$A:$C,3,FALSE),0)","v":6},{"$f":"IF(P60=0,\"Pt udsolgt\",IFERROR(_xlfn.XLOOKUP(O60,Tilbehør!$B:$B,Tilbehør!$A:$A),\"Findes ikke\"))","v":"Invisibleshield Ultra Clear Samsung S10 Screen"},"A23627",{"$f":"IFERROR(VLOOKUP(O60,Lager!$A:$C,3,FALSE),0)","v":18},{"$f":"IF(S60=0,\"Pt udsolgt\",IFERROR(_xlfn.XLOOKUP(R60,Tilbehør!$B:$B,Tilbehør!$A:$A),\"Findes ikke\"))","v":"Invisibleshield Ultra Clear Samsung S10Plus Screen"},"A23628",{"$f":"IFERROR(VLOOKUP(R60,Lager!$A:$C,3,FALSE),0)","v":6},{"$f":"IF(V60=0,\"Pt udsolgt\",IFERROR(_xlfn.XLOOKUP(U60,Tilbehør!$B:$B,Tilbehør!$A:$A),\"Findes ikke\"))","v":"Pt udsolgt"},"A22890",{"$f":"IFERROR(VLOOKUP(U60,Lager!$A:$C,3,FALSE),0)","v":0},{"$f":"IF(Y60=0,\"Pt udsolgt\",IFERROR(_xlfn.XLOOKUP(X60,Tilbehør!$B:$B,Tilbehør!$A:$A),\"Findes ikke\"))","v":"Pt udsolgt"},null,{"$f":"IFERROR(VLOOKUP(X60,Lager!$A:$C,3,FALSE),0)","v":0},{"$f":"IF(AB60=0,\"Pt udsolgt\",IFERROR(_xlfn.XLOOKUP(AA60,Tilbehør!$B:$B,Tilbehør!$A:$A),\"Findes ikke\"))","v":"Pt udsolgt"},"A23158",{"$f":"IFERROR(VLOOKUP(AA60,Lager!$A:$C,3,FALSE),0)","v":0},{"$f":"IF(AE60=0,\"Pt udsolgt\",IFERROR(_xlfn.XLOOKUP(AD60,Tilbehør!$B:$B,Tilbehør!$A:$A),\"Findes ikke\"))","v":"Invisibleshield Ultra ClearPlus Samsung Samsung S20"},"A23629",{"$f":"IFERROR(VLOOKUP(AD60,Lager!$A:$C,3,FALSE),0)","v":30},{"$f":"IF(AH60=0,\"Pt udsolgt\",IFERROR(_xlfn.XLOOKUP(AG60,Tilbehør!$B:$B,Tilbehør!$A:$A),\"Findes ikke\"))","v":"Invisibleshield Ultra ClearPlus Samsung S20 Ultra"},"A23631",{"$f":"IFERROR(VLOOKUP(AG60,Lager!$A:$C,3,FALSE),0)","v":16},{"$f":"IF(AK60=0,\"Pt udsolgt\",IFERROR(_xlfn.XLOOKUP(AJ60,Tilbehør!$B:$B,Tilbehør!$A:$A),\"Findes ikke\"))","v":"Invisibleshield Ultra ClearPlus Samsung S20 Plus"},"A23630",{"$f":"IFERROR(VLOOKUP(AJ60,Lager!$A:$C,3,FALSE),0)","v":15},{"$f":"IF(AN60=0,\"Pt udsolgt\",IFERROR(_xlfn.XLOOKUP(AM60,Tilbehør!$B:$B,Tilbehør!$A:$A),\"Findes ikke\"))","v":"Pt udsolgt"},null,{"$f":"IFERROR(VLOOKUP(AM60,Lager!$A:$C,3,FALSE),0)","v":0},{"$f":"IF(AQ60=0,\"Pt udsolgt\",IFERROR(_xlfn.XLOOKUP(AP60,Tilbehør!$B:$B,Tilbehør!$A:$A),\"Findes ikke\"))","v":"Pt udsolgt"},"A23624",{"$f":"IFERROR(VLOOKUP(AP60,Lager!$A:$C,3,FALSE),0)","v":0},{"$f":"IF(AT60=0,\"Pt udsolgt\",IFERROR(_xlfn.XLOOKUP(AS60,Tilbehør!$B:$B,Tilbehør!$A:$A),\"Findes ikke\"))","v":"Pt udsolgt"},"A23625",{"$f":"IFERROR(VLOOKUP(AS60,Lager!$A:$C,3,FALSE),0)","v":0},{"$f":"IF(AW60=0,\"Pt udsolgt\",IFERROR(_xlfn.XLOOKUP(AV60,Tilbehør!$B:$B,Tilbehør!$A:$A),\"Findes ikke\"))","v":"Pt udsolgt"},"A23843 ",{"$f":"IFERROR(VLOOKUP(AV60,Lager!$A:$C,3,FALSE),0)","v":0},{"$f":"IF(AZ60=0,\"Pt udsolgt\",IFERROR(_xlfn.XLOOKUP(AY60,Tilbehør!$B:$B,Tilbehør!$A:$A),\"Findes ikke\"))","v":"InvisibleShield Ultra Clear Samsung Note 20"},"A24034",{"$f":"IFERROR(VLOOKUP(AY60,Lager!$A:$C,3,FALSE),0)","v":5},{"$f":"IF(BC60=0,\"Pt udsolgt\",IFERROR(_xlfn.XLOOKUP(BB60,Tilbehør!$B:$B,Tilbehør!$A:$A),\"Findes ikke\"))","v":"InvisibleShield Ultra Clear Samsung Note 20 ultra"},"A24035",{"$f":"IFERROR(VLOOKUP(BB60,Lager!$A:$C,3,FALSE),0)","v":6},{"$f":"IF(BF60=0,\"Pt udsolgt\",IFERROR(_xlfn.XLOOKUP(BE60,Tilbehør!$B:$B,Tilbehør!$A:$A),\"Findes ikke\"))","v":"InvisibleShield Ultra Clear Samsung Note 20 ultra"},"A24035",{"$f":"IFERROR(VLOOKUP(BE60,Lager!$A:$C,3,FALSE),0)","v":6},{"$f":"IF(BI60=0,\"Pt udsolgt\",IFERROR(_xlfn.XLOOKUP(BH60,Tilbehør!$B:$B,Tilbehør!$A:$A),\"Findes ikke\"))","v":"Invisibleshield GlassElite plus Samsung S20FE"},"A24248",{"$f":"IFERROR(VLOOKUP(BH60,Lager!$A:$C,3,FALSE),0)","v":95},{"$f":"IF(BL60=0,\"Pt udsolgt\",IFERROR(_xlfn.XLOOKUP(BK60,Tilbehør!$B:$B,Tilbehør!$A:$A),\"Findes ikke\"))","v":"Invisibleshield GlassElite plus Samsung S20FE"},"A24248",{"$f":"IFERROR(VLOOKUP(BK60,Lager!$A:$C,3,FALSE),0)","v":95},{"$f":"IF(BO60=0,\"Pt udsolgt\",IFERROR(_xlfn.XLOOKUP(BN60,Tilbehør!$B:$B,Tilbehør!$A:$A),\"Findes ikke\"))","v":"Pt udsolgt"},null,{"$f":"IFERROR(VLOOKUP(BN60,Lager!$A:$C,3,FALSE),0)","v":0},{"$f":"IF(BR60=0,\"Pt udsolgt\",IFERROR(_xlfn.XLOOKUP(BQ60,Tilbehør!$B:$B,Tilbehør!$A:$A),\"Findes ikke\"))","v":"Pt udsolgt"},null,{"$f":"IFERROR(VLOOKUP(BQ60,Lager!$A:$C,3,FALSE),0)","v":0},{"$f":"IF(BU60=0,\"Pt udsolgt\",IFERROR(_xlfn.XLOOKUP(BT60,Tilbehør!$B:$B,Tilbehør!$A:$A),\"Findes ikke\"))","v":"Pt udsolgt"},null,{"$f":"IFERROR(VLOOKUP(BT60,Lager!$A:$C,3,FALSE),0)","v":0},{"$f":"IF(BX60=0,\"Pt udsolgt\",IFERROR(_xlfn.XLOOKUP(BW60,Tilbehør!$B:$B,Tilbehør!$A:$A),\"Findes ikke\"))","v":"Pt udsolgt"},null,{"$f":"IFERROR(VLOOKUP(BW60,Lager!$A:$C,3,FALSE),0)","v":0},{"$f":"IF(CA60=0,\"Pt udsolgt\",IFERROR(_xlfn.XLOOKUP(BZ60,Tilbehør!$B:$B,Tilbehør!$A:$A),\"Findes ikke\"))","v":"Pt udsolgt"},null,{"$f":"IFERROR(VLOOKUP(BZ60,Lager!$A:$C,3,FALSE),0)","v":0},{"$f":"IF(CD60=0,\"Pt udsolgt\",IFERROR(_xlfn.XLOOKUP(CC60,Tilbehør!$B:$B,Tilbehør!$A:$A),\"Findes ikke\"))","v":"Pt udsolgt"},null,{"$f":"IFERROR(VLOOKUP(CC60,Lager!$A:$C,3,FALSE),0)","v":0},{"$f":"IF(CG60=0,\"Pt udsolgt\",IFERROR(_xlfn.XLOOKUP(CF60,Tilbehør!$B:$B,Tilbehør!$A:$A),\"Findes ikke\"))","v":"Pt udsolgt"},null,{"$f":"IFERROR(VLOOKUP(CF60,Lager!$A:$C,3,FALSE),0)","v":0}]
["Samsung Galaxy Xcover 4s","Xcover4scover","Xcover4spanserglas",null,null,null,null,null,null,null,{"$f":"IF(M61=0,\"Pt udsolgt\",IFERROR(_xlfn.XLOOKUP(L61,Tilbehør!$B:$B,Tilbehør!$A:$A),\"Findes ikke\"))","v":"Invisibleshield GlassPlus Visionguard S10E Screen"},"A23636",{"$f":"IFERROR(VLOOKUP(L61,Lager!$A:$C,3,FALSE),0)","v":50},{"$f":"IF(P61=0,\"Pt udsolgt\",IFERROR(_xlfn.XLOOKUP(#REF!,Tilbehør!$B:$B,Tilbehør!$A:$A),\"Findes ikke\"))","v":"Pt udsolgt"},"A23160",{"$f":"IFERROR(VLOOKUP(#REF!,Lager!$A:$C,3,FALSE),0)","v":0},{"$f":"IF(S61=0,\"Pt udsolgt\",IFERROR(_xlfn.XLOOKUP(#REF!,Tilbehør!$B:$B,Tilbehør!$A:$A),\"Findes ikke\"))","v":"Pt udsolgt"},"A23161",{"$f":"IFERROR(VLOOKUP(#REF!,Lager!$A:$C,3,FALSE),0)","v":0},null,null,null,null,null,null,null,null,null,{"$f":"IF(AE61=0,\"Pt udsolgt\",IFERROR(_xlfn.XLOOKUP(AD61,Tilbehør!$B:$B,Tilbehør!$A:$A),\"Findes ikke\"))","v":"Invisibleshield Ultra VisionGuard Plus Samsung S20"},"A23632",{"$f":"IFERROR(VLOOKUP(AD61,Lager!$A:$C,3,FALSE),0)","v":5},{"$f":"IF(AH61=0,\"Pt udsolgt\",IFERROR(_xlfn.XLOOKUP(AG61,Tilbehør!$B:$B,Tilbehør!$A:$A),\"Findes ikke\"))","v":"Invisibleshield Ultra VisionGuard Plus Samsung S20 Ultra"},"A23634",{"$f":"IFERROR(VLOOKUP(AG61,Lager!$A:$C,3,FALSE),0)","v":6},{"$f":"IF(AK61=0,\"Pt udsolgt\",IFERROR(_xlfn.XLOOKUP(AJ61,Tilbehør!$B:$B,Tilbehør!$A:$A),\"Findes ikke\"))","v":"Invisibleshield Ultra VisionGuard Plus Samsung S20 Plus"},"A23633",{"$f":"IFERROR(VLOOKUP(AJ61,Lager!$A:$C,3,FALSE),0)","v":8},null,null,null,null,null,null,null,null,null,null,null,null,{"$f":"IF(AZ61=0,\"Pt udsolgt\",IFERROR(_xlfn.XLOOKUP(AY61,Tilbehør!$B:$B,Tilbehør!$A:$A),\"Findes ikke\"))","v":"InvisibleShield Ultra VisionGuard Samsung Note 20"},"A24051",{"$f":"IFERROR(VLOOKUP(AY61,Lager!$A:$C,3,FALSE),0)","v":9},{"$f":"IF(BC61=0,\"Pt udsolgt\",IFERROR(_xlfn.XLOOKUP(BB61,Tilbehør!$B:$B,Tilbehør!$A:$A),\"Findes ikke\"))","v":"InvisibleShield Ultra VisionGuard Samsung Note 20 Ultra"},"A24052",{"$f":"IFERROR(VLOOKUP(BB61,Lager!$A:$C,3,FALSE),0)","v":3},{"$f":"IF(BF61=0,\"Pt udsolgt\",IFERROR(_xlfn.XLOOKUP(BE61,Tilbehør!$B:$B,Tilbehør!$A:$A),\"Findes ikke\"))","v":"InvisibleShield Ultra VisionGuard Samsung Note 20 Ultra"},"A24052",{"$f":"IFERROR(VLOOKUP(BE61,Lager!$A:$C,3,FALSE),0)","v":3},{"$f":"IF(BI61=0,\"Pt udsolgt\",IFERROR(_xlfn.XLOOKUP(BH61,Tilbehør!$B:$B,Tilbehør!$A:$A),\"Findes ikke\"))","v":"InvisibleShield Ultra Clear Samsung Galaxy S20FE 5G Screen"},"A24258",{"$f":"IFERROR(VLOOKUP(BH61,Lager!$A:$C,3,FALSE),0)","v":11},{"$f":"IF(BL61=0,\"Pt udsolgt\",IFERROR(_xlfn.XLOOKUP(BK61,Tilbehør!$B:$B,Tilbehør!$A:$A),\"Findes ikke\"))","v":"InvisibleShield Ultra Clear Samsung Galaxy S20FE 5G Screen"},"A24258",{"$f":"IFERROR(VLOOKUP(BK61,Lager!$A:$C,3,FALSE),0)","v":11}]
["Samsung Galaxy A40","A40cover","A40panserglas",null,null,null,null,null,null,null,{"$f":"IF(M62=0,\"Pt udsolgt\",IFERROR(_xlfn.XLOOKUP(L62,Tilbehør!$B:$B,Tilbehør!$A:$A),\"Findes ikke\"))","v":"Pt udsolgt"}]
["Samsung Galaxy A40 enterprise"]
["Samsung Galaxy S20 5G","S20cover","S20panserglas"]
["Samsung Galaxy S20 Ultra 5G","S20ultracover","S20ultrapanserglas"]
["Samsung Galaxy S20+ 128GB 5G","S20pluscover","S20pluspanserglas",null,"Mix2scover","Anummer","Lager","Mi8cover","Anummer","Lager","Redmi7cover","Anummer","Lager"]
["Samsung Galaxy S20+ 512GB 5G","S20pluscover","S20pluspanserglas",null,{"$f":"IF(G67=0,\"Pt udsolgt\",IFERROR(_xlfn.XLOOKUP(F67,Tilbehør!B:B,Tilbehør!A:A),\"Findes ikke\"))","v":"Pt udsolgt"},null,{"$f":"IFERROR(VLOOKUP(F67,Lager!A:C,3,FALSE),0)","v":0},{"$f":"IF(J67=0,\"Pt udsolgt\",IFERROR(VLOOKUP(I67,#REF!,5,FALSE),\"Findes ikke\"))","v":"Pt udsolgt"},"A22903",{"$f":"IFERROR(VLOOKUP(I67,Lager!$A:$C,3,FALSE),0)","v":0},{"$f":"IF(M67=0,\"Pt udsolgt\",IFERROR(VLOOKUP(L67,#REF!,5,FALSE),\"Findes ikke\"))","v":"Pt udsolgt"},null,{"$f":"IFERROR(VLOOKUP(L67,Lager!$A:$C,3,FALSE),0)","v":0}]
["Samsung Galaxy A71 128GB","GalaxyA71cover","GalaxyA71panserglas"]
["Samsung Galaxy Note 10 Lite 128GB","Note10LiteCover","Note10Litepanserglas",null,"Mix2spanserglas","Anummer","Lager","Mi8panserglas","Anummer","Lager","Redmi7panserglas","Anummer","Lager"]
["Samsung Galaxy Note 20 256GB 5G","SamsungGalaxyNote20256GB5GCover","SamsungGalaxyNote20256GB5GPanserglas",null,{"$f":"IF(G70=0,\"Pt udsolgt\",IFERROR(_xlfn.XLOOKUP(F70,Tilbehør!B:B,Tilbehør!A:A),\"Findes ikke\"))","v":"Pt udsolgt"},null,{"$f":"IFERROR(VLOOKUP(F70,Lager!A:C,3,FALSE),0)","v":0},{"$f":"IF(J70=0,\"Pt udsolgt\",IFERROR(VLOOKUP(I70,#REF!,5,FALSE),\"Findes ikke\"))","v":"Pt udsolgt"},"A22905",{"$f":"IFERROR(VLOOKUP(I70,Lager!$A:$C,3,FALSE),0)","v":0},{"$f":"IF(M70=0,\"Pt udsolgt\",IFERROR(VLOOKUP(L70,#REF!,5,FALSE),\"Findes ikke\"))","v":"Pt udsolgt"},null,{"$f":"IFERROR(VLOOKUP(L70,Lager!$A:$C,3,FALSE),0)","v":0}]
["Samsung Galaxy Note 20 Ultra 256GB 5G","SamsungGalaxyNote20Ultra256GB5GCover","SamsungGalaxyNote20Ultra256GB5GPanserglas"]
["Samsung Galaxy Note 20 Ultra 512GB 5G","SamsungGalaxyNote20Ultra512GB5GCover","SamsungGalaxyNote20Ultra512GB5GPanserglas",null,"Nokia3310cover","Anummer","Lager"]
["Samsung Galaxy Z Flip 5G","Zflipcover","Zflippanserglas",null,{"$f":"IF(G73=0,\"Pt udsolgt\",IFERROR(_xlfn.XLOOKUP(F73,Tilbehør!B:B,Tilbehør!A:A),\"Findes ikke\"))","v":"Pt udsolgt"},null,{"$f":"IFERROR(VLOOKUP(F73,Lager!A:C,3,FALSE),0)","v":0}]
["Samsung Galaxy A21s 64GB Black","GalaxyA21scover","GalaxyA21spanserglas"]
["Samsung Galaxy S20FE 4G 128GB",{"$f":"SUBSTITUTE(A75,\" \",\"\")&\"Cover\"","v":"SamsungGalaxyS20FE4G128GBCover"},"SamsungGalaxyS20FE4G128GBpanserglas",null,"Nokia3310panserglas","Anummer","Lager"]
["Samsung Galaxy S20FE 5G 128GB",{"$f":"SUBSTITUTE(A76,\" \",\"\")&\"Cover\"","v":"SamsungGalaxyS20FE5G128GBCover"},"SamsungGalaxyS20FE5G128GBpanserglas",null,{"$f":"IF(G76=0,\"Pt udsolgt\",IFERROR(_xlfn.XLOOKUP(F76,Tilbehør!B:B,Tilbehør!A:A),\"Findes ikke\"))","v":"Pt udsolgt"},null,{"$f":"IFERROR(VLOOKUP(F76,Lager!A:C,3,FALSE),0)","v":0}]
["Samsung Galaxy S21 5G 128GB","SamsungGalaxyS215G128GBCover","SamsungGalaxyS215G128GBPanserglas"]
["Samsung Galaxy S21 5G 256GB","SamsungGalaxyS215G256GBCover","SamsungGalaxyS215G256GBPanserglas",null,"iPadPro1294thgen128GBCover","Anummer","Lager","iPadPro1294thgen256GBCover","Anummer","Lager"]
["Samsung Galaxy S21 5G Ultra 128GB","SamsungGalaxyS215GUltra128GBCover","SamsungGalaxyS215GUltra128GBPanserglas",null,{"$f":"IF(G79=0,\"Pt udsolgt\",IFERROR(_xlfn.XLOOKUP(F79,Tilbehør!B:B,Tilbehør!A:A),\"Findes ikke\"))","v":"Pt udsolgt"},null,{"$f":"IFERROR(VLOOKUP(F79,Lager!$A:$C,3,FALSE),0)","v":0},{"$f":"IF(J79=0,\"Pt udsolgt\",IFERROR(_xlfn.XLOOKUP(I79,Tilbehør!E:E,Tilbehør!D:D),\"Findes ikke\"))","v":"Pt udsolgt"},null,{"$f":"IFERROR(VLOOKUP(I79,Lager!$A:$C,3,FALSE),0)","v":0}]
["Samsung Galaxy S21 5G Ultra 256GB","SamsungGalaxyS215GUltra256GBCover","SamsungGalaxyS215GUltra256GBPanserglas"]
["Samsung Galaxy S21 5G Ultra 512GB","SamsungGalaxyS215GUltra512GBCover","SamsungGalaxyS215GUltra512GBPanserglas",null,"iPadPro1294thgen128GBPanserglas","Anummer","Lager","iPadPro1294thgen256GBPanserglas","Anummer","Lager","iPadPro11.0panserglas","Anummer","Lager"]
["Samsung Galaxy S21+ 5G 128GB","SamsungGalaxyS21Plus5G128GBCover","SamsungGalaxyS21Plus5G128GBPanserglas",null,{"$f":"IF(G82=0,\"Pt udsolgt\",IFERROR(_xlfn.XLOOKUP(F82,Tilbehør!B:B,Tilbehør!A:A),\"Findes ikke\"))","v":"Apple Smart Folio for iPad Air 4th generation Black"},"A24221",{"$f":"IFERROR(VLOOKUP(F82,Lager!$A:$C,3,FALSE),0)","v":16},{"$f":"IF(J82=0,\"Pt udsolgt\",IFERROR(_xlfn.XLOOKUP(I82,Tilbehør!$B:$B,Tilbehør!$A:$A),\"Findes ikke\"))","v":"Apple Smart Folio for iPad Air 4th generation Black"},"A24221",{"$f":"IFERROR(VLOOKUP(I82,Lager!$A:$C,3,FALSE),0)","v":16},{"$f":"IF(M82=0,\"Pt udsolgt\",IFERROR(_xlfn.XLOOKUP(R82,Tilbehør!H:H,Tilbehør!G:G),\"Findes ikke\"))","v":"Pt udsolgt"},"A23052",{"$f":"IFERROR(VLOOKUP(#REF!,Lager!$A:$C,3,FALSE),0)","v":0}]
["Samsung Galaxy S21+ 5G 256GB","SamsungGalaxyS21Plus5G256GBCover","SamsungGalaxyS21Plus5G256GBPanserglas",null,{"$f":"IF(G83=0,\"Pt udsolgt\",IFERROR(_xlfn.XLOOKUP(F83,Tilbehør!B:B,Tilbehør!A:A),\"Findes ikke\"))","v":"Apple Smart Folio for iPad Air 4th generation Cyprus Green"},"A24222",{"$f":"IFERROR(VLOOKUP(F83,Lager!$A:$C,3,FALSE),0)","v":30},{"$f":"IF(J83=0,\"Pt udsolgt\",IFERROR(_xlfn.XLOOKUP(I83,Tilbehør!$B:$B,Tilbehør!$A:$A),\"Findes ikke\"))","v":"Apple Smart Folio for iPad Air 4th generation Cyprus Green"},"A24222",{"$f":"IFERROR(VLOOKUP(I83,Lager!$A:$C,3,FALSE),0)","v":30}]
[null,null,null,null,{"$f":"IF(G84=0,\"Pt udsolgt\",IFERROR(_xlfn.XLOOKUP(F84,Tilbehør!B:B,Tilbehør!A:A),\"Findes ikke\"))","v":"Apple Smart Folio for iPad Air 4th generation Deep Navy"},"A24223",{"$f":"IFERROR(VLOOKUP(F84,Lager!$A:$C,3,FALSE),0)","v":20},{"$f":"IF(J84=0,\"Pt udsolgt\",IFERROR(_xlfn.XLOOKUP(I84,Tilbehør!$B:$B,Tilbehør!$A:$A),\"Findes ikke\"))","v":"Apple Smart Folio for iPad Air 4th generation Deep Navy"},"A24223",{"$f":"IFERROR(VLOOKUP(I84,Lager!$A:$C,3,FALSE),0)","v":20}]
["Xiaomi Mix 2S 64GB","Mix2scover","Mix2spanserglas"]
["Xiaomi Mix 2S 128GB","Mix2scover","Mix2spanserglas"]
["Xiaomi Mi 8 64GB","Mi8cover","Mi8panserglas",null,"SamsungGalaxyTabS7LTECover","Anummer","Lager"]
["Xiaomi Mi 8 128GB","Mi8cover","Mi8panserglas",null,{"$f":"IF(G88=0,\"Pt udsolgt\",IFERROR(_xlfn.XLOOKUP(F88,Tilbehør!B:B,Tilbehør!A:A),\"Findes ikke\"))","v":"Pt udsolgt"},null,{"$f":"IFERROR(VLOOKUP(F88,Lager!A:C,3,FALSE),0)","v":0}]
["Xiaomi Redmi 7 32GB","Redmi7cover","Redmi7panserglas"]
[null,null,null,null,"SamsungGalaxyTabS7LTEpanserglas","Anummer","Lager"]
["Nokia 3310 3G DS","Nokia3310cover","Nokia3310panserglas",null,{"$f":"IF(G91=0,\"Pt udsolgt\",IFERROR(_xlfn.XLOOKUP(F91,Tilbehør!B:B,Tilbehør!A:A),\"Findes ikke\"))","v":"Pt udsolgt"},null,{"$f":"IFERROR(VLOOKUP(F91,Lager!A:C,3,FALSE),0)","v":0}]
[]
[]
["Router"]
["Huawei B525"]
["Huawei E3372"]
["Huawei B315"]
["Huawei E5577"]
[]
["Tablet"]
["Apple iPad 7th generation 32GB","iPad7thgenerationcover","iPad7thgenerationpanserglas"]
["Apple iPad 7th generation 128GB","iPad7thgenerationcover","iPad7thgenerationpanserglas"]
["Apple iPad Air 10.5 64GB","iPadAir10.5cover","iPadAir10.5panserglas"]
["Apple iPad Air 10.5 256GB","iPadAir10.5cover","iPadAir10.5panserglas"]
["Apple iPad Mini 5th gen 64GB","iPadMini5thgencover","iPadMini5thgenpanserglas"]
["Apple iPad Mini 5th gen 256GB","iPadMini5thgencover","iPadMini5thgenpanserglas"]
["Apple iPad Pro 11.0 64GB","iPadPro11.0cover","iPadPro11.0panserglas"]
["Apple iPad Pro 11.0 256GB","iPadPro11.0cover","iPadPro11.0panserglas"]
["Apple iPad Pro 12.9 3rd gen 64GB","iPadPro12.93rdgencover","iPadPro12.93rdgenpanserglas"]
["Apple iPad Pro 12.9 3rd gen 256GB","iPadPro12.93rdgencover","iPadPro12.93rdgenpanserglas"]
["Apple iPad 6th gen 32GB","iPad6thgencover","iPad6thgenpanserglas"]
["Apple iPad 6th gen 128GB","iPad6thgencover","iPad6thgenpanserglas"]
["Samsung Galaxy Tab S7 LTE","SamsungGalaxyTabS7LTECover","SamsungGalaxyTabS7LTEpanserglas"]
["Samsung Galaxy Tab S4","TabS4cover","TabS4panserglas"]
["Galaxy Tab Active 2 4G ","TabActive24Gcover","TabActive24Gpanserglas"]
["iPad Pro 12.9 4th gen 128GB","iPadPro1294thgen128GBCover","iPadPro1294thgen128GBPanserglas"]
["iPad Pro 12.9 4th gen 256GB","iPadPro1294thgen256GBCover","iPadPro1294thgen256GBPanserglas"]

{"sheet":"Tilbehør","index":6,"n_rows":1270,"n_cols":4,"rows_kept":1270,"cut":false,"hidden":true,"merged":[]}
["BESKRIVELSE","SKU","Business priser"]
["A Good Company iPhone 11 Charcoal Black Mobile Case","A24180",168]
["A Good Company iPhone 11 Grass Green Mobile Case","A24181",168]
["A Good Company iPhone 11 Green Paint Mobile Case","A24182",200]
["A Good Company iPhone 11 Leopard Mobile Case","A24183",200]
["A Good Company iPhone 11 Palm Leaves Mobile Case","A24184",200]
["A Good Company iPhone 11 Pro Grass Green","A24176",168]
["A Good Company iPhone 11 Pro Green Paint","A24177",200]
["A Good Company iPhone 11 Pro Leopard","A24178",200]
["A Good Company iPhone 11 Pro Palm Leafs","A24179",200]
["A Good Company iPhone 11 Vanilla White Mobile Case","A24185",168]
["A Good Company iPhone 12 Mini Charcoal Black","A24186",168]
["A Good Company iPhone 12 Mini Grass Green","A24188",168]
["A Good Company iPhone 12 Mini Green Paint","A24189",200]
["A Good Company iPhone 12 Mini Leopard","A24190",200]
["A Good Company iPhone 12 Mini Palm Leafs","A24191",200]
["A Good Company iPhone 12 Mini Vanilla White","A24187",168]
["A Good Company iPhone 12 og 12 Pro Charcoal Black","A24192",168]
["A Good Company iPhone 12 og 12 Pro Grass Green","A24193",168]
["A Good Company iPhone 12 og 12 Pro Green Paint","A24194",200]
["A Good Company iPhone 12 og 12 Pro Leopard","A24195",200]
["A Good Company iPhone 12 og 12 Pro Palm Leafs","A24196",200]
["A Good Company iPhone 12 og 12 Pro Vanilla White","A24197",168]
["A Good Company iPhone 12 Pro Max Charcoal Black","A24198",168]
["A Good Company iPhone 12 Pro Max Grass Green","A24199",168]
["A Good Company iPhone 12 Pro Max Green Paint","A24200",200]
["A Good Company iPhone 12 Pro Max Leopard","A24201",200]
["A Good Company iPhone 12 Pro Max Palm Leafs","A24202",200]
["A Good Company iPhone 12 Pro Max Vanilla White","A24203",168]
["A Good Company iPhone 8 og SE Charcoal Black Mobile Case","A24206",168]
["A Good Company iPhone 8 og SE Grass Green Mobile Case","A24207",168]
["A Good Company iPhone 8 og SE Green Paint Mobile Case","A24208",200]
["A Good Company iPhone 8 og SE Leopard Mobile Case","A24209",200]
["A Good Company iPhone 8 og SE Palm Leafs Mobile Case","A24210",200]
["A Good Company iPhone 8 og SE Vanilla White Mobile Case","A24211",168]
["A Good Company iPhone X XS Charcoal Black Mobile Case","A24212",168]
["A Good Company iPhone X XS Grass Green Mobile Case","A24213",168]
["A Good Company iPhone X XS Green Paint Mobile Case","A24214",200]
["A Good Company iPhone X XS Leopard Mobile Case","A24215",200]
["A Good Company iPhone X XS Palm Leafs Mobile Case","A24216",200]
["A Good Company iPhone X XS Vanilla White Mobile Case","A24217",168]
["Apple 12W USB Power Adapter","A21608",144]
["Apple 20W USB C Power Adapter","A24287",144]
["Apple 5W USB Power Adapter","A24220",120]
["Apple AirPods Pro with wireless case","A23444",1752]
["Apple AirPods with Charging Case","A23335",1104]
["Apple AirPods with Wireless Charging Case","A23333",1416]
["Apple EarPods with Lightning Connector","A22057",240]
["Apple EARPODS WITH REMOTE AND MIC","A22512",240]
["Apple iPhone 11 Clear Case","A23250",288]
["Apple iPhone 11 Pro Clear Case","A23253",288]
["Apple iPhone 11 Pro Leather Case  Black","A23252",336]
["Apple iPhone 11 Pro Silicone Case  Black","A23256",288]
["Apple iPhone 11 Silicone Case  Black","A23251",288]
["Apple iPhone 12 mini Clear MagSafe","A24288",336]
["Apple iPhone 12 mini Leather MagSafe Baltic Blue","A24265",408]
["Apple iPhone 12 mini Leather MagSafe Black","A24267",408]
["Apple iPhone 12 mini Silicone MagSafe Black","A24277",336]
["Apple iPhone 12 mini Silicone MagSafe Cypress Green","A24275",336]
["Apple iPhone 12 mini Silicone MagSafe Deep Navy","A24276",336]
["Apple iPhone 12 og 12 Pro Clear MagSafe","A24285",336]
["Apple iPhone 12 og 12 Pro Leather MagSafe Baltic Blue","A24268",408]
["Apple iPhone 12 og 12 Pro Leather MagSafe Black","A24270",408]
["Apple iPhone 12 og 12 Pro Silicone MagSafe Black","A24281",336]
["Apple iPhone 12 og 12 Pro Silicone MagSafe Cypress Green","A24279",336]
["Apple iPhone 12 og 12 Pro Silicone MagSafe Deep Navy","A24280",336]
["Apple iPhone 12 Pro Max Clear MagSafe","A24286",336]
["Apple iPhone 12 Pro Max Leather Case with MagSafe Black","A24291",408]
["Apple iPhone 12 Pro Max Leather MagSafe Baltic Blue","A24271",408]
["Apple iPhone 12 Pro Max Leather MagSafe Black","A24273",408]
["Apple iPhone 12 Pro Max Silicone MagSafe Cypress Green","A24283",336]
["Apple iPhone 12 Pro Max Silicone MagSafe Deep Navy","A24284",336]
["Apple iPhone SE Leather Black","A23749",312]
["Apple iPhone SE Silicone Case Black","A23747",264]
["Apple Lightning to Headphone Jack Adapter","A22056",96]
["Apple Lightning to USB Cable 05 m","A23466",144]
["Apple Lightning to USB Cable 1m","A24293",144]
["Apple Lightning to USB Cable 2 m","A23464",200]
["Apple Lightning to USB Cable 2 m","A24292",192]
["Apple MagSafe Charger","A24289",288]
["Apple TV 4K 32GB MQD22KK","A23561",1200]
["Apple Watch Magnetic Charging Cable 1 m","A23247",216]
["Apple Wireless Charging Case for AirPods","A23332",552]
["Belkin 10 000 MAH POWER BANK","A23865",240]
["Belkin 10W Wireless Car Vent Mount Charger","A23872",280]
["Belkin 10W Wireless Charging Pad with PS","A23860",240]
["Belkin 10W Wireless Charging Stand with","A23861",240]
["Belkin 18W USB C Home Charger EU Plug","A23864",200]
["Belkin 2x 10W Dual Wireless Charging Pad","A23862",360]
["Belkin 3 in 1 Wireless Pad Stand Apple Watch","A23871",720]
["Belkin BOOST CHARGE Lightning to USB A 1M white","A23868",96]
["Belkin BOOST CHARGE Lightning to USB A 3M white","A23869",176]
["Belkin BOOST CHARGE Lightning to USB C 1M white","A23870",168]
["Belkin Boost Charge USB A To USB C 3M Black","A23858",240]
["Belkin BOOST CHARGE USB A to USB C Cable 1M Black","A23866",96]
["Belkin BOOST CHARGE USB C to USB C Cab 1M black","A23867",168]
["Belkin Single USB A Wall Charger 18W QC","A23863",120]
["BELKIN SOUNDFORM TRUE WIRELESS BLACK","A24250",320]
["BELKIN SOUNDFORM TRUE WIRELESS WHITE","A24251",320]
["Belkin Wireless Car Charging Vent Mount 10W","A24146",312]
["Beoplay Beolit 20 Black Anthracite","A24260",3008]
["Beoplay E8 3rd black Truly Wireless Earphones","A23489",2208]
["Beoplay H4 2 Gen Black","A23520",1848]
["Beoplay H4 2 Gen Limestone","A23521",1848]
["Beoplay H9 3G Matte Black","A23177",3232]
["BeoPlay M3 Black Bluetooth Airplay Chromecast","A22587",1920]
["Beosound A1 2nd Gen Black","A23840",1608]
["Beosound A1 2nd Gen Grey Mist","A23839",1608]
["CELLY WALLET UNIVERSAL OP TIL 5 8","A24092",192]
["CELLY WALLET UNIVERSAL OP TIL 6 5","A24093",192]
["DBRAMANTE 1928 LYNGE iPhone 11 BLACK","A23207",360]
["DBRAMANTE 1928 LYNGE iPhone 11 Pro BLACK","A23205",360]
["Dbramante 1928 Lynge iPhone Xr Black","A22941",312]
["Dbramante Barcelona iPhone 12 Mini Night Black","A23963",168]
["Dbramante Barcelona iPhone 12 Mini Sahara Sand","A23964",168]
["Dbramante Barcelona iPhone 12 og 12 pro Night Black","A23965",168]
["Dbramante Barcelona iPhone 12 og 12 pro Sahara Sand","A23966",168]
["Dbramante Barcelona iPhone 12 Pro Max Night Black","A23967",168]
["Dbramante Barcelona iPhone SE 8 7 Night Black","A23961",168]
["Dbramante Barcelona iPhone SE 8 7Sahara Sand","A23962",168]
["Dbramante Grenen iPhone 12 Mini Black","A23955",168]
["Dbramante Grenen iPhone 12 Mini Dark Olive Green","A23956",168]
["Dbramante Grenen iPhone 12 og 12 pro Black","A23957",168]
["Dbramante Grenen iPhone 12 og 12 pro Dark Olive Green","A23958",168]
["Dbramante Grenen iPhone 12 Pro Max Black","A23959",168]
["Dbramante Grenen iPhone 12 Pro Max Dark Olive Green","A23960",168]
["Dbramante Grenen iPhone SE 8 7 Black","A23953",168]
["Dbramante Grenen iPhone SE 8 7 Dark Olive Green","A23954",168]
["Dbramante Lynge iPhone 12 Mini Black","A23947",360]
["Dbramante Lynge iPhone 12 Mini Tan","A23948",360]
["Dbramante Lynge iPhone 12 og 12 pro Black","A23949",360]
["Dbramante Lynge iPhone 12 og 12 pro Tan","A23950",360]
["Dbramante Lynge iPhone 12 Pro Max Black","A23951",360]
["Dbramante Lynge iPhone 12 Pro Max Tan","A23952",360]
["dbramante1928 Lynge  iPhone 11  Tan","A23439",360]
["dbramante1928 Lynge  iPhone 11 Pro  Tan","A23440",360]
["dbramante1928 Lynge  iPhone 8 7 6 TAN","A23438",360]
["dbramante1928 Lynge iPhone 8 7 6 Series Black New","A23452",336]
["Defunc TRUE GAMING Wireless BT Earbuds Black","A23853",600]
["Defunc TRUE GO Slim Wireless Hybrid Earbud Black","A23850",312]
["Defunc TRUE GO Slim Wireless Hybrid Earbud White","A23851",312]
["eSTUFF AirPods Pro Silicone Case Black","A24070",72]
["eSTUFF AirPods Pro Silicone Case Olive","A24073",72]
["eSTUFF AirPods Pro Silicone Case Sand Pink","A24072",72]
["eSTUFF AirPods Pro Silicone Case White","A24071",72]
["eSTUFF AirPods Silicone Case Black","A24066",72]
["eSTUFF AirPods Silicone Case Olive","A24069",72]
["eSTUFF AirPods Silicone Case Sand Pink","A24068",72]
["eSTUFF AirPods Silicone Case White","A24067",72]
["eSTUFF Apple Silicone Watch Band Black 38 40 mm","A24074",120]
["eSTUFF Apple Silicone Watch Band Black 42 44 mm","A24078",120]
["eSTUFF Apple Silicone Watch Band Olive 38 40 mm","A24077",120]
["eSTUFF Apple Silicone Watch Band Olive 42 44 mm","A24081",120]
["eSTUFF Apple Silicone Watch Band Sand Pink 38 40 mm","A24076",120]
["eSTUFF Apple Silicone Watch Band Sand Pink 42 44 mm","A24080",120]
["eSTUFF Apple Silicone Watch Band White  42 44 mm","A24079",120]
["eSTUFF Apple Silicone Watch Band White 38 40 mm","A24075",120]
["eStuff Home Charger EU PD 18W","A24290",144]
["Galaxy Buds Live Black","A23968",1128]
["Google Chromecast 3","A24700",288]
["GORUNNER CONNECT","A23756",3200]
["HI3G Bundle Pack iPhone 12 12 pro","A24056",456]
["HI3G Bundle Pack iPhone 12 Max","A24055",456]
["HI3G Bundle Pack iPhone 12 Mini","A24054",456]
["HOLDIT  AIRPODS  BLUSH PINK","A23900",144]
["HOLDIT  AIRPODS  LAVENDER","A23914",144]
["HOLDIT  AIRPODS  MINT","A23901",144]
["HOLDIT  AIRPODS  MOSS GREEN","A23911",144]
["HOLDIT  AIRPODS  TAUPE","A23898",144]
["HOLDIT  AIRPODS  YELLOW","A23899",144]
["HOLDIT  AIRPODS PRO  BLACK","A23903",144]
["HOLDIT  AIRPODS PRO  BLUSH PINK","A23905",144]
["HOLDIT  AIRPODS PRO  MINT","A23906",144]
["HOLDIT  AIRPODS PRO  TAUPE","A23904",144]
["HOLDIT  AIRPODS PRO MOSS GREEN","A23915",144]
["HOLDIT  IPHONE 11 BLUSH PINK","A23895",144]
["HOLDIT  IPHONE 11 LAVENDER","A23912",144]
["HOLDIT  IPHONE 11 MINT","A23902",144]
["HOLDIT  IPHONE 11 MOSS GREEN","A23909",144]
["HOLDIT  IPHONE 11 PRO BLUSH PINK","A23892",144]
["HOLDIT  IPHONE 11 PRO LAVENDER","A23913",144]
["HOLDIT  IPHONE 11 PRO MINT","A23891",144]
["HOLDIT  IPHONE 11 PRO MOSS GREEN","A23910",144]
["HOLDIT  IPHONE 11 PRO TAUPE","A23894",144]
["HOLDIT  IPHONE 11 PRO YELLOW","A23893",144]
["HOLDIT  IPHONE 11 TAUPE","A23896",144]
["HOLDIT  IPHONE 11 YELLOW","A23897",144]
["HOLDIT  IPHONE 7 8 SE BLUSH PINK","A23881",144]
["HOLDIT  IPHONE 7 8 SE LAVENDER","A23887",144]
["HOLDIT  IPHONE 7 8 SE MINT","A23889",144]
["HOLDIT  IPHONE 7 8 SE MOSS GREEN","A23907",144]
["HOLDIT  IPHONE 7 8 SE TAUPE","A23883",144]
["HOLDIT  IPHONE 7 8 SE YELLOW","A23885",144]
["HOLDIT  IPHONE X XS BLUSH PINK","A23882",144]
["HOLDIT  IPHONE X XS LAVENDER","A23888",144]
["HOLDIT  IPHONE X XS MINT","A23890",144]
["HOLDIT  IPHONE X XS MOSS GREEN","A23908",144]
["HOLDIT  IPHONE X XS TAUPE","A23884",144]
["HOLDIT  IPHONE X XS YELLOW","A23886",144]
["HOLDIT IPHONE iPhone 12 12 pro Blush Pink","A24017",144]
["HOLDIT IPHONE iPhone 12 12 pro Lavender","A24021",144]
["HOLDIT IPHONE iPhone 12 12 pro Moss Green","A24020",144]
["HOLDIT IPHONE iPhone 12 12 pro Taupe","A24018",144]
["HOLDIT IPHONE iPhone 12 12 pro Yellow","A24019",144]
["HOLDIT IPHONE iPhone 12 Mini Blusth pink","A24012",144]
["HOLDIT IPHONE iPhone 12 Mini Lavender","A24014",144]
["HOLDIT IPHONE iPhone 12 Mini Moss Green","A24016",144]
["HOLDIT IPHONE iPhone 12 Mini Taupe","A24013",144]
["HOLDIT IPHONE iPhone 12 Mini Yellow","A24015",144]
["HOLDIT IPHONE iPhone 12 pro Max Blush Pink","A24022",144]
["HOLDIT IPHONE iPhone 12 pro Max Lavender","A24024",144]
["HOLDIT IPHONE iPhone 12 pro Max Moss Green","A24026",144]
["HOLDIT IPHONE iPhone 12 pro Max Taupe","A24023",144]
["HOLDIT IPHONE iPhone 12 pro Max Yellow","A24025",144]
["HOLDIT SILICONE CASE IPHONE iPhone 12 12 proin 2020 ROYAL BLUE","A24028",144]
["HOLDIT SILICONE CASE IPHONE iPhone 12 Pro in 2020 ROYAL BLUE","A24027",144]
["HOLDIT SILICONE CASE IPHONE iPhone 12 pro Maxin 2020 ROYAL BLUE","A24029",144]
["HOLDIT STICKERS BAD BITCH STICKERS","A23920",72]
["Huawei P40 Lite Protective Cover Transparent","A23724",72]
["Huawei P40 Pro Protective Cover Transparent","A23725",120]
["Ideal Apple Airpods 1 2 Case Black Croco","A23763",240]
["Ideal Apple Airpods 1 2 Case Carrara Gold","A23758",200]
["Ideal Apple Airpods 1 2 Case Cosmic Green Swirl","A23760",200]
["Ideal Apple Airpods 1 2 Case Cosmic Pink Swirl","A23761",200]
["Ideal Apple Airpods 1 2 Case Golden Smoke Marble","A23759",200]
["Ideal Apple Airpods 1 2 Case Sandstorm Marble","A23762",200]
["Ideal Apple Airpods Pro Case Black Croco","A23769",240]
["Ideal Apple Airpods Pro Case Carrara Gold","A23764",200]
["Ideal Apple Airpods Pro Case Cosmic Green Swirl","A23766",200]
["Ideal Apple Airpods Pro Case Cosmic Pink Swirl","A23767",200]
["Ideal Apple Airpods Pro Case Golden Smoke Marble","A23765",200]
["Ideal Apple Airpods Pro Case Sandstorm Marble","A23768",200]
["Ideal Atelier Case Iphone 11 Xr Nightfall Croco","A23777",328]
["Ideal Atelier Case Iphone 6 6S 7 8 Se  Nightfall Croco","A23778",328]
["Ideal Atelier Case Iphone X Xs 11 Pro Nightfall Croco","A23776",328]
["IDEAL ATELIER WALLET IPHONE 12 og 12 PRO NEO NOIR CROCO","A24136",240]
["IDEAL ATELIER WALLET IPHONE 12 PRO MAX NEO NOIR CROCO","A24137",240]
["IDEAL Atelier Wallet iPhone iPhone 12 Mini Neo Noir Croco","A24135",240]
["Ideal Car  Vent Mount Universal Silver","A22733",200]
["IDEAL FASHION CASE 5 8 BLACK GALAXY MARBLE","A23416",200]
["IDEAL FASHION CASE 6 1 BLACK GALAXY MARBLE","A23292",200]
["IDEAL FASHION CASE iPhone 11 in CARRARA GOLD","A23213",200]
["IDEAL FASHION CASE iPhone 11 in FLORAL ROMANCE","A23214",200]
["IDEAL FASHION CASE IPHONE 11 PRO CARRARA GOLD","A23424",200]
["IDEAL FASHION CASE iPhone 11 Pro in FLORAL ROMANCE","A23212",200]
["IDEAL FASHION CASE iPhone 12 12 pro 2020 FLORAL ROMANCE","A24151",200]
["IDEAL FASHION CASE iPhone 12 Mini 2020 GOLDEN PLUM","A24162",200]
["IDEAL FASHION CASE IPHONE 6 6S 7 8 BLACK GALAXY MARBLE","A23428",200]
["Ideal Fashion Case Iphone 6 6S 7 8 Se  Cosmic Green Swirl","A23790",200]
["Ideal Fashion Case Iphone 6 6S 7 8 Se  Cosmic Pink Swirl","A23791",200]
["Ideal Fashion Case Iphone 6 6S 7 8 Se  Golden Smoke Marble","A23789",200]
["Ideal Fashion Case Iphone 6 6S 7 8 Se  Sandstorm Marble","A23792",200]
["Ideal Fashion Case Iphone 6 6S 7 8 Se  Vintage Bloom","A23793",200]
["Ideal Fashion Case Iphone 7 6 6S Carrara Gold","A22447",200]
["Ideal Fashion Case Iphone 7 6 6S Floral Romance","A22461",200]
["IDEAL FASHION CASE IPHONE 8 7 6 6S MONSTERA JUNGLE","A23433",200]
["IDEAL FASHION CASE IPHONE iPhone 12 12 pro 2020 GOLDEN PEARL MARBLE","A24154",200]
["IDEAL FASHION CASE IPHONE iPhone 12 Mini  2020 CRYSTAL GREEN SKY","A24165",200]
["IDEAL FASHION CASE IPHONE iPhone 12 Mini 2020 FLORAL ROMANCE","A24150",200]
["IDEAL FASHION CASE IPHONE iPhone 12 Mini 2020 GOLDEN SMOKE MARBLE","A24153",200]
["IDEAL Fashion Case iPhone iPhone 12 Mini Cosmic Green Swirl","A24123",200]
["IDEAL Fashion Case iPhone iPhone 12 Mini Cosmic Pink Swirl","A24126",200]
["IDEAL FASHION CASE IPHONE iPhone 12 pro Max 2020 CRYSTAL GREEN SKY","A24167",200]
["IDEAL FASHION CASE IPHONE iPhone 12 pro Max 2020 FLORAL ROMANCE","A24152",200]
["IDEAL FASHION CASE IPHONE iPhone 12 pro Max 2020 GOLDEN PEARL MARBLE","A24158",200]
["IDEAL FASHION CASE IPHONE iPhone 12 pro Max 2020 GOLDEN PLUM","A24164",200]
["IDEAL FASHION CASE IPHONE iPhone 12 pro Max 2020 GOLDEN SMOKE MARBLE","A24157",200]
["IDEAL Fashion Case iPhone iPhone 12 pro Max Cosmic Green Swirl","A24125",200]
["IDEAL Fashion Case iPhone iPhone 12 pro Max Cosmic Pink Swirl","A24128",200]
["Ideal Fashion Case Iphone X Xs 11 Pro Cosmic Green Swirl","A23780",200]
["Ideal Fashion Case Iphone X Xs 11 Pro Cosmic Pink Swirl","A23781",200]
["Ideal Fashion Case Iphone X Xs 11 Pro Golden Smoke Marble","A23779",200]
["IDEAL FASHION CASE IPHONE X XS 11 PRO MONSTERA JUNGLE","A23412",200]
["Ideal Fashion Case Iphone X Xs 11 Pro Sandstorm Marble","A23782",200]
["Ideal Fashion Case Iphone X Xs 11 Pro Vintage Bloom","A23783",200]
["Ideal Fashion Case Iphone Xr 11 Cosmic Green Swirl","A23785",200]
["Ideal Fashion Case Iphone Xr 11 Cosmic Pink Swirl","A23786",200]
["Ideal Fashion Case Iphone Xr 11 Golden Smoke Marble","A23784",200]
["Ideal Fashion Case Iphone Xr 11 Sandstorm Marble","A23787",200]
["Ideal Fashion Case Iphone Xr 11 Vintage Bloom","A23788",200]
["Ideal Fashion Power Bank Golden Smoke Marble","A23770",288]
["IDEAL FASHION POWER BANK SANDSTORM MARBLE","A23875",230.4]
["IDEAL FASHION QI CHARGER BLACK GALAXY MARBLE","A23318",288]
["IDEAL FASHION QI CHARGER CARRARA GOLD MARBLE","A23873",230.4]
["Ideal Fashion Qi Charger Golden Smoke Marble","A23771",288]
["IDEAL FASHION WALLET IPHONE 11 BLACK","A23342",168]
["IDEAL FASHION WALLET IPHONE 11 PRO BLACK","A23341",168]
["Ideal Fashion Wallet Iphone 7 6 6S Black","A22465",168]
["IDEAL MAGNET WALLET  IPHONE 11 BLACK","A23437",216]
["IDEAL MAGNET WALLET  IPHONE 11 PRO BLACK","A23436",216]
["IDEAL MAGNET WALLETplus IPHONE 12 61 2020 BLACK","A24160",200]
["IDEAL MAGNET WALLETplus IPHONE 12 67 2020 BLACK","A24161",200]
["IDEAL MAGNET WALLETplus IPHONE iPhone 12 Mini 2020 BLACK","A24159",200]
["IDEAL MAGNETIC RING MOUNT BLACK GALAXY MARBLE","A23314",168]
["IDEAL MAGNETIC RING MOUNT CARRARA GOLD","A23874",134.4]
["Ideal Magnetic Ring Mount Cosmic Green Swirl","A23773",168]
["Ideal Magnetic Ring Mount Cosmic Pink Swirl","A23774",168]
["Ideal Magnetic Ring Mount Golden Smoke Marble","A23772",168]
["Ideal Magnetic Ring Mount Sandstorm Marble","A23775",168]
["IDEAL Necklace Case iPhone iPhone 12 12 pro Jet Black Croco","A24130",312]
["IDEAL Necklace Case iPhone iPhone 12 12 pro Misty Rose Croco","A24133",312]
["IDEAL Necklace Case iPhone iPhone 12 Mini","A24129",312]
["IDEAL Necklace Case iPhone iPhone 12 MIni","A24132",312]
["IDEAL Necklace Case iPhone iPhone 12 pro Max Jet Black Croco","A24131",312]
["IDEAL Necklace CaseiPhone iPhone 12 pro Max Misty Rose Croco","A24134",312]
["Ideal Phone Necklace Case Iphone 6 6S 7 8 Se  Jet Black Croco","A23794",328]
["Ideal Phone Necklace Case Iphone 6 6S 7 8 Se  Misty Rose Croco","A23799",328]
["Ideal Phone Necklace Case Iphone X Xs 11 Pro Jet Black Croco","A23795",328]
["Ideal Phone Necklace Case Iphone X Xs 11 Pro Misty Rose Croco","A23797",328]
["Ideal Phone Necklace Case Iphone Xr 11 Jet Black Croco","A23796",328]
["Ideal Phone Necklace Case Iphone Xr 11 Misty Rose Croco","A23798",328]
["Ideal Signature Clutch Iphone 6 6S 7 8 Se Jet Black Croco","A23800",328]
["Ideal Signature Clutch Iphone X Xs 11 Pro Jet Black Croco","A23801",328]
["Ideal Signature Clutch Iphone Xr 11 Jet Black Croco","A23802",328]
["INSTAX COLORFILM MINI GLOSSY10 2PK NEW","A23690",144]
["INSTAX MINI FILM 10PKT","A23689",72]
["INSTAX MINI LINK ASH WHITE PRINTER BUNDLE","A23687",720]
["INSTAX MINI LINK DUSKY PINK EX D","A23686",720]
["INSTAX MINI LINK with Album and film White","A23696",720]
["Invisibleshield Glass Elite Edge Iphone X Xs 11 Pro Screen","A23604",216]
["Invisibleshield Glass Elite Edge Iphone Xr 11 Screen","A23605",216]
["Invisibleshield Glass Elite Edge Iphone Xs Max 11 Pro Max Screen","A23606",216]
["Invisibleshield Glass Elite Iphone X Xs 11 Pro Screen","A23599",168]
["Invisibleshield Glass Elite Iphone Xs Max 11 Pro Max Screen","A23601",168]
["INVISIBLESHIELD GLASS ELITE plus IPHONE iPhone 12 Mini","A24042",168]
["INVISIBLESHIELD GLASS ELITE plus IPHONE iPhone 12 pro Max","A24044",168]
["Invisibleshield Glass Elite Privacy Iphone X Xs 11 Pro Screen","A23615",216]
["Invisibleshield Glass Elite Privacy Iphone Xs Max 11 Pro Max Screen","A23617",216]
["INVISIBLESHIELD GLASS ELITE PRIVACY plus IPHONE iPhone 12 Mini","A24048",216]
["INVISIBLESHIELD GLASS ELITE PRIVACY plus IPHONE iPhone 12 pro Max","A24050",216]
["InvisibleShield Glass Elite Privacyplus Apple iPhone 11 XR 12 12 Pro Screen","A24049",216]
["Invisibleshield Glass Elite Samsung Galaxy A51","A23623",168]
["Invisibleshield Glass Elite Vision GuardPlus Iphone Xs Max 11 Pro Max Screen","A23612",216]
["InvisibleShield Glass Elite VisionGuardplus Apple iPhone 11 XR 12 12 Pro Screen","A24046",216]
["Invisibleshield Glass Elite VisionguardPlus Iphone X Xs 11 Pro Screen","A23610",216]
["Invisibleshield Glass Elite VisionguardPlus Iphone Xr 11 Screen","A23611",216]
["InvisibleShield Glass Eliteplus Apple iPhone 11 XR 12 12 Pro Screen","A24043",168]
["Invisibleshield Glass Plus Apple 12 Pro 2018 Screen","A23621",240]
["Invisibleshield Glasselite VisionguardPlus Apple Baby Yoda 8 7 6S 6 Screen","A23609",168]
["Invisibleshield GlassPlus Apple 11 Inch Ipad Pro 2018 Screen","A23620",240]
["Invisibleshield GlassPlus Huawei P30 Lite Screen","A23639",168]
["Invisibleshield GlassPlus Ipad Air Air2 9 7 Ipad Pro Ipad 2017 2018 Screen","A23618",240]
["Invisibleshield GlassPlus Privacy Apple Iphone 8 7 6S 6 Case Friendly Screen","A23613",216]
["Invisibleshield GlassPlus S10E Screen","A23635",168]
["Invisibleshield GlassPlus Visionguard Apple Ip7 Plus Ip8 Plus Screen","A23608",216]
["Invisibleshield GlassPlus Visionguard Apple Ipad Air Air 2 Ipad Pro 9 7 Ipad 2017 2018 Screen","A23622",240]
["Invisibleshield GlassPlus Visionguard S10E Screen","A23636",216]
["InvisibleShield Ultr Clear OnePlus 8","A23729",168]
["InvisibleShield Ultra Clear Apple iPhone SE 5 5S 5C Screen","A23876",134.4]
["InvisibleShield Ultra Clear Huawei P40 Pro","A23732",168]
["InvisibleShield Ultra Clear OnePlus 8T Screen","A24263",168]
["InvisibleShield Ultra Clear OnePlus8 Pro Screen","A23730",168]
["InvisibleShield Ultra Clear Samsung Galaxy S20FE 5G Screen","A24258",168]
["InvisibleShield Ultra Clear Samsung Note 20","A24034",168]
["InvisibleShield Ultra Clear Samsung Note 20 ultra","A24035",168]
["Invisibleshield Ultra Clear Samsung S10 Screen","A23627",168]
["Invisibleshield Ultra Clear Samsung S10Plus Screen","A23628",168]
["INVISIBLESHIELD ULTRA CLEAR SCREEN HUAWEI P40 LITE","A23735",168]
["Invisibleshield Ultra Clear Screen OnePlus Nord","A23859",168]
["INVISIBLESHIELD ULTRA CLEAR SCREEN SAMSUNG GALAXY NOTE 10 PLUS","A23691",168]
["Invisibleshield Ultra ClearPlus Samsung S20 Plus","A23630",168]
["Invisibleshield Ultra ClearPlus Samsung S20 Ultra","A23631",168]
["Invisibleshield Ultra ClearPlus Samsung Samsung S20","A23629",168]
["Invisibleshield Ultra VisionGuard Plus Samsung S20","A23632",216]
["Invisibleshield Ultra VisionGuard Plus Samsung S20 Plus","A23633",216]
["Invisibleshield Ultra VisionGuard Plus Samsung S20 Ultra","A23634",216]
["InvisibleShield Ultra VisionGuard Samsung Note 20","A24051",216]
["InvisibleShield Ultra VisionGuard Samsung Note 20 Ultra","A24052",216]
["INVISIBLESHIELD UV PHONE SANITIZER","A23842",312]
["INVISIBLESHIELS GLASS ELITE VISIONGUARD SCREEN IPHONE iPhone 12 Mini","A24045",216]
["INVISIBLESHIELS GLASS ELITE VISIONGUARD SCREEN IPHONE iPhone 12 pro Max","A24047",216]
["Jabra Elite 75t Titanium Black","A23674",1200]
["JBL FLIP5 Black","A23358",816]
["JBL FLIP5 Green","A23359",816]
["JBL FLIP5 Pink","A23361",816]
["JBL Link Portable","A23707",816]
["JBL T115 BT Black","A23366",336]
["JBL T205 BT Black","A23369",336]
["JBL T210 Black","A23371",120]
["JBL T290 Black","A23372",192]
["MARSHALL ACTON II BT BLACK","A23125",1608]
["MARSHALL ACTON II BT WHITE","A23126",1608]
["MARSHALL KILBURN II BLACK","A23127",1824]
["MARSHALL MAJOR III BLUETOOTH BLACK","A23128",960]
["MARSHALL MINOR II BT BLACK","A23129",792]
["MARSHALL STOCKWELL II BLACK","A23130",1608]
["NECKLACY Smartphone Necklace Case for iPhone 12 12 Pro All Black","A24111",168]
["NECKLACY Smartphone Necklace Case for iPhone 12 12 Pro Black Domino Swirl","A24116",168]
["NECKLACY Smartphone Necklace Case for iPhone 12 12 Pro Domino Swirl","A24112",168]
["NECKLACY Smartphone Necklace Case for iPhone 12 12 Pro Elegant Black","A24113",168]
["NECKLACY Smartphone Necklace Case for iPhone 12 12 Pro Noisette Brown","A24114",168]
["NECKLACY Smartphone Necklace Case for iPhone 12 12 Pro Pich Black","A24115",168]
["NECKLACY Smartphone Necklace Case for iPhone 12 Mini All Black","A24105",168]
["NECKLACY Smartphone Necklace Case for iPhone 12 Mini Black Domino Swirl","A24110",168]
["NECKLACY Smartphone Necklace Case for iPhone 12 Mini Domino Swirl","A24106",168]
["NECKLACY Smartphone Necklace Case for iPhone 12 Mini Elegant Black","A24107",168]
["NECKLACY Smartphone Necklace Case for iPhone 12 Mini Noisette Brown","A24108",168]
["NECKLACY Smartphone Necklace Case for iPhone 12 Mini Pich Black","A24109",168]
["NECKLACY Smartphone Necklace Case for iPhone 12 Pro Max All Black","A24117",168]
["NECKLACY Smartphone Necklace Case for iPhone 12 Pro Max Black Domino Swirl","A24122",168]
["NECKLACY Smartphone Necklace Case for iPhone 12 Pro Max Domino Swirl","A24118",168]
["NECKLACY Smartphone Necklace Case for iPhone 12 Pro Max Elegant Black","A24119",168]
["NECKLACY Smartphone Necklace Case for iPhone 12 Pro Max Noisette Brown","A24120",168]
["NECKLACY Smartphone Necklace Case for iPhone 12 Pro Max Pich Black","A24121",168]
["Nintendo Switch Neon","A24309",2240]
["Nudient iPhone 11  Black Transparent","A23566",144]
["Nudient iPhone 7 8 Black Transparent","A23588",144]
["Nudient V3 11 Dusty Pink","A23985",192]
["Nudient V3 11 Ink Black","A23988",192]
["Nudient V3 11 Midwinter Blue","A23986",192]
["Nudient V3 11 Pine Green","A23987",192]
["Nudient V3 11 Pro Dusty Pink","A23989",192]
["Nudient V3 11 Pro Ink Black","A23990",192]
["Nudient V3 11 Pro Midwinter Blue","A23991",192]
["Nudient V3 11 Pro Pine Green","A23992",192]
["Nudient V3 12 og 12 Pro Black Transp","A24010",144]
["Nudient V3 7 8 SE Dusty Pink","A23994",192]
["Nudient V3 7 8 SE Ink Black","A23995",192]
["Nudient V3 7 8 SE Midwinter Blue","A23996",192]
["Nudient V3 7 8 SE Pine Green","A23997",192]
["Nudient V3 iPhone 12 mini Black Transparent","A23974",144]
["Nudient V3 iPhone 12 mini Dusty Pink","A23975",192]
["Nudient V3 iPhone 12 mini Ink Black","A23976",192]
["Nudient V3 iPhone 12 mini Midwinter Blue","A23977",192]
["Nudient V3 iPhone 12 mini Pine Green","A23978",192]
["Nudient V3 iPhone 12 og 12 Pro Dusty Pink","A24009",192]
["Nudient V3 iPhone 12 og 12 Pro Ink Black","A24006",192]
["Nudient V3 iPhone 12 og 12 Pro Midwinter Blue","A24007",192]
["Nudient V3 iPhone 12 og 12 Pro Pine Green","A24008",192]
["Nudient V3 iPhone 12 Pro Max Black Transparent","A23979",144]
["Nudient V3 iPhone 12 Pro Max Dusty Pink","A23980",192]
["Nudient V3 iPhone 12 Pro Max Midwinter Blue","A23982",192]
["Nudient V3 iPhone 12 Pro Max Pine Green","A23983",192]
["Nudient V3 iPhone 12 Pro MaxInk Black","A23981",192]
["Nudient V3 Magnet card holder Black","A23984",216]
["Nudient V3 XS Dusty Pink","A24002",192]
["Nudient V3 XS Ink Black","A24003",192]
["Nudient V3 XS Midwinter Blue","A24004",192]
["Nudient V3 XS Pine Green","A24005",192]
["ON Car Charger 2 1A Lightning 1 5m Black","A22689",192]
["ON Car Charger USB C PD 30W black","A22977",144]
["ON iPhone 11 MAX Pro TPU ULTRA THIN CLEAR","A23198",144]
["ON iPhone 11 TPU ULTRA THIN CLEAR","A23196",144]
["ON IPHONE 12 Mini Flip Cover BLACK","A24036",192]
["ON IPHONE 12 Mini TPU ULTRA THIN CLEAR","A24039",144]
["ON IPHONE 12 og 12 Pro Flip Cover BLACK","A24037",192]
["ON IPHONE 12 og 12 Pro TPU ULTRA THIN CLEAR","A24040",144]
["ON IPHONE 12 Pro Max TPU ULTRA THIN CLEAR","A24041",144]
["ON IPHONE 7 8 TPU ULTRA THIN CLEAR","A22967",144]
["ON IPHONE iPhone 11 Premium Silicone BLACK","A23199",192]
["ON IPHONE iPhone 11 Pro TPU ULTRA THIN CLEAR","A23197",144]
["ON IPHONE X Xs TPU ULTRA THIN CLEAR","A22968",144]
["ON IPHONE Xr TPU ULTRA THIN CLEAR","A22965",144]
["ON Lightning Cabel 1 5m White","A22680",120]
["ON Lightning Cabel 3m White","A22695",144]
["ON Micro-USB Cabel 1 5m White","A22681",96]
["ON USB C Cabel 3m White","A22697",144]
["ON USB-C Cabel 1 5m White","A22682",120]
["ON Wall Charger 2 1A Lightning 1 5m White","A22686",192]
["ON Wall Charger 2 1A USB C 1 5m White","A22688",192]
["ON Wall Charger 2 1A White","A22683",96]
["ON Wireless Alu Charger Stand 10W incl Wall USB C Cable","A23044",312]
["OnePlus 8 Pro Sandstone Bumper Case Black","A23742",168]
["OnePlus 8T Sandstone Bumper Case","A24249",168]
["OnePlus Nord Sandstone Bumper Case Sandstone Black","A24033",168]
["OnePlus TypeC Bullets Earphones Black","A23744",168]
["OnePlus TypeC to 3 5 mm adapter","A23739",48]
["OnePlus Warp Charge 30 Power Adapter","A23738",192]
["OnePlus Warp Charge 30 Wireless Charger","A23736",432]
["PanzerGlass Apple iPhone 11 Clearcase","A23513",192]
["PanzerGlass Apple iPhone 11 Pro ClearCase","A23514",192]
["PanzerGlass Apple Watch Series 4 5 6 SE 40mm full silicone Black","A23658",168]
["PanzerGlass Apple Watch Series 4 5 6 SE 44mm full silicone Black","A23659",168]
["PanzerGlass ClearCase for Apple iPhone 12 Mini","A24082",200]
["PanzerGlass ClearCase for Apple iPhone 12 og 12 Pro","A24083",200]
["PanzerGlass ClearCase for Apple iPhone 12 Pro Max","A24084",200]
["PanzerGlass ClearCase with BlackFrame for Apple iPhone 12 Mini","A24085",200]
["PanzerGlass ClearCase with BlackFrame for Apple iPhone 12 og 12 Pro","A24086",200]
["PanzerGlass ClearCase with BlackFrame for Apple iPhone 12 Pro Max","A24087",200]
["PanzerGlass ClearCase with BlackFrame for iPhone 11","A23510",192]
["PanzerGlass ClearCase with BlackFrame for iPhone 11 Pro","A23511",192]
["PanzerGlass ClearCase with BlackFrame for iPhone X Xs","A23509",192]
["Panzerglass Spray Twice A Day 30 ml","A23684",72]
["RICHMOND and FINCH X POPSOCKETS BLACK MARBLE","A24171",96]
["RICHMOND and FINCH X POPSOCKETS BLOOMING PEONIES","A24172",96]
["RICHMOND and FINCH X POPSOCKETS PINK MARBLE FLORAL","A24175",96]
["RICHMOND and FINCH X POPSOCKETS TROPICAL TIGER","A24173",96]
["RICHMOND and FINCH X POPSOCKETS WHITE MARBLE TROPICS","A24174",96]
["Samsung Clear view Cover S20","A23468",360]
["Samsung Clear View Cover S20Plus","A23469",360]
["Samsung Galaxy A41 S View Wallet Cover Black","A23726",240]
["Samsung Galaxy A41 Silicone Cover Black","A23727",192]
["Samsung Galaxy Buds plus Black","A23496",1032]
["Samsung Galaxy Note 20 Plus Clear Cover Transparent","A24032",144]
["Samsung Galaxy Note 20 Plus Clear View Cover Mystic Black","A24030",360]
["Samsung Galaxy Note 20 Plus Silicone Cover Mystic Black","A24031",192]
["Samsung Galaxy Note11 Clear Cover  Transparent","A23946",144]
["Samsung Galaxy Note11 Clear View Cover  Mystic Black","A23944",360]
["Samsung Galaxy Note11 Silicone Cover  Mystic Black","A23945",192]
["Samsung Galaxy S20 Ultra Clear Cover Transparent","A23501",144]
["Samsung Galaxy S20 Ultra Clear View Cover Black","A23499",360]
["Samsung Galaxy S20 Ultra Silicone Cover Black","A23500",240]
["Samsung Silicone Cover black S20","A23473",200]
["Samsung Silicone Cover black S20Plus","A23470",192]
["Samsung USBC to Headset Jack Adapter Black","A23458",96]
["Samsung Wired headset Black","A22336",72]
["Samsung Wired headset White","A22339",72]
["SOUNDBOKS New Black","A23400",5376]
["Speck iPhone 12 Mini Presidio 2 Pro Black","A24060",192]
["Speck iPhone iPhone 12 12 pro Presidio 2 Pro Black","A24062",192]
["Speck iPhone iPhone 12 12 pro Presidio Perfect Clear","A24063",192]
["Speck iPhone iPhone 12 Mini Presidio Perfect Clear","A24061",192]
["Speck iPhone iPhone 12 pro Max Presidio 2 Pro Black","A24064",192]
["Speck iPhone iPhone 12 pro Max Presidio Perfect Clear","A24065",192]
["Invisibleshield iSoD Cutting Blade Replacement","A24142",0]
["Invisibleshield iSoD cutting Mat Pack of 5","A24143",0]
["Invisibleshield ISoD Replenishment Kit","A24145",0]
["InvisibleShield ISOD ShieldSpray 4 Pack","A24144",0]
["InvisibleShield ISOD Ultra Clear Large 10PK","A24141",240]
["InvisibleShield ISOD Ultra Clear Medium 10PK","A24140",216]
["InvisibleShield ISOD Ultra Clear plus Smartphone 25PK","A24139",168]
["InvisibleShield ISOD Ultra Clear plus Wearable 25PK","A24138",168]
["InvisibleShield Ultra Clear Sony Xperia 5 II Screen","A24264",168]
["Apple iPhone 11 Pro Max Clear Case","A23259",288]
["Apple iPhone 11 Pro Max Leather Case  Black","A23258",336]
["Apple iPhone 11 Pro Max Silicone Case  Black","A23257",288]
["Apple iPhone 11 Pro Silicone Case  Pink Sand","A23255",288]
["Apple iPhone 11 Pro Silicone Case  White","A23254",288]
["Apple iPhone SE Silicone Case Pink Sand","A23748",264]
["Apple iPhone XS Leather Case Black","A22982",336]
["Anker Nebula Apollo","A24147",2880]
["Anker Nebula Capsule II","A24148",4000]
["Anker Nebula Mars 2 Pro","A24149",3584]
["Apple 40mm Black Leather Link Small","A24224",624]
["Apple 40mm Graphite Milanese Loop","A24225",624]
["Apple 44mm Black Leather Link Large","A24226",624]
["Apple 44mm Graphite Milanese Loop","A24227",624]
["Apple iPhone 12 mini Leather MagSafe Saddle Brown","A24266",408]
["Apple iPhone 12 mini Silicone MagSafe Plum","A24274",336]
["Apple iPhone 12 og 12 Pro Leather MagSafe Saddle Brown","A24269",408]
["Apple iPhone 12 og 12 Pro Silicone MagSafe Plum","A24278",336]
["Apple iPhone 12 Pro Max Leather MagSafe Saddle Brown","A24272",408]
["Apple iPhone 12 Pro Max Silicone MagSafe Plum","A24282",336]
["Apple Magic Keyboard for 11inch iPad Pro Danish","A23697",2088]
["Apple Magic Keyboard for 12 9inch iPad Pro Danish","A23698",2400]
["Apple Pencil 2nd Generation","A23049",840]
["Apple Smart Folio for iPad Air 4th generation Black","A24221",552]
["Apple Smart Folio for iPad Air 4th generation Cyprus Green","A24222",552]
["Apple Smart Folio for iPad Air 4th generation Deep Navy","A24223",552]
["Apple Watch 6C 40mm Blue w Deep Navy","A24233",3264]
["Apple Watch 6C 40mm Gold w Pink","A24230",3264]
["Apple Watch 6C 40mm Red w Red","A24234",3264]
["Apple Watch 6C 40mm Silver w White","A24232",3264]
["Apple Watch 6C 40mm Space Gray w Black","A24231",3264]
["Apple Watch 6C 44mm Blue w Deep Navy","A24237",3552]
["Apple Watch 6C 44mm DEMO","A24228",3072]
["Apple Watch 6C 44mm Graphite SS w Graphite Milanese","A24239",5040]
["Apple Watch 6C 44mm Red w Red","A24238",3552]
["Apple Watch 6C 44mm Silver w White","A24236",3552]
["Apple Watch 6C 44mm Space Gray w Black","A24235",3552]
["Apple Watch Nike 6C 44mm Space Gray w Black","A24253",3552]
["Apple Watch Nike SE C 44mm Space Gray w Black","A24240",2400]
["Apple Watch SE C 40mm DEMO","A24229",2784]
["Apple Watch SE C 40mm Gold w Pink","A24241",2208]
["Apple Watch SE C 40mm Silver w White","A24243",2208]
["Apple Watch SE C 40mm Space Gray w Black","A24242",2208]
["Apple Watch SE C 44mm Silver w White","A24245",2400]
["Apple Watch SE C 44mm Space Gray w Black","A24244",2400]
["BangOlufsen Beoplay M5 Black","A24367",3584]
["BangOlufsen Beoplay M5 Natural","A24366",3584]
["Belkin BOOST CHARGE TRUEFREEDOM PRO WIRELESS CHARG PAD","A24391",912]
["Beoplay Beolit 20 Grey Mist","A24261",3008]
["Beoplay E8 3rd grey mist TW","A23519",2208]
["Beoplay E8 Sport Black","A23854",2208]
["Beoplay E8 Sport Oxygen Blue","A23855",2208]
["Beosound A1 2nd Gen Green","A23856",2208]
["BOSE QC35 II wireless Headphones black","A23849",1440]
["DJI Mavic Air 2 Fly More Combo","A24219",6368]
["DJI Mavic Mini Fly More Combo","A24218",3120]
["DJI Mini 2","A24394",2880]
["DJI Mini 2 360 degree Propeller Guard","A24398",120]
["DJI Mini 2 Fly More Combo","A24395",3744]
["DJI Mini 2 Intelligent Flight Battery","A24397",408]
["DJI Mini 2 Propellers Pair","A24400",96]
["DJI Mini 2 Two Way Charging Hub","A24399",288]
["DJI Mini Bag plus Black","A24401",240]
["DJI OM 4","A24396",960]
["DJI Osmo Action","A23181",2304]
["DJI Osmo Mobile 3 Combo","A23336",816]
["DJI Osmo Pocket","A23151",2160]
["DJI Pocket 2","A24392",2400]
["DJI Pocket 2 Creator Combo","A24393",3200]
["Ecovacs Deebot OZMO 920 Black","A24322",3584]
["Ecovacs Deebot OZMO T8 AIVI Blck","A24323",4960]
["Ecovacs Deebot OZMO U2 Pro Black","A24324",1760]
["Flic 2 buttons 2 pak","A24385",312]
["Flic 2 Starter Kit with Hub","A24384",960]
["Galaxy Buds Live White","A23969",1128]
["Garmin fenix 6 PRO Slate Gray w Black Band Glass","A23942",4704]
["Garmin fenix 6S PRO Rose Gold w White Band Glass","A23941",4704]
["Garmin VENU Blue Granite Silver","A23937",2400]
["Garmin vivoactive 4 Black Slate","A23940",2160]
["Garmin vivoactive 4 Shadow Gray Silver","A23936",2160]
["Garmin vivoactive 4S Powder Gray Silver","A23935",1920]
["Garmin vivoactive 4S PVD Black Slate","A23939",1920]
["Garmin vivoactive 4S White Rose Gold","A23938",1920]
["GORUNNER CONNECT plus Soundliving speaker","A24303",3200]
["Gorunner Gokart til Segboard","A24296",408]
["Gorunner Hummer Segboard 3","A24295",3200]
["Gorunner Hummer Segboard 3 plus Gokart","A24302",3200]
["Gorunner Hummer Segboard 3 plus Soundliving Earbuds hvide","A24301",3200]
["Gorunner Pro","A24294",4000]
["GoRunner UrbanGlide 6 5","A23943",2400]
["HI3G bundle iPhone 12 12 pro m Airpods Pro","A24090",2016]
["HI3G bundle iPhone 12 Mini m Airpods Pro","A24089",2016]
["HI3G bundle iPhone 12 pro Max m Airpods Pro","A24091",2016]
["HI3G IS Bundle Pack iPhone 11","A23971",456]
["HI3G IS Bundle Pack iPhone 11 pro","A23970",456]
["HI3G IS Bundle Pack iPhone 11 pro MAX","A23972",456]
["HI3G IS Bundle Pack Iphone 6 7 8 SE","A24011",456]
["IDEAL FASHION CASE 5 8 SWEET BLOSSOM","A23417",200]
["IDEAL FASHION CASE 6 1 SWEET BLOSSOM","A23293",200]
["IDEAL FASHION CASE IPHONE 6 6S 7 8 SWEET BLOSSOM","A23429",200]
["IDEAL MAGNETIC RING MOUNT SWEET BLOSSOM","A23315",168]
["iFixit Essential Elect Toolkit","A24319",168]
["iFixit Mahi 48 Bit Driver Kit","A24320",216]
["iFixit Mako 64 Bit Driver Kit","A24317",216]
["iFixit Manta 112 Bit Driver Kit","A24321",408]
["iFixit Pro Tech Toolkit","A24318",432]
["INSTAX liPlay ELEGANT BLACK EX D","A23688",1056]
["INSTAX MINI 11 GRAY","A23933",528]
["INSTAX MINI 11 PURPLE","A23934",528]
["InvisibleShield Glass Elite plus Screen Samsung Galaxy A41","A23844",168]
["Jabra Engage 75 MONO","A24255",2824]
["Jabra Engage 75 STEREO","A24254",2976]
["JBL partybox 100","A23728",1824]
["JLab EpicAir ANC True wireless black","A24325",792]
["JLab EpicAir Sprt ANC True wireless black","A24326",792]
["JLab Flex Sport Wrlss Headphone black","A24327",720]
["JLab GoAir True Wireless Earbuds Black","A24328",288]
["JLab GoAir True Wireless Earbuds Whit","A24329",288]
["JLab JbuddiesStudio Wireless Grey Blue","A24330",240]
["JLab JbuddiesStudio Wireless Grey Purple","A24331",240]
["JLab PlayGaming Wireless Earbuds Blue","A24332",408]
["JLab PlayGaming Wireless Headset Blue","A24333",408]
["JLab Talk Go Microphone Black","A24334",480]
["JLab Talk Microphone Black","A24335",864]
["JLab Talk Pro Microphone Black","A24336",1344]
["Knomo Avery Cross Body Beige","A24359",600]
["Knomo Avery Cross Body Black","A24358",600]
["Knomo Avery Cross Body Navy Blue","A24357",600]
["Knomo Beauchamp 14 Back Pack Navy Blue","A24362",1128]
["Knomo Beauchamp 14 Backpack Blackk Gold","A24361",1128]
["Knomo Brook Lthr Cross Body Blk","A24360",960]
["Knomo KEW 15 Backpack Black","A24364",792]
["Knomo KEW 15 Backpack Sand","A24365",792]
["Knomo Tournay 15 Briefcase Black","A24363",1128]
["LINKSYS VELOP WHW0103 AC3900 3PK","A23474",1320]
["LINKSYS VELOP Wifi6 1PK","A23685",2400]
["LOGITECH C925E WEBCAM IN","A24256",720]
["LOGITECH HD WEBCAM C270 PACKAGING REFRESH IN","A24257",320]
["Native Union Dock Wireless Charger Slate","A24390",408]
["Native Union Drop Wireless Charger Indigo","A24387",312]
["Native Union Drop Wireless Charger Sage","A24389",312]
["Native Union Drop Wireless Charger Slate","A24388",312]
["Native Union Drop Xl Watch Charge Pad Slate","A24386",912]
["Netatmo Mount Wind or Rain Gauge","A24342",168]
["Netatmo Smart Add Weather Module","A24339",480]
["Netatmo Smart Healthy Home Coach","A24345",720]
["Netatmo Smart Home Weather Station","A24338",1104]
["Netatmo Smart Indoor Camera","A24347",1344]
["Netatmo Smart Indoor Siren","A24348",480]
["Netatmo Smart Outdoor Camera","A24346",1992]
["Netatmo Smart Radiator Add x1","A24344",480]
["Netatmo Smart Radiator Starter pack","A24343",1200]
["Netatmo Smart RainGauge Weather Station","A24341",480]
["Netatmo Smart Sensors","A24350",720]
["Netatmo Smart Smoke Alarm","A24349",720]
["Netatmo Smart Video Doorbell","A24337",1992]
["Netatmo Smart WindGauge Weather Station","A24340",672]
["Nintendo SWITCH Animal Crossing New Horizons","A24305",352]
["Nintendo SWITCH Carrying Case and Screen Protector EUR","A24315",200]
["Nintendo SWITCH Joy Con Pair NR NB EUR","A24312",576]
["Nintendo SWITCH JoyCon Pair N Purple N Orange EUR","A24313",576]
["Nintendo SWITCH LITE Carrying Case and Screen Protector","A24316",200]
["Nintendo Switch Lite Grey","A24310",1440]
["Nintendo Switch Lite Turquoise","A24311",1440]
["Nintendo SWITCH Luigis Mansion 3","A24306",352]
["Nintendo SWITCH Mario Kart 8 Deluxe","A24304",352]
["Nintendo SWITCH New Mario Bros U Deluxe","A24308",352]
["Nintendo SWITCH Pro Controller EUR","A24314",448]
["Nintendo SWITCH Super Mario 3D All Stars","A24307",384]
["OTL BATMAN BLUETOOTH JUNIOR HEADPHONES","A24057",200]
["OTL BATMAN BT HEADPHONES JUNIOR","A23929",200]
["OTL BATMAN BT HEADPHONES TWEEN","A23930",200]
["OTL BATMAN HEADPHONES JUNIOR","A23923",200]
["OTL HARRY POTTER BT HEADPHONES TWEEN","A23932",200]
["OTL HARRY POTTER HEADPHONES TWEEN","A23925",200]
["OTL HARRY POTTER SMOKEY DEATHLY HALLOWS TWEEN HEADPHONE","A24058",200]
["OTL LOL GLAM HEADPHONES TWEEN","A23926",200]
["OTL PEPPA PIG BLUETOOTH JUNIOR HEADPHONES","A24059",200]
["OTL PEPPA PIG BT HEADPHONES JUNIOR","A23928",200]
["OTL PEPPA PIG HEADPHONES JUNIOR","A23922",200]
["OTL POKEMON HEADPHONES JUNIOR","A23924",200]
["OTL SUPER MARIO BT HEADPHONES TWEEN","A23931",200]
["OTL SUPER MARIO HEADPHONES TWEEN","A23927",200]
["Philips Hue Bridge","A23651",360]
["Philips Hue Color 2xE27 Pærer Starter Kit Richer Colors plus Switch BT","A23641",1200]
["Philips Hue Color E14 Pære","A23647",360]
["Philips Hue Color E27 Pære Richer Colors BT","A23645",384]
["Philips Hue Dimming Switch Trådløs Lysdæmper","A23652",120]
["Philips Hue Go Transportabel Bordlampe BT","A23657",480]
["Philips Hue LightStrip Plus 1m","A23656",144]
["Philips Hue Motion Sensor","A23653",240]
["Philips Hue Smart plug","A23654",240]
["Philips Hue White 2xE27 Pærer Starter Kit BT","A23640",480]
["Philips Hue White Ambiance E14 Pære","A23644",192]
["Philips Hue White Ambiance E27 Pære BT","A23643",192]
["Philips Hue White E14 Pære BT","A23646",120]
["Philips Hue White E27 Pære BT","A23642",120]
["Philips Hue White Filament A60 E27 Pære","A23648",120]
["Philips Hue White Filament G93 E27 Pære BT","A23649",192]
["Philips Hue White Filament ST64 E27 Pære BT","A23650",168]
["Samsung Galaxy Buds Plus white","A23535",1032]
["Samsung Galaxy Watch Active2C Aluminium 40mm Gold","A23260",2016]
["Samsung Galaxy Watch Active2C Aluminium 44mm Black","A23261",2112]
["Samsung Galaxy Watch3 41mm LTE Mystic Bronze","A23263",2880]
["Samsung Galaxy Watch3 41mm LTE Mystic Silver","A23262",2880]
["Samsung Galaxy Watch3 45mm LTE Mystic Black","A23264",3072]
["Samsung Galaxy Watch3 45mm LTE Mystic Black","A23264",3072]
["Samsung Tab S7 Book Cover Black","A24088",480]
["Sandberg Destroyer FlexWeight Mouse","A24372",192]
["Sandberg Dizruptor Headset","A24379",288]
["Sandberg FireStorm Mech Keyboard Nordic","A24375",480]
["Sandberg Gamer Desk Pad XXXL","A24373",192]
["Sandberg Gamer Mousepad XL","A24374",96]
["Sandberg IronStorm Keyboard Nordic","A24376",240]
["Sandberg RageStorm Mech Gaming Keypad","A24377",312]
["Sandberg Streamer USB Desk Microphone","A24382",408]
["Sandberg Streamer USB Microphone Kit","A24383",552]
["Sandberg Streamer USB Webcam Pro","A24378",648]
["Sandberg Twister Headset","A24380",168]
["Sandberg Tyrant Headset USB 7 1","A24381",240]
["Soundboks Backpack","A23878",792]
["Soundboks Batteryboks","A23877",864]
["Soundboks plus HOLDIT pouches activation","A24300",5376]
["Soundliving bluetooth højtaler","A24169",399.2]
["Soundliving Earbuds hvide","A24299",799]
["Speck Balance Folio iPad 10 2 2019 Black","A24368",264]
["Speck Balance Folio iPad Pro 11 18 20 Black","A24369",264]
["Speck Balance Folio iPad Pro 12 9 18 20 Black","A24371",264]
["Speck Balance Folio iPadPro 11 18 20 Blue","A24370",264]
["STEELSERIES NIMBUS and CONTROLLER","A23753",552]
["Tado Smart Heat Pump AC V3pls","A24355",648]
["Tado Smart Radiator Therm Add x1","A24352",528]
["Tado Smart Radiator Therm Add x2","A24353",960]
["Tado Smart Radiator Therm Add x4","A24354",1752]
["Tado Smart Radiator Therm StPck","A24351",792]
["Tado Smart Wrless Temp Sensor","A24356",528]
["44mm Black Sport Band Demo","A22991",40]
["A2 Active Grey","A22288",1200]
["Apple 18W USB-C Power Adapter","A23465",192]
["Apple iPhone 6s Plus Silicone Case Charcoal Gray","A21618",96]
["Apple iPhone 6s Plus Silicone Case Royal Blue","A21620",72]
["Apple iPhone 6s Plus Silicone Case Stone","A21621",72]
["Apple iPhone 6s Plus Silicone Case White","A21622",72]
["Apple iPhone 7 Plus Leather Storm Gray","A22082",96]
["Apple iPhone 8 7 Leather Case Black","A22513",312]
["Apple iPhone 8 7 Silicone Case Black","A22504",264]
["Apple iPhone 8 Plus  7 Plus Leather Case Midnight Blue","A22516",96]
["Apple iPhone 8 Plus 7 Plus Silicone Case Black","A22508",72]
["Apple iPhone 8 Plus 7 Plus Silicone Case Midnight Blue","A22510",96]
["Apple iPhone 8 Plus 7 Plus Silicone Case White","A22509",96]
["Apple iPhone X Silicone Case Black","A22580",40]
["Apple iPhone X Silicone Case Midnight Blue","A22581",40]
["Apple iPhone XS Leather Folio Black","A22983",528]
["Apple iPhone XS Max Leather Case Black","A22984",336]
["Apple iPhone XS Max Leather Folio Black","A22985",528]
["Apple iPhone XS Max Silicone Case Black","A22986",288]
["Apple iPhone XS Max Silicone Case Pink Sand","A22987",240]
["Apple iPhone XS Silicone Case Black","A22988",288]
["Apple iPhone XS Silicone Case Pink Sand","A22989",240]
["Apple Leather Smart Cover for 10inch iPad Pro Black","A22423",480]
["Apple Leather Smart Cover for iPad 7th generation and iPad Air 3rd generation Black","A23330",552]
["Apple Lightning to SD Card Camera Reader","A22058",96]
["Apple Lightning to USB C Cable 1 m","A23334",144]
["Apple Lightning to USB Cable 1m","A22892",144]
["Apple Pencil 1st Generation","A21545",648]
["Apple Smart Cover for 10inch iPad Pro White","A22421",312]
["Apple Smart Keyboard for 10inch iPad Pro Danish","A22420",1080]
["Apple TV 4th gen","A21561",888]
["Apple Watch 3C 38mm Demo","A22920",1320]
["Apple Watch 3C 42mm Demo","A22921",1680]
["Apple Watch 3C 42mm Grey w Black","A22999",2496]
["Apple Watch 4C 40mm Demo","A23062",3048]
["Apple Watch 4C 40mm Gold w Pink","A23000",2688]
["Apple Watch 4C 44mm Black Steel","A23005",3968]
["Apple Watch 4C 44mm Demo","A23063",3048]
["Apple Watch 5C 40mm Gold w Pink","A23010",2640]
["Apple Watch 5C 40mm Grey w Black","A23011",2640]
["Apple Watch 5C 40mm Silver w White","A23012",3456]
["Apple Watch 5C 44mm Black Steel","A23015",3888]
["Apple Watch 5C 44mm Grey w Black","A23013",2896]
["Apple Watch 5C 44mm Silver w White","A23014",3712]
["Apple Watch Band 40mm DEMO","A24246",624]
["Apple Watch Band 44mm DEMO","A24247",624]
["Apple Watch Nike 3C 42mm Silver","A22804",2088]
["Apple Watch Nike 4C 44mm Grey w Black","A23006",2848]
["Apple Watch Nike 4C 44mm Grey w Sport","A23007",2848]
["Apple Watch Nike 4C 44mm Silver w White","A23008",2848]
["Apple Watch Nike 5C 44mm Grey w Black","A23017",2896]
["Beoplay A1 Naturel","A21602",1088]
["Beoplay A1 Sort","A22040",1088]
["BeoPlay A2 Green","A21466",1200]
["BeoPlay A2 Natural","A21551",1608]
["Beoplay Beolit 17 Natural BT 24H playback","A23516",2624]
["Beoplay Beolit 17 Natural BT 24H playback Demo","A23538",3090]
["Beoplay Beolit 17 Pink BT Batt  24H playback","A23518",3192]
["Beoplay Beolit 17 Stone Grey BT Batt 24H playback","A23517",3192]
["Beoplay Beolit 20 Black Anthracite demo","A24262",3200]
["BeoPlay Cable One Button","A21480",120]
["Beoplay E8 2 Black Truly Wireless Earphones","A23069",1504]
["BeoPlay E8 Black Truly Wireless Earphones","A22535",1608]
["BeoPlay E8 Truly Wireless Earphones Demo","A23065",960]
["BeoPlay Form 2i Black","A21514",408]
["Beoplay H2 Deep Red","A21676",168]
["Beoplay H2 Green","A21674",168]
["Beoplay H4 2 Gen Limestone Demo","A23539",2310]
["Beoplay H4 Charcoal Grey","A22234",1296]
["Beoplay H5  Moss Green","A21519",1032]
["BeoPlay H5 Wireless Earphones Black","A21517",1368]
["BeoPlay H5 Wireless Earphones Demo","A23064",816]
["BeoPlay H5 Wireless Earphones Dusty Rose","A21518",624]
["Beoplay H9i Black Over Ear","A22703",2400]
["Beoplay P2 Sand Stone Bluetooth","A22331",1056]
["Beoplay P6 Black","A23046",2400]
["Beoplay P6 Natural Bluetooth 16h Playback","A23515",2400]
["Beosound A1 2nd Gen Grey Mist Demo","A23841",1608]
["Clint FREYA TrueWireless Charcoal grey","A21954",648]
["DJI Osmo Pocket pack DEMO","A23186",2160]
["FP3 Plus Protective Case Black","A24053",0]
["Garmin vivofit jr2 WW Adjustable Princess Purple","A23447",320]
["Garmin vivofit jr2 WW Adjustable Spider Man Black","A23448",320]
["GORUNNER CONNECT with Lock","A23845",3200]
["GORUNNERCONNECT demo","A23757",3200]
["HOLDIT pouches activation","A24259",0]
["Huawei 360 Panoramic Camera CV60 Grey","A22579",240]
["Huawei A1 Silikone color band","A21704",40]
["Huawei Power Bank","A23699",245.85]
["Ideal Fashion Case Iphone X Golden Glitz","A22770",192]
["IDEAL FASHION CASE IPHONE X Xs Golden Glitz","A23048",192]
["IDEAL FASHION CASE IPHONE Xr Golden Glitz","A23047",192]
["IFROGZ LITTLE ROCKERS COSTUME HEADPHONES BUNNY 2018","A23232",120]
["IFROGZ LITTLE ROCKERS COSTUME HEADPHONES PINK PRINCESS 2017","A23231",120]
["IFROGZ LITTLE ROCKERS COSTUME HEADPHONES UNICORN 2018","A23230",120]
["Instax Album","A23746",200]
["Jabra UC Voice 550 MS Duo","A21550",336]
["Libratone Q Adapt Wireless On Ear Cloudy White","A22369",1536]
["Libratone TOO Cloudy Grey","A22361",960]
["Libratone Track plus Stormy Black","A22870",1200]
["Libratone ZIPP 2 Stormy Black EU","A23021",1920]
["Libratone ZIPP MINI 2 Cranberry Red EU","A23024",1536]
["Libratone ZIPP MINI 2 Frosty Grey EU","A23022",1536]
["Mi boxen","A23178",648]
["Motorola Vervebuds 110 Black","A23248",479.2]
["Motorola Vervebuds 500","A23226",800]
["Motorola Vervebuds 800 Black","A23752",879.2]
["Nintendo bundel Switch and Labo","A23449",2400]
["OnePlus 6 Karbon Protective Case","A22787",96]
["OnePlus Bullets Wireless 2","A23249",639.20000000000005]
["Oneplus Bullets Wireless Black","A23847",319.2]
["OnePlus Car Charger","A22250",216]
["Oneplus headset","A22585",240]
["OnePlus Power Adapter","A22249",96]
["OnePlus USB C Cable 1m","A22248",72]
["PanzerGlass OnePlus 7 Black","A22995",216]
["PanzerGlass PREMIUM iPhone 6s 7 8 White","A22398",240]
["Samsung Galaxy Buds Black","A23088",960]
["Samsung Galaxy Buds White","A23187",960]
["Samsung Galaxy Fit e","A23087",288]
["Samsung Galaxy Gear 360 2017 White","A22342",1488]
["Samsung Galaxy Watch 42mm Black","A22899",2232]
["Samsung Galaxy Watch 42mm Rose Gold","A22900",2232]
["Samsung Galaxy Watch 46mm Silver","A22898",2400]
["Samsung Galaxy Watch Active Black","A23085",1080]
["Samsung Galaxy Watch Active Rose Gold","A23086",1080]
["Samsung Galaxy Watch Active2 40mm LTE Black","A23227",2880]
["Samsung Galaxy Watch Active2 40mm LTE Gold","A23228",2880]
["Samsung Galaxy Watch Active2 44mm LTE Black","A23229",3072]
["Samsung Gear VR SM R323NBKANEE Black","A22037",552]
["Samsung Gear VR SM R324 and Controller Black","A22343",816]
["Samsung microSDXC hukommelseskort 256GB","A22214",312]
["Samsung microSDXC hukommelseskort 64GB","A22225",240]
["Samsung Wired headset  Green","A22337",40]
["Samsung Wired headset  Light Blue","A22338",40]
["Samsung Wired headset  Pink","A22340",40]
["Simkort adapter 4i1 med pind","A21432",72]
["Smart Keyboard for iPad 7th generation and iPad Air 3rd generation Danish","A23329",1560]
["Sony Headset WF1000XM3 black","A23754",1152]
["SOUNDBOKS New Black Demo","A23401",5376]
["Table Fan FT 30T","A22888",168]
["Urbanglide plus Speaker","A24170",2400]
["Aftershokz Air Wireless BT","A23467",720]
["Apple Usb Power Adapter 5W","A22229",120]
["Black Rock Apple Iphone 11 360 Glass Case Black","A23716",240]
["Black Rock Apple Iphone 11 Pro 360 Glass Case Black","A23715",240]
["Black Rock Apple Iphone 11 Pro Max 360 Real Glass Case Clear Black","A23714",240]
["Black Rock Apple Iphone 11 Pro Max Robust Case Real Carbon Black","A23708",264]
["Black Rock Apple Iphone 11 Pro Robust Case Real Carbon Black","A23709",264]
["Black Rock Apple Iphone 11 Robust Case Real Carbon Black","A23710",264]
["Black Rock Apple Iphone 8 7 360 Glass Case Black","A23719",240]
["Black Rock Apple Iphone 8 7 6 Robust Case Real Carbon Black","A23713",264]
["Black Rock Apple Iphone X Xs 360 Real Glass Case Clear Black","A23717",240]
["Black Rock Apple Iphone X Xs Robust Case Real Carbon Black","A23711",264]
["Black Rock Apple Iphone Xr 360 Real Glass Case Clear Black","A23718",240]
["Celly car holder GHOST SUPER PLUS","A23672",144]
["Celly Kids Festival Microphone Pink","A23443",216]
["Celly magnetic wireless charger","A23673",240]
["Celly Powerbank 2200 Mah FLAMINGO","A23661",120]
["Celly Powerbank 2200 Mah MONKEY","A23662",120]
["Celly Powerbank 2200 Mah UNICORN","A23660",120]
["Celly Powerbank 2600 Mah WATERMELON","A23663",120]
["Celly Powerbank PD 18W 10000MAH Black","A23667",216]
["Celly Running armband UP TO 6 5","A23664",120]
["Celly SELFIE FLASH LIGHT","A23669",72]
["Celly Selfie flashlight KIT","A23668",120]
["Celly UNIVersal  BIKE HOLDER XXXL 170X90MM","A23671",144]
["Celly UNIVERSAL BIKE HOLDER","A23670",96]
["Celly UNIVERSAL TRAVEL CHARGER","A23666",152]
["DBRAMANTE 1928 COPENHAGEN SLIM iPhone 11 BLACK","A23204",288]
["DBRAMANTE 1928 COPENHAGEN SLIM iPhone 11 MAX Pro BLACK","A23203",288]
["DBRAMANTE 1928 COPENHAGEN SLIM iPhone 11 Pro BLACK","A23202",288]
["dbramante 1928 Copenhagen Watch Strap 44mm Black Silver","A23326",416]
["dbramante 1928 Copenhagen Watch Strap 44mm Black Space Grey","A23327",416]
["dbramante 1928 Copenhagen Watch Strap 44mm Tan Silver","A23325",416]
["dbramante 1928 Copenhagen Watch Strap 44mm Tan Space Grey","A23324",416]
["DBRAMANTE 1928 Herning iPhone 11 Pro Black","A23208",168]
["DBRAMANTE 1928 Herning Phone 11 MAX Pro Black","A23210",168]
["DBRAMANTE 1928 LYNGE Phone 11 MAX Pro BLACK","A23206",360]
["dBramante 1928 Madrid Watch Strap 38 40mm Night Black","A23156",328]
["dbramante 1928 Madrid Watch Strap 38 40mm Night Black","A23328",416]
["Dbramante 1928 Tune iPhone Xr Black","A22943",168]
["dbramante 1928 Tune iPhone Xs Max Black","A22940",168]
["Dbramante Lynge Galaxy S20 Black","A23678",360]
["dbramante Lynge Galaxy S20Plus Black","A23676",360]
["dbramante Lynge Galaxy S20Ultra Black","A23677",360]
["Dbramante Lynge iPhone 8 7 6 Series Black","A22823",336]
["Dbramante Lynge iPhone X Black","A22827",336]
["Dbramante Lynge sort S20 Ultra","A23504",360]
["Dbramante MODE New York Olive Green iPhone Xr","A22938",312]
["Dbramante New York iPhone X Night black","A22820",336]
["Dbramante Paris MacBook Pro 13 Lady Pink","A22811",456]
["Dbramante Tune iPhone X Black","A22828",168]
["dbramante1928 Herning iPhone 11 Black","A23337",360]
["dbramante1928 Herning iPhone 11 Pro Max Black","A23338",360]
["dbramante1928 Lynge  iPhone 11 Pro Max  Tan","A23441",360]
["DeFunc BT Headphone GO Black","A23027",288]
["Defunc TRUE GO Mini Wireless BT Earbuds Black","A23275",312]
["Defunc TRUE GO Mini Wireless BT Earbuds Pink","A23277",312]
["Defunc TRUE GO Mini Wireless BT Earbuds White","A23276",312]
["Defunc TRUE GO Slim Wireless Hybrid Earbud Pink","A23852",312," ​"]
["Defunc TRUE GO Wireless Bluetooth Earbuds Black","A23279",312," ​"]
["Defunc TRUE GO Wireless Bluetooth Earbuds White","A23280",312," ​"]
["Dji Osmo Action bundle","A23879",2304," ​"]
["Dji Osmo Pocket bundle","A23880",2160," ​"]
["GEAR4 Apollo Apple Airpod Black","A23507",96," ​"]
["GEAR4 Apollo Apple Airpod Pro Case Black","A23505",96," ​"]
["GEAR4 Apollo Apple Airpod Pro Case White","A23506",96," ​"]
["GEAR4 Apollo Apple Airpod White","A23508",96," ​"]
["HI3G Bundle Pack Huawei P30 Pro","A23090",552]
["HI3G Bundle Pack iPhone 11 Pro","A23272",504]
["Hi3G Bundle Pack iPhone 8","A23040",504]
["HI3G Bundle Pack Iphone iPhone 11","A23270",504]
["HI3G Bundle Pack Iphone X XS","A22981",504]
["HI3G Bundle Pack Iphone Xr","A22979",504]
["HI3G Bundle Pack Iphone XR NEW","A23455",504]
["HI3G Bundle Pack Phone 11 MAX Pro","A23271",504]
["HI3G Bundle Pack Samsung S10","A23092",552]
["HI3G Bundle Pack Samsung S10 NEW","A23273",552]
["HI3G IS Bundle Pack Iphone XR","A23973",456]
["HOLDIT FINGER STRAP BLACK","A24098",96]
["HOLDIT FINGER STRAP BLUSH PINK","A24099",96]
["HOLDIT FINGER STRAP LAVENDER","A24102",96]
["HOLDIT FINGER STRAP TAUPE","A24100",96]
["HOLDIT FINGER STRAP YELLOW","A24101",96]
["HOLDIT POUCH BLACK","A24103",288]
["HOLDIT POUCH LAVENDER","A24104",288]
["HOLDIT STICKERS CHERRY","A23918",72]
["HOLDIT STICKERS CHOOSE YOUR VIBE","A23919",72]
["HOLDIT STICKERS MY RULES","A23921",72]
["HOLDIT STICKERS OOOH BLUE","A23916",72]
["HOLDIT STICKERS OOOH PINK","A23917",72]
["Huawei Mate 20 Pro View Cover Black","A22997",216]
["Huawei P30 Pro Silicone Cover Black","A23112",216]
["Huawei P30 PU Cover black","A23110",216]
["Huawei Tripod Selfie Stick Wireless","A22778",216]
["Huawei Watch GT Saddle Brown Hybrid Strap","A23194",1199.2]
["IDEAL FASHION CABLE LIGHTNING 1 M SWEET BLOSSOM","A23323",192]
["IDEAL FASHION CASE 6 1 GREIGE TERAZZO","A23290",192]
["IDEAL FASHION CASE GALAXY S20 EMERALD SATIN","A23482",192]
["IDEAL FASHION CASE iPhone 12 12 pro 2020 CRYSTAL GREEN SKY","A24166",200]
["IDEAL FASHION CASE iPhone 12 12 pro 2020 GOLDEN PEARL MARBLE","A24156",200]
["IDEAL FASHION CASE iPhone 12 12 pro 2020 GOLDEN PLUM","A24163",200]
["IDEAL FASHION CASE iPhone 12 12 pro 2020 GOLDEN SMOKE MARBLE","A24155",200]
["IDEAL FASHION CASE IPHONE 6 6S 7 8 SUNSET TIGER","A23430",192]
["IDEAL Fashion Case iPhone iPhone 12 12 pro Cosmic Green Swirl","A24124",200]
["IDEAL Fashion Case iPhone iPhone 12 12 pro Cosmic Pink Swirl","A24127",200]
["IDEAL FASHION CASE IPHONE X OUTER SPACE MARBLE","A22961",192]
["IDEAL FASHION CASE IPHONE X XS CARRARA GOLD","A23030",192]
["IDEAL FASHION CASE IPHONE X XS FLORAL ROMANCE","A23031",192]
["IDEAL FASHION CASE IPHONE X XS MATTE BLACK","A23032",192]
["IDEAL FASHION CASE IPHONE XR 11 MONSTERA JUNGLE","A23435",200]
["IDEAL FASHION CASE IPHONE XR GLEAMING LICORICE","A23147",192]
["IDEAL FASHION CASE IPHONE Xr OUTER SPACE MARBLE","A22955",192]
["IDEAL FASHION CASE OXFORD 5 8 BEIGE","A23421",200]
["IDEAL FASHION CASE OXFORD 6 1 BEIGE","A23305",168]
["IDEAL FASHION CASE OXFORD IPHONE 6 6S 7 8 BEIGE","A23434",200]
["IDEAL FASHION CASE SAFFIANO IPHONE 6 6S 7 8 BEIGE","A23131",216]
["IDEAL FASHION CASE SAFFIANO IPHONE 6 6S 7 8 BLACK","A23132",216]
["IDEAL FASHION CASE SAFFIANO IPHONE 6 6S 7 8 LIGHT GREY","A23133",216]
["IDEAL FASHION CASE SAFFIANO IPHONE 6 6S 7 8 PINK","A23134",216]
["IDEAL FASHION CASE SAFFIANO IPHONE X XS BEIGE","A23135",216]
["IDEAL FASHION CASE SAFFIANO IPHONE X XS BLACK","A23136",216]
["IDEAL FASHION CASE SAFFIANO IPHONE X XS LIGHT GREY","A23137",216]
["IDEAL FASHION CASE SAFFIANO IPHONE X XS PINK","A23138",216]
["IDEAL FASHION POWER BANK BLACK GALAXY MARBLE","A23320",288]
["IDEAL FASHION POWER BANK SWEET BLOSSOM","A23321",288]
["Ideal Magnet Wallet Iphone X Black","A22769",168]
["Ifrogz Audio Coda Wireless Speaker With Mic Black","A22776",96]
["IFROGZ Earbud Airtime Pro TWS Black","A23286",480]
["IFROGZ Earbud Airtime Pro TWS White","A23287",480]
["IFROGZ EARBUD AIRTIME SPORT TRUE WIRELESS BLACK","A23530",552]
["IFROGZ EARBUD AIRTIME SPORT TRUE WIRELESS BLACK Demo","A23694",0]
["INSTAX MINI LINK with Album and film Pink","A23695",720]
["InvisibleShield Antimicrobial Wet Wipe 10 Pack","A23722",48]
["Invisibleshield Glass Curve Apple Iphone 8 7 Screen Black","A23602",216]
["Invisibleshield Glass Elite Iphone Xr 11 Screen","A23600",168]
["Invisibleshield Glass Elite Privacy Iphone Xr 11Screen","A23616",216]
["Invisibleshield GlassElite plus Samsung S20FE","A24248",168]
["Invisibleshield GlasselitePlus Apple Baby Yoda 8 7 6S 6 Screen","A23597",168]
["Invisibleshield GlassPlus Apple Ipad 10 2 Screen","A23619",240]
["Invisibleshield GlassPlus Apple Iphone 8 Plus 7 Plus 6S Plus 6 Plus Case Friendly Screen","A23598",168]
["Invisibleshield GlassPlus Apple Iphone Se 5 5S 5C Screen","A23595",168]
["Invisibleshield GlassPlus Visionguard Apple Ip7 Ip8 Screen","A23607",216]
["Invisibleshield Ultra Clear Plus Samsung Note 10 Lite Screen","A23625",168]
["INVISIBLESHIELD ULTRA CLEAR SCREEN SAMSUNG GALAXY A21S","A23843",168]
["Jabra Elite 65t Black EMEA Pack","A23450",1032]
["Jays Q Seven ANC overear Wireless black","A23692",816]
["JBL CHARGE4 Black","A23364",1128]
["JBL CLIP3 Black","A23352",408]
["JBL CLIP3 Green","A23353",408]
["JBL CLIP3 Pink","A23355",408]
["JBL CLIP3 White","A23357",408]
["JBL ENDURANCE BT Black","A23379",336]
["JBL FLIP5 Grey","A23360",816]
["JBL FREE X BT White","A23376",816]
["JBL FREEX  BT Black","A23375",816]
["JBL GO2 Black","A23346",240]
["JBL GO2 Cinnamon","A23349",240]
["JBL GO2 Green","A23351",240]
["JBL LINK10 Black","A23362",1056]
["JBL LINK10 White","A23363",1056]
["JBL LIVE300 TW Black","A23704",792]
["JBL LIVE500 BT Black","A23377",960]
["JBL REFLECT FLOW Black","A23378",960]
["JBL T120 TW Black","A23368",648]
["JBL T500 BT Black","A23373",336]
["JBL TUNE220 TWS Lifetstyle  Pink","A23702",624]
["JBL TUNE220 TWS Lifetstyle Black","A23701",408]
["JBL TUNE750 BT NC Active Noise Cancelling Black","A23703",544]
["JBL XTREME2 Black","A23365",2016]
["Linksys Velop Whw0101 Ac1300 1Pk","A22879",720]
["Linksys Velop Whw0102 Ac2600 2Pk","A22880",1248]
["Logitech Circle 2 Accessory Rechargeable Battery","A22885",408]
["Logitech Circle 2 Accessory Window Mount","A22884",288]
["Logitech Circle 2 Indoor outdoor security camera WHITE","A22883",1368]
["Melkco Transparent TPU iPhone 6S 7 8 SE 2020","A22631",144]
["Melkco Walletcase Samsung Galaxy S8 Black","A22665",192]
["mophie Charge and Sync Cable USB  C to Lightning Cable 1M","A23233",120]
["mophie Charge and Sync Cable USB A to Lightning 1M Black","A23239",120]
["mophie Charge and Sync Cable USB A to Lightning 1M White","A23238",120]
["mophie Charge and Sync Cable USB A to Micro USB 1M","A23237",120]
["mophie Charge and Sync Cable USB A to Micro USB C LTG 1M Black","A23241",216]
["mophie Charge and Sync Cable USB A to USB C 1M","A23236",120]
["mophie Charge and Sync Cable USB C to USB C 1 5M White","A23234",168]
["MOPHIE CHARGE STREAM GLOBAL TRAVEL KIT","A23529",408]
["MOPHIE DUAL WIRELESS CHARGING PAD EU BLACK","A23524",480]
["MOPHIE GLOBAL POWERSTATION HUB 2019","A23528",576]
["Mophie powerstation 10K","A23244",240]
["Mophie powerstation 15K","A23245",312]
["MOPHIE POWERSTATION MINI 5K 2019 BLACK","A23522",240]
["MOPHIE POWERSTATION PD POWER DELIVERY USB C 6700MAH BLACK","A23523",360]
["Mophie Universal Wireless Adjustable Charging Stand EU BLK","A23525",480]
["Mophie Universal Wireless ChargeStream Pad Plus EU BLK","A23246",408]
["MOPHIE UNIVERSAL WIRELESS CHARGING PAD EU 2020  BLACK","A23526",240]
["Mophie Wall Adapter USB A 18W White EU","A23243",120]
["Mophie Wall Adapter USB C 18W White","A23242",168]
["Mophie Wireless Charging Pad 3in1 Black","A23527",840]
["NECKLACY iPhone 11 All Black","A23803",168]
["NECKLACY iPhone 11 Classic Birch","A23804",168]
["NECKLACY iPhone 11 Coral Reef","A23805",168]
["NECKLACY iPhone 11 Cotton Candy","A23806",168]
["NECKLACY iPhone 11 Dark Olive gunmetal","A23807",168]
["NECKLACY iPhone 11 Domino Swirl","A23808",168]
["NECKLACY iPhone 11 Domino Swirl gunmetal","A23809",168]
["NECKLACY iPhone 11 Elegant Black","A23810",168]
["NECKLACY iPhone 11 Pro All Black","A23811",168]
["NECKLACY iPhone 11 Pro Classic Birch","A23812",168]
["NECKLACY iPhone 11 Pro Coral Reef","A23813",168]
["NECKLACY iPhone 11 Pro Cotton Candy","A23814",168]
["NECKLACY iPhone 11 Pro Dark Olive gunmetal","A23815",168]
["NECKLACY iPhone 11 Pro Domino Swirl","A23816",168]
["NECKLACY iPhone 11 Pro Domino Swirl gunmetal","A23817",168]
["NECKLACY iPhone 11 Pro Elegant Black","A23818",168]
["NECKLACY iPhone 11 Pro Stormy Grey gunmetal","A23819",168]
["NECKLACY iPhone 11 Stormy Grey gunmetal","A23820",168]
["NECKLACY iPhone 7 8 SE All Black","A23821",168]
["NECKLACY iPhone 7 8 SE Classic Birch","A23822",168]
["NECKLACY iPhone 7 8 SE Coral Reef","A23823",168]
["NECKLACY iPhone 7 8 SE Cotton Candy","A23824",168]
["NECKLACY iPhone 7 8 SE Dark Olive gunmetal","A23825",168]
["NECKLACY iPhone 7 8 SE Domino Swirl","A23826",168]
["NECKLACY iPhone 7 8 SE Domino Swirl gunmetal","A23827",168]
["NECKLACY iPhone 7 8 SE Elegant Black","A23828",168]
["NECKLACY iPhone 7 8 SE Stormy Grey gunmetal","A23829",168]
["NECKLACY iPhone X XS All Black","A23830",168]
["NECKLACY iPhone X XS Classic Birch","A23831",168]
["NECKLACY iPhone X XS Coral Reef","A23832",168]
["NECKLACY iPhone X XS Cotton Candy","A23833",168]
["NECKLACY iPhone X XS Dark Olive gunmetal","A23834",168]
["NECKLACY iPhone X XS Domino Swirl","A23835",168]
["NECKLACY iPhone X XS Domino Swirl gunmetal","A23836",168]
["NECKLACY iPhone X XS Elegant Black","A23837",168]
["NECKLACY iPhone X XS Stormy Grey gunmetal","A23838",168]
["Nudient  iPhone 11  Candy Pink","A23562",168]
["Nudient  iPhone 11  Majestic Green","A23563",168]
["Nudient  iPhone 11  Sangria Red","A23564",168]
["Nudient  iPhone 11  Stealth Black","A23565",168]
["Nudient  iPhone 11 Pro  Black Transparent","A23571",144]
["Nudient iPhone 11 Pro  Candy Pink","A23567",168]
["Nudient iPhone 11 Pro  Majestic Green","A23568",168]
["Nudient iPhone 11 Pro  Sangria Red","A23569",168]
["Nudient iPhone 11 Pro  Stealth Black","A23570",168]
["Nudient iPhone 11 Pro Max  Black Transparent","A23575",144]
["Nudient iPhone 11 Pro Max  Majestic Green","A23572",168]
["Nudient iPhone 11 Pro Max  Sangria Red","A23573",168]
["Nudient iPhone 11 Pro Max  Stealth Black","A23574",168]
["Nudient iPhone 7 8  Candy Pink","A23584",168]
["Nudient iPhone 7 8  Majestic Green","A23585",168]
["Nudient iPhone 7 8  Stealth Black","A23587",168]
["Nudient iPhone 7 8 Sangria Red","A23586",168]
["Nudient iPhone XR  Black Transparent","A23583",144]
["Nudient iPhone XR  Majestic Green","A23581",168]
["Nudient iPhone XR  Stealth Black","A23582",168]
["Nudient iPhone XS  Black Transparent","A23580",144]
["Nudient iPhone XS  Candy Pink","A23576",168]
["Nudient iPhone XS  Majestic Green","A23577",168]
["Nudient iPhone XS  Sangria Red","A23578",168]
["Nudient iPhone XS  Stealth Black","A23579",168]
["Nudient Samsung S20 Plus  Majestic Green","A23592",168]
["Nudient Samsung S20 Ultra  Majestic Green","A23594",168]
["ON Car Charger 2 1A Black","A22684",96]
["ON Car Charger 2 1A Micro USB 1 5m Black","A22690",168]
["ON Car Charger 2 1A USB C 1 5m Black","A22691",192]
["ON Huawei P30 Lite TPU Ultra Thin Clear","A23122",144]
["ON Huawei P30 Pro TPU Ultra Thin Clear","A23123",144]
["ON IPHONE 11 MAX Pro Premium Silicone BLACK","A23201",192]
["ON iPhone 11 Pro Premium Silicone BLACK","A23200",192]
["ON IPHONE 12 Pro Max Flip Cover BLACK","A24038",192]
["ON IPHONE 7 8 HARD CASE RUBBERIZED BLACK","A22971",168]
["ON IPHONE X Xs AMBER BOOK DOOR BLACK","A22976",192]
["ON IPHONE X Xs HARD CASE RUBBERIZED BLACK","A22972",168]
["ON IPHONE Xr AMBER BOOK DOOR BLACK","A22973",168]
["ON IPHONE Xr HARD CASE RUBBERIZED BLACK","A22969",168]
["ON IPHONE Xs Max HARD CASE RUBBERIZED BLACK","A22970",168]
["ON Micro USB Cabel 3m White","A22696",120]
["ON ONE PLUS 7 RUBBERIZED BLACK","A23173",168]
["ON Powerbank 10 000 mAh","A22679",216]
["ON Powerbank 5 000 mAh","A22678",168]
["ON Samsung A51 TPU Ultra Thin clear","A23485",144]
["ON Samsung S10 TPU Ultra Thin Clear","A23170",144]
["ON Samsung S10p TPU Ultra Thin clear","A23171",144]
["ON TPU Samsung S20 Plus","A23486",144]
["ON TPU Samsung S20Plus","A23487",144]
["ON Wall Charger 2 1A Micro USB 1 5m White","A22687",168]
["OnePlus 8 Karbon Bumper Case","A23741",240]
["OnePlus 8 Pro Karbon Bumper Case","A23743",240]
["OnePlus 8 Sandstone Bumper Case Black","A23740",168]
["OnePlus Warp Type C Cable","A23737",168]
["PanzerGlass Apple iPad 10 2in Case Friendly","A23331",240]
["PanzerGlass Apple iPad Pro 11in 2018","A23052",240]
["PanzerGlass Apple iPhone 11","A23218",168]
["PanzerGlass Apple iPhone 11 Case Friendly Black","A23221",216]
["PanzerGlass Apple iPhone 11 Case Friendly Privacy Black","A23224",216]
["PanzerGlass Apple iPhone 11 MAX Pro","A23219",168]
["PanzerGlass Apple iPhone 11 MAX Pro Case Friendly Black","A23222",216]
["PanzerGlass Apple iPhone 11 MAX Pro Case Friendly Privacy Black","A23225",216]
["PanzerGlass Apple iPhone 11 Pro","A23217",168]
["PanzerGlass Apple iPhone 11 Pro Case Friendly Black","A23220",216]
["PanzerGlass Apple iPhone 6 6s 7 8 Case Friendly Black","A23472",216]
["PanzerGlass Apple iPhone X XS ClearCase","A23512",192]
["PanzerGlass Apple iPhone Xr","A22944",168]
["PanzerGlass Apple iPhone Xr Black","A22949",240]
["PanzerGlass Apple iPhone Xr Casefriendly Black","A22948",216]
["PanzerGlass Apple iPhone Xr Privacy","A22945",168]
["PanzerGlass Apple iPhone Xs Max","A22946",168]
["PanzerGlass Apple iPhone Xs Max Black","A22951",240]
["PanzerGlass Apple iPhone Xs Max Privacy","A22947",168]
["PanzerGlass Apple Watch Series 4 40mm","A23035",216]
["PanzerGlass Huawei P30 lite Black","A23106",216]
["PanzerGlass Huawei P30 Pro Black","A23107",216]
["PanzerGlass iPhone 6 6S 7 8","A22041",168]
["PanzerGlass iPhone 7 Plus 8 Plus","A22042",168]
["PanzerGlass iPhone X","A22485",168]
["PanzerGlass iPhone X XS Black frame","A23039",216]
["PanzerGlass Note 9 casefriendly black","A22890",216]
["PanzerGlass OnePlus 7T Case Friendly Black","A23345",216]
["PanzerGlass PREMIUM iPhone X Black","A22488",240]
["PanzerGlass Samsung Galaxy A40","A23158",168]
["PanzerGlass Samsung Galaxy A51 Case Friendly Black","A23475",216]
["PanzerGlass Samsung Galaxy A70","A23168",216]
["PanzerGlass Samsung Galaxy Note 10 Case Friendly Black","A23184",216]
["PanzerGlass Samsung Galaxy Note 10 plus Case Friendly Black","A23183",216]
["PanzerGlass Samsung Galaxy S10 Casefriendly","A23079",216]
["PanzerGlass Samsung Galaxy S10 Fingerprint Case Friendly Black","A23160",216]
["PanzerGlass Samsung Galaxy S10e Casefriendly","A23081",216]
["PanzerGlass Samsung Galaxy S10P Fingerprint Case Friendly Black","A23161",216]
["PanzerGlass Samsung Galaxy S20 Ultra Case Friendly","A23478",216]
["PanzerGlass Samsung Galaxy S20Plus Case Friendly Biometric Glass","A23491",216]
["Panzerglass Spray Twice A Day 8 ml","A23683",48]
["Philips Hue 10W A60 E27 Bulb Color","A22873",384]
["Philips Hue LightStrip Plus 2m","A23655",480]
["POKIBOT SMART ROBOT","A23665",96]
["SACKit WOOFit Headphone Black","A23460",648]
["Samsung Common Wireless Charger Stand 15W Black","A23453",408]
["Samsung Common Wireless Charger Stand 15W White","A23454",408]
["Samsung Galaxy Note10 Plus Clear View Cover Black","A23192",360]
["Samsung Galaxy Note10 Plus LED Cover Black","A23191",360]
["Samsung Galaxy Note10 Plus Silicone Cover Black","A23190",192]
["Samsung Galaxy S10 Clear Cover Transparent","A23072",144]
["Samsung Galaxy S10 Clear view cover Black","A23073",360]
["Samsung Galaxy S10 Lite Silicone Cover Black","A23471",192]
["Samsung Galaxy S10 Plus Clear view cover Black","A23076",360]
["Samsung Galaxy S10 Silicone Cover Black","A23074",192]
["Samsung Galaxy S10p Silicone Cover Black","A23077",192]
["Samsung Gradation cover Galaxy A70 Black","A23164",120]
["Samsung Leather Cover Bloom","A23495",480]
["Samsung S20 FE Clear Standing Cover Transparent","A24095",192]
["Samsung S20 FE Silicone Cover Navy","A24094",192]
["Samsung S9 Alcantara Cover","A22719",336]
["Samsung S9 Silicone Cover","A22721",168]
["Samsung Wallet cover Galaxy A70 black","A23163",192]
["Samsung Wireless Battery Pack Silver","A23082",408]
["Samsung Wireless Charger Pad Fast Charge Black","A23195",288]
["STEELSERIES SMART GRIP FOR STRATUS DUO","A23180",96]
["STEELSERIES STRATUS DUO","A23179",528]
["Steelseries Stratus Duo with Grip Bundle","A23193",528]
["Under Armour Flash Tw by JBL Black","A23705",1032]
["Under Armour Wireless Onear Training headphone by JBL Black","A23706",1200]
["Urbanista Stockholm Fluffy Cloud","A23680",456]
["Urbanista Stockholm Midnight black","A23679",456]
["Urbanista Stockholm Olive Green","A23682",456]
["Urbanista Stockholm Rose gold","A23681",456]
["A Good Bottle Charcoal Black","A24204",168]
["A Good Bottle Grass Green","A24205",168]
["Apple AirPods Max Space Gray","A24460",{"$f":"4800*0.8","v":3840}]
["Apple AirPods Max Silver","A24461",{"$f":"4800*0.8","v":3840}]
["Apple AirPods Max Sky Blue","A24462",3840]
["Apple AirPods Max Pink","A24463",3840]
["Apple AirPods Max Green","A24464",3840]

{"sheet":"Lager","index":7,"n_rows":1990,"n_cols":3,"rows_kept":1990,"cut":false,"hidden":true,"merged":[]}
["A-nummer","Beskrivelse","Lager"]
["A21432","Simkort adapter 4i1 med pind",2679]
["A21466","BeoPlay A2 Green",1]
["A21480","BeoPlay Cable One Button",65]
["A21514","BeoPlay Form 2i Black",15]
["A21517","BeoPlay H5 Wireless Earphones Black",2]
["A21518","BeoPlay H5 Wireless Earphones Dusty Rose",1]
["A21545","Apple Pencil 1st Generation",13]
["A21550","Jabra UC Voice 550 MS Duo",1]
["A21551","BeoPlay A2 Natural",2]
["A21602","Beoplay A1 Naturel",1]
["A21608","Apple 12W USB Power Adapter"]
["A21954","Clint FREYA TrueWireless Charcoal grey",1]
["A22037","Samsung Gear VR SM R323NBKANEE Black",22]
["A22040","Beoplay A1 Sort",2]
["A22056","Apple Lightning to Headphone Jack Adapter",41]
["A22057","Apple EarPods with Lightning Connector",122]
["A22058","Apple Lightning to SD Card Camera Reader",262]
["A22214","Samsung microSDXC hukommelseskort 256GB",30]
["A22225","Samsung microSDXC hukommelseskort 64GB",17]
["A22234","Beoplay H4 Charcoal Grey"]
["A22248","OnePlus USB C Cable 1m",54]
["A22249","OnePlus Power Adapter",30]
["A22250","OnePlus Car Charger",344]
["A22331","Beoplay P2 Sand Stone Bluetooth",2]
["A22336","Samsung Wired headset Black",2]
["A22337","Samsung Wired headset  Green",7]
["A22338","Samsung Wired headset  Light Blue",19]
["A22339","Samsung Wired headset White",10]
["A22340","Samsung Wired headset  Pink",4]
["A22342","Samsung Galaxy Gear 360 2017 White",18]
["A22343","Samsung Gear VR SM R324 and Controller Black",18]
["A22398","PanzerGlass PREMIUM iPhone 6s 7 8 White",1]
["A22420","Apple Smart Keyboard for 10inch iPad Pro Danish",56]
["A22421","Apple Smart Cover for 10inch iPad Pro White",81]
["A22423","Apple Leather Smart Cover for 10inch iPad Pro",91]
["A22447","Ideal Fashion Case Iphone 7 6 6S Carrara Gold",9]
["A22461","Ideal Fashion Case Iphone 7 6 6S Floral Romance",10]
["A22465","Ideal Fashion Wallet Iphone 7 6 6S Black",41]
["A22504","Apple iPhone 8 7 Silicone Case Black",86]
["A22509","Apple iPhone 8 Plus 7 Plus Silicone Case White",49]
["A22510","Apple iPhone 8 Plus 7 Plus Silicone Case Midnight",57]
["A22512","Apple EARPODS WITH REMOTE AND MIC",21]
["A22513","Apple iPhone 8 7 Leather Case Black",131]
["A22516","Apple iPhone 8 Plus  7 Plus Leather Case Midnight",35]
["A22535","BeoPlay E8 Black Truly Wireless Earphones",3]
["A22579","Huawei 360 Panoramic Camera CV60 Grey",38]
["A22580","Apple iPhone X Silicone Case Black",1]
["A22585","Oneplus headset",197]
["A22587","BeoPlay M3 Black Bluetooth Airplay Chromecast",16]
["A22678","ON Powerbank 5 000 mAh",5]
["A22679","ON Powerbank 10 000 mAh",19]
["A22680","ON Lightning Cabel 1 5m White",30]
["A22681","ON Micro-USB Cabel 1 5m White",79]
["A22682","ON USB-C Cabel 1 5m White",75]
["A22683","ON Wall Charger 2 1A White",95]
["A22684","ON Car Charger 2 1A Black",3]
["A22686","ON Wall Charger 2 1A Lightning 1 5m White",48]
["A22687","ON Wall Charger 2 1A Micro USB 1 5m White",5]
["A22688","ON Wall Charger 2 1A USB C 1 5m White",1]
["A22689","ON Car Charger 2 1A Lightning 1 5m Black",6]
["A22690","ON Car Charger 2 1A Micro USB 1 5m Black",234]
["A22691","ON Car Charger 2 1A USB C 1 5m Black",11]
["A22695","ON Lightning Cabel 3m White",23]
["A22696","ON Micro USB Cabel 3m White",7]
["A22697","ON USB C Cabel 3m White",93]
["A22703","Beoplay H9i Black Over Ear",1]
["A22733","Ideal Car  Vent Mount Universal Silver",9]
["A22770","Ideal Fashion Case Iphone X Golden Glitz",1]
["A22778","Huawei Tripod Selfie Stick Wireless",23]
["A22787","OnePlus 6 Karbon Protective Case",1]
["A22804","Apple Watch Nike 3C 42mm Silver",1]
["A22811","Dbramante Paris MacBook Pro 13 Lady Pink",2]
["A22827","Dbramante Lynge iPhone X Black",51]
["A22828","Dbramante Tune iPhone X Black",89]
["A22873","Philips Hue 10W A60 E27 Bulb Color",1]
["A22879","Linksys Velop Whw0101 Ac1300 1Pk",21]
["A22880","Linksys Velop Whw0102 Ac2600 2Pk",71]
["A22883","Logitech Circle 2 Indoor outdoor security camera",14]
["A22884","Logitech Circle 2 Accessory Window Mount",23]
["A22885","Logitech Circle 2 Accessory Rechargeable Battery",23]
["A22888","Table Fan FT 30T",62]
["A22898","Samsung Galaxy Watch 46mm Silver"]
["A22899","Samsung Galaxy Watch 42mm Black",17]
["A22900","Samsung Galaxy Watch 42mm Rose Gold",10]
["A22920","Apple Watch 3C 38mm Demo"]
["A22921","Apple Watch 3C 42mm Demo",6]
["A22941","Dbramante 1928 Lynge iPhone Xr Black",85]
["A22943","Dbramante 1928 Tune iPhone Xr Black",69]
["A22965","ON IPHONE Xr TPU ULTRA THIN CLEAR",11]
["A22967","ON IPHONE 7 8 TPU ULTRA THIN CLEAR",56]
["A22968","ON IPHONE X Xs TPU ULTRA THIN CLEAR",32]
["A22972","ON IPHONE X Xs HARD CASE RUBBERIZED BLACK"]
["A22977","ON Car Charger USB C PD 30W black",9]
["A22982","Apple iPhone XS Leather Case Black"]
["A22983","Apple iPhone XS Leather Folio Black",61]
["A22984","Apple iPhone XS Max Leather Case Black",221]
["A22985","Apple iPhone XS Max Leather Folio Black",80]
["A22986","Apple iPhone XS Max Silicone Case Black",351]
["A22987","Apple iPhone XS Max Silicone Case Pink Sand",145]
["A22988","Apple iPhone XS Silicone Case Black",30]
["A22989","Apple iPhone XS Silicone Case Pink Sand",49]
["A22991","Apple 44mm Black Sport Band Demo"]
["A22995","PanzerGlass OnePlus 7 Black",1]
["A22999","Apple Watch 3C 42mm Grey w Black"]
["A23000","Apple Watch 4C 40mm Gold w Pink"]
["A23005","Apple Watch 4C 44mm Black Steel",3]
["A23006","Apple Watch Nike 4C 44mm Grey w Black",7]
["A23007","Apple Watch Nike 4C 44mm Grey w Sport",7]
["A23008","Apple Watch Nike 4C 44mm Silver w White",5]
["A23010","Apple Watch 5C 40mm Gold w Pink"]
["A23011","Apple Watch 5C 40mm Grey w Black"]
["A23012","Apple Watch 5C 40mm Silver w White"]
["A23013","Apple Watch 5C 44mm Grey w Black"]
["A23014","Apple Watch 5C 44mm Silver w White"]
["A23015","Apple Watch 5C 44mm Black Steel"]
["A23017","Apple Watch Nike 5C 44mm Grey w Black"]
["A23027","DeFunc BT Headphone GO Black"]
["A23044","ON Wireless Alu Charger Stand 10W incl Wall USB C",172]
["A23046","Beoplay P6 Black",11]
["A23049","Apple Pencil 2nd Generation"]
["A23062","Apple Watch 4C 40mm Demo",6]
["A23063","Apple Watch 4C 44mm Demo",19]
["A23069","Beoplay E8 2 Black Truly Wireless Earphones",6]
["A23085","Samsung Galaxy Watch Active Black"]
["A23086","Samsung Galaxy Watch Active Rose Gold"]
["A23087","Samsung Galaxy Fit e",44]
["A23088","Samsung Galaxy Buds Black",19]
["A23117","Happy Plugs Air Pink Gold"]
["A23125","MARSHALL ACTON II BT BLACK"]
["A23126","MARSHALL ACTON II BT WHITE",1]
["A23127","MARSHALL KILBURN II BLACK",3]
["A23128","MARSHALL MAJOR III BLUETOOTH BLACK"]
["A23129","MARSHALL MINOR II BT BLACK",1]
["A23130","MARSHALL STOCKWELL II BLACK",13]
["A23134","IDEAL FASHION CASE SAFFIANO IPHONE 6 6S 7 8 PINK"]
["A23135","IDEAL FASHION CASE SAFFIANO IPHONE X XS BEIGE"]
["A23136","IDEAL FASHION CASE SAFFIANO IPHONE X XS BLACK"]
["A23151","DJI Osmo Pocket",22]
["A23156","dBramante 1928 Madrid Watch Strap 38 40mm Night",6]
["A23177","Beoplay H9 3G Matte Black",24]
["A23178","Mi boxen",40]
["A23179","STEELSERIES STRATUS DUO",151]
["A23180","STEELSERIES SMART GRIP FOR STRATUS DUO",158]
["A23181","DJI Osmo Action",20]
["A23184","PanzerGlass Samsung Galaxy Note 10 Case Friendly"]
["A23186","DJI Osmo Pocket pack DEMO"]
["A23187","Samsung Galaxy Buds White",40]
["A23193","Steelseries Stratus Duo with Grip Bundle"]
["A23196","ON iPhone 11 TPU ULTRA THIN CLEAR",174]
["A23197","ON IPHONE iPhone 11 Pro TPU ULTRA THIN CLEAR",30]
["A23198","ON iPhone 11 MAX Pro TPU ULTRA THIN CLEAR",26]
["A23199","ON IPHONE iPhone 11 Premium Silicone BLACK",44]
["A23200","ON iPhone 11 Pro Premium Silicone BLACK",1]
["A23201","ON IPHONE 11 MAX Pro Premium Silicone BLACK",12]
["A23202","DBRAMANTE 1928 COPENHAGEN SLIM iPhone 11 Pro BLAC",95]
["A23203","DBRAMANTE 1928 COPENHAGEN SLIM iPhone 11 MAX Pro",51]
["A23204","DBRAMANTE 1928 COPENHAGEN SLIM iPhone 11 BLACK",58]
["A23205","DBRAMANTE 1928 LYNGE iPhone 11 Pro BLACK",20]
["A23207","DBRAMANTE 1928 LYNGE iPhone 11 BLACK",5]
["A23208","DBRAMANTE 1928 Herning iPhone 11 Pro Black",73]
["A23210","DBRAMANTE 1928 Herning Phone 11 MAX Pro Black",2]
["A23212","IDEAL FASHION CASE iPhone 11 Pro in FLORAL ROMANC",34]
["A23213","IDEAL FASHION CASE iPhone 11 in CARRARA GOLD",13]
["A23214","IDEAL FASHION CASE iPhone 11 in FLORAL ROMANCE",7]
["A23217","PanzerGlass Apple iPhone 11 Pro",9]
["A23218","PanzerGlass Apple iPhone 11",4]
["A23224","PanzerGlass Apple iPhone 11 Case Friendly Privacy"]
["A23227","Samsung Galaxy Watch Active2 40mm LTE Black"]
["A23228","Samsung Galaxy Watch Active2 40mm LTE Gold",31]
["A23229","Samsung Galaxy Watch Active2 44mm LTE Black"]
["A23230","IFROGZ LITTLE ROCKERS COSTUME HEADPHONES UNICORN",18]
["A23231","IFROGZ LITTLE ROCKERS COSTUME HEADPHONES PINK",51]
["A23232","IFROGZ LITTLE ROCKERS COSTUME HEADPHONES BUNNY",113]
["A23233","mophie Charge and Sync Cable USB  C to Lightning",13]
["A23247","Apple Watch Magnetic Charging Cable 1 m"]
["A23249","OnePlus Bullets Wireless 2"]
["A23250","Apple iPhone 11 Clear Case",33]
["A23251","Apple iPhone 11 Silicone Case  Black",40]
["A23252","Apple iPhone 11 Pro Leather Case  Black",44]
["A23253","Apple iPhone 11 Pro Clear Case",36]
["A23254","Apple iPhone 11 Pro Silicone Case  White",53]
["A23255","Apple iPhone 11 Pro Silicone Case  Pink Sand"]
["A23256","Apple iPhone 11 Pro Silicone Case  Black",20]
["A23257","Apple iPhone 11 Pro Max Silicone Case  Black",8]
["A23258","Apple iPhone 11 Pro Max Leather Case  Black",2]
["A23259","Apple iPhone 11 Pro Max Clear Case",121]
["A23260","Samsung Galaxy Watch Active2C Aluminium 40mm Gold",3]
["A23261","Samsung Galaxy Watch Active2C Aluminium 44mm Blac",4]
["A23262","Samsung Galaxy Watch3 41mm LTE Mystic Silver",31]
["A23263","Samsung Galaxy Watch3 41mm LTE Mystic Bronze",11]
["A23264","Samsung Galaxy Watch3 45mm LTE Mystic Black",33]
["A23279","Defunc TRUE GO Wireless Bluetooth Earbuds Black",57]
["A23280","Defunc TRUE GO Wireless Bluetooth Earbuds White",68]
["A23292","IDEAL FASHION CASE 6 1 BLACK GALAXY MARBLE",3]
["A23293","IDEAL FASHION CASE 6 1 SWEET BLOSSOM",9]
["A23314","IDEAL MAGNETIC RING MOUNT BLACK GALAXY MARBLE",6]
["A23315","IDEAL MAGNETIC RING MOUNT SWEET BLOSSOM",21]
["A23318","IDEAL FASHION QI CHARGER BLACK GALAXY MARBLE",13]
["A23320","IDEAL FASHION POWER BANK BLACK GALAXY MARBLE",10]
["A23323","IDEAL FASHION CABLE LIGHTNING 1 M SWEET BLOSSOM"]
["A23324","dbramante 1928 Copenhagen Watch Strap 44mm Tan",80]
["A23325","dbramante 1928 Copenhagen Watch Strap 44mm Tan",86]
["A23326","dbramante 1928 Copenhagen Watch Strap 44mm Black",81]
["A23327","dbramante 1928 Copenhagen Watch Strap 44mm Black",76]
["A23328","dbramante 1928 Madrid Watch Strap 38 40mm Night",96]
["A23329","Smart Keyboard for iPad 7th generation and iPad",18]
["A23330","Apple Leather Smart Cover for iPad 7th generation",11]
["A23332","Apple Wireless Charging Case for AirPods",18]
["A23333","Apple AirPods with Wireless Charging Case",140]
["A23334","Apple Lightning to USB C Cable 1 m",5]
["A23335","Apple AirPods with Charging Case",18]
["A23336","DJI Osmo Mobile 3 Combo",12]
["A23337","dbramante1928 Herning iPhone 11 Black",48]
["A23338","dbramante1928 Herning iPhone 11 Pro Max Black",50]
["A23341","IDEAL FASHION WALLET IPHONE 11 PRO BLACK",6]
["A23342","IDEAL FASHION WALLET IPHONE 11 BLACK",17]
["A23346","JBL GO2 Black",52]
["A23349","JBL GO2 Cinnamon",28]
["A23351","JBL GO2 Green",31]
["A23352","JBL CLIP3 Black",39]
["A23353","JBL CLIP3 Green",23]
["A23355","JBL CLIP3 Pink",32]
["A23357","JBL CLIP3 White",2]
["A23358","JBL FLIP5 Black",20]
["A23359","JBL FLIP5 Green",18]
["A23360","JBL FLIP5 Grey"]
["A23361","JBL FLIP5 Pink",9]
["A23362","JBL LINK10 Black"]
["A23363","JBL LINK10 White"]
["A23364","JBL CHARGE4 Black",25]
["A23365","JBL XTREME2 Black",25]
["A23366","JBL T115 BT Black",22]
["A23368","JBL T120 TW Black",30]
["A23369","JBL T205 BT Black",11]
["A23371","JBL T210 Black",17]
["A23372","JBL T290 Black",23]
["A23373","JBL T500 BT Black",8]
["A23375","JBL FREEX  BT Black",1]
["A23376","JBL FREE X BT White",62]
["A23377","JBL LIVE500 BT Black",46]
["A23378","JBL REFLECT FLOW Black",30]
["A23379","JBL ENDURANCE BT Black",27]
["A23400","SOUNDBOKS New Black",120]
["A23401","SOUNDBOKS New Black Demo"]
["A23412","IDEAL FASHION CASE IPHONE X XS 11 PRO MONSTERA",11]
["A23416","IDEAL FASHION CASE 5 8 BLACK GALAXY MARBLE",10]
["A23417","IDEAL FASHION CASE 5 8 SWEET BLOSSOM",25]
["A23424","IDEAL FASHION CASE IPHONE 11 PRO CARRARA GOLD",10]
["A23428","IDEAL FASHION CASE IPHONE 6 6S 7 8 BLACK GALAXY",7]
["A23429","IDEAL FASHION CASE IPHONE 6 6S 7 8 SWEET BLOSSOM",20]
["A23433","IDEAL FASHION CASE IPHONE 8 7 6 6S MONSTERA JUNGL",34]
["A23436","IDEAL MAGNET WALLET  IPHONE 11 PRO BLACK",14]
["A23437","IDEAL MAGNET WALLET  IPHONE 11 BLACK",36]
["A23438","dbramante1928 Lynge  iPhone 8 7 6 TAN",1]
["A23439","dbramante1928 Lynge  iPhone 11  Tan",3]
["A23440","dbramante1928 Lynge  iPhone 11 Pro  Tan",9]
["A23441","dbramante1928 Lynge  iPhone 11 Pro Max  Tan",10]
["A23444","Apple AirPods Pro with wireless case",362]
["A23447","Garmin vivofit jr2 WW Adjustable Princess Purple",85]
["A23448","Garmin vivofit jr2 WW Adjustable Spider Man Black",65]
["A23449","Nintendo bundel Switch and Labo"]
["A23450","Jabra Elite 65t Black EMEA Pack"]
["A23452","dbramante1928 Lynge iPhone 8 7 6 Series Black New",57]
["A23453","Samsung Common Wireless Charger Stand 15W Black",3]
["A23454","Samsung Common Wireless Charger Stand 15W White",25]
["A23458","Samsung USBC to Headset Jack Adapter Black"]
["A23466","Apple Lightning to USB Cable 05 m",88]
["A23467","Aftershokz Air Wireless BT",29]
["A23468","Samsung Clear view Cover S20",21]
["A23469","Samsung Clear View Cover S20Plus",32]
["A23470","Samsung Silicone Cover black S20Plus",16]
["A23472","PanzerGlass Apple iPhone 6 6s 7 8 Case Friendly"]
["A23473","Samsung Silicone Cover black S20",16]
["A23474","LINKSYS VELOP WHW0103 AC3900 3PK"]
["A23485","ON Samsung A51 TPU Ultra Thin clear",22]
["A23486","ON TPU Samsung S20 Plus",41]
["A23489","Beoplay E8 3rd black Truly Wireless Earphones",16]
["A23496","Samsung Galaxy Buds plus Black"]
["A23499","Samsung Galaxy S20 Ultra Clear View Cover Black",33]
["A23500","Samsung Galaxy S20 Ultra Silicone Cover Black",12]
["A23501","Samsung Galaxy S20 Ultra Clear Cover Transparent",15]
["A23509","PanzerGlass ClearCase with BlackFrame for iPhone",5]
["A23510","PanzerGlass ClearCase with BlackFrame for iPhone",8]
["A23511","PanzerGlass ClearCase with BlackFrame for iPhone",10]
["A23512","PanzerGlass Apple iPhone X XS ClearCase",3]
["A23513","PanzerGlass Apple iPhone 11 Clearcase"]
["A23514","PanzerGlass Apple iPhone 11 Pro ClearCase",8]
["A23515","Beoplay P6 Natural Bluetooth 16h Playback",16]
["A23516","Beoplay Beolit 17 Natural BT 24H playback",24]
["A23517","Beoplay Beolit 17 Stone Grey BT Batt 24H playback",3]
["A23518","Beoplay Beolit 17 Pink BT Batt  24H playback",9]
["A23519","Beoplay E8 3rd grey mist TW",10]
["A23520","Beoplay H4 2 Gen Black",15]
["A23521","Beoplay H4 2 Gen Limestone",18]
["A23529","MOPHIE CHARGE STREAM GLOBAL TRAVEL KIT",8]
["A23535","Samsung Galaxy Buds Plus white"]
["A23538","Beoplay Beolit 17 Natural BT 24H playback Demo",1]
["A23539","Beoplay H4 2 Gen Limestone Demo"]
["A23561","Apple TV 4K 32GB MQD22KK",3]
["A23562","Nudient  iPhone 11  Candy Pink",60]
["A23563","Nudient  iPhone 11  Majestic Green",37]
["A23564","Nudient  iPhone 11  Sangria Red",22]
["A23565","Nudient  iPhone 11  Stealth Black",10]
["A23566","Nudient iPhone 11  Black Transparent",1]
["A23567","Nudient iPhone 11 Pro  Candy Pink",57]
["A23568","Nudient iPhone 11 Pro  Majestic Green",34]
["A23569","Nudient iPhone 11 Pro  Sangria Red",22]
["A23570","Nudient iPhone 11 Pro  Stealth Black",13]
["A23571","Nudient  iPhone 11 Pro  Black Transparent",42]
["A23572","Nudient iPhone 11 Pro Max  Majestic Green",32]
["A23573","Nudient iPhone 11 Pro Max  Sangria Red",28]
["A23574","Nudient iPhone 11 Pro Max  Stealth Black",22]
["A23575","Nudient iPhone 11 Pro Max  Black Transparent",17]
["A23576","Nudient iPhone XS  Candy Pink",38]
["A23577","Nudient iPhone XS  Majestic Green",57]
["A23578","Nudient iPhone XS  Sangria Red",23]
["A23579","Nudient iPhone XS  Stealth Black",27]
["A23580","Nudient iPhone XS  Black Transparent",27]
["A23581","Nudient iPhone XR  Majestic Green",43]
["A23582","Nudient iPhone XR  Stealth Black",29]
["A23583","Nudient iPhone XR  Black Transparent",27]
["A23584","Nudient iPhone 7 8  Candy Pink",36]
["A23585","Nudient iPhone 7 8  Majestic Green",48]
["A23586","Nudient iPhone 7 8 Sangria Red",24]
["A23587","Nudient iPhone 7 8  Stealth Black",19]
["A23588","Nudient iPhone 7 8 Black Transparent",7]
["A23594","Nudient Samsung S20 Ultra  Majestic Green",2]
["A23597","Invisibleshield GlasselitePlus Apple Baby Yoda 8",34]
["A23599","Invisibleshield Glass Elite Iphone X Xs 11 Pro",44]
["A23600","Invisibleshield Glass Elite Iphone Xr 11 Screen"]
["A23601","Invisibleshield Glass Elite Iphone Xs Max 11 Pro",19]
["A23602","Invisibleshield Glass Curve Apple Iphone 8 7",6]
["A23604","Invisibleshield Glass Elite Edge Iphone X Xs 11",98]
["A23605","Invisibleshield Glass Elite Edge Iphone Xr 11",293]
["A23606","Invisibleshield Glass Elite Edge Iphone Xs Max 11",81]
["A23608","Invisibleshield GlassPlus Visionguard Apple Ip7",37]
["A23609","Invisibleshield Glasselite VisionguardPlus Apple",2]
["A23610","Invisibleshield Glass Elite VisionguardPlus Iphon",35]
["A23611","Invisibleshield Glass Elite VisionguardPlus Iphon",17]
["A23612","Invisibleshield Glass Elite Vision GuardPlus",8]
["A23613","Invisibleshield GlassPlus Privacy Apple Iphone 8",39]
["A23615","Invisibleshield Glass Elite Privacy Iphone X Xs 1",38]
["A23616","Invisibleshield Glass Elite Privacy Iphone Xr",5]
["A23617","Invisibleshield Glass Elite Privacy Iphone Xs Max",12]
["A23618","Invisibleshield GlassPlus Ipad Air Air2 9 7 Ipad",10]
["A23620","Invisibleshield GlassPlus Apple 11 Inch Ipad Pro",9]
["A23621","Invisibleshield Glass Plus Apple 12 Pro 2018",6]
["A23622","Invisibleshield GlassPlus Visionguard Apple Ipad",9]
["A23623","Invisibleshield Glass Elite Samsung Galaxy A51",13]
["A23627","Invisibleshield Ultra Clear Samsung S10 Screen",18]
["A23628","Invisibleshield Ultra Clear Samsung S10Plus Scree",6]
["A23629","Invisibleshield Ultra ClearPlus Samsung Samsung",30]
["A23630","Invisibleshield Ultra ClearPlus Samsung S20 Plus",15]
["A23631","Invisibleshield Ultra ClearPlus Samsung S20 Ultra",16]
["A23632","Invisibleshield Ultra VisionGuard Plus Samsung S2",5]
["A23633","Invisibleshield Ultra VisionGuard Plus Samsung S2",8]
["A23634","Invisibleshield Ultra VisionGuard Plus Samsung S2",6]
["A23635","Invisibleshield GlassPlus S10E Screen",6]
["A23636","Invisibleshield GlassPlus Visionguard S10E Screen",50]
["A23639","Invisibleshield GlassPlus Huawei P30 Lite Screen",4]
["A23640","Philips Hue White 2xE27 Pærer Starter Kit BT",26]
["A23641","Philips Hue Color 2xE27 Pærer Starter Kit Richer",20]
["A23642","Philips Hue White E27 Pære BT",28]
["A23643","Philips Hue White Ambiance E27 Pære BT",35]
["A23644","Philips Hue White Ambiance E14 Pære",70]
["A23645","Philips Hue Color E27 Pære Richer Colors BT",17]
["A23646","Philips Hue White E14 Pære BT",40]
["A23647","Philips Hue Color E14 Pære",61]
["A23648","Philips Hue White Filament A60 E27 Pære",27]
["A23649","Philips Hue White Filament G93 E27 Pære BT",17]
["A23650","Philips Hue White Filament ST64 E27 Pære BT",41]
["A23651","Philips Hue Bridge",37]
["A23652","Philips Hue Dimming Switch Trådløs Lysdæmper",49]
["A23653","Philips Hue Motion Sensor",49]
["A23654","Philips Hue Smart plug",10]
["A23655","Philips Hue LightStrip Plus 2m",28]
["A23656","Philips Hue LightStrip Plus 1m",14]
["A23657","Philips Hue Go Transportabel Bordlampe BT",43]
["A23658","PanzerGlass Apple Watch Series 4 5 6 SE 40mm full",6]
["A23659","PanzerGlass Apple Watch Series 4 5 6 SE 44mm full",35]
["A23660","Celly Powerbank 2200 Mah UNICORN",20]
["A23661","Celly Powerbank 2200 Mah FLAMINGO",24]
["A23662","Celly Powerbank 2200 Mah MONKEY",21]
["A23664","Celly Running armband UP TO 6 5",146]
["A23665","POKIBOT SMART ROBOT",28]
["A23666","Celly UNIVERSAL TRAVEL CHARGER",49]
["A23667","Celly Powerbank PD 18W 10000MAH Black",64]
["A23668","Celly Selfie flashlight KIT",45]
["A23669","Celly SELFIE FLASH LIGHT",34]
["A23670","Celly UNIVERSAL BIKE HOLDER",14]
["A23671","Celly UNIVersal  BIKE HOLDER XXXL 170X90MM",11]
["A23672","Celly car holder GHOST SUPER PLUS",49]
["A23673","Celly magnetic wireless charger",54]
["A23674","Jabra Elite 75t Titanium Black",1]
["A23676","dbramante Lynge Galaxy S20Plus Black",2]
["A23677","dbramante Lynge Galaxy S20Ultra Black",104]
["A23678","Dbramante Lynge Galaxy S20 Black"]
["A23680","Urbanista Stockholm Fluffy Cloud",3]
["A23681","Urbanista Stockholm Rose gold"]
["A23682","Urbanista Stockholm Olive Green",1]
["A23683","Panzerglass Spray Twice A Day 8 ml",43]
["A23684","Panzerglass Spray Twice A Day 30 ml",9]
["A23685","LINKSYS VELOP Wifi6 1PK",2]
["A23686","INSTAX MINI LINK DUSKY PINK EX D",19]
["A23687","INSTAX MINI LINK ASH WHITE PRINTER BUNDLE",7]
["A23688","INSTAX liPlay ELEGANT BLACK EX D",5]
["A23689","INSTAX MINI FILM 10PKT",84]
["A23690","INSTAX COLORFILM MINI GLOSSY10 2PK NEW",15]
["A23691","INVISIBLESHIELD ULTRA CLEAR SCREEN SAMSUNG GALAXY",11]
["A23692","Jays Q Seven ANC overear Wireless black",69]
["A23694","IFROGZ EARBUD AIRTIME SPORT TRUE WIRELESS BLACK"]
["A23695","INSTAX MINI LINK with Album and film Pink",20]
["A23696","INSTAX MINI LINK with Album and film White",11]
["A23699","Huawei Power Bank",27]
["A23701","JBL TUNE220 TWS Lifetstyle Black",42]
["A23702","JBL TUNE220 TWS Lifetstyle  Pink",12]
["A23703","JBL TUNE750 BT NC Active Noise Cancelling Black",34]
["A23704","JBL LIVE300 TW Black",53]
["A23705","Under Armour Flash Tw by JBL Black",27]
["A23706","Under Armour Wireless Onear Training headphone by",51]
["A23707","JBL Link Portable",94]
["A23715","Black Rock Apple Iphone 11 Pro 360 Glass Case"]
["A23722","InvisibleShield Antimicrobial Wet Wipe 10 Pack",52]
["A23724","Huawei P40 Lite Protective Cover Transparent",12]
["A23725","Huawei P40 Pro Protective Cover Transparent",11]
["A23726","Samsung Galaxy A41 S View Wallet Cover Black"]
["A23727","Samsung Galaxy A41 Silicone Cover Black"]
["A23728","JBL partybox 100",17]
["A23729","InvisibleShield Ultr Clear OnePlus 8",15]
["A23730","InvisibleShield Ultra Clear OnePlus8 Pro Screen",2]
["A23732","InvisibleShield Ultra Clear Huawei P40 Pro",11]
["A23735","INVISIBLESHIELD ULTRA CLEAR SCREEN HUAWEI P40 LIT",7]
["A23736","OnePlus Warp Charge 30 Wireless Charger",45]
["A23737","OnePlus Warp Type C Cable",5]
["A23738","OnePlus Warp Charge 30 Power Adapter",13]
["A23739","OnePlus TypeC to 3 5 mm adapter",8]
["A23740","OnePlus 8 Sandstone Bumper Case Black",60]
["A23741","OnePlus 8 Karbon Bumper Case",1]
["A23742","OnePlus 8 Pro Sandstone Bumper Case Black"]
["A23743","OnePlus 8 Pro Karbon Bumper Case",40]
["A23744","OnePlus TypeC Bullets Earphones Black",59]
["A23746","Instax Album",34]
["A23747","Apple iPhone SE Silicone Case Black",61]
["A23748","Apple iPhone SE Silicone Case Pink Sand",2]
["A23749","Apple iPhone SE Leather Black",5]
["A23752","Motorola Vervebuds 800 Black",22]
["A23753","STEELSERIES NIMBUS and CONTROLLER",8]
["A23756","GORUNNER CONNECT",160]
["A23757","GORUNNERCONNECT demo"]
["A23758","Ideal Apple Airpods 1 2 Case Carrara Gold",10]
["A23759","Ideal Apple Airpods 1 2 Case Golden Smoke Marble",24]
["A23760","Ideal Apple Airpods 1 2 Case Cosmic Green Swirl",27]
["A23761","Ideal Apple Airpods 1 2 Case Cosmic Pink Swirl",21]
["A23762","Ideal Apple Airpods 1 2 Case Sandstorm Marble",29]
["A23763","Ideal Apple Airpods 1 2 Case Black Croco",27]
["A23764","Ideal Apple Airpods Pro Case Carrara Gold",30]
["A23765","Ideal Apple Airpods Pro Case Golden Smoke Marble",34]
["A23766","Ideal Apple Airpods Pro Case Cosmic Green Swirl",33]
["A23767","Ideal Apple Airpods Pro Case Cosmic Pink Swirl",34]
["A23768","Ideal Apple Airpods Pro Case Sandstorm Marble",37]
["A23769","Ideal Apple Airpods Pro Case Black Croco",24]
["A23770","Ideal Fashion Power Bank Golden Smoke Marble",25]
["A23771","Ideal Fashion Qi Charger Golden Smoke Marble",8]
["A23772","Ideal Magnetic Ring Mount Golden Smoke Marble",11]
["A23773","Ideal Magnetic Ring Mount Cosmic Green Swirl",19]
["A23774","Ideal Magnetic Ring Mount Cosmic Pink Swirl",18]
["A23775","Ideal Magnetic Ring Mount Sandstorm Marble",23]
["A23776","Ideal Atelier Case Iphone X Xs 11 Pro Nightfall",57]
["A23777","Ideal Atelier Case Iphone 11 Xr Nightfall Croco",46]
["A23778","Ideal Atelier Case Iphone 6 6S 7 8 Se  Nightfall",56]
["A23779","Ideal Fashion Case Iphone X Xs 11 Pro Golden Smok",4]
["A23780","Ideal Fashion Case Iphone X Xs 11 Pro Cosmic Gree",7]
["A23781","Ideal Fashion Case Iphone X Xs 11 Pro Cosmic Pink",7]
["A23782","Ideal Fashion Case Iphone X Xs 11 Pro Sandstorm",17]
["A23783","Ideal Fashion Case Iphone X Xs 11 Pro Vintage",6]
["A23784","Ideal Fashion Case Iphone Xr 11 Golden Smoke",10]
["A23785","Ideal Fashion Case Iphone Xr 11 Cosmic Green Swir",5]
["A23786","Ideal Fashion Case Iphone Xr 11 Cosmic Pink Swirl",3]
["A23787","Ideal Fashion Case Iphone Xr 11 Sandstorm Marble",24]
["A23788","Ideal Fashion Case Iphone Xr 11 Vintage Bloom",8]
["A23789","Ideal Fashion Case Iphone 6 6S 7 8 Se  Golden",17]
["A23790","Ideal Fashion Case Iphone 6 6S 7 8 Se  Cosmic",8]
["A23791","Ideal Fashion Case Iphone 6 6S 7 8 Se  Cosmic Pin",13]
["A23792","Ideal Fashion Case Iphone 6 6S 7 8 Se  Sandstorm",29]
["A23793","Ideal Fashion Case Iphone 6 6S 7 8 Se  Vintage",11]
["A23794","Ideal Phone Necklace Case Iphone 6 6S 7 8 Se  Jet",69]
["A23795","Ideal Phone Necklace Case Iphone X Xs 11 Pro Jet",54]
["A23796","Ideal Phone Necklace Case Iphone Xr 11 Jet Black",52]
["A23797","Ideal Phone Necklace Case Iphone X Xs 11 Pro Mist",8]
["A23798","Ideal Phone Necklace Case Iphone Xr 11 Misty Rose",4]
["A23799","Ideal Phone Necklace Case Iphone 6 6S 7 8 Se",3]
["A23800","Ideal Signature Clutch Iphone 6 6S 7 8 Se Jet",21]
["A23801","Ideal Signature Clutch Iphone X Xs 11 Pro Jet",5]
["A23802","Ideal Signature Clutch Iphone Xr 11 Jet Black",6]
["A23803","NECKLACY iPhone 11 All Black",30]
["A23804","NECKLACY iPhone 11 Classic Birch",16]
["A23805","NECKLACY iPhone 11 Coral Reef",31]
["A23806","NECKLACY iPhone 11 Cotton Candy",31]
["A23807","NECKLACY iPhone 11 Dark Olive gunmetal",24]
["A23808","NECKLACY iPhone 11 Domino Swirl",24]
["A23809","NECKLACY iPhone 11 Domino Swirl gunmetal",30]
["A23810","NECKLACY iPhone 11 Elegant Black",32]
["A23811","NECKLACY iPhone 11 Pro All Black",32]
["A23812","NECKLACY iPhone 11 Pro Classic Birch",9]
["A23813","NECKLACY iPhone 11 Pro Coral Reef",32]
["A23814","NECKLACY iPhone 11 Pro Cotton Candy",32]
["A23815","NECKLACY iPhone 11 Pro Dark Olive gunmetal",22]
["A23816","NECKLACY iPhone 11 Pro Domino Swirl",28]
["A23817","NECKLACY iPhone 11 Pro Domino Swirl gunmetal",29]
["A23818","NECKLACY iPhone 11 Pro Elegant Black",28]
["A23819","NECKLACY iPhone 11 Pro Stormy Grey gunmetal",17]
["A23820","NECKLACY iPhone 11 Stormy Grey gunmetal",25]
["A23821","NECKLACY iPhone 7 8 SE All Black",27]
["A23822","NECKLACY iPhone 7 8 SE Classic Birch",8]
["A23823","NECKLACY iPhone 7 8 SE Coral Reef",26]
["A23824","NECKLACY iPhone 7 8 SE Cotton Candy",28]
["A23825","NECKLACY iPhone 7 8 SE Dark Olive gunmetal",28]
["A23826","NECKLACY iPhone 7 8 SE Domino Swirl",25]
["A23827","NECKLACY iPhone 7 8 SE Domino Swirl gunmetal",28]
["A23828","NECKLACY iPhone 7 8 SE Elegant Black",25]
["A23829","NECKLACY iPhone 7 8 SE Stormy Grey gunmetal",23]
["A23830","NECKLACY iPhone X XS All Black",36]
["A23831","NECKLACY iPhone X XS Classic Birch",9]
["A23832","NECKLACY iPhone X XS Coral Reef",34]
["A23833","NECKLACY iPhone X XS Cotton Candy",27]
["A23834","NECKLACY iPhone X XS Dark Olive gunmetal",27]
["A23835","NECKLACY iPhone X XS Domino Swirl",32]
["A23836","NECKLACY iPhone X XS Domino Swirl gunmetal",31]
["A23837","NECKLACY iPhone X XS Elegant Black",39]
["A23838","NECKLACY iPhone X XS Stormy Grey gunmetal",34]
["A23839","Beosound A1 2nd Gen Grey Mist",5]
["A23840","Beosound A1 2nd Gen Black",12]
["A23841","Beosound A1 2nd Gen Grey Mist Demo",5]
["A23842","INVISIBLESHIELD UV PHONE SANITIZER",8]
["A23844","InvisibleShield Glass Elite plus Screen Samsung",31]
["A23847","Oneplus Bullets Wireless Black",158]
["A23849","BOSE QC35 II wireless Headphones black",52]
["A23850","Defunc TRUE GO Slim Wireless Hybrid Earbud Black",4]
["A23851","Defunc TRUE GO Slim Wireless Hybrid Earbud White",6]
["A23852","Defunc TRUE GO Slim Wireless Hybrid Earbud Pink",10]
["A23853","Defunc TRUE GAMING Wireless BT Earbuds Black",8]
["A23854","Beoplay E8 Sport Black",83]
["A23855","Beoplay E8 Sport Oxygen Blue",12]
["A23856","Beosound A1 2nd Gen Green",12]
["A23858","Belkin Boost Charge USB A To USB C 3M Black",101]
["A23859","Invisibleshield Ultra Clear Screen OnePlus Nord",18]
["A23860","Belkin 10W Wireless Charging Pad with PS",458]
["A23861","Belkin 10W Wireless Charging Stand with",192]
["A23862","Belkin 2x 10W Dual Wireless Charging Pad",34]
["A23863","Belkin Single USB A Wall Charger 18W QC",144]
["A23864","Belkin 18W USB C Home Charger EU Plug",16]
["A23865","Belkin 10 000 MAH POWER BANK",48]
["A23866","Belkin BOOST CHARGE USB A to USB C Cable 1M Black",227]
["A23867","Belkin BOOST CHARGE USB C to USB C Cab 1M black",8]
["A23868","Belkin BOOST CHARGE Lightning to USB A 1M white",276]
["A23869","Belkin BOOST CHARGE Lightning to USB A 3M white",18]
["A23870","Belkin BOOST CHARGE Lightning to USB C 1M white",164]
["A23871","Belkin 3 in 1 Wireless Pad Stand Apple Watch",33]
["A23872","Belkin 10W Wireless Car Vent Mount Charger",50]
["A23873","IDEAL FASHION QI CHARGER CARRARA GOLD MARBLE",6]
["A23874","IDEAL MAGNETIC RING MOUNT CARRARA GOLD",10]
["A23875","IDEAL FASHION POWER BANK SANDSTORM MARBLE",10]
["A23876","InvisibleShield Ultra Clear Apple iPhone SE 5 5S",58]
["A23877","Soundboks Batteryboks",26]
["A23878","Soundboks Backpack",22]
["A23881","HOLDIT  IPHONE 7 8 SE BLUSH PINK",10]
["A23882","HOLDIT  IPHONE X XS BLUSH PINK",18]
["A23883","HOLDIT  IPHONE 7 8 SE TAUPE",45]
["A23884","HOLDIT  IPHONE X XS TAUPE",5]
["A23885","HOLDIT  IPHONE 7 8 SE YELLOW",11]
["A23886","HOLDIT  IPHONE X XS YELLOW",33]
["A23887","HOLDIT  IPHONE 7 8 SE LAVENDER",12]
["A23888","HOLDIT  IPHONE X XS LAVENDER",9]
["A23889","HOLDIT  IPHONE 7 8 SE MINT",6]
["A23890","HOLDIT  IPHONE X XS MINT",22]
["A23891","HOLDIT  IPHONE 11 PRO MINT",13]
["A23892","HOLDIT  IPHONE 11 PRO BLUSH PINK",10]
["A23893","HOLDIT  IPHONE 11 PRO YELLOW",27]
["A23894","HOLDIT  IPHONE 11 PRO TAUPE",6]
["A23895","HOLDIT  IPHONE 11 BLUSH PINK",22]
["A23896","HOLDIT  IPHONE 11 TAUPE",14]
["A23897","HOLDIT  IPHONE 11 YELLOW",4]
["A23898","HOLDIT  AIRPODS  TAUPE",44]
["A23899","HOLDIT  AIRPODS  YELLOW",64]
["A23900","HOLDIT  AIRPODS  BLUSH PINK",44]
["A23901","HOLDIT  AIRPODS  MINT",65]
["A23902","HOLDIT  IPHONE 11 MINT",17]
["A23903","HOLDIT  AIRPODS PRO  BLACK",64]
["A23904","HOLDIT  AIRPODS PRO  TAUPE",59]
["A23905","HOLDIT  AIRPODS PRO  BLUSH PINK",56]
["A23906","HOLDIT  AIRPODS PRO  MINT",72]
["A23907","HOLDIT  IPHONE 7 8 SE MOSS GREEN",68]
["A23908","HOLDIT  IPHONE X XS MOSS GREEN",14]
["A23909","HOLDIT  IPHONE 11 MOSS GREEN",12]
["A23910","HOLDIT  IPHONE 11 PRO MOSS GREEN",6]
["A23911","HOLDIT  AIRPODS  MOSS GREEN",53]
["A23912","HOLDIT  IPHONE 11 LAVENDER",36]
["A23913","HOLDIT  IPHONE 11 PRO LAVENDER",8]
["A23914","HOLDIT  AIRPODS  LAVENDER",38]
["A23915","HOLDIT  AIRPODS PRO MOSS GREEN",70]
["A23916","HOLDIT STICKERS OOOH BLUE",43]
["A23917","HOLDIT STICKERS OOOH PINK",50]
["A23918","HOLDIT STICKERS CHERRY",36]
["A23919","HOLDIT STICKERS CHOOSE YOUR VIBE",50]
["A23920","HOLDIT STICKERS BAD BITCH STICKERS",45]
["A23921","HOLDIT STICKERS MY RULES",49]
["A23925","OTL HARRY POTTER HEADPHONES TWEEN",29]
["A23928","OTL PEPPA PIG BT HEADPHONES JUNIOR",27]
["A23929","OTL BATMAN BT HEADPHONES JUNIOR",29]
["A23933","INSTAX MINI 11 GRAY",15]
["A23934","INSTAX MINI 11 PURPLE",13]
["A23935","Garmin vivoactive 4S Powder Gray Silver",18]
["A23936","Garmin vivoactive 4 Shadow Gray Silver",12]
["A23937","Garmin VENU Blue Granite Silver",2]
["A23938","Garmin vivoactive 4S White Rose Gold",5]
["A23939","Garmin vivoactive 4S PVD Black Slate"]
["A23940","Garmin vivoactive 4 Black Slate",2]
["A23941","Garmin fenix 6S PRO Rose Gold w White Band Glass",9]
["A23942","Garmin fenix 6 PRO Slate Gray w Black Band Glass",28]
["A23943","GoRunner UrbanGlide 6 5",48]
["A23944","Samsung Galaxy Note11 Clear View Cover  Mystic",15]
["A23945","Samsung Galaxy Note11 Silicone Cover  Mystic Blac",25]
["A23946","Samsung Galaxy Note11 Clear Cover  Transparent",13]
["A23947","Dbramante Lynge iPhone 12 Mini Black",9]
["A23948","Dbramante Lynge iPhone 12 Mini Tan",21]
["A23949","Dbramante Lynge iPhone 12 og 12 pro Black",4]
["A23950","Dbramante Lynge iPhone 12 og 12 pro Tan",3]
["A23951","Dbramante Lynge iPhone 12 Pro Max Black",5]
["A23952","Dbramante Lynge iPhone 12 Pro Max Tan",19]
["A23953","Dbramante Grenen iPhone SE 8 7 Black",59]
["A23954","Dbramante Grenen iPhone SE 8 7 Dark Olive Green",48]
["A23955","Dbramante Grenen iPhone 12 Mini Black",71]
["A23956","Dbramante Grenen iPhone 12 Mini Dark Olive Green",54]
["A23957","Dbramante Grenen iPhone 12 og 12 pro Black",64]
["A23958","Dbramante Grenen iPhone 12 og 12 pro Dark Olive",52]
["A23959","Dbramante Grenen iPhone 12 Pro Max Black",74]
["A23960","Dbramante Grenen iPhone 12 Pro Max Dark Olive",36]
["A23961","Dbramante Barcelona iPhone SE 8 7 Night Black",68]
["A23962","Dbramante Barcelona iPhone SE 8 7Sahara Sand",53]
["A23963","Dbramante Barcelona iPhone 12 Mini Night Black",75]
["A23964","Dbramante Barcelona iPhone 12 Mini Sahara Sand",54]
["A23965","Dbramante Barcelona iPhone 12 og 12 pro Night",57]
["A23966","Dbramante Barcelona iPhone 12 og 12 pro Sahara",31]
["A23967","Dbramante Barcelona iPhone 12 Pro Max Night Black",27]
["A23968","Sasmung Galaxy Buds Live Black"]
["A23969","Samsung Galaxy Buds Live White",21]
["A23970","HI3G IS Bundle Pack iPhone 11 pro",12]
["A23971","HI3G IS Bundle Pack iPhone 11",4]
["A23972","HI3G IS Bundle Pack iPhone 11 pro MAX",22]
["A23974","Nudient V3 iPhone 12 mini Black Transparent",32]
["A23975","Nudient V3 iPhone 12 mini Dusty Pink",27]
["A23976","Nudient V3 iPhone 12 mini Ink Black",49]
["A23977","Nudient V3 iPhone 12 mini Midwinter Blue",46]
["A23978","Nudient V3 iPhone 12 mini Pine Green",67]
["A23979","Nudient V3 iPhone 12 Pro Max Black Transparent",11]
["A23980","Nudient V3 iPhone 12 Pro Max Dusty Pink",4]
["A23981","Nudient V3 iPhone 12 Pro MaxInk Black",2]
["A23982","Nudient V3 iPhone 12 Pro Max Midwinter Blue",4]
["A23983","Nudient V3 iPhone 12 Pro Max Pine Green",4]
["A23984","Nudient V3 Magnet card holder Black",76]
["A23985","Nudient V3 11 Dusty Pink",26]
["A23986","Nudient V3 11 Midwinter Blue",19]
["A23987","Nudient V3 11 Pine Green",24]
["A23988","Nudient V3 11 Ink Black",6]
["A23989","Nudient V3 11 Pro Dusty Pink",27]
["A23990","Nudient V3 11 Pro Ink Black",10]
["A23991","Nudient V3 11 Pro Midwinter Blue",29]
["A23992","Nudient V3 11 Pro Pine Green",22]
["A23994","Nudient V3 7 8 SE Dusty Pink",9]
["A23995","Nudient V3 7 8 SE Ink Black",11]
["A23996","Nudient V3 7 8 SE Midwinter Blue",35]
["A23997","Nudient V3 7 8 SE Pine Green",45]
["A24002","Nudient V3 XS Dusty Pink",8]
["A24003","Nudient V3 XS Ink Black",7]
["A24004","Nudient V3 XS Midwinter Blue",14]
["A24005","Nudient V3 XS Pine Green",3]
["A24006","Nudient V3 iPhone 12 og 12 Pro Ink Black"]
["A24007","Nudient V3 iPhone 12 og 12 Pro Midwinter Blue",1]
["A24008","Nudient V3 iPhone 12 og 12 Pro Pine Green",13]
["A24009","Nudient V3 iPhone 12 og 12 Pro Dusty Pink",6]
["A24010","Nudient V3 12 og 12 Pro Black Transp"]
["A24011","HI3G IS Bundle Pack Iphone 6 7 8 SE",104]
["A24012","HOLDIT IPHONE iPhone 12 Mini Blusth pink",9]
["A24013","HOLDIT IPHONE iPhone 12 Mini Taupe",53]
["A24014","HOLDIT IPHONE iPhone 12 Mini Lavender",36]
["A24015","HOLDIT IPHONE iPhone 12 Mini Yellow",35]
["A24016","HOLDIT IPHONE iPhone 12 Mini Moss Green",12]
["A24017","HOLDIT IPHONE iPhone 12 12 pro Blush Pink",11]
["A24018","HOLDIT IPHONE iPhone 12 12 pro Taupe",20]
["A24019","HOLDIT IPHONE iPhone 12 12 pro Yellow",25]
["A24020","HOLDIT IPHONE iPhone 12 12 pro Moss Green",22]
["A24021","HOLDIT IPHONE iPhone 12 12 pro Lavender",9]
["A24022","HOLDIT IPHONE iPhone 12 pro Max Blush Pink",60]
["A24023","HOLDIT IPHONE iPhone 12 pro Max Taupe",57]
["A24024","HOLDIT IPHONE iPhone 12 pro Max Lavender",48]
["A24025","HOLDIT IPHONE iPhone 12 pro Max Yellow",42]
["A24026","HOLDIT IPHONE iPhone 12 pro Max Moss Green",39]
["A24027","HOLDIT SILICONE CASE IPHONE iPhone 12 Pro in 2020",17]
["A24028","HOLDIT SILICONE CASE IPHONE iPhone 12 12 proin",7]
["A24029","HOLDIT SILICONE CASE IPHONE iPhone 12 pro Maxin",35]
["A24030","Samsung Galaxy Note 20 Plus Clear View Cover",10]
["A24031","Samsung Galaxy Note 20 Plus Silicone Cover Mystic",5]
["A24032","Samsung Galaxy Note 20 Plus Clear Cover",8]
["A24033","OnePlus Nord Sandstone Bumper Case Sandstone Blac",14]
["A24034","InvisibleShield Ultra Clear Samsung Note 20",5]
["A24035","InvisibleShield Ultra Clear Samsung Note 20 ultra",6]
["A24036","ON IPHONE 12 Mini Flip Cover BLACK",382]
["A24037","ON IPHONE 12 og 12 Pro Flip Cover BLACK",174]
["A24038","ON IPHONE 12 Pro Max Flip Cover BLACK",257]
["A24039","ON IPHONE 12 Mini TPU ULTRA THIN CLEAR",128]
["A24040","ON IPHONE 12 og 12 Pro TPU ULTRA THIN CLEAR",1]
["A24041","ON IPHONE 12 Pro Max TPU ULTRA THIN CLEAR",408]
["A24042","INVISIBLESHIELD GLASS ELITE plus IPHONE iPhone 12",362]
["A24043","InvisibleShield Glass Eliteplus Apple iPhone 11 X",506]
["A24044","INVISIBLESHIELD GLASS ELITE plus IPHONE iPhone 12",40]
["A24045","INVISIBLESHIELS GLASS ELITE VISIONGUARD SCREEN",938]
["A24046","InvisibleShield Glass Elite VisionGuardplus Apple",912]
["A24047","INVISIBLESHIELS GLASS ELITE VISIONGUARD SCREEN",278]
["A24048","INVISIBLESHIELD GLASS ELITE PRIVACY plus IPHONE",145]
["A24049","InvisibleShield Glass Elite Privacyplus Apple",75]
["A24050","INVISIBLESHIELD GLASS ELITE PRIVACY plus IPHONE",83]
["A24051","InvisibleShield Ultra VisionGuard Samsung Note 20",9]
["A24052","InvisibleShield Ultra VisionGuard Samsung Note 20",3]
["A24053","FP3 Plus Protective Case Black",12]
["A24054","HI3G Bundle Pack iPhone 12 Mini",150]
["A24055","HI3G Bundle Pack iPhone 12 Max",34]
["A24056","HI3G Bundle Pack iPhone 12 12 pro",166]
["A24060","Speck iPhone 12 Mini Presidio 2 Pro Black",101]
["A24061","Speck iPhone iPhone 12 Mini Presidio Perfect Clea",85]
["A24062","Speck iPhone iPhone 12 12 pro Presidio 2 Pro Blac",83]
["A24063","Speck iPhone iPhone 12 12 pro Presidio Perfect",79]
["A24064","Speck iPhone iPhone 12 pro Max Presidio 2 Pro",93]
["A24065","Speck iPhone iPhone 12 pro Max Presidio Perfect",74]
["A24066","eSTUFF AirPods Silicone Case Black",35]
["A24067","eSTUFF AirPods Silicone Case White",46]
["A24068","eSTUFF AirPods Silicone Case Sand Pink",15]
["A24069","eSTUFF AirPods Silicone Case Olive",20]
["A24070","eSTUFF AirPods Pro Silicone Case Black",40]
["A24071","eSTUFF AirPods Pro Silicone Case White",49]
["A24072","eSTUFF AirPods Pro Silicone Case Sand Pink",25]
["A24073","eSTUFF AirPods Pro Silicone Case Olive",26]
["A24074","eSTUFF Apple Silicone Watch Band Black 38 40 mm",40]
["A24075","eSTUFF Apple Silicone Watch Band White 38 40 mm",27]
["A24076","eSTUFF Apple Silicone Watch Band Sand Pink 38 40",25]
["A24077","eSTUFF Apple Silicone Watch Band Olive 38 40 mm",26]
["A24078","eSTUFF Apple Silicone Watch Band Black 42 44 mm",48]
["A24079","eSTUFF Apple Silicone Watch Band White  42 44 mm",28]
["A24080","eSTUFF Apple Silicone Watch Band Sand Pink 42 44",29]
["A24081","eSTUFF Apple Silicone Watch Band Olive 42 44 mm",28]
["A24082","PanzerGlass ClearCase for Apple iPhone 12 Mini",34]
["A24083","PanzerGlass ClearCase for Apple iPhone 12 og 12",15]
["A24084","PanzerGlass ClearCase for Apple iPhone 12 Pro Max"]
["A24085","PanzerGlass ClearCase with BlackFrame for Apple",44]
["A24086","PanzerGlass ClearCase with BlackFrame for Apple",23]
["A24087","PanzerGlass ClearCase with BlackFrame for Apple",46]
["A24088","Samsung Tab S7 Plus Book Cover Black",15]
["A24092","CELLY WALLET UNIVERSAL OP TIL 5 8",5]
["A24093","CELLY WALLET UNIVERSAL OP TIL 6 5",7]
["A24094","Samsung S20 FE Silicone Cover Navy",1]
["A24095","Samsung S20 FE Clear Standing Cover Transparent",39]
["A24098","HOLDIT FINGER STRAP BLACK",48]
["A24099","HOLDIT FINGER STRAP BLUSH PINK",49]
["A24100","HOLDIT FINGER STRAP TAUPE",8]
["A24101","HOLDIT FINGER STRAP YELLOW",50]
["A24102","HOLDIT FINGER STRAP LAVENDER",49]
["A24103","HOLDIT POUCH BLACK",2]
["A24104","HOLDIT POUCH LAVENDER",30]
["A24105","NECKLACY Smartphone Necklace Case for iPhone 12",34]
["A24106","NECKLACY Smartphone Necklace Case for iPhone 12",9]
["A24107","NECKLACY Smartphone Necklace Case for iPhone 12",34]
["A24108","NECKLACY Smartphone Necklace Case for iPhone 12",34]
["A24109","NECKLACY Smartphone Necklace Case for iPhone 12",34]
["A24110","NECKLACY Smartphone Necklace Case for iPhone 12",34]
["A24111","NECKLACY Smartphone Necklace Case for iPhone 12 1",29]
["A24112","NECKLACY Smartphone Necklace Case for iPhone 12 1",34]
["A24113","NECKLACY Smartphone Necklace Case for iPhone 12 1",31]
["A24114","NECKLACY Smartphone Necklace Case for iPhone 12 1",34]
["A24115","NECKLACY Smartphone Necklace Case for iPhone 12 1",33]
["A24116","NECKLACY Smartphone Necklace Case for iPhone 12 1",34]
["A24117","NECKLACY Smartphone Necklace Case for iPhone 12",34]
["A24118","NECKLACY Smartphone Necklace Case for iPhone 12",33]
["A24119","NECKLACY Smartphone Necklace Case for iPhone 12",33]
["A24120","NECKLACY Smartphone Necklace Case for iPhone 12",33]
["A24121","NECKLACY Smartphone Necklace Case for iPhone 12",30]
["A24122","NECKLACY Smartphone Necklace Case for iPhone 12",34]
["A24123","IDEAL Fashion Case iPhone iPhone 12 Mini Cosmic",52]
["A24124","IDEAL Fashion Case iPhone iPhone 12 12 pro Cosmic",43]
["A24125","IDEAL Fashion Case iPhone iPhone 12 pro Max Cosmi",56]
["A24126","IDEAL Fashion Case iPhone iPhone 12 Mini Cosmic",54]
["A24127","IDEAL Fashion Case iPhone iPhone 12 12 pro Cosmic",44]
["A24128","IDEAL Fashion Case iPhone iPhone 12 pro Max Cosmi",50]
["A24129","IDEAL Necklace Case iPhone iPhone 12 Mini",60]
["A24132","IDEAL Necklace Case iPhone iPhone 12 MIni",60]
["A24135","IDEAL Atelier Wallet iPhone iPhone 12 Mini Neo",61]
["A24136","IDEAL ATELIER WALLET IPHONE 12 og 12 PRO NEO NOIR",3]
["A24138","InvisibleShield ISOD Ultra Clear Plus EXTRA SMALL",250]
["A24139","InvisibleShield ISOD Ultra Clear Plus SMALL 25PK",100]
["A24140","InvisibleShield ISOD Ultra Clear Plus MEDIUM 10PK",100]
["A24141","InvisibleShield ISOD Ultra Clear Plus LARGE 10PK",100]
["A24142","Invisibleshield iSoD Cutting Blade Replacement",20]
["A24143","Invisibleshield iSoD cutting Mat Pack of 5",2]
["A24144","InvisibleShield ISOD ShieldSpray 4 Pack",8]
["A24145","Invisibleshield ISoD Replenishment Kit",10]
["A24146","Belkin Wireless Car Charging Vent Mount 10W",12]
["A24147","Anker Nebula Apollo",6]
["A24148","Anker Nebula Capsule II",3]
["A24149","Anker Nebula Mars 2 Pro",5]
["A24150","IDEAL FASHION CASE IPHONE iPhone 12 Mini 2020",19]
["A24151","IDEAL FASHION CASE iPhone 12 12 pro 2020 FLORAL",15]
["A24152","IDEAL FASHION CASE IPHONE iPhone 12 pro Max 2020",25]
["A24153","IDEAL FASHION CASE IPHONE iPhone 12 Mini 2020",5]
["A24154","IDEAL FASHION CASE IPHONE iPhone 12 12 pro 2020",28]
["A24155","IDEAL FASHION CASE iPhone 12 12 pro 2020 GOLDEN",15]
["A24156","IDEAL FASHION CASE iPhone 12 12 pro 2020 GOLDEN",21]
["A24157","IDEAL FASHION CASE IPHONE iPhone 12 pro Max 2020",28]
["A24158","IDEAL FASHION CASE IPHONE iPhone 12 pro Max 2020",25]
["A24159","IDEAL MAGNET WALLETplus IPHONE iPhone 12 Mini 202",21]
["A24160","IDEAL MAGNET WALLETplus IPHONE 12 61 2020 BLACK"]
["A24161","IDEAL MAGNET WALLETplus IPHONE 12 67 2020 BLACK"]
["A24162","IDEAL FASHION CASE iPhone 12 Mini 2020 GOLDEN PLU",69]
["A24163","IDEAL FASHION CASE iPhone 12 12 pro 2020 GOLDEN",23]
["A24164","IDEAL FASHION CASE IPHONE iPhone 12 pro Max 2020",27]
["A24165","IDEAL FASHION CASE IPHONE iPhone 12 Mini  2020",47]
["A24166","IDEAL FASHION CASE iPhone 12 12 pro 2020 CRYSTAL",43]
["A24167","IDEAL FASHION CASE IPHONE iPhone 12 pro Max 2020",48]
["A24169","Soundliving bluetooth højtaler",45]
["A24170","GORUNNER Urbanglide plus Speaker"]
["A24171","RICHMOND and FINCH X POPSOCKETS BLACK MARBLE",1]
["A24172","RICHMOND and FINCH X POPSOCKETS BLOOMING PEONIES",36]
["A24173","RICHMOND and FINCH X POPSOCKETS TROPICAL TIGER",30]
["A24174","RICHMOND and FINCH X POPSOCKETS WHITE MARBLE",31]
["A24175","RICHMOND and FINCH X POPSOCKETS PINK MARBLE FLORA",1]
["A24176","A Good Company iPhone 11 Pro Grass Green",28]
["A24177","A Good Company iPhone 11 Pro Green Paint",10]
["A24178","A Good Company iPhone 11 Pro Leopard",10]
["A24179","A Good Company iPhone 11 Pro Palm Leafs",28]
["A24180","A Good Company iPhone 11 Charcoal Black Mobile",29]
["A24181","A Good Company iPhone 11 Grass Green Mobile Case",30]
["A24182","A Good Company iPhone 11 Green Paint Mobile Case",10]
["A24183","A Good Company iPhone 11 Leopard Mobile Case",10]
["A24184","A Good Company iPhone 11 Palm Leaves Mobile Case",27]
["A24185","A Good Company iPhone 11 Vanilla White Mobile Cas",29]
["A24186","A Good Company iPhone 12 Mini Charcoal Black",30]
["A24187","A Good Company iPhone 12 Mini Vanilla White",30]
["A24188","A Good Company iPhone 12 Mini Grass Green",30]
["A24189","A Good Company iPhone 12 Mini Green Paint",10]
["A24190","A Good Company iPhone 12 Mini Leopard",10]
["A24191","A Good Company iPhone 12 Mini Palm Leafs",30]
["A24192","A Good Company iPhone 12 og 12 Pro Charcoal Black",28]
["A24193","A Good Company iPhone 12 og 12 Pro Grass Green",29]
["A24194","A Good Company iPhone 12 og 12 Pro Green Paint",10]
["A24195","A Good Company iPhone 12 og 12 Pro Leopard",10]
["A24196","A Good Company iPhone 12 og 12 Pro Palm Leafs",30]
["A24197","A Good Company iPhone 12 og 12 Pro Vanilla White",32]
["A24198","A Good Company iPhone 12 Pro Max Charcoal Black",30]
["A24199","A Good Company iPhone 12 Pro Max Grass Green",30]
["A24200","A Good Company iPhone 12 Pro Max Green Paint",10]
["A24201","A Good Company iPhone 12 Pro Max Leopard",10]
["A24202","A Good Company iPhone 12 Pro Max Palm Leafs",29]
["A24203","A Good Company iPhone 12 Pro Max Vanilla White",30]
["A24206","A Good Company iPhone 8 og SE Charcoal Black",28]
["A24207","A Good Company iPhone 8 og SE Grass Green Mobile",30]
["A24208","A Good Company iPhone 8 og SE Green Paint Mobile",10]
["A24209","A Good Company iPhone 8 og SE Leopard Mobile Case",10]
["A24210","A Good Company iPhone 8 og SE Palm Leafs Mobile",26]
["A24211","A Good Company iPhone 8 og SE Vanilla White Mobil",30]
["A24212","A Good Company iPhone X XS Charcoal Black Mobile",29]
["A24213","A Good Company iPhone X XS Grass Green Mobile Cas",30]
["A24214","A Good Company iPhone X XS Green Paint Mobile Cas",10]
["A24215","A Good Company iPhone X XS Leopard Mobile Case",10]
["A24216","A Good Company iPhone X XS Palm Leafs Mobile Case",29]
["A24217","A Good Company iPhone X XS Vanilla White Mobile",30]
["A24219","DJI Mavic Air 2 Fly More Combo",1]
["A24220","Apple 5W USB Power Adapter",37]
["A24221","Apple Smart Folio for iPad Air 4th generation",16]
["A24222","Apple Smart Folio for iPad Air 4th generation",30]
["A24223","Apple Smart Folio for iPad Air 4th generation Dee",20]
["A24224","Apple 40mm Black Leather Link Small",24]
["A24225","Apple 40mm Graphite Milanese Loop",6]
["A24226","Apple 44mm Black Leather Link Large",16]
["A24227","Apple 44mm Graphite Milanese Loop",1]
["A24228","Apple Watch 6C 44mm DEMO"]
["A24229","Apple Watch SE C 40mm DEMO"]
["A24230","Apple Watch 6C 40mm Gold w Pink",20]
["A24231","Apple Watch 6C 40mm Space Gray w Black",18]
["A24232","Apple Watch 6C 40mm Silver w White"]
["A24233","Apple Watch 6C 40mm Blue w Deep Navy",9]
["A24234","Apple Watch 6C 40mm Red w Red",7]
["A24235","Apple Watch 6C 44mm Space Gray w Black",21]
["A24236","Apple Watch 6C 44mm Silver w White",6]
["A24237","Apple Watch 6C 44mm Blue w Deep Navy",14]
["A24238","Apple Watch 6C 44mm Red w Red",11]
["A24239","Apple Watch 6C 44mm Graphite SS w Graphite",63]
["A24240","Apple Watch Nike SE C 44mm Space Gray w Black",7]
["A24241","Apple Watch SE C 40mm Gold w Pink",17]
["A24243","Apple Watch SE C 40mm Silver w White"]
["A24244","Apple Watch SE C 44mm Space Gray w Black"]
["A24245","Apple Watch SE C 44mm Silver w White",8]
["A24246","Apple Watch Band 40mm DEMO",8]
["A24247","Apple Watch Band 44mm DEMO",7]
["A24248","Invisibleshield GlassElite plus Samsung S20FE",95]
["A24250","BELKIN SOUNDFORM TRUE WIRELESS BLACK",24]
["A24251","BELKIN SOUNDFORM TRUE WIRELESS WHITE",107]
["A24253","Apple Watch Nike 6C 44mm Space Gray w Black"]
["A24255","Jabra Engage 75 MONO",32]
["A24256","LOGITECH C925E WEBCAM IN",10]
["A24257","LOGITECH HD WEBCAM C270 PACKAGING REFRESH IN",25]
["A24258","InvisibleShield Ultra Clear Samsung Galaxy S20FE",11]
["A24259","HOLDIT pouches activation",48]
["A24260","Beoplay Beolit 20 Black Anthracite",46]
["A24261","Beoplay Beolit 20 Grey Mist",31]
["A24262","Beoplay Beolit 20 Black Anthracite demo"]
["A24263","InvisibleShield Ultra Clear OnePlus 8T Screen"]
["A24264","InvisibleShield Ultra Clear Sony Xperia 5 II",13]
["A24265","Apple iPhone 12 mini Leather MagSafe Baltic Blue",10]
["A24266","Apple iPhone 12 mini Leather MagSafe Saddle Brown",40]
["A24267","Apple iPhone 12 mini Leather MagSafe Black",67]
["A24268","Apple iPhone 12 og 12 Pro Leather MagSafe Baltic",2]
["A24269","Apple iPhone 12 og 12 Pro Leather MagSafe Saddle",40]
["A24270","Apple iPhone 12 og 12 Pro Leather MagSafe Black",187]
["A24271","Apple iPhone 12 Pro Max Leather MagSafe Baltic",11]
["A24272","Apple iPhone 12 Pro Max Leather MagSafe Saddle",40]
["A24273","Apple iPhone 12 Pro Max Leather MagSafe Black",73]
["A24274","Apple iPhone 12 mini Silicone MagSafe Plum",39]
["A24275","Apple iPhone 12 mini Silicone MagSafe Cypress",179]
["A24276","Apple iPhone 12 mini Silicone MagSafe Deep Navy",187]
["A24277","Apple iPhone 12 mini Silicone MagSafe Black",168]
["A24278","Apple iPhone 12 og 12 Pro Silicone MagSafe Plum",20]
["A24279","Apple iPhone 12 og 12 Pro Silicone MagSafe Cypres",121]
["A24280","Apple iPhone 12 og 12 Pro Silicone MagSafe Deep",229]
["A24281","Apple iPhone 12 og 12 Pro Silicone MagSafe Black",32]
["A24282","Apple iPhone 12 Pro Max Silicone MagSafe Plum",30]
["A24283","Apple iPhone 12 Pro Max Silicone MagSafe Cypress",189]
["A24284","Apple iPhone 12 Pro Max Silicone MagSafe Deep Nav",149]
["A24285","Apple iPhone 12 og 12 Pro Clear MagSafe",61]
["A24286","Apple iPhone 12 Pro Max Clear MagSafe",109]
["A24287","Apple 20W USB C Power Adapter",4]
["A24288","Apple iPhone 12 mini Clear MagSafe",185]
["A24289","Apple MagSafe Charger",506]
["A24290","eStuff Home Charger EU PD 18W",1]
["A24291","Apple iPhone 12 Pro Max Leather Case with MagSafe",5]
["A24292","Apple Lightning to USB Cable 2 m",307]
["A24293","Apple Lightning to USB Cable 1m",165]
["A24294","Gorunner Pro",61]
["A24295","Gorunner Hummer Segboard 3",151]
["A24296","Gorunner Gokart til Segboard",65]
["A24299","Soundliving Earbuds hvide",125]
["A24301","Gorunner Hummer Segboard 3 plus Soundliving",18]
["A24302","Gorunner Hummer Segboard 3 plus Gokart",14]
["A24303","GORUNNER CONNECT plus Soundliving speaker",57]
["A24304","Nintendo SWITCH Mario Kart 8 Deluxe",13]
["A24305","Nintendo SWITCH Animal Crossing New Horizons",22]
["A24306","Nintendo SWITCH Luigis Mansion 3",22]
["A24307","Nintendo SWITCH Super Mario 3D All Stars",30]
["A24308","Nintendo SWITCH New Mario Bros U Deluxe",13]
["A24309","Nintendo Switch Neon",18]
["A24310","Nintendo Switch Lite Grey",27]
["A24311","Nintendo Switch Lite Turquoise",36]
["A24312","Nintendo SWITCH Joy Con Pair NR NB EUR",26]
["A24313","Nintendo SWITCH JoyCon Pair N Purple N Orange EUR",24]
["A24314","Nintendo SWITCH Pro Controller EUR",18]
["A24315","Nintendo SWITCH Carrying Case and Screen Protecto",19]
["A24316","Nintendo SWITCH LITE Carrying Case and Screen",29]
["A24317","iFixit Mako 64 Bit Driver Kit",4]
["A24318","iFixit Pro Tech Toolkit",8]
["A24319","iFixit Essential Elect Toolkit",5]
["A24320","iFixit Mahi 48 Bit Driver Kit",4]
["A24321","iFixit Manta 112 Bit Driver Kit",4]
["A24323","Ecovacs Deebot OZMO T8 AIVI Blck",15]
["A24324","Ecovacs Deebot OZMO U2 Pro Black",3]
["A24325","JLab EpicAir ANC True wireless black",4]
["A24326","JLab EpicAir Sprt ANC True wireless black",4]
["A24327","JLab Flex Sport Wrlss Headphone black",4]
["A24328","JLab GoAir True Wireless Earbuds Black",5]
["A24329","JLab GoAir True Wireless Earbuds Whit",5]
["A24330","JLab JbuddiesStudio Wireless Grey Blue",9]
["A24331","JLab JbuddiesStudio Wireless Grey Purple",2]
["A24332","JLab PlayGaming Wireless Earbuds Blue",4]
["A24333","JLab PlayGaming Wireless Headset Blue",4]
["A24334","JLab Talk Go Microphone Black",8]
["A24335","JLab Talk Microphone Black",8]
["A24336","JLab Talk Pro Microphone Black",8]
["A24337","Netatmo Smart Video Doorbell",2]
["A24338","Netatmo Smart Home Weather Station",2]
["A24339","Netatmo Smart Add Weather Module",3]
["A24340","Netatmo Smart WindGauge Weather Station",3]
["A24341","Netatmo Smart RainGauge Weather Station",3]
["A24342","Netatmo Mount Wind or Rain Gauge",6]
["A24343","Netatmo Smart Radiator Starter pack",7]
["A24344","Netatmo Smart Radiator Add x1",6]
["A24345","Netatmo Smart Healthy Home Coach",3]
["A24346","Netatmo Smart Outdoor Camera",11]
["A24347","Netatmo Smart Indoor Camera",2]
["A24348","Netatmo Smart Indoor Siren",2]
["A24349","Netatmo Smart Smoke Alarm",12]
["A24350","Netatmo Smart Sensors",2]
["A24351","Tado Smart Radiator Thermostat Starter Kit V3 plu",33]
["A24352","Tado Smart Radiator Thermostat x 1",13]
["A24353","TADO SMART-RADIATORTERMOSTAT 2 STK",15]
["A24354","Tado Smart Radiator Thermostat x 4",35]
["A24355","Tado Smart Varmepumpe og Aircondition Styring V3",8]
["A24356","Tado Trådløs Temperatur Sensor",17]
["A24357","Knomo Avery Cross Body Navy Blue",2]
["A24358","Knomo Avery Cross Body Black",2]
["A24359","Knomo Avery Cross Body Beige",2]
["A24360","Knomo Brook Lthr Cross Body Blk",2]
["A24361","Knomo Beauchamp 14 Backpack Blackk Gold",2]
["A24362","Knomo Beauchamp 14 Back Pack Navy Blue",2]
["A24363","Knomo Tournay 15 Briefcase Black",2]
["A24364","Knomo KEW 15 Backpack Black",2]
["A24365","Knomo KEW 15 Backpack Sand",2]
["A24366","BangOlufsen Beoplay M5 Natural",2]
["A24368","Speck Balance Folio iPad 10 2 2019 Black",4]
["A24369","Speck Balance Folio iPad Pro 11 18 20 Black",10]
["A24370","Speck Balance Folio iPadPro 11 18 20 Blue",10]
["A24372","Sandberg Destroyer FlexWeight Mouse",5]
["A24373","Sandberg Gamer Desk Pad XXXL",5]
["A24374","Sandberg Gamer Mousepad XL",4]
["A24375","Sandberg FireStorm Mech Keyboard Nordic",2]
["A24376","Sandberg IronStorm Keyboard Nordic",13]
["A24377","Sandberg RageStorm Mech Gaming Keypad",4]
["A24378","Sandberg Streamer USB Webcam Pro",8]
["A24379","Sandberg Dizruptor Headset",1]
["A24380","Sandberg Twister Headset",5]
["A24381","Sandberg Tyrant Headset USB 7 1",4]
["A24382","Sandberg Streamer USB Desk Microphone",5]
["A24383","Sandberg Streamer USB Microphone Kit",10]
["A24384","Flic 2 Starter Kit with Hub",5]
["A24385","Flic 2 buttons 2 pak",5]
["A24389","Native Union Drop Wireless Charger Sage",5]
["A24391","Belkin BOOST CHARGE TRUEFREEDOM PRO WIRELESS CHAR",3]
["A24392","DJI Pocket 2",14]
["A24393","DJI Pocket 2 Creator Combo",6]
["A24394","DJI Mini 2",5]
["A24395","DJI Mini 2 Fly More Combo"]
["A24396","DJI OM 4",7]
["A24397","DJI Mini 2 Intelligent Flight Battery",4]
["A24398","DJI Mini 2 360 degree Propeller Guard",2]
["A24399","DJI Mini 2 Two Way Charging Hub",4]
["A24400","DJI Mini 2 Propellers Pair",4]
["A24401","DJI Mini Bag plus Black",5]
["A24404","JBL Go 3 Black",81]
["A24405","JBLGO 3 Blue",52]
["A24406","JBL GO 3 Pink",5]
["A24407","JBL GO 3 Squad",51]
["A24408","JBL CLIP 4 Black",51]
["A24409","JBL CLIP 4 Blue",51]
["A24410","JBL CLIP 4 Pink",5]
["A24411","JBL CLIP 4 Squad",51]
["A24412","JBL CHARGE 5 Black",117]
["A24413","JBL XTREME 3 Black",120]
["A24414","JBL XTREME 3 Blue",5]
["A24415","JBL XTREME 3 CAMO",5]
["A24416","JBL PARTYBOX 310",5]
["A24417","JBLT 110 Black",10]
["A24418","JBLT 115 True wireless Black",5]
["A24419","JBL T115 True wireless white",4]
["A24420","JBL T125 True wireless black",60]
["A24421","JBL T125 True wireless white",61]
["A24422","JBL T225 True wireless black",89]
["A24423","JBL T225 True wireless white",91]
["A24424","JBL T225 True wireless Gold",61]
["A24426","JBL T500 Blue",5]
["A24427","JBL T500 Bluetooth Blue",5]
["A24428","JBL T500 Bluetooth Pink",5]
["A24429","JBL T500 Bluetooth White",81]
["A24430","JBL T500 Pink",10]
["A24431","JBL T500 White",10]
["A24432","JBL T700 Bluetooth Black",43]
["A24433","JBL T700 Bluetooth White",4]
["A24434","JBL LIVE Free Noice Cancellation True wireless",60]
["A24435","JBL LIVE Free Noice Cancellation True Wireless",61]
["A24436","JBL LIVE Free Noice Cancellation True Wireless",61]
["A24437","JBL LIVE Free Noice Cancellation True Wireless",61]
["A24438","Samsung USB C to USB C Cable Black",132]
["A24439","Samsung 25W Travel AdapterBlack",116]
["A24440","Samsung Type C Earphones Black",78]
["A24441","Samsung Wireless Charger Pad Black",84]
["A24442","Samsung Wireless Charger Pad White",46]
["A24443","HOLDIT SAMSUNG GALAXY S21 BLACK",105]
["A24444","HOLDIT SAMSUNG GALAXY S21 BLUSH",65]
["A24445","HOLDIT SAMSUNG GALAXY S21 TAUPE",65]
["A24446","HOLDIT SAMSUNG GALAXY S21 Plus BLACK",105]
["A24447","HOLDIT SAMSUNG GALAXY S21 Plus BLUSH",65]
["A24448","HOLDIT SAMSUNG GALAXY S21 Plus TAUPE",65]
["A24449","HOLDIT SAMSUNG GALAXY 69 BLACK",105]
["A24450","HOLDIT SAMSUNG GALAXY 69 BLUSH",65]
["A24451","HOLDIT SAMSUNG GALAXY 69 TAUPE",65]
["A24464","Apple AirPods Max Green",1]
["A24465","Mi Robot Vacuum-Mop Essential",15]
["A24466","Invisibleshield Ultra Clear PLUS Samsung Galaxy",148]
["A24467","Invisibleshield Ultra Clear PLUS Samsung Galaxy",163]
["A24468","Invisibleshield Ultra Clear PLUS Samsung Galaxy",86]
["A24469","Invisibleshield Ultra Vision Guard PLUS Samsung",62]
["A24470","Invisibleshield Ultra Vision Guard PLUS Samsung",75]
["A24471","Invisibleshield Ultra Vision Guard PLUS Samsung",78]
["A24475","Panorama MiMo Directional Antenna",4]
["A24486","HOLDIT SILICONE CASE IPHONE 7 8 SE PACIFIC BLUE",80]
["A24487","HOLDIT SILICONE CASE IPHONE 12 PRO MAX PACIFIC",50]
["A24488","HOLDIT SILICONE CASE IPHONE 12 12 PRO PACIFIC BLU",80]
["A24489","HOLDIT SILICONE CASE IPHONE 12 MINI PACIFIC BLUE",80]
["A24490","HOLDIT SILICONE CASE IPHONE 11 PRO PACIFIC BLUE",50]
["A24491","Beats Flex Wireless Earphones Black",9]
["A24492","DELTACO USB-C wall charger 30 W with PD and GaN",345]
["A24493","Samsung Galaxy S21 Smart Clear View Cover Black",83]
["A24494","Samsung Galaxy S21 Silicone Cover Black",118]
["A24495","Samsung Galaxy S21 Clear Cover Transparent",17]
["A24496","Samsung Galaxy S21 Plus Smart Clear View Cover",112]
["A24497","Samsung Galaxy S21 Plus Silicone Cover Black",111]
["A24498","Samsung Galaxy S21 Plus Clear Cover Transparent",99]
["A24499","Samsung Galaxy S21 Ultra Smart Clear View Cover",98]
["A24500","Samsung Galaxy S21 Ultra Silicone Cover Black",128]
["A24501","Samsung Galaxy S21 Ultra Clear Cover Transparent",16]
["A24502","NUDIENT CASE V3 SAMSUNG S21 INK BLACK",200]
["A24503","NUDIENT CASE V3 SAMSUNG S21 MIDWINTER BLUE",180]
["A24504","NUDIENT CASE V3 SAMSUNG S21 DUSTY PINK",140]
["A24505","NUDIENT CASE V3 SAMSUNG S21 PLUS INK BLACK",200]
["A24506","NUDIENT CASE V3 SAMSUNG S21 PLUS MIDWINTER BL",180]
["A24507","NUDIENT CASE V3 SAMSUNG S21 PLUS DUSTY PINK",140]
["A24508","NUDIENT CASE V3 SAMSUNG S21 ULTRA INK BLACK",200]
["A24509","NUDIENT CASE V3 SAMSUNG S21 ULTRA MIDWINTER BL",180]
["A24510","NUDIENT CASE V3 SAMSUNG S21 ULTRA DUSTY PINK",140]
["A24511","BOSE 700 Silver",38]
["A24512","BOSE 700 Black",39]
["A24513","Samsung Galaxy Buds Pro Phantom Black",50]
["A24514","Samsung Galaxy Buds Pro Phantom Violet",8]
["A24515","Samsung Galaxy Buds Pro Phantom Silver",2]
["A24516","SWITCH Super Mario 3D World og Bowsers Fury",23]
["A24517","Beoplay H95 Black",19]
["A24518","Beoplay H95 Grey Mist",4]
["A24520","Saphe One Plus fartalarm",9]
["A24521","Saphe Drive Fartalarm",9]
["A24522","PanzerGlass ClearCase for Apple iPhone 12 mini",90]
["A24523","PanzerGlass ClearCase for Apple iPhone 12 12 Pro",90]
["A24524","PanzerGlass ClearCase for Apple iPhone 12 Pro Max",60]
["A24530","Nintendo Game og Watch Super Mario Bros",15]
["A24533","Jabra Elite 45h Full Black",10]
["A24534","Jabra Elite Active 75t Dark Grey",3]
["A24535","Jabra Elite 85h Full Black",10]
["A24536","Jabra Elite 85h Gold Beige",3]
["A24537","Jabra Elite 85h Navy",3]
["A24538","Jabra Elite 85t Titanium black",10]
["A24539","Jabra Elite 85t Black",3]
["A24540","Jabra Elite 85t Gold Beige",3]
["A24556","M20818 Mellem lak pose"]
["A24557","M20934 Stor lak pose"]
["A24558","M20935 Små lak pose"]
["A24560","InvisibleShield Ultra Clear OnePlus 8T Screen",8]
["A24700","Google Chromecast 3",60]
["A24701","SENNHEISER PC 2 CHAT",20]
["A24703","SENNHEISER PC 7 USB",15]
["A24704","SENNHEISER PC 8 USB",15]
["A24706","RAZER CYNOSA LITE ESSENTIAL GAMING KEYBOARD",10]
["A24709","RAZER DEATHADDER V2 PRO ERGONOMIC WIRELESS GAMING",10]
["A24714","RAZER HAMMERHEAD TRUE WIRELESS EARBUDS MERCURY",10]
["A24717","RAZER SEIREN",10]
["A24720","RAZER KRAKEN FOR CONSOLE",10]
["A24725","Cable Guy Darth Vader",6]
["A24727","Cable Guy Stormtrooper",6]
["A24729","OTL PEPPA PIG KIDS WIRELESS HEADPHONES",10]
["A24730","OTL BATMAN KIDS WIRELESS HEADPHONES",10]
["A24734","OTL SUPER MARIO KIDS WIRELESS HEADPHONES",10]
["A24737","BLAZE EVERCADE CARRY CASE EFIGS",5]
["A24738","BLAZE EVERCADE NAMCO CARTRIDGE 2",5]
["A24739","BLAZE EVERCADE NAMCO CARTRIDGE 1",5]
["A24740","BLAZE EVERCADE INTERPLAY CARTRIDGE 2",5]
["A24741","BLAZE EVERCADE INTERPLAY CARTRIDGE 1",5]
["A24742","BLAZE EVERCADE DATAEAST CARTRIDGE 1",5]
["A24743","BLAZE EVERCADE ATARI CARTRIDGE 2",5]
["A24745","BLAZE EVERCADE PIKO CART 1 EFIGS",5]
["A24746","BLAZE EVERCADE MEGACAT CART 1 EFIGS",5]
["A24747","BLAZE EVERCADE TECHNOS CARTRIDGE - EFIGS",5]
["A24748","BLAZE EVERCADE STARTER PACK plus 1 VOL 1 WHITE",5]
["A24749","BLAZE EVERCADE OLIVER TWINS CARTRIDGE EFIGS",5]
["A24750","BLAZE EVERCADE XENO-TANGLE CART EFIGS",5]
["A24751","BLAZE EVERCADE LYNX 1 CART EFIGS",5]
["A24752","BLAZE EVERCADE LYNX 2 CART EFIGS",5]
["A24757","HORI PS4 TAC FOUR",5]
["A24758","HORI PS4 HORIPAD MINI BLACK",10]
["A24759","HORI PS4 HORIPAD MINI RED",10]
["A24760","HORI PS4 HORIPAD MINI BLUE",10]
["A24763","HORI SMASH BROS GAMEPAD PIKACH",10]
["A24764","HORI D-PAD JOYCON MARIO",10]
["A24765","HORI D-PAD JOYCON ZELDA",10]
["A24767","HORI SPLIT PAD PRO PAC MAN LIMITED EDITION",10]
["A24768","POWERA NSW WIRELESS CONTROLLER ANIMAL CROSSING",10]
["A24769","POWERA NSW ENH WIRED CONTROLLER PIKACHU FADE",10]
["A24770","POWERA NSW COMFORT GRIP PIKACHU",10]
["A24771","POWERA PS4 FUSION PRO WIRELESS CONTROLLER",10]
["F20533","Huawei E372 Grey",2]
["F20800","Trio sim voice with PUK",32136]
["F20801","Trio sim data",24601]
["F20836","Huawei E5180 Cube 4G White"]
["F20838","OiSTER GoTale Startpakke 50 kr  3SHOPS",44]
["F20839","OiSTER GoData Startpakke 300MB 3SHOPS",362]
["F20883","Microsoft Lumia 435 Black",1]
["F20939","Huawei E3372h-153 MobilePartner Black",242]
["F20948","iPhone 6s 128GB Space Grey",1]
["F20994","Microsoft Lumia 950 Black",1]
["F21026","iPad Pro 9 7 128GB Gold"]
["F21038","Huawei E5577 Mobile WIFI Black",1]
["F21050","Soft SIM",321]
["F21062","iPhone 7 32GB Gold",1]
["F21063","iPhone 7 32GB Rose Gold"]
["F21072","iPhone 7 256GB Gold"]
["F21092","iPhone 7 Plus 256GB Gold"]
["F21097","Huawei F617 Black",3]
["F21099","Huawei B525 CA White",1]
["F21168","OnePlus 5T 128GB Stormtrooper White",1]
["F21177","Nokia 3310 3G DS Grey",43]
["F21193","OnePlus 6 128GB Mirror Black"]
["F21194","OnePlus 6 256GB Midnight Black",1]
["F21195","Samsung Galaxy Tab S4 64GB Black",1]
["F21207","Jablocom Essence GSM Black",3]
["F21239","Huawei MediaPad T3 10 32GB Space Gray",37]
["F21241","iPad Mini 5th generation 64GB Silver"]
["F21242","iPad Mini 5th generation 64GB Gold",1]
["F21247","Samsung Galaxy Tab Active 2 16GB Black",10]
["F21255","Huawei B2368 WTTx White",231]
["F21256","Samsung Galaxy Xcover 4s 32GB DS Black",20]
["F21258","Huawei P30 Lite 128GB HDS Black",2]
["F21261","iPhone Xr 64GB White"]
["F21262","iPhone Xr 64GB Red"]
["F21267","iPhone Xr 128GB White"]
["F21273","Huawei P30 128GB HDS Black"]
["F21276","Huawei P30 Pro 128GB HDS Aurora"]
["F21283","iPhone Xs 256GB Space Grey",1]
["F21295","iPhone Xs Max 256GB Gold",9]
["F21299","eSIM voucher",4451]
["F21300","Samsung Galaxy S10 128GB HDS Black"]
["F21301","Samsung Galaxy S10 128GB HDS White"]
["F21302","Samsung Galaxy S10 Plus 128GB HDS Black"]
["F21306","Samsung Galaxy A40 64GB DS Black"]
["F21320","iPad 7th generation 32GB Space Grey",1]
["F21321","iPad 7th generation 32GB Silver"]
["F21327","Samsung Galaxy A41 64GB DS Black",264]
["F21328","Samsung Galaxy A21s 32GB DS Black",63]
["F21332","Samsung Galaxy Note 10 Plus 256GB HDS Black",1]
["F21335","Samsung Galaxy Tab S6 128GB Grey",1]
["F21337","OnePlus 7T 128GB DS Glacier Blue",15]
["F21338","OnePlus 7T Pro 256GB DS Haze Blue",38]
["F21339","Huawei B535 CA White",1187]
["F21340","iPad Pro 11 2nd gen 128GB Space Grey",8]
["F21341","iPad Pro 11 2nd gen 128GB Silver",32]
["F21342","iPad Pro 11 2nd gen 256GB Space Grey",5]
["F21343","iPad Pro 12 9 4th gen 128GB Space Grey",25]
["F21344","iPad Pro 12 9 4th gen 128GB Silver",38]
["F21345","iPad Pro 12 9 4th gen 256GB Space Grey",20]
["F21346","OnePlus 8 128GB 5G DS Black",10]
["F21347","OnePlus 8 128GB 5G DS Green",55]
["F21348","OnePlus 8 Pro 128GB 5G DS Black",80]
["F21352","Huawei P40 Lite 128GB Black",4]
["F21353","Huawei P40 Pro 256GB 5G Black",12]
["F21354","OnePlus Nord 128GB 5G DS Gray Onyx",173]
["F21355","OnePlus Nord 128GB 5G DS Blue Marble",88]
["F21356","OnePlus Nord 256GB 5G DS Gray Onyx",170]
["F21358","OnePlus 8T Lunar Silver 128GB",91]
["F21359","OnePlus 8T Aquamarine Green 128GB",77]
["F21361","iPhone 11 64GB White",2]
["F21368","iPhone 11 128GB Red"]
["F21375","Samsung Galaxy A51 128GB HDS Black",360]
["F21379","Fairphone 3 Plus 64GB Black",20]
["F21380","iPhone 11 Pro 64GB Space Grey",10]
["F21381","iPhone 11 Pro 64GB Silver",246]
["F21383","iPhone 11 Pro 64GB Midnight Green",195]
["F21384","iPhone 11 Pro 256GB Space Grey",33]
["F21385","iPhone 11 Pro 256GB Silver",2]
["F21386","iPhone 11 Pro 256GB Gold",6]
["F21387","iPhone 11 Pro 256GB Midnight Green",45]
["F21388","iPhone 11 Pro 512GB Space Grey",14]
["F21389","iPhone 11 Pro 512GB Midnight Green",5]
["F21399","iPhone 11 Pro Max 512GB Midnight Green",1]
["F21400","Samsung Galaxy S20 128GB 5G HDS Gray",5]
["F21401","Samsung Galaxy S20 128GB 5G HDS Blue",30]
["F21402","Samsung Galaxy S20 Plus 128GB 5G HDS Black",5]
["F21403","Samsung Galaxy S20 Plus 128GB 5G HDS Gray",16]
["F21405","Samsung Galaxy S20 Ultra 128GB 5G HDS Gray",39]
["F21406","Samsung Galaxy S20FE 4G 128GB Cloud Navy",126]
["F21407","Samsung Galaxy S20FE 4G 128GB Cloud Lavender",8]
["F21408","Samsung Galaxy S20FE 5G 128GB Cloud Navy",111]
["F21409","Samsung Galaxy XCover Pro Black",75]
["F21410","iPhone SE 2nd gen 64GB Black",1]
["F21411","iPhone SE 2nd gen 64GB White"]
["F21414","iPhone SE 2nd gen 128GB White"]
["F21415","iPhone SE 2nd gen 128GB Red"]
["F21416","iPhone SE 2nd gen 256GB Black",2]
["F21417","Samsung Galaxy S20FE 5G 128GB Cloud Lavender",118]
["F21418","iPhone SE 2nd gen 64GB Black NEW",480]
["F21419","iPhone SE 2nd gen 64GB White NEW",1011]
["F21420","iPhone SE 2nd gen 64GB Red NEW",694]
["F21421","iPhone SE 2nd gen 128GB Black NEW",118]
["F21422","iPhone SE 2nd gen 128GB White NEW",505]
["F21423","iPhone SE 2nd gen 128GB Red NEW",469]
["F21424","iPhone SE 2nd gen 256GB Black NEW",57]
["F21425","iPhone 11 64GB Black NEW",188]
["F21426","iPhone 11 64GB White NEW",39]
["F21427","iPhone 11 128GB Black NEW",154]
["F21429","Huawei E5577-320 Mobile WIFI White",348]
["F21430","Samsung Galaxy Note 20 256GB 5G Mystic Gray",7]
["F21431","Samsung Galaxy Note 20 Ultra 256GB 5G Mystic Blac",43]
["F21432","Samsung Galaxy Note 20 Ultra 256GB 5G Mystic",114]
["F21434","Sony Xperia 5 II Blue",21]
["F21435","Samsung Galaxy Tab S7 LTE Dark Gray",44]
["F21436","Samsung Galaxy Tab A7 LTE Dark Gray",57]
["F21437","OnePlus Nord N10 5G 128GB Midnight Ice",227]
["F21438","OnePlus Nord N100 64GB Midnight Frost",367]
["F21439","Sony Xperia 5 II Black",32]
["F21440","iPhone 12 64GB Black",197]
["F21441","iPhone 12 64GB White",222]
["F21442","iPhone 12 64GB RED",3]
["F21443","iPhone 12 64GB Blue",56]
["F21444","iPhone 12 64GB Green",19]
["F21445","iPhone 12 128GB Black",469]
["F21446","iPhone 12 128GB White"]
["F21447","iPhone 12 128GB RED",113]
["F21448","iPhone 12 128GB Blue",29]
["F21449","iPhone 12 128GB Green",23]
["F21450","iPhone 12 256GB Black",42]
["F21453","iPhone 12 256GB Blue",36]
["F21455","iPhone 12 mini 64GB Black",199]
["F21456","iPhone 12 mini 64GB White",32]
["F21457","iPhone 12 mini 64GB RED",1]
["F21458","iPhone 12 mini 64GB Blue",24]
["F21459","iPhone 12 mini 64GB Green",35]
["F21460","iPhone 12 mini 128GB Black",157]
["F21461","iPhone 12 mini 128GB White",43]
["F21462","iPhone 12 mini 128GB RED",19]
["F21463","iPhone 12 mini 128GB Blue",28]
["F21464","iPhone 12 mini 128GB Green",29]
["F21465","iPhone 12 mini 256GB Black",54]
["F21468","iPhone 12 mini 256GB Blue",56]
["F21470","iPhone 12 Pro 128GB Graphite",267]
["F21471","iPhone 12 Pro 128GB Silver",107]
["F21472","iPhone 12 Pro 128GB Gold",106]
["F21473","iPhone 12 Pro 128GB Pacific Blue",10]
["F21474","iPhone 12 Pro 256GB Graphite",83]
["F21475","iPhone 12 Pro 256GB Silver",66]
["F21476","iPhone 12 Pro 256GB Gold",49]
["F21477","iPhone 12 Pro 256GB Pacific Blue",55]
["F21478","iPhone 12 Pro 512GB Graphite",45]
["F21481","iPhone 12 Pro 512GB Pacific Blue",26]
["F21490","iPad 8th generation 32GB Space Grey"]
["F21493","iPad 8th generation 128GB Space Grey"]
["F21510","iPhone 12 Pro Max 128GB Graphite",96]
["F21511","iPhone 12 Pro Max 128GB Silver",29]
["F21512","iPhone 12 Pro Max 128GB Gold",103]
["F21513","iPhone 12 Pro Max 128GB Pacific Blue",140]
["F21514","iPhone 12 Pro Max 256GB Graphite",33]
["F21515","iPhone 12 Pro Max 256GB Silver",1]
["F21516","iPhone 12 Pro Max 256GB Gold"]
["F21517","iPhone 12 Pro Max 256GB Pacific Blue",42]
["F21518","iPhone 12 Pro Max 512GB Graphite",55]
["F21521","iPhone 12 Pro Max 512GB Pacific Blue",89]
["F21522","Xiaomi Mi 10T Pro Cosmic Black",9]
["F21525","Samsung Galaxy S21 5G 128GB Gray",126]
["F21527","Samsung Galaxy S21 5G 128GB White",20]
["F21528","Samsung Galaxy S21 5G 256GB Gray",44]
["F21529","Samsung Galaxy S21 Plus 5G 128GB Black",115]
["F21530","Samsung Galaxy S21 Plus 5G 128GB Silver",6]
["F21531","Samsung Galaxy S21 Plus 5G 128GB Violet",4]
["F21532","Samsung Galaxy S21 Plus 5G 256GB Black",18]
["F21533","Samsung Galaxy S21 Ultra 5G 128GB Black",205]
["F21534","Samsung Galaxy S21 5G Ultra 128GB Silver",64]
["F21536","Samsung Galaxy S21 Ultra 5G 512GB Black",1]
["F30623","Oister bundlepakke 1 MD med modem 21mb"]
["F30800","Oister Trio sim voice with PIN"]
["F30811","Oister Trio sim data"]
["F30820","Oister Trio sim"]
["F30822","OiSTER Go! MBB bundle Startpk inkl. SIM og modem",22]
["M20816","Balloner Orange 1 Pose",7]
["M20817","Navneskilt",130]
["M20818","Lakposer 1 Kasse",77]
["M20850","SIMkort kuvert",30000]
["M20858","SIM-brev Business Eksisterende GA v1.0 feb 2013",6158]
["M20919","SIM-brev Business nye/eksisterende GA mar 2015",4437]
["M20920","SIM brev Business nye eksisterende FMH mar 2015",26560]
["M20931","Forsikringsfolder: Du kan stadig tegne forsikring",12855]
["M20932","GA SIM brev August 2015",3418]
["M20933","FMH nyt SIM brev August 2015",655]
["M20934","Bærepose stor 1 Kasse",555]
["M20935","Bærepose lille1 Kasse",5]
["M20951","Angli Skjorte Herre L",24]
["M20952","Angli Skjorte Herre XL",413]
["M20953","Angli Skjorte Herre XXL",140]
["M20954","Angli Skjorte Herre XXXL",7]
["M20957","Angli Skjorte Dame M",32]
["M20958","Angli Skjorte Dame L",37]
["M20959","Angli Skjorte Dame XL",38]
["M20960","Angli Skjorte Herre XS Slim",39]
["M20961","Angli Skjorte Herre S Slim",26]
["M20962","Angli Skjorte Herre M Slim",236]
["M20963","Angli Skjorte Herre L Slim",29]
["M20964","Angli Skjorte Dame XS Slim",13]
["M20965","Angli Skjorte Dame S Slim",70]
["M20966","Angli Skjorte Dame M Slim",52]
["M20967","Angli Skjorte Dame L Slim",36]
["M20971","Forsikringsbrev - til kunder MED forsikring",4546]
["M20972","Forsikringsbrev - til kunder UDEN forsikring",10518]
["M20974","Post Nord tracker plastic box v1",107]
["M20975","Polo Herre S",47]
["M20976","Polo Herre M",44]
["M20977","Polo Herre L",85]
["M20978","Polo Herre XL",78]
["M20979","Polo herre XXL",80]
["M20980","Polo Herre XXXL",51]
["M20981","Polo Dame S",36]
["M20982","Polo Dame M",57]
["M20983","Polo Dame L",44]
["M20984","Polo Dame XL",70]
["M20985","Polo Dame XXL",52]
["M20993","Svarkuverter med 3s adresse A4 2018",170]
["M20996","Ny konvolut",31000]
["M20998","Parcel box bundle 20pcs",24]
["M21001","QR Letter privat",1726]
["M21002","QR letter Businees",1611]
["M21003","FMH QR Letter privat",1825]
["M21004","FMH QR letter Businees",2065]
["M21005","M21004",370]
["M21006","eSIM iPad privat FMH",493]
["M21007","eSIM iPad business",208]
["M21008","eSIM iPad business FMH",498]
["M21009","P30 brev",990]
["M21012","Pakker tilvalg",139]
["M21015","XL SLIM",100]
["M21021","AG Leaflet and sticker Danish",463]
["M21022","Sort ballon",310]
["M21028","Samsung Galaxy S21-serie bundle",725]
["M30019","OiSTER Tank Selv SIM only startpk uindhold v1 0"]
["M30023","OiSTER Tank Selv Voucherkodekort 1 uge v 1 0"]
["M30058","OiSTER C5 Kuvert uden rude v2"]
["M30060","OiSTER Go! ISP Startpakke m/ vejl. u/SIM-kort"]
["M30064","OiSTER Go! Modem pakke u/indhold"]
["M30065","OiSTER Go! MBB 10GB SIM only omslag u/indhold"]
["M30067","OiSTER Go Voice Startpakke m vejl utrio SIMkort"]
["M30070","OiSTER Velkomstbrev 2016 07 VOICE"]
["M30071","OiSTER Velkomstbrev 2016 07 DATA"]
["M30072","Køb af telefon eksisterende kunde dec 2016"]
["M30073","Køb af abb plus telefon ny kunde dec 2016"]
["M30074","SIM change dec 2016"]
["M30075","Tilbehør dec 2016"]
["M30076","Køb af abb plus ISP ny kunde dec 2016"]
["M30077","Køb af ISP minus HW eksisterende kunde dec 2016"]
["M30079","OiSTER WiFi"]
["N20621","Huawei E392u 4G Black Loan"]
["N20754","iPhone 5s 32GB 4G SilverLoan"]
["N20849","Huawei E5373 Mobile WIFI 4G Black"]
["N20884","Samsung Galaxy Xcover 3 4G Grey Loan"]
["N20890","Samsung Galaxy Note 4 4G Black LOAN"]
["N20899","Huawei B315 White LOAN"]
["N20920","Samsung Galaxy S6 Edge 32GB 4G Black LOAN"]
["N20922","Samsung Galaxy S6 Edge 32GB 4G Gold LOAN"]
["N20940","iPhone 6s 16GB Space Grey LOAN"]
["N20941","iPhone 6s 16GB Silver LOAN"]
["N20942","iPhone 6s 16GB Gold LOAN"]
["N20943","iPhone 6s 16GB Rose Gold LOAN"]
["N20944","iPhone 6s 64GB Space Grey LOAN"]
["N20945","iPhone 6s 64GB Silver LOAN"]
["N20946","iPhone 6s 64GB Gold Loan"]
["N20947","iPhone 6s 64GB Rose Gold LOAN"]
["N20948","iPhone 6s 128GB Space Grey LOAN"]
["N20949","iPhone 6s 128GB Silver LOAN"]
["N20950","iPhone 6s 128GB Gold LOAN"]
["N20951","iPhone 6s 128GB Rose Gold LOAN"]
["N20952","Sony Xperia Z5 Compact 32GB Black LOAN"]
["N20964","iPhone 6s Plus 64GB Space Grey"]
["N21003","Samsung Galaxy S7 Edge 32GB Black LOAN"]
["N21005","Samsung Galaxy S7 Edge 32GB Gold LOAN"]
["N21006","Huawei P9 Grey LOAN"]
["N21010","iPhone SE 16GB Space Grey LOAN"]
["N21011","iPhone SE 16GB Silver LOAN"]
["N21012","iPhone SE 16GB Gold LOAN"]
["N21013","iPhone SE 16GB Rose Gold LOAN"]
["N21014","iPhone SE 64GB Space Grey LOAN"]
["N21015","iPhone SE 64GB Silver LOAN"]
["N21016","iPhone SE 64GB Gold LOAN"]
["N21017","iPhone SE 64GB Rose Gold LOAN"]
["N21018","Huawei P9 Lite Black LOAN"]
["N21030","Sony Xperia XA Black LOAN"]
["N21034","Sony Xperia X Black LOAN"]
["N21036","Sony Xperia X Performance Black LOAN"]
["N21038","Huawei E5577 Mobile WIFI Black"]
["N21040","iPhone 6s 32GB Space Grey LOAN"]
["N21041","iPhone 6s 32GB Silver LOAN"]
["N21042","iPhone 6s 32GB Gold LOAN"]
["N21043","iPhone 6s 32GB Rose Gold LOAN"]
["N21048","Sony Xperia X Compact Black LOAN"]
["N21054","Sony Xperia XZ Blue LOAN"]
["N21060","iPhone 7 32GB Black LOAN"]
["N21061","iPhone 7 32GB Silver Loan"]
["N21062","iPhone 7 32GB Gold Loan"]
["N21063","iPhone 7 32GB Rose Gold LOAN"]
["N21064","Huawei Mate 9 Pro Grey LOAN"]
["N21065","iPhone 7 128GB Black LOAN"]
["N21066","iPhone 7 128GB Silver LOAN"]
["N21069","iPhone 7 128GB Jet Black LOAN"]
["N21072","iPhone 7 256GB Gold"]
["N21073","iPhone 7 256GB Rose Gold"]
["N21075","OnePlus 3T 64GB Gunmetal Loan"]
["N21076","OnePlus 3T 128GB Gunmetal LOAN"]
["N21080","iPhone 7 Plus 32GB Black"]
["N21088","iPhone 7 Plus 128GB Rose Gold"]
["N21089","iPhone 7 Plus 128GB Jet Black"]
["N21096","Huawei Mate 9 Pro Gold"]
["N21098","Huawei Mate 9 Space Gray"]
["N21099","Huawei B525 CA White"]
["N21103","Samsung Galaxy S8 Plus 64GB Black"]
["N21108","Huawei P10 Lite 32GB Black LOAN"]
["N21117","Samsung Galaxy Xcover 4 Black LOAN"]
["N21118","iPhone 7 128GB Red Loan"]
["N21130","iPhone SE 32GB Space Grey LOAN"]
["N21131","iPhone SE 32GB Silver LOAN"]
["N21132","iPhone SE 32GB Gold LOAN"]
["N21133","iPhone SE 32GB Rose Gold LOAN"]
["N21134","iPhone SE 128GB Space Grey LOAN"]
["N21136","iPhone SE 128GB Gold LOAN"]
["N21139","Nokia 3 16GB DS Black LOAN"]
["N21156","OnePlus 5 128GB Black"]
["N21160","iPhone 8 64GB Space Grey"]
["N21161","iPhone 8 64GB Silver"]
["N21162","iPhone 8 64GB Gold"]
["N21166","Huawei Mate 10 Pro Gray LOAN"]
["N21167","Huawei Mate 10 Lite Black"]
["N21190","Huawei P20 128GB DS Black"]
["N21191","Huawei P20 Lite 64GB DS Black"]
["N21192","OnePlus 6 64GB Mirror Black"]
["N21193","OnePlus 6 128GB Mirror Black"]
["N21200","Samsung Galaxy S9 64GB Black"]
["N21212","Nokia 8 64GB DS Silver"]
["N21214","Sony Xperia XZ1 Compact 32GB Black LOAN"]
["N21219","Xiaomi Mi Mix 2s 128GB Black"]
["N21248","Huawei Mate 20 Lite 64GB HDS Black"]
["N21250","OnePlus 6t 128GB Mirror Black"]
["N21256","Samsung Galaxy Xcover 4s 32GB DS Black"]
["N21258","Huawei P30 Lite 128GB HDS Black"]
["N21279","Huawei Mate 20 Pro 128GB DS Twilight"]
["N21306","Samsung Galaxy A40 64GB DS Black"]
["N21308","Samsung Galaxy A70 128GB DS Black"]
["N21352","Huawei P40 Lite 128GB Black"]
["N21353","Huawei P40 Pro 256GB 5G Black"]
["ND0001","Forlængelse uden håndsæt",1715379]
["O20691","Huawei B B593s 4G White",1]
["O20810","Huawei B E3531s 2 MobilePartner Black",1]
["O20817","Huawei E5186s22a 4G White",1]
["O20899","Huawei B315 DEMO",1]
["O20939","Huawei E3372h-153 MobilePartner Black",1]
["O20943","Apple B iPhone 6s 16GB Rose",2]
["O20950","Apple B iPhone 6s 128GB Gold",1]
["O21018","Huawei P9 Lite Black",1]
["O21064","Huawei Mate Pro Grey",1]
["O21069","iPhone 7 128GB Jet Black"]
["O21084","Samsung Galaxy Tab A 101 16GB Black",2]
["O21099","Huawei B525 CA White"]
["O21114","Samsung Galaxy A5 2017 32GB Gold",1]
["O21116","Samsung Galaxy Tab S3 9 7 32GB Black"]
["O21117","Samsung Galaxy Xcover 4 Black"]
["O21160","iPhone 8 64GB Space Grey"]
["O21162","iPhone 8 64GB Gold"]
["O21177","Nokia 3310 3G DS Grey"]
["O21181","iPhone X 64GB Silver",1]
["O21191","Huawei P20 Lite 64GB DS Black"]
["O21199","Huawei MediaPad T3 10 16GB Space Gray"]
["O21212","Nokia 8 64GB DS Silver"]
["O21219","Xiaomi Mi Mix 2s 128GB Black"]
["O21244","Xiaomi Mi 8 64GB Black"]
["O21246","Xiaomi Redmi 6 32GB Black"]
["O21248","Huawei Mate 20 Lite 64GB HDS Black"]
["O21254","Samsung Galaxy S10e 128GB HDS Black"]
["O21273","Huawei P30 128GB HDS Black"]
["O21279","Huawei Mate 20 Pro 128GB DS Twilight"]
["O21281","iPhone Xs 64GB Silver"]
["O21306","Samsung Galaxy A40 64GB DS Black"]
["O21317","OnePlus 7 Pro 256GB DS Mirror Gray"]
["O21329","Huawei Nova 5T 128GB DS Black"]
["O21339","Huawei B535 CA White"]
["O21351","Samsung Galaxy Z Flip 128GB 5G Purple"]
["O21353","Huawei P40 Pro 256GB 5G Black"]
["O21376","Samsung Galaxy S10 Lite 128GB HDS Black"]
["O21410","iPhone SE 2nd gen 64GB Black"]
["O21413","iPhone SE 2nd gen 128GB Black"]
["R20533","Huawei B E372 Grey",1]
["R20732","Huawei B E3276 4G HiLink Black"]
["R20816","Huawei B R616 Black"]
["R20843","Apple B iPhone 6 64GB 4G Space Grey"]
["R20844","Apple B iPhone 6 64GB 4G Silver"]
["R20846","Apple B iPhone 6 128GB 4G Space Grey"]
["R20849","Huawei B E5373s 155 Mobile WIFI 4G Black",1]
["R20850","Apple B iPhone 6 Plus 16GB 4G Space Grey"]
["R20852","Apple B iPhone 6 Plus 16GB 4G Gold"]
["R20853","Apple B iPhone 6 Plus 64GB 4G Space Grey",5]
["R20855","Apple B iPhone 6 Plus 64GB 4G Gold",1]
["R20856","Apple B iPhone 6 Plus 128GB 4G Space Grey",1]
["R20857","Apple B iPhone 6 Plus 128GB 4G Silver",5]
["R20858","Apple B iPhone 6 Plus 128GB 4G Gold",1]
["R20899","Huawei B315 DEMO"]
["R20939","Huawei E3372h-153 MobilePartner Black DEMO",8]
["R20941","Apple B iPhone 6s 16GB Silv"]
["R20942","Apple B iPhone 6s 16GB Gold",3]
["R20943","Apple B iPhone 6s 16GB Rose",5]
["R20944","Apple B iPhone 6s 64GB SpacGr"]
["R20966","Apple B iPhone 6sPlu 64G Gold",1]
["R20967","Apple B iPhone 6sPlu 64G Rose",1]
["R20968","Apple B iPhone 6sPlu 128G SpG"]
["R20970","Apple B iPhone 6sPlu 128G Gld",1]
["R20971","Apple B iPhone 6sPlu 128G Ros"]
["R20986","Apple B iPad Mini 4 128GB Space Grey"]
["R20989","Microsoft Lumia 650 Black",1]
["R20995","Microsoft B Lumia 950 White",1]
["R20997","Samsung Galaxy A3 (2016) 16GB Black"]
["R21000","Samsung Galaxy S7 32GB Black"]
["R21003","Samsung Galaxy S7 Edge 32GB Black",1]
["R21013","iPhone SE 16GB Rose Gold"]
["R21018","Huawei P9 Lite Black"]
["R21023","iPad Pro 9 7 32GB Rose Gold",1]
["R21029","Samsung Galaxy Tab S2 97 32GB NV Black"]
["R21037","Huawei Honor 8 32GB DS Blue"]
["R21038","Huawei E5577 Mobile WIFI Black",5]
["R21039","Samsung Galaxy S7 Edge 32GB Silver"]
["R21040","iPhone 6s 32GB Space Grey",2]
["R21045","iPhone 6s Plus 32GB Silver"]
["R21060","iPhone 7 32GB Black",6]
["R21061","iPhone 7 32GB Silver",2]
["R21065","iPhone 7 128GB Black"]
["R21069","iPhone 7 128GB Jet Black",3]
["R21076","OnePlus 3T 128GB Gunmetal",1]
["R21080","iPhone 7 Plus 32GB Black",10]
["R21083","iPhone 7 Plus 32GB Rose Gold",1]
["R21084","Samsung Galaxy Tab A 101 16GB Black"]
["R21086","iPhone 7 Plus 128GB Silver",1]
["R21088","iPhone 7 Plus 128GB Rose Gold",2]
["R21089","iPhone 7 Plus 128GB Jet Black",2]
["R21090","iPhone 7 Plus 256GB Black",5]
["R21093","iPhone 7 Plus 256GB Rose Gold",4]
["R21094","iPhone 7 Plus 256GB Jet Black",1]
["R21095","Samsung Galaxy S7 Edge 32GB Blue",1]
["R21099","Huawei B525 CA White",3]
["R21103","Samsung Galaxy S8 Plus 64GB Black",1]
["R21104","Samsung Galaxy S8 Plus 64GB Silver",1]
["R21106","Huawei P10 64GB Black"]
["R21111","Samsung Galaxy A3 2017 16GB Gold"]
["R21117","Samsung Galaxy Xcover 4 Black",2]
["R21120","iPad 5th generation 32GB Space Grey"]
["R21128","iPhone 7 Plus 128GB Red",6]
["R21129","iPhone 7 Plus 256GB Red",1]
["R21139","Nokia 3 16GB DS Black"]
["R21143","iPad Pro 10 5 64GB Rose Gold",3]
["R21144","iPad Pro 10 5 256GB Space Grey"]
["R21147","iPad Pro 10 5 256GB Rose Gold"]
["R21155","OnePlus 5 64GB Gold",3]
["R21156","OnePlus 5 128GB Black",1]
["R21158","Samsung Galaxy Note 8 64GB DS Black",1]
["R21159","Samsung Galaxy Note 8 64GB DS Gold"]
["R21160","iPhone 8 64GB Space Grey",1]
["R21161","iPhone 8 64GB Silver"]
["R21163","iPhone 8 256GB Space Grey",1]
["R21165","iPhone 8 256GB Gold",1]
["R21166","Huawei Mate 10 Pro Gray"]
["R21169","Nokia 8 128GB DS Polished Blue"]
["R21170","iPhone 8 Plus 64GB Space Grey",11]
["R21171","iPhone 8 Plus 64GB Silver",8]
["R21172","iPhone 8 Plus 64GB Gold",11]
["R21176","Samsung Galaxy Tab A 10 1 32GB Black"]
["R21177","Nokia 3310 3G DS Grey",1]
["R21180","iPhone X 64GB Space Grey"]
["R21181","iPhone X 64GB Silver",4]
["R21182","iPhone X 256GB Space Grey",3]
["R21183","iPhone X 256GB Silver"]
["R21185","OnePlus 5T 128GB Black",1]
["R21190","Huawei P20 128GB DS Black"]
["R21191","Huawei P20 Lite 64GB DS Black"]
["R21192","OnePlus 6 64GB Mirror Black"]
["R21193","OnePlus 6 128GB Mirror Black"]
["R21194","OnePlus 6 256GB Midnight Black",2]
["R21195","Samsung Galaxy Tab S4 64GB Black",1]
["R21197","Samsung Galaxy A6 64GB Gold"]
["R21200","Samsung Galaxy S9 64GB Black"]
["R21202","Samsung Galaxy S9 64GB Purple"]
["R21203","Samsung Galaxy S9 Plus 64GB Black",3]
["R21205","Samsung Galaxy S9 Plus 64GB Purple",3]
["R21208","Samsung Galaxy Note 9 128GB DS Black",6]
["R21209","Samsung Galaxy Note 9 128GB DS Blue",1]
["R21212","Nokia 8 64GB DS Silver",2]
["R21217","Nokia 7 Plus 64GB DS Black",1]
["R21218","Xiaomi Mi Mix 2s 64GB Black",15]
["R21219","Xiaomi Mi Mix 2s 128GB Black"]
["R21220","iPad 6th generation 32GB Space Grey",1]
["R21221","iPad 6th generation 32GB Silver"]
["R21228","iPhone 8 Plus 64GB Red",10]
["R21232","iPad Pro 11 256GB Space Grey"]
["R21236","iPad Pro 12 9 3rd gen 256GB Space Grey"]
["R21238","Motorola One Zoom 128GB HDS Grey",13]
["R21239","Huawei MediaPad T3 10 32GB Space Gray",2]
["R21240","iPad Mini 5th generation 64GB Space Grey",34]
["R21244","Xiaomi Mi 8 64GB Black",18]
["R21245","Xiaomi MI 8 128GB Black"]
["R21246","Xiaomi Redmi 6 32GB Black"]
["R21247","Samsung Galaxy Tab Active 2 16GB Black",3]
["R21248","Huawei Mate 20 Lite 64GB HDS Black",2]
["R21249","Razer Phone 2 64GB Black",16]
["R21250","OnePlus 6t 128GB Mirror Black",25]
["R21252","OnePlus 6t 256GB Midnight Black",3]
["R21254","Samsung Galaxy S10e 128GB HDS Black",7]
["R21255","Huawei B2368 WTTx White",133]
["R21256","Samsung Galaxy Xcover 4s DS Black",4]
["R21257","Samsung Galaxy Tab A 10 1 2019 32GB Black"]
["R21258","Huawei P30 Lite 128GB HDS Black"]
["R21259","Huawei P30 Lite 128GB HDS White"]
["R21260","iPhone Xr 64GB Black"]
["R21261","iPhone Xr 64GB White",10]
["R21262","iPhone Xr 64GB Red",3]
["R21266","iPhone Xr 128GB Black",3]
["R21267","iPhone Xr 128GB White",1]
["R21268","iPhone Xr 128GB Red",4]
["R21272","iPhone Xr 256GB Black",3]
["R21273","Huawei P30 128GB HDS Black",4]
["R21274","Huawei P30 128GB HDS Twillight",1]
["R21275","Huawei P30 Pro 128GB HDS Black",1]
["R21276","Huawei P30 Pro 128GB HDS Twillight"]
["R21277","Huawei P30 Pro 256GB HDS Black"]
["R21278","Huawei Mate 20 Pro 128GB DS Black"]
["R21279","Huawei Mate 20 Pro 128GB DS Twilight"]
["R21280","iPhone Xs 64GB Space Grey",4]
["R21283","iPhone Xs 256GB Space Grey",3]
["R21284","iPhone Xs 256GB Silver"]
["R21285","iPhone Xs 256GB Gold"]
["R21286","iPhone Xs 512GB Space Grey",2]
["R21287","iPhone Xs 512GB Silver",1]
["R21290","iPhone Xs Max 64GB Space Grey"]
["R21291","iPhone Xs Max 64GB Silver",4]
["R21292","iPhone Xs Max 64GB Gold",32]
["R21293","iPhone Xs Max 256GB Space Grey",5]
["R21294","iPhone Xs Max 256GB Silver",1]
["R21295","iPhone Xs Max 256GB Gold",6]
["R21300","Samsung Galaxy S10 128GB HDS Black",13]
["R21301","Samsung Galaxy S10 128GB HDS White",3]
["R21302","Samsung Galaxy S10 Plus 128GB HDS Black",7]
["R21303","Samsung Galaxy S10 Plus 128GB HDS White",7]
["R21305","Xiaomi Redmi 7 32GB DS Black",2]
["R21306","Samsung Galaxy A40 64GB DS Black"]
["R21307","Samsung Galaxy A40 64GB DS White"]
["R21308","Samsung Galaxy A70 128GB DS Black"]
["R21310","iPad Air 10 5 64GB Space Grey",35]
["R21316","OnePlus 7 128GB DS Mirror Gray",30]
["R21317","OnePlus 7 Pro 256GB DS Mirror Gray",28]
["R21318","OnePlus 7 Pro 256GB DS Nebula Blue",16]
["R21320","iPad 7th generation 32GB Space Grey",16]
["R21321","iPad 7th generation 32GB Silver"]
["R21322","iPad 7th generation 32GB Gold",1]
["R21326","iPhone 8 128GB Space Grey"]
["R21327","Samsung Galaxy A41 64GB DS Black"]
["R21328","Samsung Galaxy A21s 32GB DS Black",1]
["R21329","Huawei Nova 5T 128GB DS Black",2]
["R21330","Samsung Galaxy Note 10 256GB HDS Black",1]
["R21331","Samsung Galaxy Note 10 256GB HDS Glow",2]
["R21332","Samsung Galaxy Note 10 Plus 256GB HDS Black",13]
["R21334","Samsung Galaxy Note 10 256GB HDS Glow",3]
["R21335","Samsung Galaxy Tab S6 128GB Grey"]
["R21336","OnePlus 7T 128GB DS Frosted Silver",17]
["R21337","OnePlus 7T 128GB DS Glacier Blue",16]
["R21338","OnePlus 7T Pro 256GB DS Haze Blue",22]
["R21339","Huawei B535 CA White",373]
["R21340","iPad Pro 11 2nd gen 128GB Space Grey",1]
["R21346","OnePlus 8 128GB 5G DS Black",1]
["R21347","OnePlus 8 128GB 5G DS Green",2]
["R21348","OnePlus 8 Pro 128GB 5G DS Black",16]
["R21349","Motorola Edge 128GB 5G HDS Black",11]
["R21350","Samsung Galaxy Z Flip 128GB 5G Black",4]
["R21352","Huawei P40 Lite 128GB Black",1]
["R21353","Huawei P40 Pro 256GB 5G Black"]
["R21354","OnePlus Nord 128GB 5G DS Gray Onyx"]
["R21355","OnePlus Nord 128GB 5G DS Blue Marble",1]
["R21356","OnePlus Nord 256GB 5G DS Gray Onyx",4]
["R21358","OnePlus 8T Lunar Silver",2]
["R21359","OnePlus 8T Aquamarine Green",2]
["R21360","iPhone 11 64GB Black",1]
["R21361","iPhone 11 64GB White",1]
["R21362","iPhone 11 64GB Red",1]
["R21363","iPhone 11 64GB Yellow"]
["R21364","iPhone 11 64GB Purple"]
["R21366","iPhone 11 128GB Black"]
["R21368","iPhone 11 128GB Red",3]
["R21370","iPhone 11 128GB Purple",1]
["R21371","iPhone 11 128GB Green",1]
["R21372","iPhone 11 256GB Black",1]
["R21374","Motorola One Hyper 128GB HDS Blue",3]
["R21375","Samsung Galaxy A51 128GB HDS Black",2]
["R21376","Samsung Galaxy S10 Lite 128GB HDS Black",4]
["R21379","Fairphone 3 Plus 64GB Black",3]
["R21380","iPhone 11 Pro 64GB Space Grey",2]
["R21381","iPhone 11 Pro 64GB Silver",1]
["R21382","iPhone 11 Pro 64GB Gold"]
["R21383","iPhone 11 Pro 64GB Midnight Green",2]
["R21384","iPhone 11 Pro 256GB Space Grey",5]
["R21385","iPhone 11 Pro 256GB Silver",4]
["R21386","iPhone 11 Pro 256GB Gold",4]
["R21387","iPhone 11 Pro 256GB Midnight Green",2]
["R21388","iPhone 11 Pro 512GB Space Grey",3]
["R21389","iPhone 11 Pro 512GB Midnight Green",2]
["R21390","iPhone 11 Pro Max 64GB Space Grey"]
["R21392","iPhone 11 Pro Max 64GB Gold"]
["R21393","iPhone 11 Pro Max 64GB Midnight Green",5]
["R21394","iPhone 11 Pro Max 256GB Space Grey",3]
["R21396","iPhone 11 Pro Max 256GB Gold",1]
["R21397","iPhone 11 Pro Max 256GB Midnight Green",2]
["R21400","Samsung Galaxy S20 128GB 5G HDS Gray",15]
["R21401","Samsung Galaxy S20 128GB 5G HDS Blue",4]
["R21402","Samsung Galaxy S20 Plus 128GB 5G HDS Black",6]
["R21403","Samsung Galaxy S20 Plus 128GB 5G HDS Gray",1]
["R21404","Samsung Galaxy S20 Plus 512GB 5G HDS Gray",1]
["R21405","Samsung Galaxy S20 Ultra 128GB 5G HDS Gray",19]
["R21407","Samsung Galaxy S20FE 4G 128GB Cloud Lavender",1]
["R21410","iPhone SE 2nd gen 64GB Black",5]
["R21411","iPhone SE 2nd gen 64GB White",1]
["R21412","iPhone SE 2nd gen 64GB Red",2]
["R21416","iPhone SE 2nd gen 256GB Black",1]
["R21417","Samsung Galaxy S20FE 5G 128GB Cloud Lavender",2]
["R21418","iPhone SE 2nd gen 64GB Black NEW",6]
["R21419","iPhone SE 2nd gen 64GB White NEW",3]
["R21420","iPhone SE 2nd gen 64GB Red NEW",2]
["R21421","iPhone SE 2nd gen 128GB Black NEW",4]
["R21425","iPhone 11 64GB Black NEW"]
["R21426","iPhone 11 64GB White NEW",1]
["R21429","Huawei E5577-320 Mobile WIFI Black",3]
["R21430","Samsung Galaxy Note 20 256GB 5G Mystic Gray",2]
["R21431","Samsung Galaxy Note 20 Ultra 256GB 5G Mystic Blac",8]
["R21432","Samsung Galaxy Note 20 Ultra 256GB 5G Mystic",6]
["R21433","Samsung Galaxy Note 20 Ultra 512GB 5G Mystic",5]
["R21434","Sony Xperia 5 II Cloud Navy",3]
["R21435","Samsung Galaxy Tab S7 LTE Dark Gray",1]
["R21436","Samsung Galaxy Tab A7 LTE Dark Gray",5]
["R21437","OnePlus Nord N10 5G Midnight Ice",1]
["R21438","OnePlus Nord N100 Midnight Frost",6]
["R21439","Sony Xperia 5 II Black",1]
["R21440","iPhone 12 64GB Black",4]
["R21441","iPhone 12 64GB White",1]
["R21442","iPhone 12 64GB RED",1]
["R21443","iPhone 12 64GB Blue",1]
["R21444","iPhone 12 64GB Green",1]
["R21445","iPhone 12 128GB Black",3]
["R21446","iPhone 12 128GB White",1]
["R21448","iPhone 12 128GB Blue",4]
["R21449","iPhone 12 128GB Green",2]
["R21450","iPhone 12 256GB Black",3]
["R21455","iPhone 12 mini 64GB Black",4]
["R21456","iPhone 12 mini 64GB White",5]
["R21457","iPhone 12 mini 64GB RED",1]
["R21458","iPhone 12 mini 64GB Blue",4]
["R21459","iPhone 12 mini 64GB Green",1]
["R21460","iPhone 12 mini 128GB Black",5]
["R21461","iPhone 12 mini 128GB White",1]
["R21462","iPhone 12 mini 128GB RED",5]
["R21463","iPhone 12 mini 128GB Blue",4]
["R21465","iPhone 12 mini 256GB Black",3]
["R21470","iPhone 12 Pro 128GB Graphite",8]
["R21471","iPhone 12 Pro 128GB Silver",3]
["R21472","iPhone 12 Pro 128GB Gold",7]
["R21473","iPhone 12 Pro 128GB Pacific Blue",9]
["R21474","iPhone 12 Pro 256GB Graphite",8]
["R21476","iPhone 12 Pro 256GB Gold",4]
["R21477","iPhone 12 Pro 256GB Pacific Blue",7]
["R21478","iPhone 12 Pro 512GB Graphite",2]
["R21481","iPhone 12 Pro 512GB Pacific Blue",2]
["R21490","iPad 8th generation 32GB Space Grey",2]
["R21493","iPad 8th generation 128GB Space Grey",1]
["R21504","iPad Air 10 9 256GB Space Grey",1]
["R21510","iPhone 12 Pro Max 128GB Graphite",3]
["R21511","iPhone 12 Pro Max 128GB Silver",2]
["R21512","iPhone 12 Pro Max 128GB Gold",3]
["R21513","iPhone 12 Pro Max 128GB Pacific Blue",4]
["R21514","iPhone 12 Pro Max 256GB Graphite",3]
["R21515","iPhone 12 Pro Max 256GB Silver",1]
["R21516","iPhone 12 Pro Max 256GB Gold",2]
["R21517","iPhone 12 Pro Max 256GB Pacific Blue",6]
["R21521","iPhone 12 Pro Max 512GB Pacific Blue",1]
["R21522","Xiaomi Mi 10T Pro Cosmic Black",3]
["R21525","Samsung Galaxy S21 128GB Gray",1]
["R21530","Samsung Galaxy S21 Plus 128GB Silver",1]
["R21532","Samsung Galaxy S21 Plus 256GB Black",3]
["R21533","Samsung Galaxy S21 Ultra 128GB Black",2]
["R21534","Samsung Galaxy S21 Ultra 128GB Silver",1]
["R21535","Samsung Galaxy S21 Ultra 256GB Black",2]
["R21536","Samsung Galaxy S21 Ultra 512GB Black",1]
["U20601","Apple Watch 3C 42mm Space Grey Alu Case w Black",1]
["U20602","Apple Watch 3C 38mm Gold Aluminium Case only DEMO",2]
["U20603","Apple Watch 3C 42mm Space Grey Aluminium Case onl",2]
["U20604","38mm Pink Sand Sport Band with Rose Gold Pin TRY",1]
["U20605","42mm Black Sport Band with Space Black Pin TRY ON",4]
["U20610","Apple Watch 4C 40mm Gold DEMO",15]
["U20611","Apple Watch 4C 44mm Grey DEMO",15]
["U20615","Apple Watch 5C 40mm Gold DEMO",13]
["U20616","40mm Pink Sand Sport Band DEMO",15]
["U20617","Apple Watch 5C 44mm Grey DEMO",15]
["U20618","44mm Black Sport Band DEMO",18]
["U20817","Huawei DEMO E5186s-22a White"]
["U20884","Samsung DEMO Galaxy Xcover 3 Grey"]
["U20899","Huawei DEMO B315 4G White"]
["U21022","iPad Pro 9 7 32GB Gold DEMO"]
["U21038","Huawei E5577 Mobile WIFI Black"]
["U21039","Samsung Galaxy S7 Edge 32GB Silver"]
["U21060","iPhone 7 32GB Black DEMO"]
["U21061","iPhone 7 32GB Silver DEMO"]
["U21069","iPhone 7 128GB Jet Black DEMO"]
["U21099","Huawei B525 White CA DEMO"]
["U21117","Samsung Galaxy Xcover 4 Black DEMO"]
["U21118","iPhone 7 128GB Red DEMO"]
["U21119","iPhone 7 256GB Red DEMO"]
["U21143","iPad Pro 10 5 64GB Rose Gold DEMO"]
["U21160","iPhone 8 64GB Space Grey DEMO"]
["U21162","iPhone 8 64GB Gold DEMO"]
["U21172","iPhone 8 Plus 64GB Gold DEMO"]
["U21176","Samsung Galaxy Tab A 10 1 32GB Black DEMO"]
["U21177","Nokia 3310 3G DS Grey DEMO"]
["U21184","OnePlus 5T 64GB Black DEMO"]
["U21190","Huawei P20 128GB DS Black DEMO"]
["U21199","Huawei MediaPad T3 10 16GB Space Gray DEMO"]
["U21218","Xiaomi Mi Mix 2s 64GB Black DEMO"]
["U21220","iPad 6th generation 32GB Space Grey DEMO"]
["U21228","iPhone 8 Plus 64GB Red DEMO"]
["U21231","iPad Pro 11 64GB Silver DEMO"]
["U21238","Motorola One Zoom 128GB HDS Grey DEMO"]
["U21239","Huawei MediaPad T3 10 32GB Space Gray DEMO"]
["U21246","Xiaomi Redmi 6 32GB Black DEMO"]
["U21250","OnePlus 6t 128GB Mirror Black DEMO"]
["U21255","Huawei B2368 WTTx White DEMO"]
["U21256","Samsung Galaxy Xcover 4s DS Black DEMO"]
["U21258","Huawei P30 Lite 128GB HDS Black DEMO"]
["U21259","Huawei P30 Lite 128GB HDS White DEMO"]
["U21260","iPhone Xr 64GB Black DEMO"]
["U21261","iPhone Xr 64GB White DEMO",3]
["U21273","Huawei P30 128GB HDS Black DEMO"]
["U21275","Huawei P30 Pro 128GB HDS Black DEMO"]
["U21276","Huawei P30 Pro 128GB HDS Twillight DEMO"]
["U21277","Huawei P30 Pro 256GB HDS Black DEMO"]
["U21279","Huawei Mate 20 Pro 128GB DS Twilight DEMO"]
["U21280","iPhone Xs 64GB Space Grey DEMO"]
["U21281","iPhone Xs 64GB Silver DEMO"]
["U21282","iPhone Xs 64GB Gold DEMO"]
["U21292","iPhone Xs Max 64GB Gold DEMO"]
["U21300","Samsung Galaxy S10 128GB HDS Black DEMO"]
["U21302","Samsung Galaxy S10 Plus 128GB HDS Black DEMO"]
["U21305","Xiaomi Redmi 7 32GB DS Black DEMO"]
["U21306","Samsung Galaxy A40 64GB DS Black DEMO"]
["U21316","OnePlus 7 128GB DS Mirror Gray DEMO"]
["U21317","OnePlus 7 Pro 256GB DS Mirror Gray DEMO"]
["U21318","OnePlus 7 Pro 256GB DS Nebula Blue DEMO"]
["U21320","iPad 7th generation 32GB Space Grey"]
["U21327","Samsung Galaxy A41 64GB DS Black DEMO"]
["U21328","Samsung Galaxy A21s 32GB DS Black DEMO"]
["U21329","Huawei Nova 5T 128GB DS Black DEMO"]
["U21335","Samsung Galaxy Tab S6 128GB Grey DEMO"]
["U21336","OnePlus 7T 128GB DS Frosted Silver DEMO"]
["U21337","OnePlus 7T 128GB DS Glacier Blue DEMO"]
["U21338","OnePlus 7T Pro 256GB DS Haze Blue DEMO"]
["U21339","Huawei B535 CA White DEMO"]
["U21346","OnePlus 8 128GB 5G DS Black DEMO"]
["U21347","OnePlus 8 128GB 5G DS Green DEMO"]
["U21348","OnePlus 8 Pro 128GB 5G DS Black DEMO"]
["U21349","Motorola Edge 128GB 5G HDS Black DEMO"]
["U21351","Samsung Galaxy Z Flip 128GB 5G Purple DEMO"]
["U21352","Huawei P40 Lite 128GB Black"]
["U21353","Huawei P40 Pro 256GB 5G Black"]
["U21354","OnePlus Nord 128GB 5G DS Gray Onyx DEMO"]
["U21355","OnePlus Nord 128GB 5G DS Blue Marble DEMO"]
["U21356","OnePlus Nord 256GB 5G DS Gray Onyx DEMO"]
["U21358","OnePlus 8T Lunar Silver 128GB DEMO"]
["U21359","OnePlus 8T Aquamarine Green 128GB DEMO"]
["U21360","iPhone 11 64GB Black DEMO",8]
["U21361","iPhone 11 64GB White DEMO"]
["U21374","Motorola One Hyper 128GB HDS Blue DEMO"]
["U21375","Samsung Galaxy A51 128GB HDS Black DEMO"]
["U21377","Samsung Galaxy A71 128GB DS Black DEMO"]
["U21379","Fairphone 3 Plus 64GB Black DEMO"]
["U21380","iPhone 11 Pro 64GB Space Grey DEMO",7]
["U21382","iPhone 11 Pro 64GB Gold DEMO"]
["U21383","iPhone 11 Pro 64GB Midnight Green DEMO"]
["U21390","iPhone 11 Pro Max 64GB Space Grey DEMO"]
["U21393","iPhone 11 Pro Max 64GB Midnight Green DEMO"]
["U21402","Samsung Galaxy S20 Plus 128GB 5G HDS Black DEMO",2]
["U21405","Samsung Galaxy S20 Ultra 128GB 5G HDS Gray DEMO"]
["U21410","iPhone SE 2nd gen 64GB Black DEMO"]
["U21435","Samsung Galaxy Tab S7 LTE Dark Gray DEMO"]
["U21437","OnePlus Nord N10 5G Midnight Ice DEMO"]
["U21438","OnePlus Nord N100 Midnight Frost DEMO"]
["U21443","iPhone 12 64GB Blue DEMO"]
["U21455","iPhone 12 mini 64GB Black DEMO"]
["U21472","iPhone 12 Pro 128GB Gold DEMO"]
["U21490","iPad 8th generation 32GB Space Grey",7]
["U21499","iPad Air 10 9 64GB Sky Blue DEMO",14]
["U21513","iPhone 12 Pro Max 128GB Pacific Blue DEMO"]
["U21522","Xiaomi Mi 10T Pro Cosmic Black DEMO",15]